Workbook

Sheet Ｗプリント_メニュー
E1: [数学] 観点別集計ソフト(1年標準) | O1: FALSE | P1: FALSE
A2: ▼設定メニュー
B3: 名簿入力 | N3: 名簿入力はこちら＞
C4: 入力済み名簿（8組まで対応）
D5: ="1組:"&名簿入力!C3&"名" -> 1組:0名 | E5: ="2組:"&名簿入力!G3&"名" -> 2組:0名 | F5: ="3組:"&名簿入力!K3&"名" -> 3組:0名 | G5: ="4組:"&名簿入力!O3&"名" -> 4組:0名 | H5: ="5組:"&名簿入力!S3&"名" -> 5組:0名 | I5: ="6組:"&名簿入力!W3&"名" -> 6組:0名 | J5: ="7組:"&名簿入力!AA3&"名" -> 7組:0名 | K5: ="8組:"&名簿入力!AE3&"名" -> 8組:0名
C7: ※得点入力シートなどで名簿を直接入力しないようにしてください。
C8: ※必ず名簿入力シートで名簿を入力してください（各シートに反映されます）。
B11: 各回使用学期/観点別評価基準の設定＞ | G11: ユーザー独自項目 各回の使用学期／観点別評価基準／評価材ごとの重み付けと比重 の設定＞
B22: 学期・年間の観点別評価基準 観点重みづけ の設定 | N22: 変更する場合はこちら＞
B35: 5段階評定の基準選択と基準の設定 | N35: 変更する場合はこちら＞
H37: =IF(達成率で5段階評定="○","「達成率（得点率)による評価」を選択しています。","「観点別評価のABC判帝をもとにした評価」を選択しています。") -> 「達成率（得点率)による評価」を選択しています。
B49: ファイル関連設定
C51: ▼バージョンアップ時のデータ取り込み処理（１．[フォルダ選択]で前バージョンのEXCEL得点集計を選択。２．[取り込み]をクリック）
A59: ▼得点入力・集計メニュー
C60: 得点分布[学年] | E60: (全クラス) | N60: ▼得点入力▼
C61: 学期・年間＞ | E61: 1学期 | N61: 下の図をクリックすると
N62: 単元表示の時に上の行
F63: =IF(C61="学期・年間＞","―",VALUE(LEFT($E61,FIND(":",$E61)-1))) -> ― | G63: =IF(C61="学期・年間＞",IF(E61="年間",1,MATCH(VALUE(SUBSTITUTE(E61,"学期","")),Ｗデータシート!G6:P6,0)), IF(C61="単元(単独)＞",13, IF(C61="単元(２単元比較)＞",16, IF(C61="回数範囲指定＞",23,)))) -> 4 | H63: =IF(E62="","―",VALUE(LEFT($E62,FIND(":",$E62)-1))) -> ― | I63: =IF(C61="学期・年間＞","―", IF(C61="単元(単独)＞","―", IF(C61="単元(２単元比較)＞",19, IF(C61="回数範囲指定＞","―",)))) -> ― | N63: の単元の得点入力へ
F64: % | N64: 移動します↓
D65: 0 | E65: 10 | F65: =D65&"～"&E65 -> 0～10 | G65: =OFFSET(Ｗデータシート!$G$7,ROW()-ROW(G$65),G$63) ->  | I65: =IF(I$63="―","―",OFFSET(Ｗデータシート!$G$7,ROW()-ROW(I$65),I$63)) -> ―
D66: =E65 -> 10 | E66: =E65+10 -> 20 | F66: 10～20 | G66: =OFFSET(Ｗデータシート!$G$7,ROW()-ROW(G$65),G$63) ->  | I66: =IF(I$63="―","―",OFFSET(Ｗデータシート!$G$7,ROW()-ROW(I$65),I$63)) -> ―
D67: =E66 -> 20 | E67: =E66+10 -> 30 | F67: 20～30 | G67: =OFFSET(Ｗデータシート!$G$7,ROW()-ROW(G$65),G$63) ->  | I67: =IF(I$63="―","―",OFFSET(Ｗデータシート!$G$7,ROW()-ROW(I$65),I$63)) -> ―
D68: 30 | E68: 40 | F68: 30～40 | G68: =OFFSET(Ｗデータシート!$G$7,ROW()-ROW(G$65),G$63) ->  | I68: =IF(I$63="―","―",OFFSET(Ｗデータシート!$G$7,ROW()-ROW(I$65),I$63)) -> ―
D69: 40 | E69: 50 | F69: 40～50 | G69: =OFFSET(Ｗデータシート!$G$7,ROW()-ROW(G$65),G$63) ->  | I69: =IF(I$63="―","―",OFFSET(Ｗデータシート!$G$7,ROW()-ROW(I$65),I$63)) -> ―
D70: 50 | E70: 60 | F70: 50～60 | G70: =OFFSET(Ｗデータシート!$G$7,ROW()-ROW(G$65),G$63) ->  | I70: =IF(I$63="―","―",OFFSET(Ｗデータシート!$G$7,ROW()-ROW(I$65),I$63)) -> ―
D71: 60 | E71: 70 | F71: 60～70 | G71: =OFFSET(Ｗデータシート!$G$7,ROW()-ROW(G$65),G$63) ->  | I71: =IF(I$63="―","―",OFFSET(Ｗデータシート!$G$7,ROW()-ROW(I$65),I$63)) -> ―
D72: 70 | E72: 80 | F72: 70～80 | G72: =OFFSET(Ｗデータシート!$G$7,ROW()-ROW(G$65),G$63) ->  | I72: =IF(I$63="―","―",OFFSET(Ｗデータシート!$G$7,ROW()-ROW(I$65),I$63)) -> ―
D73: 80 | E73: 90 | F73: 80～90 | G73: =OFFSET(Ｗデータシート!$G$7,ROW()-ROW(G$65),G$63) ->  | I73: =IF(I$63="―","―",OFFSET(Ｗデータシート!$G$7,ROW()-ROW(I$65),I$63)) -> ―
D74: 90 | E74: 100 | F74: 90～100 | G74: =OFFSET(Ｗデータシート!$G$7,ROW()-ROW(G$65),G$63) ->  | I74: =IF(I$63="―","―",OFFSET(Ｗデータシート!$G$7,ROW()-ROW(I$65),I$63)) -> ―
B78: 平均点グラフ（合計） | N78: 平均点シートはこちら＞
D80: 単元情報を入力、名簿入力後に再描画してください。
B100: 学年成績分布 | N100: クラス別はこちら＞
B111: 校務支援ソフト連携ファイル出力 | N111: 総合評価はこちら＞
C112: 総合評価シートの出力ボタンでファイル作成できます。
N114: 以上

Sheet Ｗデータシート (hidden)
A1: メニューシートの得点分布のデータ | R1: 学期・年間＞,単元(単独)＞,単元(２単元比較)＞,回数範囲指定＞ | AB1: 回数で範囲を選ぶ
A2: 得点分布表 | S2: ="第"&OFFSET(基準設定1!A10,S6*3,0)&"回 "&OFFSET(基準設定1!B10,S6*3,0) ->  | V2: ="第"&OFFSET(基準設定1!$A10,V6*3,0)&"回 "&OFFSET(基準設定1!$B10,V6*3,0) ->  | Y2: ="第"&OFFSET(基準設定1!$A10,Y6*3,0)&"回 "&OFFSET(基準設定1!$B10,Y6*3,0) ->  | AB2: 開始回数 | AC2: =IF(Ｗプリント_メニュー!$F$63=FALSE,2,Ｗプリント_メニュー!$F$63) -> ―
B3: 学年全体 | V3: 単元① | Y3: 単元② | AB3: 終了範囲 | AC3: =IF(Ｗプリント_メニュー!$H$63=FALSE,2,Ｗプリント_メニュー!$H$63) -> ―
G4: 0 | H4: 1 | I4: 2 | J4: 3 | K4: 4 | L4: 5 | M4: 6 | N4: 7 | O4: 8 | P4: 9 | Q4: 10 | R4: 11 | S4: 12 | T4: 13 | U4: 14 | V4: 15 | W4: 16 | X4: 17 | Y4: 18 | Z4: 19 | AA4: 20 | AB4: 21 | AC4: 22 | AD4: 23
B5: 学年全体orクラス | C5: =IF(Ｗプリント_メニュー!$E$60="(全クラス)",">0",Ｗプリント_メニュー!$E$60) -> >0 | F5: 満点 | G5: =Ｗプリント_得点!$BO$7 -> 824 | J5: =Ｗプリント_得点!BL$7 -> 206 | M5: =Ｗプリント_得点!BM$7 -> 309 | P5: =Ｗプリント_得点!BN$7 -> 309 | S5: =OFFSET(Ｗプリント_得点!$AW$7,0,S6-1) ->  | V5: =OFFSET(Ｗプリント_得点!$AW$7,0,V6-1) ->  | Y5: =OFFSET(Ｗプリント_得点!$AW$7,0,Y6-1) ->  | AC5: =Ｗプリント_得点!$BP$7 -> 
D6: 0 | E6: % | F6: 0 | G6: 年間 | H6: 率 | I6: 0 | J6: 1 | K6: 率 | L6: 0 | M6: 2 | N6: 率 | O6: 0 | P6: 3 | Q6: 率 | R6: 0 | S6: =IF(Ｗプリント_メニュー!$F$63=FALSE,2,Ｗプリント_メニュー!$F$63) -> ― | T6: 率 | U6: 0 | V6: =IF(Ｗプリント_メニュー!$F$63=FALSE,2,Ｗプリント_メニュー!$F$63) -> ― | W6: 率 | X6: 0 | Y6: =IF(Ｗプリント_メニュー!$H$63=FALSE,2,Ｗプリント_メニュー!$H$63) -> ― | Z6: 率 | AB6: 0 | AD6: 率
D7: 10 | E7: =D6&"～"&D7 -> 0～10 | F7: =G$5*$D7/100 -> 82.4 | G7: =COUNTIFS(OFFSET(Ｗプリント_得点!$BO$9,0,0,360,1),"<"&F7,OFFSET(Ｗプリント_得点!$BO$9,0,0,360,1),">="&F6,OFFSET(Ｗプリント_得点!$A$9,0,0,360,1),$C$5) -> 0 | H7: =G7/G$17 ->  | I7: =J$5*$D7/100 -> 20.6 | J7: =COUNTIFS(OFFSET(Ｗプリント_得点!BL$9,0,0,360,1),"<"&I7,OFFSET(Ｗプリント_得点!BL$9,0,0,360,1),">="&I6,OFFSET(Ｗプリント_得点!$A$9,0,0,360,1),$C$5) -> 0 | K7: =J7/J$17 ->  | L7: =M$5*$D7/100 -> 30.9 | M7: =COUNTIFS(OFFSET(Ｗプリント_得点!BM$9,0,0,360,1),"<"&L7,OFFSET(Ｗプリント_得点!BM$9,0,0,360,1),">="&L6,OFFSET(Ｗプリント_得点!$A$9,0,0,360,1),$C$5) -> 0 | N7: =M7/M$17 ->  | O7: =P$5*$D7/100 -> 30.9 | P7: =COUNTIFS(OFFSET(Ｗプリント_得点!BN$9,0,0,360,1),"<"&O7,OFFSET(Ｗプリント_得点!BN$9,0,0,360,1),">="&O6,OFFSET(Ｗプリント_得点!$A$9,0,0,360,1),$C$5) -> 0 | Q7: =P7/P$17 ->  | R7: =S$5*$D7/100 ->  | S7: =COUNTIFS(OFFSET(Ｗプリント_得点!$AW$9,0,S$6-1,360,1),"<"&R7,OFFSET(Ｗプリント_得点!$AW$9,0,S$6-1,360,1),">="&R6,OFFSET(Ｗプリント_得点!$A$9,0,0,360,1),$C$5) ->  | T7: =S7/S$17 ->  | U7: =V$5*$D7/100 ->  | V7: =COUNTIFS(OFFSET(Ｗプリント_得点!$AW$9,0,V$6-1,360,1),"<"&U7,OFFSET(Ｗプリント_得点!$AW$9,0,V$6-1,360,1),">="&U6,OFFSET(Ｗプリント_得点!$A$9,0,0,360,1),$C$5) ->  | W7: =V7/V$17 ->  | X7: =Y$5*$D7/100 ->  | Y7: =COUNTIFS(OFFSET(Ｗプリント_得点!$AW$9,0,Y$6-1,360,1),"<"&X7,OFFSET(Ｗプリント_得点!$AW$9,0,Y$6-1,360,1),">="&X6,OFFSET(Ｗプリント_得点!$A$9,0,0,360,1),$C$5) ->  | Z7: =Y7/Y$17 ->  | AB7: =AC$5*$D7/100 ->  | AC7: =COUNTIFS(OFFSET(Ｗプリント_得点!BP$9,0,0,360,1),"<"&AB7,OFFSET(Ｗプリント_得点!BP$9,0,0,360,1),">="&AB6,OFFSET(Ｗプリント_得点!$A$9,0,0,360,1),$C$5,OFFSET(Ｗプリント_得点!$A$9,0,0,360,1),$C$5) -> 0 | AD7: =AC7/AC$17 -> 
D8: =D7+10 -> 20 | E8: =D7&"～"&D8 -> 10～20 | F8: 164.8 | G8: =COUNTIFS(OFFSET(Ｗプリント_得点!$BO$9,0,0,360,1),"<"&F8,OFFSET(Ｗプリント_得点!$BO$9,0,0,360,1),">="&F7,OFFSET(Ｗプリント_得点!$A$9,0,0,360,1),$C$5) -> 0 | I8: 41.2 | J8: =COUNTIFS(OFFSET(Ｗプリント_得点!BL$9,0,0,360,1),"<"&I8,OFFSET(Ｗプリント_得点!BL$9,0,0,360,1),">="&I7,OFFSET(Ｗプリント_得点!$A$9,0,0,360,1),$C$5) -> 0 | L8: 61.8 | M8: =COUNTIFS(OFFSET(Ｗプリント_得点!BM$9,0,0,360,1),"<"&L8,OFFSET(Ｗプリント_得点!BM$9,0,0,360,1),">="&L7,OFFSET(Ｗプリント_得点!$A$9,0,0,360,1),$C$5) -> 0 | O8: 61.8 | P8: =COUNTIFS(OFFSET(Ｗプリント_得点!BN$9,0,0,360,1),"<"&O8,OFFSET(Ｗプリント_得点!BN$9,0,0,360,1),">="&O7,OFFSET(Ｗプリント_得点!$A$9,0,0,360,1),$C$5) -> 0 | S8: =COUNTIFS(OFFSET(Ｗプリント_得点!$AW$9,0,S$6-1,360,1),"<"&R8,OFFSET(Ｗプリント_得点!$AW$9,0,S$6-1,360,1),">="&R7,OFFSET(Ｗプリント_得点!$A$9,0,0,360,1),$C$5) ->  | V8: =COUNTIFS(OFFSET(Ｗプリント_得点!$AW$9,0,V$6-1,360,1),"<"&U8,OFFSET(Ｗプリント_得点!$AW$9,0,V$6-1,360,1),">="&U7,OFFSET(Ｗプリント_得点!$A$9,0,0,360,1),$C$5) ->  | Y8: =COUNTIFS(OFFSET(Ｗプリント_得点!$AW$9,0,Y$6-1,360,1),"<"&X8,OFFSET(Ｗプリント_得点!$AW$9,0,Y$6-1,360,1),">="&X7,OFFSET(Ｗプリント_得点!$A$9,0,0,360,1),$C$5) ->  | AB8: =AC$5*$D8/100 ->  | AC8: =COUNTIFS(OFFSET(Ｗプリント_得点!BP$9,0,0,360,1),"<"&AB8,OFFSET(Ｗプリント_得点!BP$9,0,0,360,1),">="&AB7,OFFSET(Ｗプリント_得点!$A$9,0,0,360,1),$C$5,OFFSET(Ｗプリント_得点!$A$9,0,0,360,1),$C$5) -> 0 | AD8: =AC8/AC$17 -> 
D9: =D8+10 -> 30 | E9: 20～30 | F9: 247.2 | G9: =COUNTIFS(OFFSET(Ｗプリント_得点!$BO$9,0,0,360,1),"<"&F9,OFFSET(Ｗプリント_得点!$BO$9,0,0,360,1),">="&F8,OFFSET(Ｗプリント_得点!$A$9,0,0,360,1),$C$5) -> 0 | I9: 61.8 | J9: =COUNTIFS(OFFSET(Ｗプリント_得点!BL$9,0,0,360,1),"<"&I9,OFFSET(Ｗプリント_得点!BL$9,0,0,360,1),">="&I8,OFFSET(Ｗプリント_得点!$A$9,0,0,360,1),$C$5) -> 0 | L9: 92.7 | M9: =COUNTIFS(OFFSET(Ｗプリント_得点!BM$9,0,0,360,1),"<"&L9,OFFSET(Ｗプリント_得点!BM$9,0,0,360,1),">="&L8,OFFSET(Ｗプリント_得点!$A$9,0,0,360,1),$C$5) -> 0 | O9: 92.7 | P9: =COUNTIFS(OFFSET(Ｗプリント_得点!BN$9,0,0,360,1),"<"&O9,OFFSET(Ｗプリント_得点!BN$9,0,0,360,1),">="&O8,OFFSET(Ｗプリント_得点!$A$9,0,0,360,1),$C$5) -> 0 | S9: =COUNTIFS(OFFSET(Ｗプリント_得点!$AW$9,0,S$6-1,360,1),"<"&R9,OFFSET(Ｗプリント_得点!$AW$9,0,S$6-1,360,1),">="&R8,OFFSET(Ｗプリント_得点!$A$9,0,0,360,1),$C$5) ->  | V9: =COUNTIFS(OFFSET(Ｗプリント_得点!$AW$9,0,V$6-1,360,1),"<"&U9,OFFSET(Ｗプリント_得点!$AW$9,0,V$6-1,360,1),">="&U8,OFFSET(Ｗプリント_得点!$A$9,0,0,360,1),$C$5) ->  | Y9: =COUNTIFS(OFFSET(Ｗプリント_得点!$AW$9,0,Y$6-1,360,1),"<"&X9,OFFSET(Ｗプリント_得点!$AW$9,0,Y$6-1,360,1),">="&X8,OFFSET(Ｗプリント_得点!$A$9,0,0,360,1),$C$5) ->  | AC9: =COUNTIFS(OFFSET(Ｗプリント_得点!BP$9,0,0,360,1),"<"&AB9,OFFSET(Ｗプリント_得点!BP$9,0,0,360,1),">="&AB8,OFFSET(Ｗプリント_得点!$A$9,0,0,360,1),$C$5,OFFSET(Ｗプリント_得点!$A$9,0,0,360,1),$C$5) -> 0
D10: 40 | E10: 30～40 | F10: 329.6 | G10: =COUNTIFS(OFFSET(Ｗプリント_得点!$BO$9,0,0,360,1),"<"&F10,OFFSET(Ｗプリント_得点!$BO$9,0,0,360,1),">="&F9,OFFSET(Ｗプリント_得点!$A$9,0,0,360,1),$C$5) -> 0 | I10: 82.4 | J10: =COUNTIFS(OFFSET(Ｗプリント_得点!BL$9,0,0,360,1),"<"&I10,OFFSET(Ｗプリント_得点!BL$9,0,0,360,1),">="&I9,OFFSET(Ｗプリント_得点!$A$9,0,0,360,1),$C$5) -> 0 | L10: 123.6 | M10: =COUNTIFS(OFFSET(Ｗプリント_得点!BM$9,0,0,360,1),"<"&L10,OFFSET(Ｗプリント_得点!BM$9,0,0,360,1),">="&L9,OFFSET(Ｗプリント_得点!$A$9,0,0,360,1),$C$5) -> 0 | O10: 123.6 | P10: =COUNTIFS(OFFSET(Ｗプリント_得点!BN$9,0,0,360,1),"<"&O10,OFFSET(Ｗプリント_得点!BN$9,0,0,360,1),">="&O9,OFFSET(Ｗプリント_得点!$A$9,0,0,360,1),$C$5) -> 0 | S10: =COUNTIFS(OFFSET(Ｗプリント_得点!$AW$9,0,S$6-1,360,1),"<"&R10,OFFSET(Ｗプリント_得点!$AW$9,0,S$6-1,360,1),">="&R9,OFFSET(Ｗプリント_得点!$A$9,0,0,360,1),$C$5) ->  | V10: =COUNTIFS(OFFSET(Ｗプリント_得点!$AW$9,0,V$6-1,360,1),"<"&U10,OFFSET(Ｗプリント_得点!$AW$9,0,V$6-1,360,1),">="&U9,OFFSET(Ｗプリント_得点!$A$9,0,0,360,1),$C$5) ->  | Y10: =COUNTIFS(OFFSET(Ｗプリント_得点!$AW$9,0,Y$6-1,360,1),"<"&X10,OFFSET(Ｗプリント_得点!$AW$9,0,Y$6-1,360,1),">="&X9,OFFSET(Ｗプリント_得点!$A$9,0,0,360,1),$C$5) ->  | AC10: =COUNTIFS(OFFSET(Ｗプリント_得点!BP$9,0,0,360,1),"<"&AB10,OFFSET(Ｗプリント_得点!BP$9,0,0,360,1),">="&AB9,OFFSET(Ｗプリント_得点!$A$9,0,0,360,1),$C$5,OFFSET(Ｗプリント_得点!$A$9,0,0,360,1),$C$5) -> 0
D11: 50 | E11: 40～50 | F11: 412 | G11: =COUNTIFS(OFFSET(Ｗプリント_得点!$BO$9,0,0,360,1),"<"&F11,OFFSET(Ｗプリント_得点!$BO$9,0,0,360,1),">="&F10,OFFSET(Ｗプリント_得点!$A$9,0,0,360,1),$C$5) -> 0 | I11: 103 | J11: =COUNTIFS(OFFSET(Ｗプリント_得点!BL$9,0,0,360,1),"<"&I11,OFFSET(Ｗプリント_得点!BL$9,0,0,360,1),">="&I10,OFFSET(Ｗプリント_得点!$A$9,0,0,360,1),$C$5) -> 0 | L11: 154.5 | M11: =COUNTIFS(OFFSET(Ｗプリント_得点!BM$9,0,0,360,1),"<"&L11,OFFSET(Ｗプリント_得点!BM$9,0,0,360,1),">="&L10,OFFSET(Ｗプリント_得点!$A$9,0,0,360,1),$C$5) -> 0 | O11: 154.5 | P11: =COUNTIFS(OFFSET(Ｗプリント_得点!BN$9,0,0,360,1),"<"&O11,OFFSET(Ｗプリント_得点!BN$9,0,0,360,1),">="&O10,OFFSET(Ｗプリント_得点!$A$9,0,0,360,1),$C$5) -> 0 | S11: =COUNTIFS(OFFSET(Ｗプリント_得点!$AW$9,0,S$6-1,360,1),"<"&R11,OFFSET(Ｗプリント_得点!$AW$9,0,S$6-1,360,1),">="&R10,OFFSET(Ｗプリント_得点!$A$9,0,0,360,1),$C$5) ->  | V11: =COUNTIFS(OFFSET(Ｗプリント_得点!$AW$9,0,V$6-1,360,1),"<"&U11,OFFSET(Ｗプリント_得点!$AW$9,0,V$6-1,360,1),">="&U10,OFFSET(Ｗプリント_得点!$A$9,0,0,360,1),$C$5) ->  | Y11: =COUNTIFS(OFFSET(Ｗプリント_得点!$AW$9,0,Y$6-1,360,1),"<"&X11,OFFSET(Ｗプリント_得点!$AW$9,0,Y$6-1,360,1),">="&X10,OFFSET(Ｗプリント_得点!$A$9,0,0,360,1),$C$5) ->  | AC11: =COUNTIFS(OFFSET(Ｗプリント_得点!BP$9,0,0,360,1),"<"&AB11,OFFSET(Ｗプリント_得点!BP$9,0,0,360,1),">="&AB10,OFFSET(Ｗプリント_得点!$A$9,0,0,360,1),$C$5,OFFSET(Ｗプリント_得点!$A$9,0,0,360,1),$C$5) -> 0
D12: 60 | E12: 50～60 | F12: 494.4 | G12: =COUNTIFS(OFFSET(Ｗプリント_得点!$BO$9,0,0,360,1),"<"&F12,OFFSET(Ｗプリント_得点!$BO$9,0,0,360,1),">="&F11,OFFSET(Ｗプリント_得点!$A$9,0,0,360,1),$C$5) -> 0 | I12: 123.6 | J12: =COUNTIFS(OFFSET(Ｗプリント_得点!BL$9,0,0,360,1),"<"&I12,OFFSET(Ｗプリント_得点!BL$9,0,0,360,1),">="&I11,OFFSET(Ｗプリント_得点!$A$9,0,0,360,1),$C$5) -> 0 | L12: 185.4 | M12: =COUNTIFS(OFFSET(Ｗプリント_得点!BM$9,0,0,360,1),"<"&L12,OFFSET(Ｗプリント_得点!BM$9,0,0,360,1),">="&L11,OFFSET(Ｗプリント_得点!$A$9,0,0,360,1),$C$5) -> 0 | O12: 185.4 | P12: =COUNTIFS(OFFSET(Ｗプリント_得点!BN$9,0,0,360,1),"<"&O12,OFFSET(Ｗプリント_得点!BN$9,0,0,360,1),">="&O11,OFFSET(Ｗプリント_得点!$A$9,0,0,360,1),$C$5) -> 0 | S12: =COUNTIFS(OFFSET(Ｗプリント_得点!$AW$9,0,S$6-1,360,1),"<"&R12,OFFSET(Ｗプリント_得点!$AW$9,0,S$6-1,360,1),">="&R11,OFFSET(Ｗプリント_得点!$A$9,0,0,360,1),$C$5) ->  | V12: =COUNTIFS(OFFSET(Ｗプリント_得点!$AW$9,0,V$6-1,360,1),"<"&U12,OFFSET(Ｗプリント_得点!$AW$9,0,V$6-1,360,1),">="&U11,OFFSET(Ｗプリント_得点!$A$9,0,0,360,1),$C$5) ->  | Y12: =COUNTIFS(OFFSET(Ｗプリント_得点!$AW$9,0,Y$6-1,360,1),"<"&X12,OFFSET(Ｗプリント_得点!$AW$9,0,Y$6-1,360,1),">="&X11,OFFSET(Ｗプリント_得点!$A$9,0,0,360,1),$C$5) ->  | AC12: =COUNTIFS(OFFSET(Ｗプリント_得点!BP$9,0,0,360,1),"<"&AB12,OFFSET(Ｗプリント_得点!BP$9,0,0,360,1),">="&AB11,OFFSET(Ｗプリント_得点!$A$9,0,0,360,1),$C$5,OFFSET(Ｗプリント_得点!$A$9,0,0,360,1),$C$5) -> 0
D13: 70 | E13: 60～70 | F13: 576.8 | G13: =COUNTIFS(OFFSET(Ｗプリント_得点!$BO$9,0,0,360,1),"<"&F13,OFFSET(Ｗプリント_得点!$BO$9,0,0,360,1),">="&F12,OFFSET(Ｗプリント_得点!$A$9,0,0,360,1),$C$5) -> 0 | I13: 144.2 | J13: =COUNTIFS(OFFSET(Ｗプリント_得点!BL$9,0,0,360,1),"<"&I13,OFFSET(Ｗプリント_得点!BL$9,0,0,360,1),">="&I12,OFFSET(Ｗプリント_得点!$A$9,0,0,360,1),$C$5) -> 0 | L13: 216.3 | M13: =COUNTIFS(OFFSET(Ｗプリント_得点!BM$9,0,0,360,1),"<"&L13,OFFSET(Ｗプリント_得点!BM$9,0,0,360,1),">="&L12,OFFSET(Ｗプリント_得点!$A$9,0,0,360,1),$C$5) -> 0 | O13: 216.3 | P13: =COUNTIFS(OFFSET(Ｗプリント_得点!BN$9,0,0,360,1),"<"&O13,OFFSET(Ｗプリント_得点!BN$9,0,0,360,1),">="&O12,OFFSET(Ｗプリント_得点!$A$9,0,0,360,1),$C$5) -> 0 | S13: =COUNTIFS(OFFSET(Ｗプリント_得点!$AW$9,0,S$6-1,360,1),"<"&R13,OFFSET(Ｗプリント_得点!$AW$9,0,S$6-1,360,1),">="&R12,OFFSET(Ｗプリント_得点!$A$9,0,0,360,1),$C$5) ->  | V13: =COUNTIFS(OFFSET(Ｗプリント_得点!$AW$9,0,V$6-1,360,1),"<"&U13,OFFSET(Ｗプリント_得点!$AW$9,0,V$6-1,360,1),">="&U12,OFFSET(Ｗプリント_得点!$A$9,0,0,360,1),$C$5) ->  | Y13: =COUNTIFS(OFFSET(Ｗプリント_得点!$AW$9,0,Y$6-1,360,1),"<"&X13,OFFSET(Ｗプリント_得点!$AW$9,0,Y$6-1,360,1),">="&X12,OFFSET(Ｗプリント_得点!$A$9,0,0,360,1),$C$5) ->  | AC13: =COUNTIFS(OFFSET(Ｗプリント_得点!BP$9,0,0,360,1),"<"&AB13,OFFSET(Ｗプリント_得点!BP$9,0,0,360,1),">="&AB12,OFFSET(Ｗプリント_得点!$A$9,0,0,360,1),$C$5,OFFSET(Ｗプリント_得点!$A$9,0,0,360,1),$C$5) -> 0
D14: 80 | E14: 70～80 | F14: 659.2 | G14: =COUNTIFS(OFFSET(Ｗプリント_得点!$BO$9,0,0,360,1),"<"&F14,OFFSET(Ｗプリント_得点!$BO$9,0,0,360,1),">="&F13,OFFSET(Ｗプリント_得点!$A$9,0,0,360,1),$C$5) -> 0 | I14: 164.8 | J14: =COUNTIFS(OFFSET(Ｗプリント_得点!BL$9,0,0,360,1),"<"&I14,OFFSET(Ｗプリント_得点!BL$9,0,0,360,1),">="&I13,OFFSET(Ｗプリント_得点!$A$9,0,0,360,1),$C$5) -> 0 | L14: 247.2 | M14: =COUNTIFS(OFFSET(Ｗプリント_得点!BM$9,0,0,360,1),"<"&L14,OFFSET(Ｗプリント_得点!BM$9,0,0,360,1),">="&L13,OFFSET(Ｗプリント_得点!$A$9,0,0,360,1),$C$5) -> 0 | O14: 247.2 | P14: =COUNTIFS(OFFSET(Ｗプリント_得点!BN$9,0,0,360,1),"<"&O14,OFFSET(Ｗプリント_得点!BN$9,0,0,360,1),">="&O13,OFFSET(Ｗプリント_得点!$A$9,0,0,360,1),$C$5) -> 0 | S14: =COUNTIFS(OFFSET(Ｗプリント_得点!$AW$9,0,S$6-1,360,1),"<"&R14,OFFSET(Ｗプリント_得点!$AW$9,0,S$6-1,360,1),">="&R13,OFFSET(Ｗプリント_得点!$A$9,0,0,360,1),$C$5) ->  | V14: =COUNTIFS(OFFSET(Ｗプリント_得点!$AW$9,0,V$6-1,360,1),"<"&U14,OFFSET(Ｗプリント_得点!$AW$9,0,V$6-1,360,1),">="&U13,OFFSET(Ｗプリント_得点!$A$9,0,0,360,1),$C$5) ->  | Y14: =COUNTIFS(OFFSET(Ｗプリント_得点!$AW$9,0,Y$6-1,360,1),"<"&X14,OFFSET(Ｗプリント_得点!$AW$9,0,Y$6-1,360,1),">="&X13,OFFSET(Ｗプリント_得点!$A$9,0,0,360,1),$C$5) ->  | AC14: =COUNTIFS(OFFSET(Ｗプリント_得点!BP$9,0,0,360,1),"<"&AB14,OFFSET(Ｗプリント_得点!BP$9,0,0,360,1),">="&AB13,OFFSET(Ｗプリント_得点!$A$9,0,0,360,1),$C$5,OFFSET(Ｗプリント_得点!$A$9,0,0,360,1),$C$5) -> 0
D15: 90 | E15: 80～90 | F15: 741.6 | G15: =COUNTIFS(OFFSET(Ｗプリント_得点!$BO$9,0,0,360,1),"<"&F15,OFFSET(Ｗプリント_得点!$BO$9,0,0,360,1),">="&F14,OFFSET(Ｗプリント_得点!$A$9,0,0,360,1),$C$5) -> 0 | I15: 185.4 | J15: =COUNTIFS(OFFSET(Ｗプリント_得点!BL$9,0,0,360,1),"<"&I15,OFFSET(Ｗプリント_得点!BL$9,0,0,360,1),">="&I14,OFFSET(Ｗプリント_得点!$A$9,0,0,360,1),$C$5) -> 0 | L15: 278.1 | M15: =COUNTIFS(OFFSET(Ｗプリント_得点!BM$9,0,0,360,1),"<"&L15,OFFSET(Ｗプリント_得点!BM$9,0,0,360,1),">="&L14,OFFSET(Ｗプリント_得点!$A$9,0,0,360,1),$C$5) -> 0 | O15: 278.1 | P15: =COUNTIFS(OFFSET(Ｗプリント_得点!BN$9,0,0,360,1),"<"&O15,OFFSET(Ｗプリント_得点!BN$9,0,0,360,1),">="&O14,OFFSET(Ｗプリント_得点!$A$9,0,0,360,1),$C$5) -> 0 | S15: =COUNTIFS(OFFSET(Ｗプリント_得点!$AW$9,0,S$6-1,360,1),"<"&R15,OFFSET(Ｗプリント_得点!$AW$9,0,S$6-1,360,1),">="&R14,OFFSET(Ｗプリント_得点!$A$9,0,0,360,1),$C$5) ->  | V15: =COUNTIFS(OFFSET(Ｗプリント_得点!$AW$9,0,V$6-1,360,1),"<"&U15,OFFSET(Ｗプリント_得点!$AW$9,0,V$6-1,360,1),">="&U14,OFFSET(Ｗプリント_得点!$A$9,0,0,360,1),$C$5) ->  | Y15: =COUNTIFS(OFFSET(Ｗプリント_得点!$AW$9,0,Y$6-1,360,1),"<"&X15,OFFSET(Ｗプリント_得点!$AW$9,0,Y$6-1,360,1),">="&X14,OFFSET(Ｗプリント_得点!$A$9,0,0,360,1),$C$5) ->  | AC15: =COUNTIFS(OFFSET(Ｗプリント_得点!BP$9,0,0,360,1),"<"&AB15,OFFSET(Ｗプリント_得点!BP$9,0,0,360,1),">="&AB14,OFFSET(Ｗプリント_得点!$A$9,0,0,360,1),$C$5,OFFSET(Ｗプリント_得点!$A$9,0,0,360,1),$C$5) -> 0
D16: 100 | E16: 90～100 | F16: 824 | G16: =COUNTIFS(OFFSET(Ｗプリント_得点!$BO$9,0,0,360,1),"<="&F16,OFFSET(Ｗプリント_得点!$BO$9,0,0,360,1),">="&F15,OFFSET(Ｗプリント_得点!$A$9,0,0,360,1),$C$5) -> 0 | I16: 206 | J16: =COUNTIFS(OFFSET(Ｗプリント_得点!BL$9,0,0,360,1),"<="&I16,OFFSET(Ｗプリント_得点!BL$9,0,0,360,1),">="&I15,OFFSET(Ｗプリント_得点!$A$9,0,0,360,1),$C$5) -> 0 | L16: 309 | M16: =COUNTIFS(OFFSET(Ｗプリント_得点!BM$9,0,0,360,1),"<="&L16,OFFSET(Ｗプリント_得点!BM$9,0,0,360,1),">="&L15,OFFSET(Ｗプリント_得点!$A$9,0,0,360,1),$C$5) -> 0 | O16: 309 | P16: =COUNTIFS(OFFSET(Ｗプリント_得点!BN$9,0,0,360,1),"<="&O16,OFFSET(Ｗプリント_得点!BN$9,0,0,360,1),">="&O15,OFFSET(Ｗプリント_得点!$A$9,0,0,360,1),$C$5) -> 0 | S16: =COUNTIFS(OFFSET(Ｗプリント_得点!$AW$9,0,S$6-1,360,1),"<="&R16,OFFSET(Ｗプリント_得点!$AW$9,0,S$6-1,360,1),">="&R15,OFFSET(Ｗプリント_得点!$A$9,0,0,360,1),$C$5) ->  | V16: =COUNTIFS(OFFSET(Ｗプリント_得点!$AW$9,0,V$6-1,360,1),"<="&U16,OFFSET(Ｗプリント_得点!$AW$9,0,V$6-1,360,1),">="&U15,OFFSET(Ｗプリント_得点!$A$9,0,0,360,1),$C$5) ->  | Y16: =COUNTIFS(OFFSET(Ｗプリント_得点!$AW$9,0,Y$6-1,360,1),"<="&X16,OFFSET(Ｗプリント_得点!$AW$9,0,Y$6-1,360,1),">="&X15,OFFSET(Ｗプリント_得点!$A$9,0,0,360,1),$C$5) ->  | AC16: =COUNTIFS(OFFSET(Ｗプリント_得点!BP$9,0,0,360,1),"<="&AB16,OFFSET(Ｗプリント_得点!BP$9,0,0,360,1),">="&AB15,OFFSET(Ｗプリント_得点!$A$9,0,0,360,1),$C$5,OFFSET(Ｗプリント_得点!$A$9,0,0,360,1),$C$5) -> 0
G17: =COUNTIFS(OFFSET(Ｗプリント_得点!$BO$9,0,0,360,1),">="&F6,OFFSET(Ｗプリント_得点!$A$9,0,0,360,1),$C$5) -> 0 | J17: =COUNTIFS(OFFSET(Ｗプリント_得点!BL$9,0,0,360,1),">="&I6,OFFSET(Ｗプリント_得点!$A$9,0,0,360,1),$C$5) -> 0 | M17: =COUNTIFS(OFFSET(Ｗプリント_得点!BM$9,0,0,360,1),">="&L6,OFFSET(Ｗプリント_得点!$A$9,0,0,360,1),$C$5) -> 0 | P17: =COUNTIFS(OFFSET(Ｗプリント_得点!BN$9,0,0,360,1),">="&O6,OFFSET(Ｗプリント_得点!$A$9,0,0,360,1),$C$5) -> 0 | S17: =COUNTIFS(OFFSET(Ｗプリント_得点!$AW$9,0,S$6-1,360,1),">="&R6,OFFSET(Ｗプリント_得点!$A$9,0,0,360,1),$C$5) ->  | V17: =COUNTIFS(OFFSET(Ｗプリント_得点!$AW$9,0,V$6-1,360,1),">="&U6,OFFSET(Ｗプリント_得点!$A$9,0,0,360,1),$C$5) ->  | Y17: =COUNTIFS(OFFSET(Ｗプリント_得点!$AW$9,0,Y$6-1,360,1),">="&X6,OFFSET(Ｗプリント_得点!$A$9,0,0,360,1),$C$5) ->  | AC17: =COUNTIFS(OFFSET(Ｗプリント_得点!BP$9,0,0,360,1),">="&AB6,OFFSET(Ｗプリント_得点!$A$9,0,0,360,1),$C$5) -> 0
B19: プルダウンリスト | D19: PDList100 | E19: PDList200 | F19: PDList001 | G19: PDList002 | H19: PDList101 | I19: PDList201
H20: 単元のプルダウンリスト(共通） | I20: 範囲指定の２個めのプルダウンリスト
D21: 得点分布[学年] | E21: 学期・年間＞ | F21: 1 | G21: 1学期
D22: 得点分布[クラス別]＞ | E22: 単元(単独)＞ | F22: 2 | G22: 2学期
D23: <>"" | E23: 単元(２単元比較)＞ | F23: 3 | G23: 3学期
E24: 回数範囲指定＞ | F24: 4 | G24: 年間
F25: 5
F26: 6
F27: 7
F28: 8
B60: メニューシート平均グラフのデータ
B61: エラー値（#N/A）にしておくと、
B62: 点数が未入力な部分については
A63: =30-COUNTIF(F63:AI63,"") -> 8 | B63: グラフを描画しない | F63: =Ｗプリント_平均点!AW5 -> 正の数・負の数 | G63: =Ｗプリント_平均点!AX5 -> 文字と式 | H63: =Ｗプリント_平均点!AY5 -> 方程式 | I63: =Ｗプリント_平均点!AZ5 -> 比例と反比例 | J63: =Ｗプリント_平均点!BA5 -> 平面図形 | K63: =Ｗプリント_平均点!BB5 -> 空間図形 | L63: =Ｗプリント_平均点!BC5 -> データの活用 | M63: =Ｗプリント_平均点!BD5 -> 1年生のまとめ | N63: =Ｗプリント_平均点!BE5 ->  | O63: =Ｗプリント_平均点!BF5 ->  | P63: =Ｗプリント_平均点!BG5 ->  | Q63: =Ｗプリント_平均点!BH5 ->  | R63: =Ｗプリント_平均点!BI5 ->  | S63: =Ｗプリント_平均点!BJ5 ->  | T63: =Ｗプリント_平均点!BK5 -> 
A64: =9-COUNTIF(E64:E72,"") -> 1 | D64: =IF(E64="","",COUNTA(E$64:E64)-COUNTIF(E$64:E64,"")) -> 1 | E64: =IF(Ｗプリント_平均点!C9="",NA(),Ｗプリント_平均点!C9) -> 学年平均 | F64: =IF(Ｗプリント_平均点!AW9="",NA(),Ｗプリント_平均点!AW9) ->  | G64: =IF(Ｗプリント_平均点!AX9="",NA(),Ｗプリント_平均点!AX9) ->  | H64: =IF(Ｗプリント_平均点!AY9="",NA(),Ｗプリント_平均点!AY9) ->  | I64: =IF(Ｗプリント_平均点!AZ9="",NA(),Ｗプリント_平均点!AZ9) ->  | J64: =IF(Ｗプリント_平均点!BA9="",NA(),Ｗプリント_平均点!BA9) ->  | K64: =IF(Ｗプリント_平均点!BB9="",NA(),Ｗプリント_平均点!BB9) ->  | L64: =IF(Ｗプリント_平均点!BC9="",NA(),Ｗプリント_平均点!BC9) ->  | M64: =IF(Ｗプリント_平均点!BD9="",NA(),Ｗプリント_平均点!BD9) ->  | N64: =IF(Ｗプリント_平均点!BE9="",NA(),Ｗプリント_平均点!BE9) ->  | O64: =IF(Ｗプリント_平均点!BF9="",NA(),Ｗプリント_平均点!BF9) ->  | P64: =IF(Ｗプリント_平均点!BG9="",NA(),Ｗプリント_平均点!BG9) ->  | Q64: =IF(Ｗプリント_平均点!BH9="",NA(),Ｗプリント_平均点!BH9) ->  | R64: =IF(Ｗプリント_平均点!BI9="",NA(),Ｗプリント_平均点!BI9) ->  | S64: =IF(Ｗプリント_平均点!BJ9="",NA(),Ｗプリント_平均点!BJ9) ->  | T64: =IF(Ｗプリント_平均点!BK9="",NA(),Ｗプリント_平均点!BK9) -> 
D65: =IF(E65="","",COUNTA(E$64:E65)-COUNTIF(E$64:E65,"")) ->  | E65: =Ｗプリント_平均点!C10 ->  | F65: =IF(Ｗプリント_平均点!AW10="",NA(),Ｗプリント_平均点!AW10) ->  | G65: =IF(Ｗプリント_平均点!AX10="",NA(),Ｗプリント_平均点!AX10) ->  | H65: =IF(Ｗプリント_平均点!AY10="",NA(),Ｗプリント_平均点!AY10) ->  | I65: =IF(Ｗプリント_平均点!AZ10="",NA(),Ｗプリント_平均点!AZ10) ->  | J65: =IF(Ｗプリント_平均点!BA10="",NA(),Ｗプリント_平均点!BA10) ->  | K65: =IF(Ｗプリント_平均点!BB10="",NA(),Ｗプリント_平均点!BB10) ->  | L65: =IF(Ｗプリント_平均点!BC10="",NA(),Ｗプリント_平均点!BC10) ->  | M65: =IF(Ｗプリント_平均点!BD10="",NA(),Ｗプリント_平均点!BD10) ->  | N65: =IF(Ｗプリント_平均点!BE10="",NA(),Ｗプリント_平均点!BE10) ->  | O65: =IF(Ｗプリント_平均点!BF10="",NA(),Ｗプリント_平均点!BF10) ->  | P65: =IF(Ｗプリント_平均点!BG10="",NA(),Ｗプリント_平均点!BG10) ->  | Q65: =IF(Ｗプリント_平均点!BH10="",NA(),Ｗプリント_平均点!BH10) ->  | R65: =IF(Ｗプリント_平均点!BI10="",NA(),Ｗプリント_平均点!BI10) ->  | S65: =IF(Ｗプリント_平均点!BJ10="",NA(),Ｗプリント_平均点!BJ10) ->  | T65: =IF(Ｗプリント_平均点!BK10="",NA(),Ｗプリント_平均点!BK10) -> 
D66: =IF(E66="","",COUNTA(E$64:E66)-COUNTIF(E$64:E66,"")) ->  | E66: =Ｗプリント_平均点!C11 ->  | F66: =IF(Ｗプリント_平均点!AW11="",NA(),Ｗプリント_平均点!AW11) ->  | G66: =IF(Ｗプリント_平均点!AX11="",NA(),Ｗプリント_平均点!AX11) ->  | H66: =IF(Ｗプリント_平均点!AY11="",NA(),Ｗプリント_平均点!AY11) ->  | I66: =IF(Ｗプリント_平均点!AZ11="",NA(),Ｗプリント_平均点!AZ11) ->  | J66: =IF(Ｗプリント_平均点!BA11="",NA(),Ｗプリント_平均点!BA11) ->  | K66: =IF(Ｗプリント_平均点!BB11="",NA(),Ｗプリント_平均点!BB11) ->  | L66: =IF(Ｗプリント_平均点!BC11="",NA(),Ｗプリント_平均点!BC11) ->  | M66: =IF(Ｗプリント_平均点!BD11="",NA(),Ｗプリント_平均点!BD11) ->  | N66: =IF(Ｗプリント_平均点!BE11="",NA(),Ｗプリント_平均点!BE11) ->  | O66: =IF(Ｗプリント_平均点!BF11="",NA(),Ｗプリント_平均点!BF11) ->  | P66: =IF(Ｗプリント_平均点!BG11="",NA(),Ｗプリント_平均点!BG11) ->  | Q66: =IF(Ｗプリント_平均点!BH11="",NA(),Ｗプリント_平均点!BH11) ->  | R66: =IF(Ｗプリント_平均点!BI11="",NA(),Ｗプリント_平均点!BI11) ->  | S66: =IF(Ｗプリント_平均点!BJ11="",NA(),Ｗプリント_平均点!BJ11) ->  | T66: =IF(Ｗプリント_平均点!BK11="",NA(),Ｗプリント_平均点!BK11) -> 
D67: =IF(E67="","",COUNTA(E$64:E67)-COUNTIF(E$64:E67,"")) ->  | E67: =Ｗプリント_平均点!C12 ->  | F67: =IF(Ｗプリント_平均点!AW12="",NA(),Ｗプリント_平均点!AW12) ->  | G67: =IF(Ｗプリント_平均点!AX12="",NA(),Ｗプリント_平均点!AX12) ->  | H67: =IF(Ｗプリント_平均点!AY12="",NA(),Ｗプリント_平均点!AY12) ->  | I67: =IF(Ｗプリント_平均点!AZ12="",NA(),Ｗプリント_平均点!AZ12) ->  | J67: =IF(Ｗプリント_平均点!BA12="",NA(),Ｗプリント_平均点!BA12) ->  | K67: =IF(Ｗプリント_平均点!BB12="",NA(),Ｗプリント_平均点!BB12) ->  | L67: =IF(Ｗプリント_平均点!BC12="",NA(),Ｗプリント_平均点!BC12) ->  | M67: =IF(Ｗプリント_平均点!BD12="",NA(),Ｗプリント_平均点!BD12) ->  | N67: =IF(Ｗプリント_平均点!BE12="",NA(),Ｗプリント_平均点!BE12) ->  | O67: =IF(Ｗプリント_平均点!BF12="",NA(),Ｗプリント_平均点!BF12) ->  | P67: =IF(Ｗプリント_平均点!BG12="",NA(),Ｗプリント_平均点!BG12) ->  | Q67: =IF(Ｗプリント_平均点!BH12="",NA(),Ｗプリント_平均点!BH12) ->  | R67: =IF(Ｗプリント_平均点!BI12="",NA(),Ｗプリント_平均点!BI12) ->  | S67: =IF(Ｗプリント_平均点!BJ12="",NA(),Ｗプリント_平均点!BJ12) ->  | T67: =IF(Ｗプリント_平均点!BK12="",NA(),Ｗプリント_平均点!BK12) -> 
D68: =IF(E68="","",COUNTA(E$64:E68)-COUNTIF(E$64:E68,"")) ->  | E68: =Ｗプリント_平均点!C13 ->  | F68: =IF(Ｗプリント_平均点!AW13="",NA(),Ｗプリント_平均点!AW13) ->  | G68: =IF(Ｗプリント_平均点!AX13="",NA(),Ｗプリント_平均点!AX13) ->  | H68: =IF(Ｗプリント_平均点!AY13="",NA(),Ｗプリント_平均点!AY13) ->  | I68: =IF(Ｗプリント_平均点!AZ13="",NA(),Ｗプリント_平均点!AZ13) ->  | J68: =IF(Ｗプリント_平均点!BA13="",NA(),Ｗプリント_平均点!BA13) ->  | K68: =IF(Ｗプリント_平均点!BB13="",NA(),Ｗプリント_平均点!BB13) ->  | L68: =IF(Ｗプリント_平均点!BC13="",NA(),Ｗプリント_平均点!BC13) ->  | M68: =IF(Ｗプリント_平均点!BD13="",NA(),Ｗプリント_平均点!BD13) ->  | N68: =IF(Ｗプリント_平均点!BE13="",NA(),Ｗプリント_平均点!BE13) ->  | O68: =IF(Ｗプリント_平均点!BF13="",NA(),Ｗプリント_平均点!BF13) ->  | P68: =IF(Ｗプリント_平均点!BG13="",NA(),Ｗプリント_平均点!BG13) ->  | Q68: =IF(Ｗプリント_平均点!BH13="",NA(),Ｗプリント_平均点!BH13) ->  | R68: =IF(Ｗプリント_平均点!BI13="",NA(),Ｗプリント_平均点!BI13) ->  | S68: =IF(Ｗプリント_平均点!BJ13="",NA(),Ｗプリント_平均点!BJ13) ->  | T68: =IF(Ｗプリント_平均点!BK13="",NA(),Ｗプリント_平均点!BK13) -> 
D69: =IF(E69="","",COUNTA(E$64:E69)-COUNTIF(E$64:E69,"")) ->  | E69: =Ｗプリント_平均点!C14 ->  | F69: =IF(Ｗプリント_平均点!AW14="",NA(),Ｗプリント_平均点!AW14) ->  | G69: =IF(Ｗプリント_平均点!AX14="",NA(),Ｗプリント_平均点!AX14) ->  | H69: =IF(Ｗプリント_平均点!AY14="",NA(),Ｗプリント_平均点!AY14) ->  | I69: =IF(Ｗプリント_平均点!AZ14="",NA(),Ｗプリント_平均点!AZ14) ->  | J69: =IF(Ｗプリント_平均点!BA14="",NA(),Ｗプリント_平均点!BA14) ->  | K69: =IF(Ｗプリント_平均点!BB14="",NA(),Ｗプリント_平均点!BB14) ->  | L69: =IF(Ｗプリント_平均点!BC14="",NA(),Ｗプリント_平均点!BC14) ->  | M69: =IF(Ｗプリント_平均点!BD14="",NA(),Ｗプリント_平均点!BD14) ->  | N69: =IF(Ｗプリント_平均点!BE14="",NA(),Ｗプリント_平均点!BE14) ->  | O69: =IF(Ｗプリント_平均点!BF14="",NA(),Ｗプリント_平均点!BF14) ->  | P69: =IF(Ｗプリント_平均点!BG14="",NA(),Ｗプリント_平均点!BG14) ->  | Q69: =IF(Ｗプリント_平均点!BH14="",NA(),Ｗプリント_平均点!BH14) ->  | R69: =IF(Ｗプリント_平均点!BI14="",NA(),Ｗプリント_平均点!BI14) ->  | S69: =IF(Ｗプリント_平均点!BJ14="",NA(),Ｗプリント_平均点!BJ14) ->  | T69: =IF(Ｗプリント_平均点!BK14="",NA(),Ｗプリント_平均点!BK14) -> 
D70: =IF(E70="","",COUNTA(E$64:E70)-COUNTIF(E$64:E70,"")) ->  | E70: =Ｗプリント_平均点!C15 ->  | F70: =IF(Ｗプリント_平均点!AW15="",NA(),Ｗプリント_平均点!AW15) ->  | G70: =IF(Ｗプリント_平均点!AX15="",NA(),Ｗプリント_平均点!AX15) ->  | H70: =IF(Ｗプリント_平均点!AY15="",NA(),Ｗプリント_平均点!AY15) ->  | I70: =IF(Ｗプリント_平均点!AZ15="",NA(),Ｗプリント_平均点!AZ15) ->  | J70: =IF(Ｗプリント_平均点!BA15="",NA(),Ｗプリント_平均点!BA15) ->  | K70: =IF(Ｗプリント_平均点!BB15="",NA(),Ｗプリント_平均点!BB15) ->  | L70: =IF(Ｗプリント_平均点!BC15="",NA(),Ｗプリント_平均点!BC15) ->  | M70: =IF(Ｗプリント_平均点!BD15="",NA(),Ｗプリント_平均点!BD15) ->  | N70: =IF(Ｗプリント_平均点!BE15="",NA(),Ｗプリント_平均点!BE15) ->  | O70: =IF(Ｗプリント_平均点!BF15="",NA(),Ｗプリント_平均点!BF15) ->  | P70: =IF(Ｗプリント_平均点!BG15="",NA(),Ｗプリント_平均点!BG15) ->  | Q70: =IF(Ｗプリント_平均点!BH15="",NA(),Ｗプリント_平均点!BH15) ->  | R70: =IF(Ｗプリント_平均点!BI15="",NA(),Ｗプリント_平均点!BI15) ->  | S70: =IF(Ｗプリント_平均点!BJ15="",NA(),Ｗプリント_平均点!BJ15) ->  | T70: =IF(Ｗプリント_平均点!BK15="",NA(),Ｗプリント_平均点!BK15) -> 
D71: =IF(E71="","",COUNTA(E$64:E71)-COUNTIF(E$64:E71,"")) ->  | E71: =Ｗプリント_平均点!C16 ->  | F71: =IF(Ｗプリント_平均点!AW16="",NA(),Ｗプリント_平均点!AW16) ->  | G71: =IF(Ｗプリント_平均点!AX16="",NA(),Ｗプリント_平均点!AX16) ->  | H71: =IF(Ｗプリント_平均点!AY16="",NA(),Ｗプリント_平均点!AY16) ->  | I71: =IF(Ｗプリント_平均点!AZ16="",NA(),Ｗプリント_平均点!AZ16) ->  | J71: =IF(Ｗプリント_平均点!BA16="",NA(),Ｗプリント_平均点!BA16) ->  | K71: =IF(Ｗプリント_平均点!BB16="",NA(),Ｗプリント_平均点!BB16) ->  | L71: =IF(Ｗプリント_平均点!BC16="",NA(),Ｗプリント_平均点!BC16) ->  | M71: =IF(Ｗプリント_平均点!BD16="",NA(),Ｗプリント_平均点!BD16) ->  | N71: =IF(Ｗプリント_平均点!BE16="",NA(),Ｗプリント_平均点!BE16) ->  | O71: =IF(Ｗプリント_平均点!BF16="",NA(),Ｗプリント_平均点!BF16) ->  | P71: =IF(Ｗプリント_平均点!BG16="",NA(),Ｗプリント_平均点!BG16) ->  | Q71: =IF(Ｗプリント_平均点!BH16="",NA(),Ｗプリント_平均点!BH16) ->  | R71: =IF(Ｗプリント_平均点!BI16="",NA(),Ｗプリント_平均点!BI16) ->  | S71: =IF(Ｗプリント_平均点!BJ16="",NA(),Ｗプリント_平均点!BJ16) ->  | T71: =IF(Ｗプリント_平均点!BK16="",NA(),Ｗプリント_平均点!BK16) -> 
D72: =IF(E72="","",COUNTA(E$64:E72)-COUNTIF(E$64:E72,"")) ->  | E72: =Ｗプリント_平均点!C17 ->  | F72: =IF(Ｗプリント_平均点!AW17="",NA(),Ｗプリント_平均点!AW17) ->  | G72: =IF(Ｗプリント_平均点!AX17="",NA(),Ｗプリント_平均点!AX17) ->  | H72: =IF(Ｗプリント_平均点!AY17="",NA(),Ｗプリント_平均点!AY17) ->  | I72: =IF(Ｗプリント_平均点!AZ17="",NA(),Ｗプリント_平均点!AZ17) ->  | J72: =IF(Ｗプリント_平均点!BA17="",NA(),Ｗプリント_平均点!BA17) ->  | K72: =IF(Ｗプリント_平均点!BB17="",NA(),Ｗプリント_平均点!BB17) ->  | L72: =IF(Ｗプリント_平均点!BC17="",NA(),Ｗプリント_平均点!BC17) ->  | M72: =IF(Ｗプリント_平均点!BD17="",NA(),Ｗプリント_平均点!BD17) ->  | N72: =IF(Ｗプリント_平均点!BE17="",NA(),Ｗプリント_平均点!BE17) ->  | O72: =IF(Ｗプリント_平均点!BF17="",NA(),Ｗプリント_平均点!BF17) ->  | P72: =IF(Ｗプリント_平均点!BG17="",NA(),Ｗプリント_平均点!BG17) ->  | Q72: =IF(Ｗプリント_平均点!BH17="",NA(),Ｗプリント_平均点!BH17) ->  | R72: =IF(Ｗプリント_平均点!BI17="",NA(),Ｗプリント_平均点!BI17) ->  | S72: =IF(Ｗプリント_平均点!BJ17="",NA(),Ｗプリント_平均点!BJ17) ->  | T72: =IF(Ｗプリント_平均点!BK17="",NA(),Ｗプリント_平均点!BK17) -> 
D75: 1 | E75: 2 | F75: 3 | G75: 4 | H75: 5 | I75: 6 | J75: 7 | K75: 8 | L75: 9 | M75: 10 | N75: 11 | O75: 12 | P75: 13 | Q75: 14 | R75: 15 | S75: 16 | T75: 17
F76: =F63 -> 正の数・負の数 | G76: =G63 -> 文字と式 | H76: 方程式 | I76: 比例と反比例 | J76: 平面図形 | K76: 空間図形 | L76: データの活用 | M76: 1年生のまとめ
D77: 1 | E77: =VLOOKUP($D77,$D$64:$T$72,E$75,0) -> 学年平均
D78: =IFERROR(IF((D77+1)>$A$64,"",D77+1),"") ->  | E78: =VLOOKUP($D78,$D$64:$T$72,E$75,0) -> 
D80: =IFERROR(IF((D79+1)>$A$64,"",D79+1),"") -> 
D81: =IFERROR(IF((D80+1)>$A$64,"",D80+1),"") -> 

Sheet 名簿入力
B1: 先生がたへ：名簿の名前欄に入力してください。(性別は空欄のままでも動作に支障ございません）
B3: 番号 | C3: =COUNTA(C5:C49) -> 0 | F3: 番号 | G3: =COUNTA(G5:G49) -> 0 | J3: 番号 | K3: =COUNTA(K5:K49) -> 0 | N3: 番号 | O3: =COUNTA(O5:O49) -> 0 | R3: 番号 | S3: =COUNTA(S5:S49) -> 0 | V3: 番号 | W3: =COUNTA(W5:W49) -> 0 | Z3: 番号 | AA3: =COUNTA(AA5:AA49) -> 0 | AD3: 番号 | AE3: =COUNTA(AE5:AE49) -> 0
C4: 名前 | D4: 性別 | G4: 名前 | H4: 性別 | K4: 名前 | L4: 性別 | O4: 名前 | P4: 性別 | S4: 名前 | T4: 性別 | W4: 名前 | X4: 性別 | AA4: 名前 | AB4: 性別 | AE4: 名前 | AF4: 性別
B5: 1 | F5: 1 | J5: 1 | N5: 1 | R5: 1 | V5: 1 | Z5: 1 | AD5: 1
B6: 2 | F6: 2 | J6: 2 | N6: 2 | R6: 2 | V6: 2 | Z6: 2 | AD6: 2
B7: 3 | F7: 3 | J7: 3 | N7: 3 | R7: 3 | V7: 3 | Z7: 3 | AD7: 3
B8: 4 | F8: 4 | J8: 4 | N8: 4 | R8: 4 | V8: 4 | Z8: 4 | AD8: 4
B9: 5 | F9: 5 | J9: 5 | N9: 5 | R9: 5 | V9: 5 | Z9: 5 | AD9: 5
B10: 6 | F10: 6 | J10: 6 | N10: 6 | R10: 6 | V10: 6 | Z10: 6 | AD10: 6
B11: 7 | F11: 7 | J11: 7 | N11: 7 | R11: 7 | V11: 7 | Z11: 7 | AD11: 7
B12: 8 | F12: 8 | J12: 8 | N12: 8 | R12: 8 | V12: 8 | Z12: 8 | AD12: 8
B13: 9 | F13: 9 | J13: 9 | N13: 9 | R13: 9 | V13: 9 | Z13: 9 | AD13: 9
B14: 10 | F14: 10 | J14: 10 | N14: 10 | R14: 10 | V14: 10 | Z14: 10 | AD14: 10
B15: 11 | F15: 11 | J15: 11 | N15: 11 | R15: 11 | V15: 11 | Z15: 11 | AD15: 11
B16: 12 | F16: 12 | J16: 12 | N16: 12 | R16: 12 | V16: 12 | Z16: 12 | AD16: 12
B17: 13 | F17: 13 | J17: 13 | N17: 13 | R17: 13 | V17: 13 | Z17: 13 | AD17: 13
B18: 14 | F18: 14 | J18: 14 | N18: 14 | R18: 14 | V18: 14 | Z18: 14 | AD18: 14
B19: 15 | F19: 15 | J19: 15 | N19: 15 | R19: 15 | V19: 15 | Z19: 15 | AD19: 15
B20: 16 | F20: 16 | J20: 16 | N20: 16 | R20: 16 | V20: 16 | Z20: 16 | AD20: 16
B21: 17 | F21: 17 | J21: 17 | N21: 17 | R21: 17 | V21: 17 | Z21: 17 | AD21: 17
B22: 18 | F22: 18 | J22: 18 | N22: 18 | R22: 18 | V22: 18 | Z22: 18 | AD22: 18
B23: 19 | F23: 19 | J23: 19 | N23: 19 | R23: 19 | V23: 19 | Z23: 19 | AD23: 19
B24: 20 | F24: 20 | J24: 20 | N24: 20 | R24: 20 | V24: 20 | Z24: 20 | AD24: 20
B25: 21 | F25: 21 | J25: 21 | N25: 21 | R25: 21 | V25: 21 | Z25: 21 | AD25: 21
B26: 22 | F26: 22 | J26: 22 | N26: 22 | R26: 22 | V26: 22 | Z26: 22 | AD26: 22
B27: 23 | F27: 23 | J27: 23 | N27: 23 | R27: 23 | V27: 23 | Z27: 23 | AD27: 23
B28: 24 | F28: 24 | J28: 24 | N28: 24 | R28: 24 | V28: 24 | Z28: 24 | AD28: 24
B29: 25 | F29: 25 | J29: 25 | N29: 25 | R29: 25 | V29: 25 | Z29: 25 | AD29: 25
B30: 26 | F30: 26 | J30: 26 | N30: 26 | R30: 26 | V30: 26 | Z30: 26 | AD30: 26
B31: 27 | F31: 27 | J31: 27 | N31: 27 | R31: 27 | V31: 27 | Z31: 27 | AD31: 27
B32: 28 | F32: 28 | J32: 28 | N32: 28 | R32: 28 | V32: 28 | Z32: 28 | AD32: 28
B33: 29 | F33: 29 | J33: 29 | N33: 29 | R33: 29 | V33: 29 | Z33: 29 | AD33: 29
B34: 30 | F34: 30 | J34: 30 | N34: 30 | R34: 30 | V34: 30 | Z34: 30 | AD34: 30
B35: 31 | F35: 31 | J35: 31 | N35: 31 | R35: 31 | V35: 31 | Z35: 31 | AD35: 31
B36: 32 | F36: 32 | J36: 32 | N36: 32 | R36: 32 | V36: 32 | Z36: 32 | AD36: 32
B37: 33 | F37: 33 | J37: 33 | N37: 33 | R37: 33 | V37: 33 | Z37: 33 | AD37: 33
B38: 34 | F38: 34 | J38: 34 | N38: 34 | R38: 34 | V38: 34 | Z38: 34 | AD38: 34
B39: 35 | F39: 35 | J39: 35 | N39: 35 | R39: 35 | V39: 35 | Z39: 35 | AD39: 35
B40: 36 | F40: 36 | J40: 36 | N40: 36 | R40: 36 | V40: 36 | Z40: 36 | AD40: 36
B41: 37 | F41: 37 | J41: 37 | N41: 37 | R41: 37 | V41: 37 | Z41: 37 | AD41: 37
B42: 38 | F42: 38 | J42: 38 | N42: 38 | R42: 38 | V42: 38 | Z42: 38 | AD42: 38
B43: 39 | F43: 39 | J43: 39 | N43: 39 | R43: 39 | V43: 39 | Z43: 39 | AD43: 39
B44: 40 | F44: 40 | J44: 40 | N44: 40 | R44: 40 | V44: 40 | Z44: 40 | AD44: 40
B45: 41 | F45: 41 | J45: 41 | N45: 41 | R45: 41 | V45: 41 | Z45: 41 | AD45: 41
B46: 42 | F46: 42 | J46: 42 | N46: 42 | R46: 42 | V46: 42 | Z46: 42 | AD46: 42
B47: 43 | F47: 43 | J47: 43 | N47: 43 | R47: 43 | V47: 43 | Z47: 43 | AD47: 43
B48: 44 | F48: 44 | J48: 44 | N48: 44 | R48: 44 | V48: 44 | Z48: 44 | AD48: 44
B49: 45 | F49: 45 | J49: 45 | N49: 45 | R49: 45 | V49: 45 | Z49: 45 | AD49: 45

Sheet 基準設定1
A1: 数学 | D1: 先生がたへ：必要に応じて黄色のセルを変更または入力してください。
A2: 学年準拠：1年標準
S7: ="※評価材の重み付けの計算方法について 【("&G109&"観点別素点)×(100÷("&G109&"総計満点))×("&G109&"重み付け%) ＋(独自項目１ 観点別素点)×(独自項目１ 重み付け%) ＋(独自項目２ 観点別素点)×(独自項目２ 重み付け%) ……】 ÷ 【("&G109&"観点別満点)×(100÷("&G109&"総計満点))×("&G109&"重み付け%) ＋(独自項目１ 観点別満点)×(独自項目１ 重み付け%) ＋(独自項目２ 観点別満点)×(独自項目２ 重み付け%) ……】 の計算式で達成率を算出します。" -> ※評価材の重み付けの計算方法について 【(Wプリント観点別素点)×(100÷(Wプリント総計満点))×(Wプリント重み付け%) ＋(独自項目１ 観点別素点)×(独自項目１ 重み付け%) ＋(独自項目２ 観点別素点)×(独自項目２ 重み付け%) ……】 ÷ 【(Wプリント観点別満点)×(100÷(Wプリント総計満点))×(Wプリント重み付け%) ＋(独自項目１ 観点別満点)×(独自項目１ 重み付け%) ＋(独自項目２ 観点別満点)×(独自項目２ 重み付け%) ……】 の計算式で達成率を算出します。
A9: ="●「"&G109&"」 各回使用学期／観点別評価基準" -> ●「Wプリント」 各回使用学期／観点別評価基準 | K9: ●ユーザー独自項目 各回の使用学期／観点別評価基準／評価材ごとの重み付けと比重
K10: 1学期 | R10: 2学期 | Y10: 3学期
A11: 回数 | B11: 単元 | C11: 学期 | D11: 観点 | E11: 満点 | K11: 番号 | L11: 項目 | M11: 観点 | N11: 満点 | O11: ＡとＢ の境 | P11: ＢとＣ の境 | Q11: 割合 | R11: 番号 | S11: 項目 | T11: 観点 | U11: 満点 | V11: ＡとＢ の境 | W11: ＢとＣ の境 | X11: 割合 | Y11: 番号 | Z11: 項目 | AA11: 観点 | AB11: 満点 | AC11: ＡとＢ の境 | AD11: ＢとＣ の境 | AE11: 割合
E12: オモテ | F12: ウラ | G12: 合計 | H12: ＡとＢ の境 | I12: ＢとＣ の境 | Q12: ="現在"& CHAR(10) &"計"&SUM(Q13:Q73)&"%" -> 現在 計100% | X12: ="現在"& CHAR(10) &"計"&SUM(X13:X73)&"%" -> 現在 計100% | AE12: ="現在"& CHAR(10) &"計"&SUM(AE13:AE73)&"%" -> 現在 計100%
A13: 1 | B13: 正の数・負の数 | C13: 1 | D13: =観点1 -> 知識・技能 | E13: 60 | F13: 0 | G13: =IF(B13="","",SUM(E13:F13)) -> 60 | H13: 48 | I13: 30 | J13: =C13 -> 1 | K13: W | L13: Wプリント 1学期分 | M13: =観点1 -> 知識・技能 | Q13: 10 | R13: W | S13: Wプリント 2学期分 | T13: =観点1 -> 知識・技能 | X13: 10 | Y13: W | Z13: Wプリント 3学期分 | AA13: =観点1 -> 知識・技能 | AE13: 10
D14: =観点2 -> 思考判断表現 | E14: 0 | F14: 40 | G14: =IF(B13="","",SUM(E14:F14)) -> 40 | H14: 32 | I14: 20 | J14: =C13 -> 1 | M14: =観点2 -> 思考判断表現 | T14: =観点2 -> 思考判断表現 | AA14: =観点2 -> 思考判断表現
D15: =観点3 -> 主学態 | E15: 0 | F15: 3 | G15: =IF(B13="","",SUM(E15:F15)) -> 3 | H15: 3 | I15: 2 | J15: =C13 -> 1 | M15: =観点3 -> 主学態 | T15: =観点3 -> 主学態 | AA15: =観点3 -> 主学態
A16: 2 | B16: 文字と式 | C16: 1 | D16: =観点1 -> 知識・技能 | E16: 60 | F16: 0 | G16: =IF(B16="","",SUM(E16:F16)) -> 60 | H16: 48 | I16: 30 | J16: =C16 -> 1 | K16: 1 | L16: １学期 中間テスト | M16: =観点1 -> 知識・技能 | N16: 100 | O16: 80 | P16: 50 | Q16: 30 | R16: 1 | S16: ２学期 中間テスト | T16: =観点1 -> 知識・技能 | U16: 100 | V16: 80 | W16: 50 | X16: 30 | Y16: 1 | Z16: ３学期 中間テスト | AA16: =観点1 -> 知識・技能 | AB16: 100 | AC16: 80 | AD16: 50 | AE16: 30 | AG16: 1 | AH16: =IF(L16="","",1000+K16*10) -> 1010 | AI16: =IF(L16="","",L16) -> １学期 中間テスト | AJ16: =N16 -> 100 | AK16: =O16 -> 80 | AL16: 50 | AM16: =IF(Q16="","",Q16) -> 30 | AN16: 1 | AO16: =IF(ISERROR(SMALL($AH$16:$AH$195,AG16)),"",SMALL($AH$16:$AH$195,AG16)) -> 1010 | AP16: =VLOOKUP(AO16,$AH$16:$AL$195,2,FALSE) -> １学期 中間テスト | AQ16: =IF(AO16="","",VLOOKUP(AO16,$AH$16:$AL$195,3,FALSE)) -> 100 | AR16: =IF(AO16="","",VLOOKUP(AO16,$AH$16:$AL$195,4,FALSE)) -> 80 | AS16: =IF(AO16="","",VLOOKUP(AO16,$AH$16:$AL$195,5,FALSE)) -> 50 | AT16: =IF(AO16="","",VALUE(LEFT(AO16,1))) -> 1 | AU16: =IF(AO16="","",VLOOKUP(AO16,$AH$16:$AM$195,6,FALSE)) -> 30
D17: =観点2 -> 思考判断表現 | E17: 0 | F17: 40 | G17: =IF(B16="","",SUM(E17:F17)) -> 40 | H17: 32 | I17: 20 | J17: =C16 -> 1 | M17: =観点2 -> 思考判断表現 | N17: 100 | O17: 80 | P17: 50 | T17: =観点2 -> 思考判断表現 | U17: 100 | V17: 80 | W17: 50 | AA17: =観点2 -> 思考判断表現 | AB17: 100 | AC17: 80 | AD17: 50 | AG17: 2 | AH17: =IF(AH16="","",AH16+1) -> 1011 | AI17: =AI16 -> １学期 中間テスト | AJ17: =N17 -> 100 | AK17: 80 | AL17: 50 | AM17: =IF(AM16="","",AM16) -> 30 | AN17: 2 | AO17: 1011 | AP17: １学期 中間テスト | AQ17: 100 | AR17: 80 | AS17: 50 | AT17: =IF(AO17="","",VALUE(LEFT(AO17,1))) -> 1 | AU17: 30
D18: =観点3 -> 主学態 | E18: 0 | F18: 3 | G18: =IF(B16="","",SUM(E18:F18)) -> 3 | H18: 3 | I18: 2 | J18: =C16 -> 1 | M18: =観点3 -> 主学態 | T18: =観点3 -> 主学態 | AA18: =観点3 -> 主学態 | AG18: 3 | AH18: =IF(AH17="","",AH17+1) -> 1012 | AI18: =AI17 -> １学期 中間テスト | AJ18: =N18 -> 0 | AK18: 0 | AL18: 0 | AM18: =IF(AM16="","",AM16) -> 30 | AN18: 3 | AO18: 1012 | AP18: １学期 中間テスト | AQ18: 0 | AR18: 0 | AS18: 0 | AT18: 1 | AU18: 30
A19: 3 | B19: 方程式 | C19: 2 | D19: =観点1 -> 知識・技能 | E19: 60 | F19: 0 | G19: =IF(B19="","",SUM(E19:F19)) -> 60 | H19: 48 | I19: 30 | J19: =C19 -> 2 | K19: 2 | L19: １学期 期末テスト | M19: =観点1 -> 知識・技能 | N19: 100 | O19: 80 | P19: 50 | Q19: 30 | R19: 2 | S19: ２学期 期末テスト | T19: =観点1 -> 知識・技能 | U19: 100 | V19: 80 | W19: 50 | X19: 30 | Y19: 2 | Z19: ３学期 期末テスト | AA19: =観点1 -> 知識・技能 | AB19: 100 | AC19: 80 | AD19: 50 | AE19: 30 | AG19: 4 | AH19: =IF(L19="","",1000+K19*10) -> 1020 | AI19: =IF(L19="","",L19) -> １学期 期末テスト | AJ19: =N19 -> 100 | AK19: =O19 -> 80 | AL19: =P19 -> 50 | AM19: =IF(Q19="","",Q19) -> 30 | AN19: 4 | AO19: 1020 | AP19: １学期 期末テスト | AQ19: 100 | AR19: 80 | AS19: 50 | AT19: 1 | AU19: 30
D20: =観点2 -> 思考判断表現 | E20: 0 | F20: 40 | G20: =IF(B19="","",SUM(E20:F20)) -> 40 | H20: 32 | I20: 20 | J20: =C19 -> 2 | M20: =観点2 -> 思考判断表現 | N20: 100 | O20: 80 | P20: 50 | T20: =観点2 -> 思考判断表現 | U20: 100 | V20: 80 | W20: 50 | AA20: =観点2 -> 思考判断表現 | AB20: 100 | AC20: 80 | AD20: 50 | AG20: 5 | AH20: =IF(AH19="","",AH19+1) -> 1021 | AI20: =AI19 -> １学期 期末テスト | AJ20: 100 | AK20: 80 | AL20: 50 | AM20: =IF(AM19="","",AM19) -> 30 | AN20: 5 | AO20: 1021 | AP20: １学期 期末テスト | AQ20: 100 | AR20: 80 | AS20: 50 | AT20: 1 | AU20: 30
D21: =観点3 -> 主学態 | E21: 0 | F21: 3 | G21: =IF(B19="","",SUM(E21:F21)) -> 3 | H21: 3 | I21: 2 | J21: =C19 -> 2 | M21: =観点3 -> 主学態 | T21: =観点3 -> 主学態 | AA21: =観点3 -> 主学態 | AG21: 6 | AH21: =IF(AH20="","",AH20+1) -> 1022 | AI21: =AI20 -> １学期 期末テスト | AJ21: 0 | AK21: 0 | AL21: 0 | AM21: =IF(AM19="","",AM19) -> 30 | AN21: 6 | AO21: 1022 | AP21: １学期 期末テスト | AQ21: 0 | AR21: 0 | AS21: 0 | AT21: 1 | AU21: 30
A22: 4 | B22: 比例と反比例 | C22: 2 | D22: =観点1 -> 知識・技能 | E22: 52 | F22: 8 | G22: =IF(B22="","",SUM(E22:F22)) -> 60 | H22: 48 | I22: 30 | J22: =C22 -> 2 | K22: 3 | L22: 小テスト | M22: =観点1 -> 知識・技能 | N22: 50 | O22: 40 | P22: 25 | Q22: 30 | R22: 3 | S22: 小テスト | T22: =観点1 -> 知識・技能 | U22: 50 | V22: 40 | W22: 25 | X22: 30 | Y22: 3 | Z22: 小テスト | AA22: =観点1 -> 知識・技能 | AB22: 50 | AC22: 40 | AD22: 25 | AE22: 30 | AG22: 7 | AH22: =IF(L22="","",1000+K22*10) -> 1030 | AI22: =IF(L22="","",L22) -> 小テスト | AJ22: 50 | AK22: 40 | AL22: 25 | AM22: =IF(Q22="","",Q22) -> 30 | AN22: 7 | AO22: 1030 | AP22: 小テスト | AQ22: 50 | AR22: 40 | AS22: 25 | AT22: 1 | AU22: 30
D23: =観点2 -> 思考判断表現 | E23: 0 | F23: 40 | G23: =IF(B22="","",SUM(E23:F23)) -> 40 | H23: 32 | I23: 20 | J23: =C22 -> 2 | M23: =観点2 -> 思考判断表現 | N23: 50 | O23: 40 | P23: 25 | T23: =観点2 -> 思考判断表現 | U23: 50 | V23: 40 | W23: 25 | AA23: =観点2 -> 思考判断表現 | AB23: 50 | AC23: 40 | AD23: 25 | AG23: 8 | AH23: =IF(AH22="","",AH22+1) -> 1031 | AI23: =AI22 -> 小テスト | AJ23: 50 | AK23: 40 | AL23: 25 | AM23: =IF(AM22="","",AM22) -> 30 | AN23: 8 | AO23: 1031 | AP23: 小テスト | AQ23: 50 | AR23: 40 | AS23: 25 | AT23: 1 | AU23: 30
D24: =観点3 -> 主学態 | E24: 0 | F24: 3 | G24: =IF(B22="","",SUM(E24:F24)) -> 3 | H24: 3 | I24: 2 | J24: =C22 -> 2 | M24: =観点3 -> 主学態 | T24: =観点3 -> 主学態 | AA24: =観点3 -> 主学態 | AG24: 9 | AH24: =IF(AH23="","",AH23+1) -> 1032 | AI24: =AI23 -> 小テスト | AJ24: 0 | AK24: 0 | AL24: 0 | AM24: =IF(AM22="","",AM22) -> 30 | AN24: 9 | AO24: 1032 | AP24: 小テスト | AQ24: 0 | AR24: 0 | AS24: 0 | AT24: 1 | AU24: 30
A25: 5 | B25: 平面図形 | C25: 2 | D25: =観点1 -> 知識・技能 | E25: 60 | F25: 0 | G25: =IF(B25="","",SUM(E25:F25)) -> 60 | H25: 48 | I25: 30 | J25: =C25 -> 2 | K25: 4 | M25: =観点1 -> 知識・技能 | R25: 4 | T25: =観点1 -> 知識・技能 | Y25: 4 | AA25: =観点1 -> 知識・技能 | AG25: 10 | AH25: =IF(L25="","",1000+K25*10) ->  | AI25: =IF(L25="","",L25) ->  | AJ25: 0 | AK25: 0 | AL25: 0 | AM25: =IF(Q25="","",Q25) ->  | AN25: 10 | AO25: 2010 | AP25: ２学期 中間テスト | AQ25: 100 | AR25: 80 | AS25: 50 | AT25: 2 | AU25: 30
D26: =観点2 -> 思考判断表現 | E26: 0 | F26: 40 | G26: =IF(B25="","",SUM(E26:F26)) -> 40 | H26: 32 | I26: 20 | J26: =C25 -> 2 | M26: =観点2 -> 思考判断表現 | T26: =観点2 -> 思考判断表現 | AA26: =観点2 -> 思考判断表現 | AG26: 11 | AH26: =IF(AH25="","",AH25+1) ->  | AI26: =AI25 ->  | AJ26: 0 | AK26: 0 | AL26: 0 | AM26: =IF(AM25="","",AM25) ->  | AN26: 11 | AO26: 2011 | AP26: ２学期 中間テスト | AQ26: 100 | AR26: 80 | AS26: 50 | AT26: 2 | AU26: 30
D27: =観点3 -> 主学態 | E27: 0 | F27: 3 | G27: =IF(B25="","",SUM(E27:F27)) -> 3 | H27: 3 | I27: 2 | J27: =C25 -> 2 | M27: =観点3 -> 主学態 | T27: =観点3 -> 主学態 | AA27: =観点3 -> 主学態 | AG27: 12 | AH27: =IF(AH26="","",AH26+1) ->  | AI27: =AI26 ->  | AJ27: 0 | AK27: 0 | AL27: 0 | AM27: =IF(AM25="","",AM25) ->  | AN27: 12 | AO27: 2012 | AP27: ２学期 中間テスト | AQ27: 0 | AR27: 0 | AS27: 0 | AT27: 2 | AU27: 30
A28: 6 | B28: 空間図形 | C28: 3 | D28: =観点1 -> 知識・技能 | E28: 60 | F28: 0 | G28: =IF(B28="","",SUM(E28:F28)) -> 60 | H28: 48 | I28: 30 | J28: =C28 -> 3 | K28: 5 | M28: =観点1 -> 知識・技能 | R28: 5 | T28: =観点1 -> 知識・技能 | Y28: 5 | AA28: =観点1 -> 知識・技能 | AG28: 13 | AH28: =IF(L28="","",1000+K28*10) ->  | AI28: =IF(L28="","",L28) ->  | AJ28: 0 | AK28: 0 | AL28: 0 | AM28: =IF(Q28="","",Q28) ->  | AN28: 13 | AO28: 2020 | AP28: ２学期 期末テスト | AQ28: 100 | AR28: 80 | AS28: 50 | AT28: 2 | AU28: 30
D29: =観点2 -> 思考判断表現 | E29: 0 | F29: 40 | G29: =IF(B28="","",SUM(E29:F29)) -> 40 | H29: 32 | I29: 20 | J29: =C28 -> 3 | M29: =観点2 -> 思考判断表現 | T29: =観点2 -> 思考判断表現 | AA29: =観点2 -> 思考判断表現 | AG29: 14 | AH29: =IF(AH28="","",AH28+1) ->  | AI29: =AI28 ->  | AJ29: 0 | AK29: 0 | AL29: 0 | AM29: =IF(AM28="","",AM28) ->  | AN29: 14 | AO29: 2021 | AP29: ２学期 期末テスト | AQ29: 100 | AR29: 80 | AS29: 50 | AT29: 2 | AU29: 30
D30: =観点3 -> 主学態 | E30: 0 | F30: 3 | G30: =IF(B28="","",SUM(E30:F30)) -> 3 | H30: 3 | I30: 2 | J30: =C28 -> 3 | M30: =観点3 -> 主学態 | T30: =観点3 -> 主学態 | AA30: =観点3 -> 主学態 | AG30: 15 | AH30: =IF(AH29="","",AH29+1) ->  | AI30: =AI29 ->  | AJ30: 0 | AK30: 0 | AL30: 0 | AM30: =IF(AM28="","",AM28) ->  | AN30: 15 | AO30: 2022 | AP30: ２学期 期末テスト | AQ30: 0 | AR30: 0 | AS30: 0 | AT30: 2 | AU30: 30
A31: 7 | B31: データの活用 | C31: 3 | D31: =観点1 -> 知識・技能 | E31: 60 | F31: 0 | G31: =IF(B31="","",SUM(E31:F31)) -> 60 | H31: 48 | I31: 30 | J31: =C31 -> 3 | K31: 6 | M31: =観点1 -> 知識・技能 | R31: 6 | T31: =観点1 -> 知識・技能 | Y31: 6 | AA31: =観点1 -> 知識・技能 | AG31: 16 | AH31: =IF(L31="","",1000+K31*10) ->  | AI31: =IF(L31="","",L31) ->  | AJ31: 0 | AK31: 0 | AL31: 0 | AM31: =IF(Q31="","",Q31) ->  | AN31: 16 | AO31: 2030 | AP31: 小テスト | AQ31: 50 | AR31: 40 | AS31: 25 | AT31: 2 | AU31: 30
D32: =観点2 -> 思考判断表現 | E32: 0 | F32: 40 | G32: =IF(B31="","",SUM(E32:F32)) -> 40 | H32: 32 | I32: 20 | J32: =C31 -> 3 | M32: =観点2 -> 思考判断表現 | T32: =観点2 -> 思考判断表現 | AA32: =観点2 -> 思考判断表現 | AG32: 17 | AH32: =IF(AH31="","",AH31+1) ->  | AI32: =AI31 ->  | AJ32: 0 | AK32: 0 | AL32: 0 | AM32: =IF(AM31="","",AM31) ->  | AN32: 17 | AO32: 2031 | AP32: 小テスト | AQ32: 50 | AR32: 40 | AS32: 25 | AT32: 2 | AU32: 30
D33: =観点3 -> 主学態 | E33: 0 | F33: 3 | G33: =IF(B31="","",SUM(E33:F33)) -> 3 | H33: 3 | I33: 2 | J33: =C31 -> 3 | M33: =観点3 -> 主学態 | T33: =観点3 -> 主学態 | AA33: =観点3 -> 主学態 | AG33: 18 | AH33: =IF(AH32="","",AH32+1) ->  | AI33: =AI32 ->  | AJ33: 0 | AK33: 0 | AL33: 0 | AM33: =IF(AM31="","",AM31) ->  | AN33: 18 | AO33: 2032 | AP33: 小テスト | AQ33: 0 | AR33: 0 | AS33: 0 | AT33: 2 | AU33: 30
A34: 8 | B34: 1年生のまとめ | C34: 3 | D34: =観点1 -> 知識・技能 | E34: 60 | F34: 0 | G34: =IF(B34="","",SUM(E34:F34)) -> 60 | H34: 48 | I34: 30 | J34: =C34 -> 3 | K34: 7 | M34: =観点1 -> 知識・技能 | R34: 7 | T34: =観点1 -> 知識・技能 | Y34: 7 | AA34: =観点1 -> 知識・技能 | AG34: 19 | AH34: =IF(L34="","",1000+K34*10) ->  | AI34: =IF(L34="","",L34) ->  | AJ34: 0 | AK34: 0 | AL34: 0 | AM34: =IF(Q34="","",Q34) ->  | AN34: 19 | AO34: 3010 | AP34: ３学期 中間テスト | AQ34: 100 | AR34: 80 | AS34: 50 | AT34: 3 | AU34: 30
D35: =観点2 -> 思考判断表現 | E35: 0 | F35: 40 | G35: =IF(B34="","",SUM(E35:F35)) -> 40 | H35: 32 | I35: 20 | J35: =C34 -> 3 | M35: =観点2 -> 思考判断表現 | T35: =観点2 -> 思考判断表現 | AA35: =観点2 -> 思考判断表現 | AG35: 20 | AH35: =IF(AH34="","",AH34+1) ->  | AI35: =AI34 ->  | AJ35: 0 | AK35: 0 | AL35: 0 | AM35: =IF(AM34="","",AM34) ->  | AN35: 20 | AO35: 3011 | AP35: ３学期 中間テスト | AQ35: 100 | AR35: 80 | AS35: 50 | AT35: 3 | AU35: 30
D36: =観点3 -> 主学態 | E36: 0 | F36: 3 | G36: =IF(B34="","",SUM(E36:F36)) -> 3 | H36: 3 | I36: 2 | J36: =C34 -> 3 | M36: =観点3 -> 主学態 | T36: =観点3 -> 主学態 | AA36: =観点3 -> 主学態 | AG36: 21 | AH36: =IF(AH35="","",AH35+1) ->  | AI36: =AI35 ->  | AJ36: 0 | AK36: 0 | AL36: 0 | AM36: =IF(AM34="","",AM34) ->  | AN36: 21 | AO36: 3012 | AP36: ３学期 中間テスト | AQ36: 0 | AR36: 0 | AS36: 0 | AT36: 3 | AU36: 30
D37: =観点1 -> 知識・技能 | G37: =IF(B37="","",SUM(E37:F37)) ->  | J37: =C37 -> 0 | K37: 8 | M37: =観点1 -> 知識・技能 | R37: 8 | T37: =観点1 -> 知識・技能 | Y37: 8 | AA37: =観点1 -> 知識・技能 | AG37: 22 | AH37: =IF(L37="","",1000+K37*10) ->  | AI37: =IF(L37="","",L37) ->  | AJ37: 0 | AK37: 0 | AL37: 0 | AM37: =IF(Q37="","",Q37) ->  | AN37: 22 | AO37: 3020 | AP37: ３学期 期末テスト | AQ37: 100 | AR37: 80 | AS37: 50 | AT37: 3 | AU37: 30
D38: =観点2 -> 思考判断表現 | G38: =IF(B37="","",SUM(E38:F38)) ->  | J38: =C37 -> 0 | M38: =観点2 -> 思考判断表現 | T38: =観点2 -> 思考判断表現 | AA38: =観点2 -> 思考判断表現 | AG38: 23 | AH38: =IF(AH37="","",AH37+1) ->  | AI38: =AI37 ->  | AJ38: 0 | AK38: 0 | AL38: 0 | AM38: =IF(AM37="","",AM37) ->  | AN38: 23 | AO38: 3021 | AP38: ３学期 期末テスト | AQ38: 100 | AR38: 80 | AS38: 50 | AT38: 3 | AU38: 30
D39: =観点3 -> 主学態 | G39: =IF(B37="","",SUM(E39:F39)) ->  | J39: =C37 -> 0 | M39: =観点3 -> 主学態 | T39: =観点3 -> 主学態 | AA39: =観点3 -> 主学態 | AG39: 24 | AH39: =IF(AH38="","",AH38+1) ->  | AI39: =AI38 ->  | AJ39: 0 | AK39: 0 | AL39: 0 | AM39: =IF(AM37="","",AM37) ->  | AN39: 24 | AO39: 3022 | AP39: ３学期 期末テスト | AQ39: 0 | AR39: 0 | AS39: 0 | AT39: 3 | AU39: 30
D40: =観点1 -> 知識・技能 | G40: =IF(B40="","",SUM(E40:F40)) ->  | J40: =C40 -> 0 | K40: 9 | M40: =観点1 -> 知識・技能 | R40: 9 | T40: =観点1 -> 知識・技能 | Y40: 9 | AA40: =観点1 -> 知識・技能 | AG40: 25 | AH40: =IF(L40="","",1000+K40*10) ->  | AI40: =IF(L40="","",L40) ->  | AJ40: 0 | AK40: 0 | AL40: 0 | AM40: =IF(Q40="","",Q40) ->  | AN40: 25 | AO40: 3030 | AP40: 小テスト | AQ40: 50 | AR40: 40 | AS40: 25 | AT40: 3 | AU40: 30
D41: =観点2 -> 思考判断表現 | G41: =IF(B40="","",SUM(E41:F41)) ->  | J41: =C40 -> 0 | M41: =観点2 -> 思考判断表現 | T41: =観点2 -> 思考判断表現 | AA41: =観点2 -> 思考判断表現 | AG41: 26 | AH41: =IF(AH40="","",AH40+1) ->  | AI41: =AI40 ->  | AJ41: 0 | AK41: 0 | AL41: 0 | AM41: =IF(AM40="","",AM40) ->  | AN41: 26 | AO41: 3031 | AP41: 小テスト | AQ41: 50 | AR41: 40 | AS41: 25 | AT41: 3 | AU41: 30
D42: =観点3 -> 主学態 | G42: =IF(B40="","",SUM(E42:F42)) ->  | J42: =C40 -> 0 | M42: =観点3 -> 主学態 | T42: =観点3 -> 主学態 | AA42: =観点3 -> 主学態 | AG42: 27 | AH42: =IF(AH41="","",AH41+1) ->  | AI42: =AI41 ->  | AJ42: 0 | AK42: 0 | AL42: 0 | AM42: =IF(AM40="","",AM40) ->  | AN42: 27 | AO42: 3032 | AP42: 小テスト | AQ42: 0 | AR42: 0 | AS42: 0 | AT42: 3 | AU42: 30
D43: =観点1 -> 知識・技能 | G43: =IF(B43="","",SUM(E43:F43)) ->  | J43: =C43 -> 0 | K43: 10 | M43: =観点1 -> 知識・技能 | R43: 10 | T43: =観点1 -> 知識・技能 | Y43: 10 | AA43: =観点1 -> 知識・技能 | AG43: 28 | AH43: =IF(L43="","",1000+K43*10) ->  | AI43: =IF(L43="","",L43) ->  | AJ43: 0 | AK43: 0 | AL43: 0 | AM43: =IF(Q43="","",Q43) ->  | AN43: 28
D44: =観点2 -> 思考判断表現 | G44: =IF(B43="","",SUM(E44:F44)) ->  | J44: =C43 -> 0 | M44: =観点2 -> 思考判断表現 | T44: =観点2 -> 思考判断表現 | AA44: =観点2 -> 思考判断表現 | AG44: 29 | AH44: =IF(AH43="","",AH43+1) ->  | AI44: =AI43 ->  | AJ44: 0 | AK44: 0 | AL44: 0 | AM44: =IF(AM43="","",AM43) ->  | AN44: 29
D45: =観点3 -> 主学態 | G45: =IF(B43="","",SUM(E45:F45)) ->  | J45: =C43 -> 0 | M45: =観点3 -> 主学態 | T45: =観点3 -> 主学態 | AA45: =観点3 -> 主学態 | AG45: 30 | AH45: =IF(AH44="","",AH44+1) ->  | AI45: =AI44 ->  | AJ45: 0 | AK45: 0 | AL45: 0 | AM45: =IF(AM43="","",AM43) ->  | AN45: 30
D46: =観点1 -> 知識・技能 | G46: =IF(B46="","",SUM(E46:F46)) ->  | J46: =C46 -> 0 | K46: 11 | M46: =観点1 -> 知識・技能 | R46: 11 | T46: =観点1 -> 知識・技能 | Y46: 11 | AA46: =観点1 -> 知識・技能 | AG46: 31 | AH46: =IF(L46="","",1000+K46*10) ->  | AI46: =IF(L46="","",L46) ->  | AJ46: =N46 -> 0 | AK46: =O46 -> 0 | AL46: =P46 -> 0 | AM46: =IF(Q46="","",Q46) ->  | AN46: 31
D47: =観点2 -> 思考判断表現 | G47: =IF(B46="","",SUM(E47:F47)) ->  | J47: =C46 -> 0 | M47: =観点2 -> 思考判断表現 | T47: =観点2 -> 思考判断表現 | AA47: =観点2 -> 思考判断表現 | AG47: 32 | AH47: =IF(AH46="","",AH46+1) ->  | AI47: =AI46 ->  | AJ47: 0 | AK47: 0 | AL47: 0 | AM47: =IF(AM46="","",AM46) ->  | AN47: 32
D48: =観点3 -> 主学態 | G48: =IF(B46="","",SUM(E48:F48)) ->  | J48: =C46 -> 0 | M48: =観点3 -> 主学態 | T48: =観点3 -> 主学態 | AA48: =観点3 -> 主学態 | AG48: 33 | AH48: =IF(AH47="","",AH47+1) ->  | AI48: =AI47 ->  | AJ48: 0 | AK48: 0 | AL48: 0 | AM48: =IF(AM46="","",AM46) ->  | AN48: 33 | AO48: =IF(ISERROR(SMALL($AH$16:$AH$195,AG48)),"",SMALL($AH$16:$AH$195,AG48)) ->  | AP48: =VLOOKUP(AO48,$AH$16:$AL$195,2,FALSE) ->  | AQ48: =IF(AO48="","",VLOOKUP(AO48,$AH$16:$AL$195,3,FALSE)) ->  | AR48: =IF(AO48="","",VLOOKUP(AO48,$AH$16:$AL$195,4,FALSE)) ->  | AS48: =IF(AO48="","",VLOOKUP(AO48,$AH$16:$AL$195,5,FALSE)) ->  | AU48: =IF(AO48="","",VLOOKUP(AO48,$AH$16:$AM$195,6,FALSE)) -> 
D49: =観点1 -> 知識・技能 | G49: =IF(B49="","",SUM(E49:F49)) ->  | J49: =C49 -> 0 | K49: 12 | M49: =観点1 -> 知識・技能 | R49: 12 | T49: =観点1 -> 知識・技能 | Y49: 12 | AA49: =観点1 -> 知識・技能 | AG49: 34 | AH49: =IF(L49="","",1000+K49*10) ->  | AI49: =IF(L49="","",L49) ->  | AJ49: 0 | AK49: 0 | AL49: 0 | AM49: =IF(Q49="","",Q49) ->  | AN49: 34
D50: =観点2 -> 思考判断表現 | G50: =IF(B49="","",SUM(E50:F50)) ->  | J50: =C49 -> 0 | M50: =観点2 -> 思考判断表現 | T50: =観点2 -> 思考判断表現 | AA50: =観点2 -> 思考判断表現 | AG50: 35 | AH50: =IF(AH49="","",AH49+1) ->  | AI50: =AI49 ->  | AJ50: 0 | AK50: 0 | AL50: 0 | AM50: =IF(AM49="","",AM49) ->  | AN50: 35
D51: =観点3 -> 主学態 | G51: =IF(B49="","",SUM(E51:F51)) ->  | J51: =C49 -> 0 | M51: =観点3 -> 主学態 | T51: =観点3 -> 主学態 | AA51: =観点3 -> 主学態 | AG51: 36 | AH51: =IF(AH50="","",AH50+1) ->  | AI51: =AI50 ->  | AJ51: 0 | AK51: 0 | AL51: 0 | AM51: =IF(AM49="","",AM49) ->  | AN51: 36
D52: =観点1 -> 知識・技能 | G52: =IF(B52="","",SUM(E52:F52)) ->  | J52: =C52 -> 0 | K52: 13 | M52: =観点1 -> 知識・技能 | R52: 13 | T52: =観点1 -> 知識・技能 | Y52: 13 | AA52: =観点1 -> 知識・技能 | AG52: 37 | AH52: =IF(L52="","",1000+K52*10) ->  | AI52: =IF(L52="","",L52) ->  | AJ52: 0 | AK52: 0 | AL52: 0 | AM52: =IF(Q52="","",Q52) ->  | AN52: 37
D53: =観点2 -> 思考判断表現 | G53: =IF(B52="","",SUM(E53:F53)) ->  | J53: =C52 -> 0 | M53: =観点2 -> 思考判断表現 | T53: =観点2 -> 思考判断表現 | AA53: =観点2 -> 思考判断表現 | AG53: 38 | AH53: =IF(AH52="","",AH52+1) ->  | AI53: =AI52 ->  | AJ53: 0 | AK53: 0 | AL53: 0 | AM53: =IF(AM52="","",AM52) ->  | AN53: 38
D54: =観点3 -> 主学態 | G54: =IF(B52="","",SUM(E54:F54)) ->  | J54: =C52 -> 0 | M54: =観点3 -> 主学態 | T54: =観点3 -> 主学態 | AA54: =観点3 -> 主学態 | AG54: 39 | AH54: =IF(AH53="","",AH53+1) ->  | AI54: =AI53 ->  | AJ54: 0 | AK54: 0 | AL54: 0 | AM54: =IF(AM52="","",AM52) ->  | AN54: 39
D55: =観点1 -> 知識・技能 | G55: =IF(B55="","",SUM(E55:F55)) ->  | J55: =C55 -> 0 | K55: 14 | M55: =観点1 -> 知識・技能 | R55: 14 | T55: =観点1 -> 知識・技能 | Y55: 14 | AA55: =観点1 -> 知識・技能 | AG55: 40 | AH55: =IF(L55="","",1000+K55*10) ->  | AI55: =IF(L55="","",L55) ->  | AJ55: 0 | AK55: 0 | AL55: 0 | AM55: =IF(Q55="","",Q55) ->  | AN55: 40
D56: =観点2 -> 思考判断表現 | G56: =IF(B55="","",SUM(E56:F56)) ->  | J56: =C55 -> 0 | M56: =観点2 -> 思考判断表現 | T56: =観点2 -> 思考判断表現 | AA56: =観点2 -> 思考判断表現 | AG56: 41 | AH56: =IF(AH55="","",AH55+1) ->  | AI56: =AI55 ->  | AJ56: 0 | AK56: 0 | AL56: 0 | AM56: =IF(AM55="","",AM55) ->  | AN56: 41
D57: =観点3 -> 主学態 | G57: =IF(B55="","",SUM(E57:F57)) ->  | J57: =C55 -> 0 | M57: =観点3 -> 主学態 | T57: =観点3 -> 主学態 | AA57: =観点3 -> 主学態 | AG57: 42 | AH57: =IF(AH56="","",AH56+1) ->  | AI57: =AI56 ->  | AJ57: 0 | AK57: 0 | AL57: 0 | AM57: =IF(AM55="","",AM55) ->  | AN57: 42
D58: =観点1 -> 知識・技能 | G58: =IF(B58="","",SUM(E58:F58)) ->  | J58: =C58 -> 0 | K58: 15 | M58: =観点1 -> 知識・技能 | R58: 15 | T58: =観点1 -> 知識・技能 | Y58: 15 | AA58: =観点1 -> 知識・技能 | AG58: 43 | AH58: =IF(L58="","",1000+K58*10) ->  | AI58: =IF(L58="","",L58) ->  | AJ58: 0 | AK58: 0 | AL58: 0 | AM58: =IF(Q58="","",Q58) ->  | AN58: 43
D59: =観点2 -> 思考判断表現 | G59: =IF(B58="","",SUM(E59:F59)) ->  | J59: =C58 -> 0 | M59: =観点2 -> 思考判断表現 | T59: =観点2 -> 思考判断表現 | AA59: =観点2 -> 思考判断表現 | AG59: 44 | AH59: =IF(AH58="","",AH58+1) ->  | AI59: =AI58 ->  | AJ59: 0 | AK59: 0 | AL59: 0 | AM59: =IF(AM58="","",AM58) ->  | AN59: 44
D60: =観点3 -> 主学態 | G60: =IF(B58="","",SUM(E60:F60)) ->  | J60: =C58 -> 0 | M60: =観点3 -> 主学態 | T60: =観点3 -> 主学態 | AA60: =観点3 -> 主学態 | AG60: 45 | AH60: =IF(AH59="","",AH59+1) ->  | AI60: =AI59 ->  | AJ60: 0 | AK60: 0 | AL60: 0 | AM60: =IF(AM58="","",AM58) ->  | AN60: 45
D61: =観点1 -> 知識・技能 | G61: =IF(B61="","",SUM(E61:F61)) ->  | J61: =C61 -> 0 | K61: 16 | M61: =観点1 -> 知識・技能 | R61: 16 | T61: =観点1 -> 知識・技能 | Y61: 16 | AA61: =観点1 -> 知識・技能 | AG61: 46 | AH61: =IF(L61="","",1000+K61*10) ->  | AI61: =IF(L61="","",L61) ->  | AJ61: 0 | AK61: 0 | AL61: 0 | AM61: =IF(Q61="","",Q61) ->  | AN61: 46
D62: =観点2 -> 思考判断表現 | G62: =IF(B61="","",SUM(E62:F62)) ->  | J62: =C61 -> 0 | M62: =観点2 -> 思考判断表現 | T62: =観点2 -> 思考判断表現 | AA62: =観点2 -> 思考判断表現 | AG62: 47 | AH62: =IF(AH61="","",AH61+1) ->  | AI62: =AI61 ->  | AJ62: 0 | AK62: 0 | AL62: 0 | AM62: =IF(AM61="","",AM61) ->  | AN62: 47
D63: =観点3 -> 主学態 | G63: =IF(B61="","",SUM(E63:F63)) ->  | J63: =C61 -> 0 | M63: =観点3 -> 主学態 | T63: =観点3 -> 主学態 | AA63: =観点3 -> 主学態 | AG63: 48 | AH63: =IF(AH62="","",AH62+1) ->  | AI63: =AI62 ->  | AJ63: 0 | AK63: 0 | AL63: 0 | AM63: =IF(AM61="","",AM61) ->  | AN63: 48
D64: =観点1 -> 知識・技能 | G64: =IF(B64="","",SUM(E64:F64)) ->  | J64: =C64 -> 0 | K64: 17 | M64: =観点1 -> 知識・技能 | R64: 17 | T64: =観点1 -> 知識・技能 | Y64: 17 | AA64: =観点1 -> 知識・技能 | AG64: 49 | AH64: =IF(L64="","",1000+K64*10) ->  | AI64: =IF(L64="","",L64) ->  | AJ64: 0 | AK64: 0 | AL64: 0 | AM64: =IF(Q64="","",Q64) ->  | AN64: 49
D65: =観点2 -> 思考判断表現 | G65: =IF(B64="","",SUM(E65:F65)) ->  | J65: =C64 -> 0 | M65: =観点2 -> 思考判断表現 | T65: =観点2 -> 思考判断表現 | AA65: =観点2 -> 思考判断表現 | AG65: 50 | AH65: =IF(AH64="","",AH64+1) ->  | AI65: =AI64 ->  | AJ65: 0 | AK65: 0 | AL65: 0 | AM65: =IF(AM64="","",AM64) ->  | AN65: 50
D66: =観点3 -> 主学態 | G66: =IF(B64="","",SUM(E66:F66)) ->  | J66: =C64 -> 0 | M66: =観点3 -> 主学態 | T66: =観点3 -> 主学態 | AA66: =観点3 -> 主学態 | AG66: 51 | AH66: =IF(AH65="","",AH65+1) ->  | AI66: =AI65 ->  | AJ66: 0 | AK66: 0 | AL66: 0 | AM66: =IF(AM64="","",AM64) ->  | AN66: 51
D67: =観点1 -> 知識・技能 | G67: =IF(B67="","",SUM(E67:F67)) ->  | J67: =C67 -> 0 | K67: 18 | M67: =観点1 -> 知識・技能 | R67: 18 | T67: =観点1 -> 知識・技能 | Y67: 18 | AA67: =観点1 -> 知識・技能 | AG67: 52 | AH67: =IF(L67="","",1000+K67*10) ->  | AI67: =IF(L67="","",L67) ->  | AJ67: 0 | AK67: 0 | AL67: 0 | AM67: =IF(Q67="","",Q67) ->  | AN67: 52
D68: =観点2 -> 思考判断表現 | G68: =IF(B67="","",SUM(E68:F68)) ->  | J68: =C67 -> 0 | M68: =観点2 -> 思考判断表現 | T68: =観点2 -> 思考判断表現 | AA68: =観点2 -> 思考判断表現 | AG68: 53 | AH68: =IF(AH67="","",AH67+1) ->  | AI68: =AI67 ->  | AJ68: 0 | AK68: 0 | AL68: 0 | AM68: =IF(AM67="","",AM67) ->  | AN68: 53
D69: =観点3 -> 主学態 | G69: =IF(B67="","",SUM(E69:F69)) ->  | J69: =C67 -> 0 | M69: =観点3 -> 主学態 | T69: =観点3 -> 主学態 | AA69: =観点3 -> 主学態 | AG69: 54 | AH69: =IF(AH68="","",AH68+1) ->  | AI69: =AI68 ->  | AJ69: 0 | AK69: 0 | AL69: 0 | AM69: =IF(AM67="","",AM67) ->  | AN69: 54
D70: =観点1 -> 知識・技能 | G70: =IF(B70="","",SUM(E70:F70)) ->  | J70: =C70 -> 0 | K70: 19 | M70: =観点1 -> 知識・技能 | R70: 19 | T70: =観点1 -> 知識・技能 | Y70: 19 | AA70: =観点1 -> 知識・技能 | AG70: 55 | AH70: =IF(L70="","",1000+K70*10) ->  | AI70: =IF(L70="","",L70) ->  | AJ70: 0 | AK70: 0 | AL70: 0 | AM70: =IF(Q70="","",Q70) ->  | AN70: 55
D71: =観点2 -> 思考判断表現 | G71: =IF(B70="","",SUM(E71:F71)) ->  | J71: =C70 -> 0 | M71: =観点2 -> 思考判断表現 | T71: =観点2 -> 思考判断表現 | AA71: =観点2 -> 思考判断表現 | AG71: 56 | AH71: =IF(AH70="","",AH70+1) ->  | AI71: =AI70 ->  | AJ71: 0 | AK71: 0 | AL71: 0 | AM71: =IF(AM70="","",AM70) ->  | AN71: 56
D72: =観点3 -> 主学態 | G72: =IF(B70="","",SUM(E72:F72)) ->  | J72: =C70 -> 0 | M72: =観点3 -> 主学態 | T72: =観点3 -> 主学態 | AA72: =観点3 -> 主学態 | AG72: 57 | AH72: =IF(AH71="","",AH71+1) ->  | AI72: =AI71 ->  | AJ72: 0 | AK72: 0 | AL72: 0 | AM72: =IF(AM70="","",AM70) ->  | AN72: 57
D73: =観点1 -> 知識・技能 | G73: =IF(B73="","",SUM(E73:F73)) ->  | J73: =C73 -> 0 | K73: 20 | M73: =観点1 -> 知識・技能 | R73: 20 | T73: =観点1 -> 知識・技能 | Y73: 20 | AA73: =観点1 -> 知識・技能 | AG73: 58 | AH73: =IF(L73="","",1000+K73*10) ->  | AI73: =IF(L73="","",L73) ->  | AJ73: 0 | AK73: 0 | AL73: 0 | AM73: =IF(Q73="","",Q73) ->  | AN73: 58
D74: =観点2 -> 思考判断表現 | G74: =IF(B73="","",SUM(E74:F74)) ->  | J74: =C73 -> 0 | M74: =観点2 -> 思考判断表現 | T74: =観点2 -> 思考判断表現 | AA74: =観点2 -> 思考判断表現 | AG74: 59 | AH74: =IF(AH73="","",AH73+1) ->  | AI74: =AI73 ->  | AJ74: 0 | AK74: 0 | AL74: 0 | AM74: =IF(AM73="","",AM73) ->  | AN74: 59
D75: =観点3 -> 主学態 | G75: =IF(B73="","",SUM(E75:F75)) ->  | J75: =C73 -> 0 | M75: =観点3 -> 主学態 | T75: =観点3 -> 主学態 | AA75: =観点3 -> 主学態 | AG75: 60 | AH75: =IF(AH74="","",AH74+1) ->  | AI75: =AI74 ->  | AJ75: 0 | AK75: 0 | AL75: 0 | AM75: =IF(AM73="","",AM73) ->  | AN75: 60
D76: =観点1 -> 知識・技能 | G76: =IF(B76="","",SUM(E76:F76)) ->  | J76: =C76 -> 0 | AG76: 61 | AH76: =IF(S16="","",2000+R16*10) -> 2010 | AI76: =IF(S16="","",S16) -> ２学期 中間テスト | AJ76: =U16 -> 100 | AK76: =V16 -> 80 | AL76: =W16 -> 50 | AM76: =IF(X16="","",X16) -> 30 | AN76: 61
D77: =観点2 -> 思考判断表現 | G77: =IF(B76="","",SUM(E77:F77)) ->  | J77: =C76 -> 0 | AG77: 62 | AH77: =IF(AH76="","",AH76+1) -> 2011 | AI77: =AI76 -> ２学期 中間テスト | AJ77: =U17 -> 100 | AK77: =V17 -> 80 | AL77: =W17 -> 50 | AM77: =IF(AM76="","",AM76) -> 30 | AN77: 62
D78: =観点3 -> 主学態 | G78: =IF(B76="","",SUM(E78:F78)) ->  | J78: =C76 -> 0 | AG78: 63 | AH78: =IF(AH77="","",AH77+1) -> 2012 | AI78: =AI77 -> ２学期 中間テスト | AJ78: 0 | AK78: 0 | AL78: 0 | AM78: =IF(AM76="","",AM76) -> 30 | AN78: 63
D79: =観点1 -> 知識・技能 | G79: =IF(B79="","",SUM(E79:F79)) ->  | J79: =C79 -> 0 | AG79: 64 | AH79: =IF(S19="","",2000+R19*10) -> 2020 | AI79: =IF(S19="","",S19) -> ２学期 期末テスト | AJ79: 100 | AK79: 80 | AL79: 50 | AM79: =IF(X19="","",X19) -> 30 | AN79: 64
D80: =観点2 -> 思考判断表現 | G80: =IF(B79="","",SUM(E80:F80)) ->  | J80: =C79 -> 0 | AG80: 65 | AH80: =IF(AH79="","",AH79+1) -> 2021 | AI80: =AI79 -> ２学期 期末テスト | AJ80: 100 | AK80: 80 | AL80: 50 | AM80: =IF(AM79="","",AM79) -> 30 | AN80: 65 | AO80: =IF(ISERROR(SMALL($AH$16:$AH$195,AG80)),"",SMALL($AH$16:$AH$195,AG80)) ->  | AP80: =VLOOKUP(AO80,$AH$16:$AL$195,2,FALSE) ->  | AQ80: =IF(AO80="","",VLOOKUP(AO80,$AH$16:$AL$195,3,FALSE)) ->  | AR80: =IF(AO80="","",VLOOKUP(AO80,$AH$16:$AL$195,4,FALSE)) ->  | AS80: =IF(AO80="","",VLOOKUP(AO80,$AH$16:$AL$195,5,FALSE)) ->  | AU80: =IF(AO80="","",VLOOKUP(AO80,$AH$16:$AM$195,6,FALSE)) -> 
D81: =観点3 -> 主学態 | G81: =IF(B79="","",SUM(E81:F81)) ->  | J81: =C79 -> 0 | AG81: 66 | AH81: =IF(AH80="","",AH80+1) -> 2022 | AI81: =AI80 -> ２学期 期末テスト | AJ81: 0 | AK81: 0 | AL81: 0 | AM81: =IF(AM79="","",AM79) -> 30 | AN81: 66 | AT81: =IF(AO81="","",VALUE(LEFT(AO81,1))) -> 
D82: =観点1 -> 知識・技能 | G82: =IF(B82="","",SUM(E82:F82)) ->  | J82: =C82 -> 0 | AG82: 67 | AH82: =IF(S22="","",2000+R22*10) -> 2030 | AI82: =IF(S22="","",S22) -> 小テスト | AJ82: 50 | AK82: 40 | AL82: 25 | AM82: =IF(X22="","",X22) -> 30 | AN82: 67
D83: =観点2 -> 思考判断表現 | G83: =IF(B82="","",SUM(E83:F83)) ->  | J83: =C82 -> 0 | AG83: 68 | AH83: =IF(AH82="","",AH82+1) -> 2031 | AI83: =AI82 -> 小テスト | AJ83: 50 | AK83: 40 | AL83: 25 | AM83: =IF(AM82="","",AM82) -> 30 | AN83: 68
D84: =観点3 -> 主学態 | G84: =IF(B82="","",SUM(E84:F84)) ->  | J84: =C82 -> 0 | AG84: 69 | AH84: =IF(AH83="","",AH83+1) -> 2032 | AI84: =AI83 -> 小テスト | AJ84: 0 | AK84: 0 | AL84: 0 | AM84: =IF(AM82="","",AM82) -> 30 | AN84: 69
D85: =観点1 -> 知識・技能 | G85: =IF(B85="","",SUM(E85:F85)) ->  | J85: =C85 -> 0 | AG85: 70 | AH85: =IF(S25="","",2000+R25*10) ->  | AI85: =IF(S25="","",S25) ->  | AJ85: 0 | AK85: 0 | AL85: 0 | AM85: =IF(X25="","",X25) ->  | AN85: 70
D86: =観点2 -> 思考判断表現 | G86: =IF(B85="","",SUM(E86:F86)) ->  | J86: =C85 -> 0 | AG86: 71 | AH86: =IF(AH85="","",AH85+1) ->  | AI86: =AI85 ->  | AJ86: 0 | AK86: 0 | AL86: 0 | AM86: =IF(AM85="","",AM85) ->  | AN86: 71
D87: =観点3 -> 主学態 | G87: =IF(B85="","",SUM(E87:F87)) ->  | J87: =C85 -> 0 | AG87: 72 | AH87: =IF(AH86="","",AH86+1) ->  | AI87: =AI86 ->  | AJ87: 0 | AK87: 0 | AL87: 0 | AM87: =IF(AM85="","",AM85) ->  | AN87: 72
D88: =観点1 -> 知識・技能 | G88: =IF(B88="","",SUM(E88:F88)) ->  | J88: =C88 -> 0 | AG88: 73 | AH88: =IF(S28="","",2000+R28*10) ->  | AI88: =IF(S28="","",S28) ->  | AJ88: 0 | AK88: 0 | AL88: 0 | AM88: =IF(X28="","",X28) ->  | AN88: 73
D89: =観点2 -> 思考判断表現 | G89: =IF(B88="","",SUM(E89:F89)) ->  | J89: =C88 -> 0 | AG89: 74 | AH89: =IF(AH88="","",AH88+1) ->  | AI89: =AI88 ->  | AJ89: 0 | AK89: 0 | AL89: 0 | AM89: =IF(AM88="","",AM88) ->  | AN89: 74
D90: =観点3 -> 主学態 | G90: =IF(B88="","",SUM(E90:F90)) ->  | J90: =C88 -> 0 | AG90: 75 | AH90: =IF(AH89="","",AH89+1) ->  | AI90: =AI89 ->  | AJ90: 0 | AK90: 0 | AL90: 0 | AM90: =IF(AM88="","",AM88) ->  | AN90: 75
D91: =観点1 -> 知識・技能 | G91: =IF(B91="","",SUM(E91:F91)) ->  | J91: =C91 -> 0 | AG91: 76 | AH91: =IF(S31="","",2000+R31*10) ->  | AI91: =IF(S31="","",S31) ->  | AJ91: 0 | AK91: 0 | AL91: 0 | AM91: =IF(X31="","",X31) ->  | AN91: 76
D92: =観点2 -> 思考判断表現 | G92: =IF(B91="","",SUM(E92:F92)) ->  | J92: =C91 -> 0 | AG92: 77 | AH92: =IF(AH91="","",AH91+1) ->  | AI92: =AI91 ->  | AJ92: 0 | AK92: 0 | AL92: 0 | AM92: =IF(AM91="","",AM91) ->  | AN92: 77
D93: =観点3 -> 主学態 | G93: =IF(B91="","",SUM(E93:F93)) ->  | J93: =C91 -> 0 | AG93: 78 | AH93: =IF(AH92="","",AH92+1) ->  | AI93: =AI92 ->  | AJ93: 0 | AK93: 0 | AL93: 0 | AM93: =IF(AM91="","",AM91) ->  | AN93: 78
D94: =観点1 -> 知識・技能 | G94: =IF(B94="","",SUM(E94:F94)) ->  | J94: =C94 -> 0 | AG94: 79 | AH94: =IF(S34="","",2000+R34*10) ->  | AI94: =IF(S34="","",S34) ->  | AJ94: 0 | AK94: 0 | AL94: 0 | AM94: =IF(X34="","",X34) ->  | AN94: 79
D95: =観点2 -> 思考判断表現 | G95: =IF(B94="","",SUM(E95:F95)) ->  | J95: =C94 -> 0 | AG95: 80 | AH95: =IF(AH94="","",AH94+1) ->  | AI95: =AI94 ->  | AJ95: 0 | AK95: 0 | AL95: 0 | AM95: =IF(AM94="","",AM94) ->  | AN95: 80
D96: =観点3 -> 主学態 | G96: =IF(B94="","",SUM(E96:F96)) ->  | J96: =C94 -> 0 | AG96: 81 | AH96: =IF(AH95="","",AH95+1) ->  | AI96: =AI95 ->  | AJ96: 0 | AK96: 0 | AL96: 0 | AM96: =IF(AM94="","",AM94) ->  | AN96: 81
D97: =観点1 -> 知識・技能 | G97: =IF(B97="","",SUM(E97:F97)) ->  | J97: =C97 -> 0 | AG97: 82 | AH97: =IF(S37="","",2000+R37*10) ->  | AI97: =IF(S37="","",S37) ->  | AJ97: 0 | AK97: 0 | AL97: 0 | AM97: =IF(X37="","",X37) ->  | AN97: 82
D98: =観点2 -> 思考判断表現 | G98: =IF(B97="","",SUM(E98:F98)) ->  | J98: =C97 -> 0 | AG98: 83 | AH98: =IF(AH97="","",AH97+1) ->  | AI98: =AI97 ->  | AJ98: 0 | AK98: 0 | AL98: 0 | AM98: =IF(AM97="","",AM97) ->  | AN98: 83
D99: =観点3 -> 主学態 | G99: =IF(B97="","",SUM(E99:F99)) ->  | J99: =C97 -> 0 | AG99: 84 | AH99: =IF(AH98="","",AH98+1) ->  | AI99: =AI98 ->  | AJ99: 0 | AK99: 0 | AL99: 0 | AM99: =IF(AM97="","",AM97) ->  | AN99: 84
D100: =観点1 -> 知識・技能 | G100: =IF(B100="","",SUM(E100:F100)) ->  | J100: =C100 -> 0 | AG100: 85 | AH100: =IF(S40="","",2000+R40*10) ->  | AI100: =IF(S40="","",S40) ->  | AJ100: 0 | AK100: 0 | AL100: 0 | AM100: =IF(X40="","",X40) ->  | AN100: 85
D101: =観点2 -> 思考判断表現 | G101: =IF(B100="","",SUM(E101:F101)) ->  | J101: =C100 -> 0 | AG101: 86 | AH101: =IF(AH100="","",AH100+1) ->  | AI101: =AI100 ->  | AJ101: 0 | AK101: 0 | AL101: 0 | AM101: =IF(AM100="","",AM100) ->  | AN101: 86
D102: =観点3 -> 主学態 | G102: =IF(B100="","",SUM(E102:F102)) ->  | J102: =C100 -> 0 | AG102: 87 | AH102: =IF(AH101="","",AH101+1) ->  | AI102: =AI101 ->  | AJ102: 0 | AK102: 0 | AL102: 0 | AM102: =IF(AM100="","",AM100) ->  | AN102: 87
AG103: 88 | AH103: =IF(S43="","",2000+R43*10) ->  | AI103: =IF(S43="","",S43) ->  | AJ103: 0 | AK103: 0 | AL103: 0 | AM103: =IF(X43="","",X43) ->  | AN103: 88
AG104: 89 | AH104: =IF(AH103="","",AH103+1) ->  | AI104: =AI103 ->  | AJ104: 0 | AK104: 0 | AL104: 0 | AM104: =IF(AM103="","",AM103) ->  | AN104: 89
AG105: 90 | AH105: =IF(AH104="","",AH104+1) ->  | AI105: =AI104 ->  | AJ105: 0 | AK105: 0 | AL105: 0 | AM105: =IF(AM103="","",AM103) ->  | AN105: 90
AG106: 91 | AH106: =IF(S46="","",2000+R46*10) ->  | AI106: =IF(S46="","",S46) ->  | AJ106: 0 | AK106: 0 | AL106: 0 | AM106: =IF(X46="","",X46) ->  | AN106: 91
AG107: 92 | AH107: =IF(AH106="","",AH106+1) ->  | AI107: =AI106 ->  | AJ107: 0 | AK107: 0 | AL107: 0 | AM107: =IF(AM106="","",AM106) ->  | AN107: 92
A108: 非表示行 | AG108: 93 | AH108: =IF(AH107="","",AH107+1) ->  | AI108: =AI107 ->  | AJ108: 0 | AK108: 0 | AL108: 0 | AM108: =IF(AM106="","",AM106) ->  | AN108: 93
A109: 非表示行 | D109: 知識・技能 | F109: 教材名 | G109: Wプリント | I109: 学年 | J109: 1 | AG109: 94 | AH109: =IF(S49="","",2000+R49*10) ->  | AI109: =IF(S49="","",S49) ->  | AJ109: 0 | AK109: 0 | AL109: 0 | AM109: =IF(X49="","",X49) ->  | AN109: 94
A110: 非表示行 | D110: 思考判断表現 | AG110: 95 | AH110: =IF(AH109="","",AH109+1) ->  | AI110: =AI109 ->  | AJ110: 0 | AK110: 0 | AL110: 0 | AM110: =IF(AM109="","",AM109) ->  | AN110: 95
A111: 非表示行 | D111: 主学態 | AG111: 96 | AH111: =IF(AH110="","",AH110+1) ->  | AI111: =AI110 ->  | AJ111: 0 | AK111: 0 | AL111: 0 | AM111: =IF(AM109="","",AM109) ->  | AN111: 96
A112: 非表示行 | AG112: 97 | AH112: =IF(S52="","",2000+R52*10) ->  | AI112: =IF(S52="","",S52) ->  | AJ112: 0 | AK112: 0 | AL112: 0 | AM112: =IF(X52="","",X52) ->  | AN112: 97 | AO112: =IF(ISERROR(SMALL($AH$16:$AH$195,AG112)),"",SMALL($AH$16:$AH$195,AG112)) ->  | AP112: =VLOOKUP(AO112,$AH$16:$AL$195,2,FALSE) ->  | AQ112: =IF(AO112="","",VLOOKUP(AO112,$AH$16:$AL$195,3,FALSE)) ->  | AR112: =IF(AO112="","",VLOOKUP(AO112,$AH$16:$AL$195,4,FALSE)) ->  | AS112: =IF(AO112="","",VLOOKUP(AO112,$AH$16:$AL$195,5,FALSE)) ->  | AU112: =IF(AO112="","",VLOOKUP(AO112,$AH$16:$AM$195,6,FALSE)) -> 
A113: 非表示行 | D113: ="「"&G109&"」は、当該学期の使用回の総計満点を100点満点に圧縮して計算します。それに応じて重み付けを設定してください。" -> 「Wプリント」は、当該学期の使用回の総計満点を100点満点に圧縮して計算します。それに応じて重み付けを設定してください。 | AG113: 98 | AH113: =IF(AH112="","",AH112+1) ->  | AI113: =AI112 ->  | AJ113: 0 | AK113: 0 | AL113: 0 | AM113: =IF(AM112="","",AM112) ->  | AN113: 98
A114: 非表示行 | D114: ="「"&G109&"」は、当該学期の使用回の総計満点を100点満点に圧縮して計算します。それに応じて重み付けを設定してください。" -> 「Wプリント」は、当該学期の使用回の総計満点を100点満点に圧縮して計算します。それに応じて重み付けを設定してください。 | AG114: 99 | AH114: =IF(AH113="","",AH113+1) ->  | AI114: =AI113 ->  | AJ114: 0 | AK114: 0 | AL114: 0 | AM114: =IF(AM112="","",AM112) ->  | AN114: 99
A115: 非表示行 | AG115: 100 | AH115: =IF(S55="","",2000+R55*10) ->  | AI115: =IF(S55="","",S55) ->  | AJ115: 0 | AK115: 0 | AL115: 0 | AM115: =IF(X55="","",X55) ->  | AN115: 100
A116: 非表示行 | AG116: 101 | AH116: =IF(AH115="","",AH115+1) ->  | AI116: =AI115 ->  | AJ116: 0 | AK116: 0 | AL116: 0 | AM116: =IF(AM115="","",AM115) ->  | AN116: 101
A117: 非表示行 | AG117: 102 | AH117: =IF(AH116="","",AH116+1) ->  | AI117: =AI116 ->  | AJ117: 0 | AK117: 0 | AL117: 0 | AM117: =IF(AM115="","",AM115) ->  | AN117: 102
AG118: 103 | AH118: =IF(S58="","",2000+R58*10) ->  | AI118: =IF(S58="","",S58) ->  | AJ118: 0 | AK118: 0 | AL118: 0 | AM118: =IF(X58="","",X58) ->  | AN118: 103
AG119: 104 | AH119: =IF(AH118="","",AH118+1) ->  | AI119: =AI118 ->  | AJ119: 0 | AK119: 0 | AL119: 0 | AM119: =IF(AM118="","",AM118) ->  | AN119: 104
AG120: 105 | AH120: =IF(AH119="","",AH119+1) ->  | AI120: =AI119 ->  | AJ120: 0 | AK120: 0 | AL120: 0 | AM120: =IF(AM118="","",AM118) ->  | AN120: 105
AG121: 106 | AH121: =IF(S61="","",2000+R61*10) ->  | AI121: =IF(S61="","",S61) ->  | AJ121: 0 | AK121: 0 | AL121: 0 | AM121: =IF(X61="","",X61) ->  | AN121: 106
AG122: 107 | AH122: =IF(AH121="","",AH121+1) ->  | AI122: =AI121 ->  | AJ122: 0 | AK122: 0 | AL122: 0 | AM122: =IF(AM121="","",AM121) ->  | AN122: 107
AG123: 108 | AH123: =IF(AH122="","",AH122+1) ->  | AI123: =AI122 ->  | AJ123: 0 | AK123: 0 | AL123: 0 | AM123: =IF(AM121="","",AM121) ->  | AN123: 108
AG124: 109 | AH124: =IF(S64="","",2000+R64*10) ->  | AI124: =IF(S64="","",S64) ->  | AJ124: 0 | AK124: 0 | AL124: 0 | AM124: =IF(X64="","",X64) ->  | AN124: 109
AG125: 110 | AH125: =IF(AH124="","",AH124+1) ->  | AI125: =AI124 ->  | AJ125: 0 | AK125: 0 | AL125: 0 | AM125: =IF(AM124="","",AM124) ->  | AN125: 110
AG126: 111 | AH126: =IF(AH125="","",AH125+1) ->  | AI126: =AI125 ->  | AJ126: 0 | AK126: 0 | AL126: 0 | AM126: =IF(AM124="","",AM124) ->  | AN126: 111
AG127: 112 | AH127: =IF(S67="","",2000+R67*10) ->  | AI127: =IF(S67="","",S67) ->  | AJ127: 0 | AK127: 0 | AL127: 0 | AM127: =IF(X67="","",X67) ->  | AN127: 112
AG128: 113 | AH128: =IF(AH127="","",AH127+1) ->  | AI128: =AI127 ->  | AJ128: 0 | AK128: 0 | AL128: 0 | AM128: =IF(AM127="","",AM127) ->  | AN128: 113
AG129: 114 | AH129: =IF(AH128="","",AH128+1) ->  | AI129: =AI128 ->  | AJ129: 0 | AK129: 0 | AL129: 0 | AM129: =IF(AM127="","",AM127) ->  | AN129: 114
AG130: 115 | AH130: =IF(S70="","",2000+R70*10) ->  | AI130: =IF(S70="","",S70) ->  | AJ130: 0 | AK130: 0 | AL130: 0 | AM130: =IF(X70="","",X70) ->  | AN130: 115
AG131: 116 | AH131: =IF(AH130="","",AH130+1) ->  | AI131: =AI130 ->  | AJ131: 0 | AK131: 0 | AL131: 0 | AM131: =IF(AM130="","",AM130) ->  | AN131: 116
AG132: 117 | AH132: =IF(AH131="","",AH131+1) ->  | AI132: =AI131 ->  | AJ132: 0 | AK132: 0 | AL132: 0 | AM132: =IF(AM130="","",AM130) ->  | AN132: 117
AG133: 118 | AH133: =IF(S73="","",2000+R73*10) ->  | AI133: =IF(S73="","",S73) ->  | AJ133: 0 | AK133: 0 | AL133: 0 | AM133: =IF(X73="","",X73) ->  | AN133: 118
AG134: 119 | AH134: =IF(AH133="","",AH133+1) ->  | AI134: =AI133 ->  | AJ134: 0 | AK134: 0 | AL134: 0 | AM134: =IF(AM133="","",AM133) ->  | AN134: 119
AG135: 120 | AH135: =IF(AH134="","",AH134+1) ->  | AI135: =AI134 ->  | AJ135: 0 | AK135: 0 | AL135: 0 | AM135: =IF(AM133="","",AM133) ->  | AN135: 120
AG136: 121 | AH136: =IF(Z16="","",3000+Y16*10) -> 3010 | AI136: =IF(Z16="","",Z16) -> ３学期 中間テスト | AJ136: =AB16 -> 100 | AK136: =AC16 -> 80 | AL136: =AD16 -> 50 | AM136: =IF(AE16="","",AE16) -> 30 | AN136: 121
AG137: 122 | AH137: =IF(AH136="","",AH136+1) -> 3011 | AI137: =AI136 -> ３学期 中間テスト | AJ137: =AB17 -> 100 | AK137: =AC17 -> 80 | AL137: =AD17 -> 50 | AM137: =IF(AM136="","",AM136) -> 30 | AN137: 122
AG138: 123 | AH138: =IF(AH137="","",AH137+1) -> 3012 | AI138: ３学期 中間テスト | AJ138: 0 | AK138: 0 | AL138: 0 | AM138: =IF(AM136="","",AM136) -> 30 | AN138: 123
AG139: 124 | AH139: =IF(Z19="","",3000+Y19*10) -> 3020 | AI139: =IF(Z19="","",Z19) -> ３学期 期末テスト | AJ139: 100 | AK139: 80 | AL139: 50 | AM139: =IF(AE19="","",AE19) -> 30 | AN139: 124
AG140: 125 | AH140: =IF(AH139="","",AH139+1) -> 3021 | AI140: ３学期 期末テスト | AJ140: 100 | AK140: 80 | AL140: 50 | AM140: =IF(AM139="","",AM139) -> 30 | AN140: 125
AG141: 126 | AH141: =IF(AH140="","",AH140+1) -> 3022 | AI141: ３学期 期末テスト | AJ141: 0 | AK141: 0 | AL141: 0 | AM141: =IF(AM139="","",AM139) -> 30 | AN141: 126
AG142: 127 | AH142: =IF(Z22="","",3000+Y22*10) -> 3030 | AI142: =IF(Z22="","",Z22) -> 小テスト | AJ142: 50 | AK142: 40 | AL142: 25 | AM142: =IF(AE22="","",AE22) -> 30 | AN142: 127
AG143: 128 | AH143: =IF(AH142="","",AH142+1) -> 3031 | AI143: 小テスト | AJ143: 50 | AK143: 40 | AL143: 25 | AM143: =IF(AM142="","",AM142) -> 30 | AN143: 128
AG144: 129 | AH144: =IF(AH143="","",AH143+1) -> 3032 | AI144: 小テスト | AJ144: 0 | AK144: 0 | AL144: 0 | AM144: =IF(AM142="","",AM142) -> 30 | AN144: 129
AG145: 130 | AH145: =IF(Z25="","",3000+Y25*10) ->  | AI145: =IF(Z25="","",Z25) ->  | AJ145: 0 | AK145: 0 | AL145: 0 | AM145: =IF(AE25="","",AE25) ->  | AN145: 130 | AO145: =IF(ISERROR(SMALL($AH$16:$AH$195,AG145)),"",SMALL($AH$16:$AH$195,AG145)) ->  | AP145: =VLOOKUP(AO145,$AH$16:$AL$195,2,FALSE) ->  | AQ145: =IF(AO145="","",VLOOKUP(AO145,$AH$16:$AL$195,3,FALSE)) ->  | AR145: =IF(AO145="","",VLOOKUP(AO145,$AH$16:$AL$195,4,FALSE)) ->  | AS145: =IF(AO145="","",VLOOKUP(AO145,$AH$16:$AL$195,5,FALSE)) ->  | AT145: =IF(AO145="","",VALUE(LEFT(AO145,1))) -> 
AG146: 131 | AH146: =IF(AH145="","",AH145+1) ->  | AJ146: 0 | AK146: 0 | AL146: 0 | AM146: =IF(AM145="","",AM145) ->  | AN146: 131
AG147: 132 | AH147: =IF(AH146="","",AH146+1) ->  | AJ147: 0 | AK147: 0 | AL147: 0 | AM147: =IF(AM145="","",AM145) ->  | AN147: 132
AG148: 133 | AH148: =IF(Z28="","",3000+Y28*10) ->  | AI148: =IF(Z28="","",Z28) ->  | AJ148: 0 | AK148: 0 | AL148: 0 | AM148: =IF(AE28="","",AE28) ->  | AN148: 133
AG149: 134 | AH149: =IF(AH148="","",AH148+1) ->  | AJ149: 0 | AK149: 0 | AL149: 0 | AM149: =IF(AM148="","",AM148) ->  | AN149: 134
AG150: 135 | AH150: =IF(AH149="","",AH149+1) ->  | AJ150: 0 | AK150: 0 | AL150: 0 | AM150: =IF(AM148="","",AM148) ->  | AN150: 135
AG151: 136 | AH151: =IF(Z31="","",3000+Y31*10) ->  | AI151: =IF(Z31="","",Z31) ->  | AJ151: 0 | AK151: 0 | AL151: 0 | AM151: =IF(AE31="","",AE31) ->  | AN151: 136
AG152: 137 | AH152: =IF(AH151="","",AH151+1) ->  | AJ152: 0 | AK152: 0 | AL152: 0 | AM152: =IF(AM151="","",AM151) ->  | AN152: 137
AG153: 138 | AH153: =IF(AH152="","",AH152+1) ->  | AJ153: 0 | AK153: 0 | AL153: 0 | AM153: =IF(AM151="","",AM151) ->  | AN153: 138
AG154: 139 | AH154: =IF(Z34="","",3000+Y34*10) ->  | AI154: =IF(Z34="","",Z34) ->  | AJ154: 0 | AK154: 0 | AL154: 0 | AM154: =IF(AE34="","",AE34) ->  | AN154: 139
AG155: 140 | AH155: =IF(AH154="","",AH154+1) ->  | AJ155: 0 | AK155: 0 | AL155: 0 | AM155: =IF(AM154="","",AM154) ->  | AN155: 140
AG156: 141 | AH156: =IF(AH155="","",AH155+1) ->  | AI156: =AI155 ->  | AJ156: 0 | AK156: 0 | AL156: 0 | AM156: =IF(AM154="","",AM154) ->  | AN156: 141 | AO156: =IF(ISERROR(SMALL($AH$16:$AH$195,AG156)),"",SMALL($AH$16:$AH$195,AG156)) ->  | AP156: =VLOOKUP(AO156,$AH$16:$AL$195,2,FALSE) ->  | AQ156: =IF(AO156="","",VLOOKUP(AO156,$AH$16:$AL$195,3,FALSE)) ->  | AR156: =IF(AO156="","",VLOOKUP(AO156,$AH$16:$AL$195,4,FALSE)) ->  | AS156: =IF(AO156="","",VLOOKUP(AO156,$AH$16:$AL$195,5,FALSE)) ->  | AU156: =IF(AO156="","",VLOOKUP(AO156,$AH$16:$AM$195,6,FALSE)) -> 
AG157: 142 | AH157: =IF(Z37="","",3000+Y37*10) ->  | AI157: =IF(Z37="","",Z37) ->  | AJ157: 0 | AK157: 0 | AL157: 0 | AM157: =IF(AE37="","",AE37) ->  | AN157: 142
AG158: 143 | AH158: =IF(AH157="","",AH157+1) ->  | AJ158: 0 | AK158: 0 | AL158: 0 | AM158: =IF(AM157="","",AM157) ->  | AN158: 143
AG159: 144 | AH159: =IF(AH158="","",AH158+1) ->  | AJ159: 0 | AK159: 0 | AL159: 0 | AM159: =IF(AM157="","",AM157) ->  | AN159: 144
AG160: 145 | AH160: =IF(Z40="","",3000+Y40*10) ->  | AI160: =IF(Z40="","",Z40) ->  | AJ160: 0 | AK160: 0 | AL160: 0 | AM160: =IF(AE40="","",AE40) ->  | AN160: 145
AG161: 146 | AH161: =IF(AH160="","",AH160+1) ->  | AJ161: 0 | AK161: 0 | AL161: 0 | AM161: =IF(AM160="","",AM160) ->  | AN161: 146
AG162: 147 | AH162: =IF(AH161="","",AH161+1) ->  | AJ162: 0 | AK162: 0 | AL162: 0 | AM162: =IF(AM160="","",AM160) ->  | AN162: 147
AG163: 148 | AH163: =IF(Z43="","",3000+Y43*10) ->  | AI163: =IF(Z43="","",Z43) ->  | AJ163: 0 | AK163: 0 | AL163: 0 | AM163: =IF(AE43="","",AE43) ->  | AN163: 148
AG164: 149 | AH164: =IF(AH163="","",AH163+1) ->  | AJ164: 0 | AK164: 0 | AL164: 0 | AM164: =IF(AM163="","",AM163) ->  | AN164: 149
AG165: 150 | AH165: =IF(AH164="","",AH164+1) ->  | AJ165: 0 | AK165: 0 | AL165: 0 | AM165: =IF(AM163="","",AM163) ->  | AN165: 150
AG166: 151 | AH166: =IF(Z46="","",3000+Y46*10) ->  | AI166: =IF(Z46="","",Z46) ->  | AJ166: 0 | AK166: 0 | AL166: 0 | AM166: =IF(AE46="","",AE46) ->  | AN166: 151
AG167: 152 | AH167: =IF(AH166="","",AH166+1) ->  | AJ167: 0 | AK167: 0 | AL167: 0 | AM167: =IF(AM166="","",AM166) ->  | AN167: 152
AG168: 153 | AH168: =IF(AH167="","",AH167+1) ->  | AJ168: 0 | AK168: 0 | AL168: 0 | AM168: =IF(AM166="","",AM166) ->  | AN168: 153
AG169: 154 | AH169: =IF(Z49="","",3000+Y49*10) ->  | AI169: =IF(Z49="","",Z49) ->  | AJ169: 0 | AK169: 0 | AL169: 0 | AM169: =IF(AE49="","",AE49) ->  | AN169: 154
AG170: 155 | AH170: =IF(AH169="","",AH169+1) ->  | AJ170: 0 | AK170: 0 | AL170: 0 | AM170: =IF(AM169="","",AM169) ->  | AN170: 155
AG171: 156 | AH171: =IF(AH170="","",AH170+1) ->  | AJ171: 0 | AK171: 0 | AL171: 0 | AM171: =IF(AM169="","",AM169) ->  | AN171: 156
AG172: 157 | AH172: =IF(Z52="","",3000+Y52*10) ->  | AI172: =IF(Z52="","",Z52) ->  | AJ172: 0 | AK172: 0 | AL172: 0 | AM172: =IF(AE52="","",AE52) ->  | AN172: 157
AG173: 158 | AH173: =IF(AH172="","",AH172+1) ->  | AJ173: 0 | AK173: 0 | AL173: 0 | AM173: =IF(AM172="","",AM172) ->  | AN173: 158
AG174: 159 | AH174: =IF(AH173="","",AH173+1) ->  | AJ174: 0 | AK174: 0 | AL174: 0 | AM174: =IF(AM172="","",AM172) ->  | AN174: 159
AG175: 160 | AH175: =IF(Z55="","",3000+Y55*10) ->  | AI175: =IF(Z55="","",Z55) ->  | AJ175: 0 | AK175: 0 | AL175: 0 | AM175: =IF(AE55="","",AE55) ->  | AN175: 160
AG176: 161 | AH176: =IF(AH175="","",AH175+1) ->  | AJ176: 0 | AK176: 0 | AL176: 0 | AM176: =IF(AM175="","",AM175) ->  | AN176: 161
AG177: 162 | AH177: =IF(AH176="","",AH176+1) ->  | AJ177: 0 | AK177: 0 | AL177: 0 | AM177: =IF(AM175="","",AM175) ->  | AN177: 162
AG178: 163 | AH178: =IF(Z58="","",3000+Y58*10) ->  | AI178: =IF(Z58="","",Z58) ->  | AJ178: 0 | AK178: 0 | AL178: 0 | AM178: =IF(AE58="","",AE58) ->  | AN178: 163
AG179: 164 | AH179: =IF(AH178="","",AH178+1) ->  | AJ179: 0 | AK179: 0 | AL179: 0 | AM179: =IF(AM178="","",AM178) ->  | AN179: 164
AG180: 165 | AH180: =IF(AH179="","",AH179+1) ->  | AJ180: 0 | AK180: 0 | AL180: 0 | AM180: =IF(AM178="","",AM178) ->  | AN180: 165
AG181: 166 | AH181: =IF(Z61="","",3000+Y61*10) ->  | AI181: =IF(Z61="","",Z61) ->  | AJ181: 0 | AK181: 0 | AL181: 0 | AM181: =IF(AE61="","",AE61) ->  | AN181: 166
AG182: 167 | AH182: =IF(AH181="","",AH181+1) ->  | AJ182: 0 | AK182: 0 | AL182: 0 | AM182: =IF(AM181="","",AM181) ->  | AN182: 167
AG183: 168 | AH183: =IF(AH182="","",AH182+1) ->  | AJ183: 0 | AK183: 0 | AL183: 0 | AM183: =IF(AM181="","",AM181) ->  | AN183: 168
AG184: 169 | AH184: =IF(Z64="","",3000+Y64*10) ->  | AI184: =IF(Z64="","",Z64) ->  | AJ184: 0 | AK184: 0 | AL184: 0 | AM184: =IF(AE64="","",AE64) ->  | AN184: 169
AG185: 170 | AH185: =IF(AH184="","",AH184+1) ->  | AI185: =AI184 ->  | AJ185: 0 | AK185: 0 | AL185: 0 | AM185: =IF(AM184="","",AM184) ->  | AN185: 170
AG186: 171 | AH186: =IF(AH185="","",AH185+1) ->  | AJ186: 0 | AK186: 0 | AL186: 0 | AM186: =IF(AM184="","",AM184) ->  | AN186: 171
AG187: 172 | AH187: =IF(Z67="","",3000+Y67*10) ->  | AI187: =IF(Z67="","",Z67) ->  | AJ187: 0 | AK187: 0 | AL187: 0 | AM187: =IF(AE67="","",AE67) ->  | AN187: 172
AG188: 173 | AH188: =IF(AH187="","",AH187+1) ->  | AJ188: 0 | AK188: 0 | AL188: 0 | AM188: =IF(AM187="","",AM187) ->  | AN188: 173
AG189: 174 | AH189: =IF(AH188="","",AH188+1) ->  | AJ189: 0 | AK189: 0 | AL189: 0 | AM189: =IF(AM187="","",AM187) ->  | AN189: 174
AG190: 175 | AH190: =IF(Z70="","",3000+Y70*10) ->  | AI190: =IF(Z70="","",Z70) ->  | AJ190: 0 | AK190: 0 | AL190: 0 | AM190: =IF(AE70="","",AE70) ->  | AN190: 175
AG191: 176 | AH191: =IF(AH190="","",AH190+1) ->  | AJ191: 0 | AK191: 0 | AL191: 0 | AM191: =IF(AM190="","",AM190) ->  | AN191: 176
AG192: 177 | AH192: =IF(AH191="","",AH191+1) ->  | AJ192: 0 | AK192: 0 | AL192: 0 | AM192: =IF(AM190="","",AM190) ->  | AN192: 177
AG193: 178 | AH193: =IF(Z73="","",3000+Y73*10) ->  | AI193: =IF(Z73="","",Z73) ->  | AJ193: 0 | AK193: 0 | AL193: 0 | AM193: =IF(AE73="","",AE73) ->  | AN193: 178
AG194: 179 | AH194: =IF(AH193="","",AH193+1) ->  | AJ194: 0 | AK194: 0 | AL194: 0 | AM194: =IF(AM193="","",AM193) ->  | AN194: 179
AG195: 180 | AH195: =IF(AH194="","",AH194+1) ->  | AJ195: 0 | AK195: 0 | AL195: 0 | AM195: =IF(AM193="","",AM193) ->  | AN195: 180

Sheet 基準設定2
A2: 先生がたへ：必要に応じて黄色のセルを変更または入力してください。
A4: ●「Wプリント」 学期・年間の観点別評価基準（達成率%で設定) | G4: ●「ユーザー独自項目」 学期・年間の観点別評価基準（達成率%で設定) | M4: ●全体 観点の重みづけ
A5: 学期 | B5: 観点 | C5: 達成率 (%) | D5: ＡとＢ の境 | E5: ＢとＣ の境 | G5: 学期 | H5: 観点 | I5: 達成率 (%) | J5: ＡとＢ の境 | K5: ＢとＣ の境 | M5: 学期 | N5: 観点 | O5: 観点の 重みづけ
A6: 1 | B6: =観点1 -> 知識・技能 | C6: 100 | D6: 80 | E6: 50 | G6: 1 | H6: =観点1 -> 知識・技能 | I6: 100 | J6: 80 | K6: 50 | M6: 1 | N6: =観点1 -> 知識・技能 | O6: 1 | P6: =IF( SUMIFS(基準設定1!$G$13:$G$57,基準設定1!$D$13:$D$57,基準設定2!N6,基準設定1!$J$13:$J$57,基準設定2!M6) +SUMIF(基準設定1!$M$13:$M$57,基準設定2!N6,基準設定1!$N$13:$N$57)=0,0, O6) -> 1
B7: =観点2 -> 思考判断表現 | C7: 100 | D7: 80 | E7: 50 | H7: =観点2 -> 思考判断表現 | I7: 100 | J7: 80 | K7: 50 | N7: =観点2 -> 思考判断表現 | O7: 1 | P7: =IF( SUMIFS(基準設定1!$G$13:$G$57,基準設定1!$D$13:$D$57,基準設定2!N7,基準設定1!$J$13:$J$57,基準設定2!M6) +SUMIF(基準設定1!$M$13:$M$57,基準設定2!N7,基準設定1!$N$13:$N$57)=0,0, O7) -> 1
B8: =観点3 -> 主学態 | C8: 100 | D8: 80 | E8: 50 | H8: =観点3 -> 主学態 | I8: 100 | J8: 80 | K8: 50 | N8: =観点3 -> 主学態 | O8: 1 | P8: =IF( SUMIFS(基準設定1!$G$13:$G$57,基準設定1!$D$13:$D$57,基準設定2!N8,基準設定1!$J$13:$J$57,基準設定2!M6) +SUMIF(基準設定1!$M$13:$M$57,基準設定2!N8,基準設定1!$N$13:$N$57)=0,0, O8) -> 1
A9: 2 | B9: =観点1 -> 知識・技能 | C9: 100 | D9: 80 | E9: 50 | G9: 2 | H9: =観点1 -> 知識・技能 | I9: 100 | J9: 80 | K9: 50 | M9: 2 | N9: =観点1 -> 知識・技能 | O9: 1 | P9: =IF( SUMIFS(基準設定1!$G$13:$G$57,基準設定1!$D$13:$D$57,基準設定2!N9,基準設定1!$J$13:$J$57,基準設定2!M9) +SUMIF(基準設定1!$T$13:$T$57,基準設定2!N9,基準設定1!$U$13:$U$57)=0,0, O9) -> 1
B10: =観点2 -> 思考判断表現 | C10: 100 | D10: 80 | E10: 50 | H10: =観点2 -> 思考判断表現 | I10: 100 | J10: 80 | K10: 50 | N10: =観点2 -> 思考判断表現 | O10: 1 | P10: =IF( SUMIFS(基準設定1!$G$13:$G$57,基準設定1!$D$13:$D$57,基準設定2!N10,基準設定1!$J$13:$J$57,基準設定2!M9) +SUMIF(基準設定1!$T$13:$T$57,基準設定2!N10,基準設定1!$U$13:$U$57)=0,0, O10) -> 1
B11: =観点3 -> 主学態 | C11: 100 | D11: 80 | E11: 50 | H11: =観点3 -> 主学態 | I11: 100 | J11: 80 | K11: 50 | N11: =観点3 -> 主学態 | O11: 1 | P11: =IF( SUMIFS(基準設定1!$G$13:$G$57,基準設定1!$D$13:$D$57,基準設定2!N11,基準設定1!$J$13:$J$57,基準設定2!M9) +SUMIF(基準設定1!$T$13:$T$57,基準設定2!N11,基準設定1!$U$13:$U$57)=0,0, O11) -> 1
A12: 3 | B12: =観点1 -> 知識・技能 | C12: 100 | D12: 80 | E12: 50 | G12: 3 | H12: =観点1 -> 知識・技能 | I12: 100 | J12: 80 | K12: 50 | M12: 3 | N12: =観点1 -> 知識・技能 | O12: 1 | P12: =IF( SUMIFS(基準設定1!$G$13:$G$57,基準設定1!$D$13:$D$57,基準設定2!N12,基準設定1!$J$13:$J$57,基準設定2!M12) +SUMIF(基準設定1!$AA$13:$AA$57,基準設定2!N12,基準設定1!$AB$13:$AB$57)=0,0, O12) -> 1
B13: =観点2 -> 思考判断表現 | C13: 100 | D13: 80 | E13: 50 | H13: =観点2 -> 思考判断表現 | I13: 100 | J13: 80 | K13: 50 | N13: =観点2 -> 思考判断表現 | O13: 1 | P13: =IF( SUMIFS(基準設定1!$G$13:$G$57,基準設定1!$D$13:$D$57,基準設定2!N13,基準設定1!$J$13:$J$57,基準設定2!M12) +SUMIF(基準設定1!$AA$13:$AA$57,基準設定2!N13,基準設定1!$AB$13:$AB$57)=0,0, O13) -> 1
B14: =観点3 -> 主学態 | C14: 100 | D14: 80 | E14: 50 | H14: =観点3 -> 主学態 | I14: 100 | J14: 80 | K14: 50 | N14: =観点3 -> 主学態 | O14: 1 | P14: =IF( SUMIFS(基準設定1!$G$13:$G$57,基準設定1!$D$13:$D$57,基準設定2!N14,基準設定1!$J$13:$J$57,基準設定2!M12) +SUMIF(基準設定1!$AA$13:$AA$57,基準設定2!N14,基準設定1!$AB$13:$AB$57)=0,0, O14) -> 1
A15: 年間 | B15: =観点1 -> 知識・技能 | C15: 100 | D15: 80 | E15: 50 | G15: 年間 | H15: =観点1 -> 知識・技能 | I15: 100 | J15: 80 | K15: 50 | M15: 年間 | N15: =観点1 -> 知識・技能 | O15: 1 | P15: =IF(SUMIF(基準設定1!$D$13:$D$57,基準設定2!N15,基準設定1!$G$13:$G$57)+SUMIF(基準設定1!$M$13:$M$57,基準設定2!N15,基準設定1!$N$13:$N$57)+SUMIF(基準設定1!$T$13:$T$57,基準設定2!N15,基準設定1!$U$13:$U$57)+SUMIF(基準設定1!$AA$13:$AA$57,基準設定2!N15,基準設定1!$AB$13:$AB$57)=0,0,O15) -> 1
B16: =観点2 -> 思考判断表現 | C16: 100 | D16: 80 | E16: 50 | H16: =観点2 -> 思考判断表現 | I16: 100 | J16: 80 | K16: 50 | N16: =観点2 -> 思考判断表現 | O16: 1 | P16: =IF(SUMIF(基準設定1!$D$13:$D$57,基準設定2!N16,基準設定1!$G$13:$G$57)+SUMIF(基準設定1!$M$13:$M$57,基準設定2!N16,基準設定1!$N$13:$N$57)+SUMIF(基準設定1!$T$13:$T$57,基準設定2!N16,基準設定1!$U$13:$U$57)+SUMIF(基準設定1!$AA$13:$AA$57,基準設定2!N16,基準設定1!$AB$13:$AB$57)=0,0,O16) -> 1
B17: =観点3 -> 主学態 | C17: 100 | D17: 80 | E17: 50 | H17: =観点3 -> 主学態 | I17: 100 | J17: 80 | K17: 50 | N17: =観点3 -> 主学態 | O17: 1 | P17: =IF(SUMIF(基準設定1!$D$13:$D$57,基準設定2!N17,基準設定1!$G$13:$G$57)+SUMIF(基準設定1!$M$13:$M$57,基準設定2!N17,基準設定1!$N$13:$N$57)+SUMIF(基準設定1!$T$13:$T$57,基準設定2!N17,基準設定1!$U$13:$U$57)+SUMIF(基準設定1!$AA$13:$AA$57,基準設定2!N17,基準設定1!$AB$13:$AB$57)=0,0,O17) -> 1
A20: ●5段階評定の基準
A21: 先生がたへ：下記①を採用するかどうか，○×を選択してください。 (②には，①と反対の○×が自動で表示されます) その後，採用した方の評価方法の基準を適宜設定してください。 | J21: ※観点の重みづけについて ①達成率による評価の場合 (【観点１ 達成率×重みづけ】＋【観点２ 達成率×重みづけ】…) ÷(【観点１ 重みづけ】＋【観点２ 重みづけ】…) の計算式で達成率を算出します。 ②観点別評価のABC判定を元にした評価の場合 A=3点，B=2点，C=1点として， (【観点１ A～C×重みづけ】＋【観点２ A～C×重みづけ】…) ÷(【観点１ 重みづけ】＋【観点２ 重みづけ】…) ×３ の計算式で観点別評価を点数化します。
A23: ○ | B23: ①達成率(得点率)による評価
B24: …「Wプリント」「ユーザー独自項目」全項目の得点から達成率を割り出して評価します。
B25: 学期 | C25: 達成率 (%) | D25: 5と4 の境 | E25: 4と3 の境 | F25: 3と2 の境 | G25: 2と1 の境
B26: 1学期 | C26: 100 | D26: 80 | E26: 60 | F26: 40 | G26: 20
B27: 2学期 | C27: 100 | D27: 80 | E27: 60 | F27: 40 | G27: 20
B28: 3学期 | C28: 100 | D28: 80 | E28: 60 | F28: 40 | G28: 20
B29: 年間 | C29: 100 | D29: 80 | E29: 60 | F29: 40 | G29: 20
A31: =IF(A23="○","×","○") -> × | B31: ②観点別評価のABC判定を元にした評価
B32: …A=3点，B=2点，C=1点として観点別評価を点数化し，評価します。
B33: 観点別評価 | C33: A | D33: B | E33: C | F33: なし
B34: 点数 | C34: 3 | D34: 2 | E34: 1 | F34: 0
B36: ABCの組み合わせ | D36: 点数 | E36: 1学期 評定 | F36: 2学期 評定 | G36: 3学期 評定 | H36: 年間 評定
B37: AAA | D37: 9 | E37: 5 | F37: 5 | G37: 5 | H37: 5
B38: AAB | D38: 8 | E38: 4 | F38: 4 | G38: 4 | H38: 4
B39: ABB／AAC | D39: 7 | E39: 4 | F39: 4 | G39: 4 | H39: 4
B40: ABC／BBB | D40: 6 | E40: 3 | F40: 3 | G40: 3 | H40: 3
B41: ACC／BBC | D41: 5 | E41: 3 | F41: 3 | G41: 3 | H41: 3
B42: BCC | D42: 4 | E42: 2 | F42: 2 | G42: 2 | H42: 2
B43: CCC | D43: 3 | E43: 1 | F43: 1 | G43: 1 | H43: 1
D44: 2 | E44: 1 | F44: 1 | G44: 1 | H44: 1
D45: 1 | E45: 1 | F45: 1 | G45: 1 | H45: 1
D46: 0 | E46: 1 | F46: 1 | G46: 1 | H46: 1

Sheet Ｗプリント_得点
A1: Ｗプリント_得点 | D1: =D3 -> 1 | E1: =D3 -> 1 | F1: =D3 -> 1 | G1: =G3 -> 1 | H1: =G3 -> 1 | I1: =G3 -> 1 | J1: =J3 -> 2 | K1: =J3 -> 2 | L1: =J3 -> 2 | M1: =M3 -> 2 | N1: =M3 -> 2 | O1: =M3 -> 2 | P1: =P3 -> 2 | Q1: =P3 -> 2 | R1: =P3 -> 2 | S1: =S3 -> 3 | T1: =S3 -> 3 | U1: =S3 -> 3 | V1: =V3 -> 3 | W1: =V3 -> 3 | X1: =V3 -> 3 | Y1: =Y3 -> 3 | Z1: =Y3 -> 3 | AA1: =Y3 -> 3 | AB1: =AB3 ->  | AC1: =AB3 ->  | AD1: =AB3 ->  | AE1: =AE3 ->  | AF1: =AE3 ->  | AG1: =AE3 ->  | AH1: =AH3 ->  | AI1: =AH3 ->  | AJ1: =AH3 ->  | AK1: =AK3 ->  | AL1: =AK3 ->  | AM1: =AK3 ->  | AN1: =AN3 ->  | AO1: =AN3 ->  | AP1: =AN3 ->  | AQ1: =AQ3 ->  | AR1: =AQ3 ->  | AS1: =AQ3 ->  | AT1: =AT3 ->  | AU1: =AT3 ->  | AV1: =AT3 ->  | AW1: 合計 | BP1: =Ｗデータシート!$AC$2 -> ― | BR1: 判定 | DK1: 1 | DL1: 1 | DM1: 1 | DN1: 2 | DO1: 2 | DP1: 2 | DQ1: 3 | DR1: 3 | DS1: 3
A2: FALSE | AW2: =COUNTA(D5:AV5) -> 15 | BO2: >0 | BP2: =Ｗデータシート!$AC$3 -> ―
A3: FALSE | C3: 学期 | D3: =IF(D4="","",OFFSET(基準設定1!$C$13,COLUMN()-COLUMN($D4),0)) -> 1 | G3: =IF(G4="","",OFFSET(基準設定1!$C$13,COLUMN()-COLUMN($D4),0)) -> 1 | J3: =IF(J4="","",OFFSET(基準設定1!$C$13,COLUMN()-COLUMN($D4),0)) -> 2 | M3: =IF(M4="","",OFFSET(基準設定1!$C$13,COLUMN()-COLUMN($D4),0)) -> 2 | P3: =IF(P4="","",OFFSET(基準設定1!$C$13,COLUMN()-COLUMN($D4),0)) -> 2 | S3: =IF(S4="","",OFFSET(基準設定1!$C$13,COLUMN()-COLUMN($D4),0)) -> 3 | V3: =IF(V4="","",OFFSET(基準設定1!$C$13,COLUMN()-COLUMN($D4),0)) -> 3 | Y3: =IF(Y4="","",OFFSET(基準設定1!$C$13,COLUMN()-COLUMN($D4),0)) -> 3 | AB3: =IF(AB4="","",OFFSET(基準設定1!$C$13,COLUMN()-COLUMN($D4),0)) ->  | AE3: =IF(AE4="","",OFFSET(基準設定1!$C$13,COLUMN()-COLUMN($D4),0)) ->  | AH3: =IF(AH4="","",OFFSET(基準設定1!$C$13,COLUMN()-COLUMN($D4),0)) ->  | AK3: =IF(AK4="","",OFFSET(基準設定1!$C$13,COLUMN()-COLUMN($D4),0)) ->  | AN3: =IF(AN4="","",OFFSET(基準設定1!$C$13,COLUMN()-COLUMN($D4),0)) ->  | AQ3: =IF(AQ4="","",OFFSET(基準設定1!$C$13,COLUMN()-COLUMN($D4),0)) ->  | AT3: =IF(AT4="","",OFFSET(基準設定1!$C$13,COLUMN()-COLUMN($D4),0)) ->  | AW3: =IF(D3="","",D3) -> 1 | AX3: =IF(G3="","",G3) -> 1 | AY3: =IF(J3="","",J3) -> 2 | AZ3: =IF(M3="","",M3) -> 2 | BA3: =IF(P3="","",P3) -> 2 | BB3: =IF(S3="","",S3) -> 3 | BC3: =IF(V3="","",V3) -> 3 | BD3: =IF(Y3="","",Y3) -> 3 | BE3: =IF(AB3="","",AB3) ->  | BF3: =IF(AE3="","",AE3) ->  | BG3: =IF(AH3="","",AH3) ->  | BH3: =IF(AK3="","",AK3) ->  | BI3: =IF(AN3="","",AN3) ->  | BJ3: =IF(AQ3="","",AQ3) ->  | BK3: =IF(AT3="","",AT3) ->  | BL3: 1 | BM3: 2 | BN3: 3 | BO3: 年間 | BP3: >0 | BR3: =IF(D3="","",D3) -> 1 | BU3: =IF(G3="","",G3) -> 1 | BX3: =IF(J3="","",J3) -> 2 | CA3: =IF(M3="","",M3) -> 2 | CD3: =IF(P3="","",P3) -> 2 | CG3: =IF(S3="","",S3) -> 3 | CJ3: =IF(V3="","",V3) -> 3 | CM3: =IF(Y3="","",Y3) -> 3 | CP3: =IF(AB3="","",AB3) ->  | CS3: =IF(AE3="","",AE3) ->  | CV3: =IF(AH3="","",AH3) ->  | CY3: =IF(AK3="","",AK3) ->  | DB3: =IF(AN3="","",AN3) ->  | DE3: =IF(AQ3="","",AQ3) ->  | DH3: =IF(AT3="","",AT3) ->  | DK3: 1 | DN3: 2 | DQ3: 3 | DT3: 年間 | DW3: 1 | DZ3: 2 | EC3: 3 | EF3: 年間 | EI3: 1 | EL3: 2 | EO3: 3 | ER3: 年間
C4: 回数 | D4: 1 | G4: 2 | J4: 3 | M4: 4 | P4: 5 | S4: 6 | V4: 7 | Y4: 8 | AW4: 1 | AX4: 2 | AY4: 3 | AZ4: 4 | BA4: 5 | BB4: 6 | BC4: 7 | BD4: 8 | BR4: 1 | BU4: 2 | BX4: 3 | CA4: 4 | CD4: 5 | CG4: 6 | CJ4: 7 | CM4: 8
C5: 単元名 | D5: 正の数・負の数 | G5: 文字と式 | J5: 方程式 | M5: 比例と反比例 | P5: 平面図形 | S5: 空間図形 | V5: データの活用 | Y5: 1年生のまとめ | AW5: 正の数・負の数 | AX5: 文字と式 | AY5: 方程式 | AZ5: 比例と反比例 | BA5: 平面図形 | BB5: 空間図形 | BC5: データの活用 | BD5: 1年生のまとめ | BL5: 学期 | BM5: 学期 | BN5: 学期 | BO5: 年間 | BP5: 回数で範囲を選択 | BR5: 正の数・負の数 | BU5: 文字と式 | BX5: 方程式 | CA5: 比例と反比例 | CD5: 平面図形 | CG5: 空間図形 | CJ5: データの活用 | CM5: 1年生のまとめ | DK5: 合計 | DN5: 合計 | DQ5: 合計 | DT5: 合計 | DW5: 率 | DZ5: 率 | EC5: 率 | EF5: 率 | EI5: 判定 | EL5: 判定 | EO5: 判定 | ER5: 判定
C6: 観点 | D6: 知識・技能 | E6: 思考判断表現 | F6: 主学態 | G6: 知識・技能 | H6: 思考判断表現 | I6: 主学態 | J6: 知識・技能 | K6: 思考判断表現 | L6: 主学態 | M6: 知識・技能 | N6: 思考判断表現 | O6: 主学態 | P6: 知識・技能 | Q6: 思考判断表現 | R6: 主学態 | S6: 知識・技能 | T6: 思考判断表現 | U6: 主学態 | V6: 知識・技能 | W6: 思考判断表現 | X6: 主学態 | Y6: 知識・技能 | Z6: 思考判断表現 | AA6: 主学態 | AW6: 合計 | AX6: 合計 | AY6: 合計 | AZ6: 合計 | BA6: 合計 | BB6: 合計 | BC6: 合計 | BD6: 合計 | BL6: 得点分布に使用 | BM6: 得点分布に使用 | BN6: 得点分布に使用 | BO6: 得点分布に使用 | BP6: 得点分布に使用 | BR6: 知識・技能 | BS6: 思考判断表現 | BT6: 主学態 | BU6: 知識・技能 | BV6: 思考判断表現 | BW6: 主学態 | BX6: 知識・技能 | BY6: 思考判断表現 | BZ6: 主学態 | CA6: 知識・技能 | CB6: 思考判断表現 | CC6: 主学態 | CD6: 知識・技能 | CE6: 思考判断表現 | CF6: 主学態 | CG6: 知識・技能 | CH6: 思考判断表現 | CI6: 主学態 | CJ6: 知識・技能 | CK6: 思考判断表現 | CL6: 主学態 | CM6: 知識・技能 | CN6: 思考判断表現 | CO6: 主学態 | DK6: 知識・技能 | DL6: 思考判断表現 | DM6: 主学態 | DN6: 知識・技能 | DO6: 思考判断表現 | DP6: 主学態 | DQ6: 知識・技能 | DR6: 思考判断表現 | DS6: 主学態 | DT6: 知識・技能 | DU6: 思考判断表現 | DV6: 主学態 | DW6: 知識・技能 | DX6: 思考判断表現 | DY6: 主学態 | DZ6: 知識・技能 | EA6: 思考判断表現 | EB6: 主学態 | EC6: 知識・技能 | ED6: 思考判断表現 | EE6: 主学態 | EF6: 知識・技能 | EG6: 思考判断表現 | EH6: 主学態 | EI6: 知識・技能 | EJ6: 思考判断表現 | EK6: 主学態 | EL6: 知識・技能 | EM6: 思考判断表現 | EN6: 主学態 | EO6: 知識・技能 | EP6: 思考判断表現 | EQ6: 主学態 | ER6: 知識・技能 | ES6: 思考判断表現 | ET6: 主学態
C7: 配点 | D7: =IF(D4="","",OFFSET(基準設定1!$G$13,COLUMN()-COLUMN($D4),0)) -> 60 | E7: =IF(D4="","",OFFSET(基準設定1!$G$13,COLUMN()-COLUMN($D4),0)) -> 40 | F7: =IF(D4="","",OFFSET(基準設定1!$G$13,COLUMN()-COLUMN($D4),0)) -> 3 | G7: =IF(G4="","",OFFSET(基準設定1!$G$13,COLUMN()-COLUMN($D4),0)) -> 60 | H7: =IF(G4="","",OFFSET(基準設定1!$G$13,COLUMN()-COLUMN($D4),0)) -> 40 | I7: =IF(G4="","",OFFSET(基準設定1!$G$13,COLUMN()-COLUMN($D4),0)) -> 3 | J7: =IF(J4="","",OFFSET(基準設定1!$G$13,COLUMN()-COLUMN($D4),0)) -> 60 | K7: =IF(J4="","",OFFSET(基準設定1!$G$13,COLUMN()-COLUMN($D4),0)) -> 40 | L7: =IF(J4="","",OFFSET(基準設定1!$G$13,COLUMN()-COLUMN($D4),0)) -> 3 | M7: =IF(M4="","",OFFSET(基準設定1!$G$13,COLUMN()-COLUMN($D4),0)) -> 60 | N7: =IF(M4="","",OFFSET(基準設定1!$G$13,COLUMN()-COLUMN($D4),0)) -> 40 | O7: =IF(M4="","",OFFSET(基準設定1!$G$13,COLUMN()-COLUMN($D4),0)) -> 3 | P7: =IF(P4="","",OFFSET(基準設定1!$G$13,COLUMN()-COLUMN($D4),0)) -> 60 | Q7: =IF(P4="","",OFFSET(基準設定1!$G$13,COLUMN()-COLUMN($D4),0)) -> 40 | R7: =IF(P4="","",OFFSET(基準設定1!$G$13,COLUMN()-COLUMN($D4),0)) -> 3 | S7: =IF(S4="","",OFFSET(基準設定1!$G$13,COLUMN()-COLUMN($D4),0)) -> 60 | T7: =IF(S4="","",OFFSET(基準設定1!$G$13,COLUMN()-COLUMN($D4),0)) -> 40 | U7: =IF(S4="","",OFFSET(基準設定1!$G$13,COLUMN()-COLUMN($D4),0)) -> 3 | V7: =IF(V4="","",OFFSET(基準設定1!$G$13,COLUMN()-COLUMN($D4),0)) -> 60 | W7: =IF(V4="","",OFFSET(基準設定1!$G$13,COLUMN()-COLUMN($D4),0)) -> 40 | X7: =IF(V4="","",OFFSET(基準設定1!$G$13,COLUMN()-COLUMN($D4),0)) -> 3 | Y7: =IF(Y4="","",OFFSET(基準設定1!$G$13,COLUMN()-COLUMN($D4),0)) -> 60 | Z7: =IF(Y4="","",OFFSET(基準設定1!$G$13,COLUMN()-COLUMN($D4),0)) -> 40 | AA7: =IF(Y4="","",OFFSET(基準設定1!$G$13,COLUMN()-COLUMN($D4),0)) -> 3 | AB7: =IF(AB4="","",OFFSET(基準設定1!$G$13,COLUMN()-COLUMN($D4),0)) ->  | AC7: =IF(AB4="","",OFFSET(基準設定1!$G$13,COLUMN()-COLUMN($D4),0)) ->  | AD7: =IF(AB4="","",OFFSET(基準設定1!$G$13,COLUMN()-COLUMN($D4),0)) ->  | AE7: =IF(AE4="","",OFFSET(基準設定1!$G$13,COLUMN()-COLUMN($D4),0)) ->  | AF7: =IF(AE4="","",OFFSET(基準設定1!$G$13,COLUMN()-COLUMN($D4),0)) ->  | AG7: =IF(AE4="","",OFFSET(基準設定1!$G$13,COLUMN()-COLUMN($D4),0)) ->  | AH7: =IF(AH4="","",OFFSET(基準設定1!$G$13,COLUMN()-COLUMN($D4),0)) ->  | AI7: =IF(AH4="","",OFFSET(基準設定1!$G$13,COLUMN()-COLUMN($D4),0)) ->  | AJ7: =IF(AH4="","",OFFSET(基準設定1!$G$13,COLUMN()-COLUMN($D4),0)) ->  | AK7: =IF(AK4="","",OFFSET(基準設定1!$G$13,COLUMN()-COLUMN($D4),0)) ->  | AL7: =IF(AK4="","",OFFSET(基準設定1!$G$13,COLUMN()-COLUMN($D4),0)) ->  | AM7: =IF(AK4="","",OFFSET(基準設定1!$G$13,COLUMN()-COLUMN($D4),0)) ->  | AN7: =IF(AN4="","",OFFSET(基準設定1!$G$13,COLUMN()-COLUMN($D4),0)) ->  | AO7: =IF(AN4="","",OFFSET(基準設定1!$G$13,COLUMN()-COLUMN($D4),0)) ->  | AP7: =IF(AN4="","",OFFSET(基準設定1!$G$13,COLUMN()-COLUMN($D4),0)) ->  | AQ7: =IF(AQ4="","",OFFSET(基準設定1!$G$13,COLUMN()-COLUMN($D4),0)) ->  | AR7: =IF(AQ4="","",OFFSET(基準設定1!$G$13,COLUMN()-COLUMN($D4),0)) ->  | AS7: =IF(AQ4="","",OFFSET(基準設定1!$G$13,COLUMN()-COLUMN($D4),0)) ->  | AT7: =IF(AT4="","",OFFSET(基準設定1!$G$13,COLUMN()-COLUMN($D4),0)) ->  | AU7: =IF(AT4="","",OFFSET(基準設定1!$G$13,COLUMN()-COLUMN($D4),0)) ->  | AV7: =IF(AT4="","",OFFSET(基準設定1!$G$13,COLUMN()-COLUMN($D4),0)) ->  | AW7: =IF(AW4="","",SUM(D7:F7)) -> 103 | AX7: =IF(AX4="","",SUM(G7:I7)) -> 103 | AY7: =IF(AY4="","",SUM(J7:L7)) -> 103 | AZ7: =IF(AZ4="","",SUM(M7:O7)) -> 103 | BA7: =IF(BA4="","",SUM(P7:R7)) -> 103 | BB7: =IF(BB4="","",SUM(S7:U7)) -> 103 | BC7: =IF(BC4="","",SUM(V7:X7)) -> 103 | BD7: =IF(BD4="","",SUM(Y7:AA7)) -> 103 | BE7: =IF(BE4="","",SUM(AB7:AD7)) ->  | BF7: =IF(BF4="","",SUM(AE7:AG7)) ->  | BG7: =IF(BG4="","",SUM(AH7:AJ7)) ->  | BH7: =IF(BH4="","",SUM(AK7:AM7)) ->  | BI7: =IF(BI4="","",SUM(AN7:AP7)) ->  | BJ7: =IF(BJ4="","",SUM(AQ7:AS7)) ->  | BK7: =IF(BK4="","",SUM(AT7:AV7)) ->  | BL7: =SUMIF($AW$3:$BK$3,BL$3,$AW$7:$BK$7) -> 206 | BM7: =SUMIF($AW$3:$BK$3,BM$3,$AW$7:$BK$7) -> 309 | BN7: =SUMIF($AW$3:$BK$3,BN$3,$AW$7:$BK$7) -> 309 | BO7: =SUMIF($AW$3:$BK$3,BO$2,$AW$7:$BK$7) -> 824 | BP7: =SUMIF(OFFSET(AW3,0,BP1-1,1,BP2-BP1+1),BP3,OFFSET(AW7,0,BP1-1,1,BP2-BP1+1)) ->  | BQ7: ＡとＢ の境 | BR7: =IF(BR4="","",OFFSET(基準設定1!$H$13,COLUMN()-COLUMN($BR4),0)) -> 48 | BS7: =IF(BR4="","",OFFSET(基準設定1!$H$13,COLUMN()-COLUMN($BR4),0)) -> 32 | BT7: =IF(BR4="","",OFFSET(基準設定1!$H$13,COLUMN()-COLUMN($BR4),0)) -> 3 | BU7: =IF(BU4="","",OFFSET(基準設定1!$H$13,COLUMN()-COLUMN($BR4),0)) -> 48 | BV7: =IF(BU4="","",OFFSET(基準設定1!$H$13,COLUMN()-COLUMN($BR4),0)) -> 32 | BW7: =IF(BU4="","",OFFSET(基準設定1!$H$13,COLUMN()-COLUMN($BR4),0)) -> 3 | BX7: =IF(BX4="","",OFFSET(基準設定1!$H$13,COLUMN()-COLUMN($BR4),0)) -> 48 | BY7: =IF(BX4="","",OFFSET(基準設定1!$H$13,COLUMN()-COLUMN($BR4),0)) -> 32 | BZ7: =IF(BX4="","",OFFSET(基準設定1!$H$13,COLUMN()-COLUMN($BR4),0)) -> 3 | CA7: =IF(CA4="","",OFFSET(基準設定1!$H$13,COLUMN()-COLUMN($BR4),0)) -> 48 | CB7: =IF(CA4="","",OFFSET(基準設定1!$H$13,COLUMN()-COLUMN($BR4),0)) -> 32 | CC7: =IF(CA4="","",OFFSET(基準設定1!$H$13,COLUMN()-COLUMN($BR4),0)) -> 3 | CD7: =IF(CD4="","",OFFSET(基準設定1!$H$13,COLUMN()-COLUMN($BR4),0)) -> 48 | CE7: =IF(CD4="","",OFFSET(基準設定1!$H$13,COLUMN()-COLUMN($BR4),0)) -> 32 | CF7: =IF(CD4="","",OFFSET(基準設定1!$H$13,COLUMN()-COLUMN($BR4),0)) -> 3 | CG7: =IF(CG4="","",OFFSET(基準設定1!$H$13,COLUMN()-COLUMN($BR4),0)) -> 48 | CH7: =IF(CG4="","",OFFSET(基準設定1!$H$13,COLUMN()-COLUMN($BR4),0)) -> 32 | CI7: =IF(CG4="","",OFFSET(基準設定1!$H$13,COLUMN()-COLUMN($BR4),0)) -> 3 | CJ7: =IF(CJ4="","",OFFSET(基準設定1!$H$13,COLUMN()-COLUMN($BR4),0)) -> 48 | CK7: =IF(CJ4="","",OFFSET(基準設定1!$H$13,COLUMN()-COLUMN($BR4),0)) -> 32 | CL7: =IF(CJ4="","",OFFSET(基準設定1!$H$13,COLUMN()-COLUMN($BR4),0)) -> 3 | CM7: =IF(CM4="","",OFFSET(基準設定1!$H$13,COLUMN()-COLUMN($BR4),0)) -> 48 | CN7: =IF(CM4="","",OFFSET(基準設定1!$H$13,COLUMN()-COLUMN($BR4),0)) -> 32 | CO7: =IF(CM4="","",OFFSET(基準設定1!$H$13,COLUMN()-COLUMN($BR4),0)) -> 3 | CP7: =IF(CP4="","",OFFSET(基準設定1!$H$13,COLUMN()-COLUMN($BR4),0)) ->  | CQ7: =IF(CP4="","",OFFSET(基準設定1!$H$13,COLUMN()-COLUMN($BR4),0)) ->  | CR7: =IF(CP4="","",OFFSET(基準設定1!$H$13,COLUMN()-COLUMN($BR4),0)) ->  | CS7: =IF(CS4="","",OFFSET(基準設定1!$H$13,COLUMN()-COLUMN($BR4),0)) ->  | CT7: =IF(CS4="","",OFFSET(基準設定1!$H$13,COLUMN()-COLUMN($BR4),0)) ->  | CU7: =IF(CS4="","",OFFSET(基準設定1!$H$13,COLUMN()-COLUMN($BR4),0)) ->  | CV7: =IF(CV4="","",OFFSET(基準設定1!$H$13,COLUMN()-COLUMN($BR4),0)) ->  | CW7: =IF(CV4="","",OFFSET(基準設定1!$H$13,COLUMN()-COLUMN($BR4),0)) ->  | CX7: =IF(CV4="","",OFFSET(基準設定1!$H$13,COLUMN()-COLUMN($BR4),0)) ->  | CY7: =IF(CY4="","",OFFSET(基準設定1!$H$13,COLUMN()-COLUMN($BR4),0)) ->  | CZ7: =IF(CY4="","",OFFSET(基準設定1!$H$13,COLUMN()-COLUMN($BR4),0)) ->  | DA7: =IF(CY4="","",OFFSET(基準設定1!$H$13,COLUMN()-COLUMN($BR4),0)) ->  | DB7: =IF(DB4="","",OFFSET(基準設定1!$H$13,COLUMN()-COLUMN($BR4),0)) ->  | DC7: =IF(DB4="","",OFFSET(基準設定1!$H$13,COLUMN()-COLUMN($BR4),0)) ->  | DD7: =IF(DB4="","",OFFSET(基準設定1!$H$13,COLUMN()-COLUMN($BR4),0)) ->  | DE7: =IF(DE4="","",OFFSET(基準設定1!$H$13,COLUMN()-COLUMN($BR4),0)) ->  | DF7: =IF(DE4="","",OFFSET(基準設定1!$H$13,COLUMN()-COLUMN($BR4),0)) ->  | DG7: =IF(DE4="","",OFFSET(基準設定1!$H$13,COLUMN()-COLUMN($BR4),0)) ->  | DH7: =IF(DH4="","",OFFSET(基準設定1!$H$13,COLUMN()-COLUMN($BR4),0)) ->  | DI7: =IF(DH4="","",OFFSET(基準設定1!$H$13,COLUMN()-COLUMN($BR4),0)) ->  | DJ7: =IF(DH4="","",OFFSET(基準設定1!$H$13,COLUMN()-COLUMN($BR4),0)) ->  | DK7: =IF(SUMIFS($D7:$AV7,$D$1:$AV$1,DK$3,$D$6:$AV$6,DK$6)=0,"",SUMIFS($D7:$AV7,$D$1:$AV$1,DK$3,$D$6:$AV$6,DK$6)) -> 120 | DL7: =IF(SUMIFS($D7:$AV7,$D$1:$AV$1,DK$3,$D$6:$AV$6,DL$6)=0,"",SUMIFS($D7:$AV7,$D$1:$AV$1,DK$3,$D$6:$AV$6,DL$6)) -> 80 | DM7: =IF(SUMIFS($D7:$AV7,$D$1:$AV$1,DK$3,$D$6:$AV$6,DM$6)=0,"",SUMIFS($D7:$AV7,$D$1:$AV$1,DK$3,$D$6:$AV$6,DM$6)) -> 6 | DN7: =IF(SUMIFS($D7:$AV7,$D$1:$AV$1,DN$3,$D$6:$AV$6,DN$6)=0,"",SUMIFS($D7:$AV7,$D$1:$AV$1,DN$3,$D$6:$AV$6,DN$6)) -> 180 | DO7: =IF(SUMIFS($D7:$AV7,$D$1:$AV$1,DN$3,$D$6:$AV$6,DO$6)=0,"",SUMIFS($D7:$AV7,$D$1:$AV$1,DN$3,$D$6:$AV$6,DO$6)) -> 120 | DP7: =IF(SUMIFS($D7:$AV7,$D$1:$AV$1,DN$3,$D$6:$AV$6,DP$6)=0,"",SUMIFS($D7:$AV7,$D$1:$AV$1,DN$3,$D$6:$AV$6,DP$6)) -> 9 | DQ7: =IF(SUMIFS($D7:$AV7,$D$1:$AV$1,DQ$3,$D$6:$AV$6,DQ$6)=0,"",SUMIFS($D7:$AV7,$D$1:$AV$1,DQ$3,$D$6:$AV$6,DQ$6)) -> 180 | DR7: =IF(SUMIFS($D7:$AV7,$D$1:$AV$1,DQ$3,$D$6:$AV$6,DR$6)=0,"",SUMIFS($D7:$AV7,$D$1:$AV$1,DQ$3,$D$6:$AV$6,DR$6)) -> 120 | DS7: =IF(SUMIFS($D7:$AV7,$D$1:$AV$1,DQ$3,$D$6:$AV$6,DS$6)=0,"",SUMIFS($D7:$AV7,$D$1:$AV$1,DQ$3,$D$6:$AV$6,DS$6)) -> 9 | DT7: =IF(SUMIFS($DK$7:$DS$7,$DK$6:$DS$6,DT$6)=0,"",SUMIFS($DK$7:$DS$7,$DK$6:$DS$6,DT$6)) -> 480 | DU7: =IF(SUMIFS($DK$7:$DS$7,$DK$6:$DS$6,DU$6)=0,"",SUMIFS($DK$7:$DS$7,$DK$6:$DS$6,DU$6)) -> 320 | DV7: =IF(SUMIFS($DK$7:$DS$7,$DK$6:$DS$6,DV$6)=0,"",SUMIFS($DK$7:$DS$7,$DK$6:$DS$6,DV$6)) -> 24 | EI7: =OFFSET(基準設定2!$D$1,MATCH(DW$3,基準設定2!$A:$A,0)-1,0) -> 80 | EJ7: =OFFSET(基準設定2!$D$1,MATCH(DW$3,基準設定2!$A:$A,0)-1+1,0) -> 80 | EK7: =OFFSET(基準設定2!$D$1,MATCH(DW$3,基準設定2!$A:$A,0)-1+2,0) -> 80 | EL7: =OFFSET(基準設定2!$D$1,MATCH(DZ$3,基準設定2!$A:$A,0)-1,0) -> 80 | EM7: =OFFSET(基準設定2!$D$1,MATCH(DZ$3,基準設定2!$A:$A,0)-1+1,0) -> 80 | EN7: =OFFSET(基準設定2!$D$1,MATCH(DZ$3,基準設定2!$A:$A,0)-1+2,0) -> 80 | EO7: =OFFSET(基準設定2!$D$1,MATCH(EC$3,基準設定2!$A:$A,0)-1,0) -> 80 | EP7: =OFFSET(基準設定2!$D$1,MATCH(EC$3,基準設定2!$A:$A,0)-1+1,0) -> 80 | EQ7: =OFFSET(基準設定2!$D$1,MATCH(EC$3,基準設定2!$A:$A,0)-1+2,0) -> 80 | ER7: =OFFSET(基準設定2!$D$1,MATCH(EF$3,基準設定2!$A:$A,0)-1,0) -> 80 | ES7: =OFFSET(基準設定2!$D$1,MATCH(EF$3,基準設定2!$A:$A,0)-1+1,0) -> 80 | ET7: =OFFSET(基準設定2!$D$1,MATCH(EF$3,基準設定2!$A:$A,0)-1+2,0) -> 80
A8: 組 | B8: 番 | C8: 名前 | BQ8: ＢとＣ の境 | BR8: =IF(BR4="","",OFFSET(基準設定1!$I$13,COLUMN()-COLUMN($BR4),0)) -> 30 | BS8: =IF(BR4="","",OFFSET(基準設定1!$I$13,COLUMN()-COLUMN($BR4),0)) -> 20 | BT8: =IF(BR4="","",OFFSET(基準設定1!$I$13,COLUMN()-COLUMN($BR4),0)) -> 2 | BU8: =IF(BU4="","",OFFSET(基準設定1!$I$13,COLUMN()-COLUMN($BR4),0)) -> 30 | BV8: =IF(BU4="","",OFFSET(基準設定1!$I$13,COLUMN()-COLUMN($BR4),0)) -> 20 | BW8: =IF(BU4="","",OFFSET(基準設定1!$I$13,COLUMN()-COLUMN($BR4),0)) -> 2 | BX8: =IF(BX4="","",OFFSET(基準設定1!$I$13,COLUMN()-COLUMN($BR4),0)) -> 30 | BY8: =IF(BX4="","",OFFSET(基準設定1!$I$13,COLUMN()-COLUMN($BR4),0)) -> 20 | BZ8: =IF(BX4="","",OFFSET(基準設定1!$I$13,COLUMN()-COLUMN($BR4),0)) -> 2 | CA8: =IF(CA4="","",OFFSET(基準設定1!$I$13,COLUMN()-COLUMN($BR4),0)) -> 30 | CB8: =IF(CA4="","",OFFSET(基準設定1!$I$13,COLUMN()-COLUMN($BR4),0)) -> 20 | CC8: =IF(CA4="","",OFFSET(基準設定1!$I$13,COLUMN()-COLUMN($BR4),0)) -> 2 | CD8: =IF(CD4="","",OFFSET(基準設定1!$I$13,COLUMN()-COLUMN($BR4),0)) -> 30 | CE8: =IF(CD4="","",OFFSET(基準設定1!$I$13,COLUMN()-COLUMN($BR4),0)) -> 20 | CF8: =IF(CD4="","",OFFSET(基準設定1!$I$13,COLUMN()-COLUMN($BR4),0)) -> 2 | CG8: =IF(CG4="","",OFFSET(基準設定1!$I$13,COLUMN()-COLUMN($BR4),0)) -> 30 | CH8: =IF(CG4="","",OFFSET(基準設定1!$I$13,COLUMN()-COLUMN($BR4),0)) -> 20 | CI8: =IF(CG4="","",OFFSET(基準設定1!$I$13,COLUMN()-COLUMN($BR4),0)) -> 2 | CJ8: =IF(CJ4="","",OFFSET(基準設定1!$I$13,COLUMN()-COLUMN($BR4),0)) -> 30 | CK8: =IF(CJ4="","",OFFSET(基準設定1!$I$13,COLUMN()-COLUMN($BR4),0)) -> 20 | CL8: =IF(CJ4="","",OFFSET(基準設定1!$I$13,COLUMN()-COLUMN($BR4),0)) -> 2 | CM8: =IF(CM4="","",OFFSET(基準設定1!$I$13,COLUMN()-COLUMN($BR4),0)) -> 30 | CN8: =IF(CM4="","",OFFSET(基準設定1!$I$13,COLUMN()-COLUMN($BR4),0)) -> 20 | CO8: =IF(CM4="","",OFFSET(基準設定1!$I$13,COLUMN()-COLUMN($BR4),0)) -> 2 | CP8: =IF(CP4="","",OFFSET(基準設定1!$I$13,COLUMN()-COLUMN($BR4),0)) ->  | CQ8: =IF(CP4="","",OFFSET(基準設定1!$I$13,COLUMN()-COLUMN($BR4),0)) ->  | CR8: =IF(CP4="","",OFFSET(基準設定1!$I$13,COLUMN()-COLUMN($BR4),0)) ->  | CS8: =IF(CS4="","",OFFSET(基準設定1!$I$13,COLUMN()-COLUMN($BR4),0)) ->  | CT8: =IF(CS4="","",OFFSET(基準設定1!$I$13,COLUMN()-COLUMN($BR4),0)) ->  | CU8: =IF(CS4="","",OFFSET(基準設定1!$I$13,COLUMN()-COLUMN($BR4),0)) ->  | CV8: =IF(CV4="","",OFFSET(基準設定1!$I$13,COLUMN()-COLUMN($BR4),0)) ->  | CW8: =IF(CV4="","",OFFSET(基準設定1!$I$13,COLUMN()-COLUMN($BR4),0)) ->  | CX8: =IF(CV4="","",OFFSET(基準設定1!$I$13,COLUMN()-COLUMN($BR4),0)) ->  | CY8: =IF(CY4="","",OFFSET(基準設定1!$I$13,COLUMN()-COLUMN($BR4),0)) ->  | CZ8: =IF(CY4="","",OFFSET(基準設定1!$I$13,COLUMN()-COLUMN($BR4),0)) ->  | DA8: =IF(CY4="","",OFFSET(基準設定1!$I$13,COLUMN()-COLUMN($BR4),0)) ->  | DB8: =IF(DB4="","",OFFSET(基準設定1!$I$13,COLUMN()-COLUMN($BR4),0)) ->  | DC8: =IF(DB4="","",OFFSET(基準設定1!$I$13,COLUMN()-COLUMN($BR4),0)) ->  | DD8: =IF(DB4="","",OFFSET(基準設定1!$I$13,COLUMN()-COLUMN($BR4),0)) ->  | DE8: =IF(DE4="","",OFFSET(基準設定1!$I$13,COLUMN()-COLUMN($BR4),0)) ->  | DF8: =IF(DE4="","",OFFSET(基準設定1!$I$13,COLUMN()-COLUMN($BR4),0)) ->  | DG8: =IF(DE4="","",OFFSET(基準設定1!$I$13,COLUMN()-COLUMN($BR4),0)) ->  | DH8: =IF(DH4="","",OFFSET(基準設定1!$I$13,COLUMN()-COLUMN($BR4),0)) ->  | DI8: =IF(DH4="","",OFFSET(基準設定1!$I$13,COLUMN()-COLUMN($BR4),0)) ->  | DJ8: =IF(DH4="","",OFFSET(基準設定1!$I$13,COLUMN()-COLUMN($BR4),0)) ->  | EI8: =OFFSET(基準設定2!$E$1,MATCH(DW$3,基準設定2!$A:$A,0)-1,0) -> 50 | EJ8: =OFFSET(基準設定2!$E$1,MATCH(DW$3,基準設定2!$A:$A,0)-1+1,0) -> 50 | EK8: =OFFSET(基準設定2!$E$1,MATCH(DW$3,基準設定2!$A:$A,0)-1+2,0) -> 50 | EL8: =OFFSET(基準設定2!$E$1,MATCH(DZ$3,基準設定2!$A:$A,0)-1,0) -> 50 | EM8: =OFFSET(基準設定2!$E$1,MATCH(DZ$3,基準設定2!$A:$A,0)-1+1,0) -> 50 | EN8: =OFFSET(基準設定2!$E$1,MATCH(DZ$3,基準設定2!$A:$A,0)-1+2,0) -> 50 | EO8: =OFFSET(基準設定2!$E$1,MATCH(EC$3,基準設定2!$A:$A,0)-1,0) -> 50 | EP8: =OFFSET(基準設定2!$E$1,MATCH(EC$3,基準設定2!$A:$A,0)-1+1,0) -> 50 | EQ8: =OFFSET(基準設定2!$E$1,MATCH(EC$3,基準設定2!$A:$A,0)-1+2,0) -> 50 | ER8: =OFFSET(基準設定2!$E$1,MATCH(EF$3,基準設定2!$A:$A,0)-1,0) -> 50 | ES8: =OFFSET(基準設定2!$E$1,MATCH(EF$3,基準設定2!$A:$A,0)-1+1,0) -> 50 | ET8: =OFFSET(基準設定2!$E$1,MATCH(EF$3,基準設定2!$A:$A,0)-1+2,0) -> 50
A9: 1 | B9: 1 | C9: =VLOOKUP(B9,INDIRECT("_"&A9&"組"),2,0)&"" ->  | AW9: =IF($C9="","",IF(COUNTIF(D9:F9,"<>")=0,"",SUM(D9:F9))) ->  | AX9: =IF($C9="","",IF(COUNTIF(G9:I9,"<>")=0,"",SUM(G9:I9))) ->  | AY9: =IF($C9="","",IF(COUNTIF(J9:L9,"<>")=0,"",SUM(J9:L9))) ->  | AZ9: =IF($C9="","",IF(COUNTIF(M9:O9,"<>")=0,"",SUM(M9:O9))) ->  | BA9: =IF($C9="","",IF(COUNTIF(P9:R9,"<>")=0,"",SUM(P9:R9))) ->  | BB9: =IF($C9="","",IF(COUNTIF(S9:U9,"<>")=0,"",SUM(S9:U9))) ->  | BC9: =IF($C9="","",IF(COUNTIF(V9:X9,"<>")=0,"",SUM(V9:X9))) ->  | BD9: =IF($C9="","",IF(COUNTIF(Y9:AA9,"<>")=0,"",SUM(Y9:AA9))) ->  | BL9: =IF($C9="","", IF(COUNTIF($AW$3:$BK$3,BL$3)=COUNTIFS($AW$3:$BK$3,BL$3,$AW9:$BK9,""),"",SUMIFS($AW9:$BK9,$AW$3:$BK$3,BL$3))) ->  | BM9: =IF($C9="","", IF(COUNTIF($AW$3:$BK$3,BM$3)=COUNTIFS($AW$3:$BK$3,BM$3,$AW9:$BK9,""),"",SUMIFS($AW9:$BK9,$AW$3:$BK$3,BM$3))) ->  | BN9: =IF($C9="","", IF(COUNTIF($AW$3:$BK$3,BN$3)=COUNTIFS($AW$3:$BK$3,BN$3,$AW9:$BK9,""),"",SUMIFS($AW9:$BK9,$AW$3:$BK$3,BN$3))) ->  | BO9: =IF($C9="","", IF(COUNTIF($AW$3:$BK$3,BO$2)=COUNTIFS($AW$3:$BK$3,BO$2,$AW9:$BK9,""),"",SUMIFS($AW9:$BK9,$AW$3:$BK$3,BO$2))) ->  | BP9: =IF($C9="","", IF(COUNTIF(OFFSET($AW$3,0,$BP$1-1,1,$BP$2-$BP$1+1),$BP$3)= COUNTIFS(OFFSET($AW$3,0,$BP$1-1,1,$BP$2-$BP$1+1),$BP$3,OFFSET($AW9,0,$BP$1-1,1,$BP$2-$BP$1+1),""),"", SUMIF(OFFSET($AW$3,0,$BP$1-1,1,$BP$2-$BP$1+1),$BP$3,OFFSET($AW9,0,$BP$1-1,1,$BP$2-$BP$1+1)))) ->  | BR9: =IF(OR(D9="",D$7="",D$7=0),"",IF(D9>=BR$7,"A",IF(D9<BR$8,"C","B"))) ->  | BX9: =IF(OR(J9="",J$7="",J$7=0),"",IF(J9>=BX$7,"A",IF(J9<BX$8,"C","B"))) ->  | DK9: =IF(OR($C9="",DK$7=""),"",IF(COUNTIFS($D9:$AV9,"<>",$D$1:$AV$1,DK$1,$D$6:$AV$6,DK$6)=0,"",SUMIFS($D9:$AV9,$D$1:$AV$1,DK$1,$D$6:$AV$6,DK$6))) ->  | DL9: =IF(OR($C9="",DL$7=""),"",IF(COUNTIFS($D9:$AV9,"<>",$D$1:$AV$1,DL$1,$D$6:$AV$6,DL$6)=0,"",SUMIFS($D9:$AV9,$D$1:$AV$1,DL$1,$D$6:$AV$6,DL$6))) ->  | DN9: =IF(OR($C9="",DN$7=""),"",IF(COUNTIFS($D9:$AV9,"<>",$D$1:$AV$1,DN$1,$D$6:$AV$6,DN$6)=0,"",SUMIFS($D9:$AV9,$D$1:$AV$1,DN$1,$D$6:$AV$6,DN$6))) ->  | DQ9: =IF(OR($C9="",DQ$7=""),"",IF(COUNTIFS($D9:$AV9,"<>",$D$1:$AV$1,DQ$1,$D$6:$AV$6,DQ$6)=0,"",SUMIFS($D9:$AV9,$D$1:$AV$1,DQ$1,$D$6:$AV$6,DQ$6))) ->  | DT9: =IF(OR($C9="",DT$7=""),"",IF(COUNTIFS($D9:$AV9,"<>",$D$6:$AV$6,DT$6)=0,"",SUMIFS($D9:$AV9,$D$6:$AV$6,DT$6))) ->  | DU9: =IF(OR($C9="",DU$7=""),"",IF(COUNTIFS($D9:$AV9,"<>",$D$6:$AV$6,DU$6)=0,"",SUMIFS($D9:$AV9,$D$6:$AV$6,DU$6))) ->  | DW9: =IF(OR($C9="",DK$7="",DK9=""),"",DK9/DK$7) ->  | EI9: =IF(OR($C9="",DW9=""),"",IF(DW9*100>=EI$7,"A",IF(DW9*100<EI$8,"C","B"))) -> 
A10: 1 | B10: 2 | C10: =VLOOKUP(B10,INDIRECT("_"&A10&"組"),2,0)&"" ->  | AW10: =IF($C10="","",IF(COUNTIF(D10:F10,"<>")=0,"",SUM(D10:F10))) ->  | BO10: =IF($C10="","", IF(COUNTIF($AW$3:$BK$3,BO$2)=COUNTIFS($AW$3:$BK$3,BO$2,$AW10:$BK10,""),"",SUMIFS($AW10:$BK10,$AW$3:$BK$3,BO$2))) ->  | BP10: =IF($C10="","", IF(COUNTIF(OFFSET($AW$3,0,$BP$1-1,1,$BP$2-$BP$1+1),$BP$3)= COUNTIFS(OFFSET($AW$3,0,$BP$1-1,1,$BP$2-$BP$1+1),$BP$3,OFFSET($AW10,0,$BP$1-1,1,$BP$2-$BP$1+1),""),"", SUMIF(OFFSET($AW$3,0,$BP$1-1,1,$BP$2-$BP$1+1),$BP$3,OFFSET($AW10,0,$BP$1-1,1,$BP$2-$BP$1+1)))) ->  | BR10: =IF(OR(D10="",D$7="",D$7=0),"",IF(D10>=BR$7,"A",IF(D10<BR$8,"C","B"))) ->  | BS10: =IF(OR(E10="",E$7="",E$7=0),"",IF(E10>=BS$7,"A",IF(E10<BS$8,"C","B"))) ->  | BT10: =IF(OR(F10="",F$7="",F$7=0),"",IF(F10>=BT$7,"A",IF(F10<BT$8,"C","B"))) ->  | BU10: =IF(OR(G10="",G$7="",G$7=0),"",IF(G10>=BU$7,"A",IF(G10<BU$8,"C","B"))) ->  | BV10: =IF(OR(H10="",H$7="",H$7=0),"",IF(H10>=BV$7,"A",IF(H10<BV$8,"C","B"))) ->  | BW10: =IF(OR(I10="",I$7="",I$7=0),"",IF(I10>=BW$7,"A",IF(I10<BW$8,"C","B"))) ->  | BX10: =IF(OR(J10="",J$7="",J$7=0),"",IF(J10>=BX$7,"A",IF(J10<BX$8,"C","B"))) ->  | BY10: =IF(OR(K10="",K$7="",K$7=0),"",IF(K10>=BY$7,"A",IF(K10<BY$8,"C","B"))) ->  | BZ10: =IF(OR(L10="",L$7="",L$7=0),"",IF(L10>=BZ$7,"A",IF(L10<BZ$8,"C","B"))) ->  | CA10: =IF(OR(M10="",M$7="",M$7=0),"",IF(M10>=CA$7,"A",IF(M10<CA$8,"C","B"))) ->  | CB10: =IF(OR(N10="",N$7="",N$7=0),"",IF(N10>=CB$7,"A",IF(N10<CB$8,"C","B"))) ->  | CC10: =IF(OR(O10="",O$7="",O$7=0),"",IF(O10>=CC$7,"A",IF(O10<CC$8,"C","B"))) ->  | CD10: =IF(OR(P10="",P$7="",P$7=0),"",IF(P10>=CD$7,"A",IF(P10<CD$8,"C","B"))) ->  | CE10: =IF(OR(Q10="",Q$7="",Q$7=0),"",IF(Q10>=CE$7,"A",IF(Q10<CE$8,"C","B"))) ->  | CF10: =IF(OR(R10="",R$7="",R$7=0),"",IF(R10>=CF$7,"A",IF(R10<CF$8,"C","B"))) ->  | CG10: =IF(OR(S10="",S$7="",S$7=0),"",IF(S10>=CG$7,"A",IF(S10<CG$8,"C","B"))) ->  | CH10: =IF(OR(T10="",T$7="",T$7=0),"",IF(T10>=CH$7,"A",IF(T10<CH$8,"C","B"))) ->  | CI10: =IF(OR(U10="",U$7="",U$7=0),"",IF(U10>=CI$7,"A",IF(U10<CI$8,"C","B"))) ->  | CJ10: =IF(OR(V10="",V$7="",V$7=0),"",IF(V10>=CJ$7,"A",IF(V10<CJ$8,"C","B"))) ->  | CK10: =IF(OR(W10="",W$7="",W$7=0),"",IF(W10>=CK$7,"A",IF(W10<CK$8,"C","B"))) ->  | CL10: =IF(OR(X10="",X$7="",X$7=0),"",IF(X10>=CL$7,"A",IF(X10<CL$8,"C","B"))) ->  | CM10: =IF(OR(Y10="",Y$7="",Y$7=0),"",IF(Y10>=CM$7,"A",IF(Y10<CM$8,"C","B"))) ->  | CN10: =IF(OR(Z10="",Z$7="",Z$7=0),"",IF(Z10>=CN$7,"A",IF(Z10<CN$8,"C","B"))) ->  | CO10: =IF(OR(AA10="",AA$7="",AA$7=0),"",IF(AA10>=CO$7,"A",IF(AA10<CO$8,"C","B"))) ->  | DK10: =IF(OR($C10="",DK$7=""),"",IF(COUNTIFS($D10:$AV10,"<>",$D$1:$AV$1,DK$1,$D$6:$AV$6,DK$6)=0,"",SUMIFS($D10:$AV10,$D$1:$AV$1,DK$1,$D$6:$AV$6,DK$6))) ->  | DT10: =IF(OR($C10="",DT$7=""),"",IF(COUNTIFS($D10:$AV10,"<>",$D$6:$AV$6,DT$6)=0,"",SUMIFS($D10:$AV10,$D$6:$AV$6,DT$6))) ->  | DW10: =IF(OR($C10="",DK$7="",DK10=""),"",DK10/DK$7) ->  | DX10: =IF(OR($C10="",DL$7="",DL10=""),"",DL10/DL$7) ->  | DY10: =IF(OR($C10="",DM$7="",DM10=""),"",DM10/DM$7) ->  | DZ10: =IF(OR($C10="",DN$7="",DN10=""),"",DN10/DN$7) ->  | EA10: =IF(OR($C10="",DO$7="",DO10=""),"",DO10/DO$7) ->  | EB10: =IF(OR($C10="",DP$7="",DP10=""),"",DP10/DP$7) ->  | EC10: =IF(OR($C10="",DQ$7="",DQ10=""),"",DQ10/DQ$7) ->  | ED10: =IF(OR($C10="",DR$7="",DR10=""),"",DR10/DR$7) ->  | EE10: =IF(OR($C10="",DS$7="",DS10=""),"",DS10/DS$7) ->  | EF10: =IF(OR($C10="",DT$7="",DT10=""),"",DT10/DT$7) ->  | EG10: =IF(OR($C10="",DU$7="",DU10=""),"",DU10/DU$7) ->  | EH10: =IF(OR($C10="",DV$7="",DV10=""),"",DV10/DV$7) ->  | EI10: =IF(OR($C10="",DW10=""),"",IF(DW10*100>=EI$7,"A",IF(DW10*100<EI$8,"C","B"))) ->  | EJ10: =IF(OR($C10="",DX10=""),"",IF(DX10*100>=EJ$7,"A",IF(DX10*100<EJ$8,"C","B"))) ->  | EK10: =IF(OR($C10="",DY10=""),"",IF(DY10*100>=EK$7,"A",IF(DY10*100<EK$8,"C","B"))) ->  | EL10: =IF(OR($C10="",DZ10=""),"",IF(DZ10*100>=EL$7,"A",IF(DZ10*100<EL$8,"C","B"))) ->  | EM10: =IF(OR($C10="",EA10=""),"",IF(EA10*100>=EM$7,"A",IF(EA10*100<EM$8,"C","B"))) ->  | EN10: =IF(OR($C10="",EB10=""),"",IF(EB10*100>=EN$7,"A",IF(EB10*100<EN$8,"C","B"))) ->  | EO10: =IF(OR($C10="",EC10=""),"",IF(EC10*100>=EO$7,"A",IF(EC10*100<EO$8,"C","B"))) ->  | EP10: =IF(OR($C10="",ED10=""),"",IF(ED10*100>=EP$7,"A",IF(ED10*100<EP$8,"C","B"))) ->  | EQ10: =IF(OR($C10="",EE10=""),"",IF(EE10*100>=EQ$7,"A",IF(EE10*100<EQ$8,"C","B"))) ->  | ER10: =IF(OR($C10="",EF10=""),"",IF(EF10*100>=ER$7,"A",IF(EF10*100<ER$8,"C","B"))) ->  | ES10: =IF(OR($C10="",EG10=""),"",IF(EG10*100>=ES$7,"A",IF(EG10*100<ES$8,"C","B"))) ->  | ET10: =IF(OR($C10="",EH10=""),"",IF(EH10*100>=ET$7,"A",IF(EH10*100<ET$8,"C","B"))) -> 
A11: 1 | B11: 3
A12: 1 | B12: 4
A13: 1 | B13: 5
A14: 1 | B14: 6
A15: 1 | B15: 7
A16: 1 | B16: 8
A17: 1 | B17: 9
A18: 1 | B18: 10
A19: 1 | B19: 11
A20: 1 | B20: 12
A21: 1 | B21: 13
A22: 1 | B22: 14
A23: 1 | B23: 15
A24: 1 | B24: 16
A25: 1 | B25: 17 | BL25: =IF($C25="","", IF(COUNTIF($AW$3:$BK$3,BL$3)=COUNTIFS($AW$3:$BK$3,BL$3,$AW25:$BK25,""),"",SUMIFS($AW25:$BK25,$AW$3:$BK$3,BL$3))) -> 
A26: 1 | B26: 18
A27: 1 | B27: 19
A28: 1 | B28: 20
A29: 1 | B29: 21
A30: 1 | B30: 22
A31: 1 | B31: 23
A32: 1 | B32: 24
A33: 1 | B33: 25
A34: 1 | B34: 26
A35: 1 | B35: 27
A36: 1 | B36: 28
A37: 1 | B37: 29
A38: 1 | B38: 30
A39: 1 | B39: 31
A40: 1 | B40: 32
A41: 1 | B41: 33
A42: 1 | B42: 34
A43: 1 | B43: 35
A44: 1 | B44: 36
A45: 1 | B45: 37
A46: 1 | B46: 38
A47: 1 | B47: 39
A48: 1 | B48: 40
A49: 1 | B49: 41
A50: 1 | B50: 42
A51: 1 | B51: 43 | DQ51: =IF(OR($C51="",DQ$7=""),"",IF(COUNTIFS($D51:$AV51,"<>",$D$1:$AV$1,DQ$1,$D$6:$AV$6,DQ$6)=0,"",SUMIFS($D51:$AV51,$D$1:$AV$1,DQ$1,$D$6:$AV$6,DQ$6))) -> 
A52: 1 | B52: 44 | DK52: =IF(OR($C52="",DK$7=""),"",IF(COUNTIFS($D52:$AV52,"<>",$D$1:$AV$1,DK$1,$D$6:$AV$6,DK$6)=0,"",SUMIFS($D52:$AV52,$D$1:$AV$1,DK$1,$D$6:$AV$6,DK$6))) -> 
A53: 1 | B53: 45
A54: 2 | B54: 1
A55: 2 | B55: 2
A56: 2 | B56: 3
A57: 2 | B57: 4
A58: 2 | B58: 5
A59: 2 | B59: 6
A60: 2 | B60: 7
A61: 2 | B61: 8
A62: 2 | B62: 9
A63: 2 | B63: 10
A64: 2 | B64: 11
A65: 2 | B65: 12
A66: 2 | B66: 13
A67: 2 | B67: 14
A68: 2 | B68: 15
A69: 2 | B69: 16
A70: 2 | B70: 17
A71: 2 | B71: 18
A72: 2 | B72: 19
A73: 2 | B73: 20 | AX73: =IF($C73="","",IF(COUNTIF(G73:I73,"<>")=0,"",SUM(G73:I73))) ->  | AY73: =IF($C73="","",IF(COUNTIF(J73:L73,"<>")=0,"",SUM(J73:L73))) ->  | AZ73: =IF($C73="","",IF(COUNTIF(M73:O73,"<>")=0,"",SUM(M73:O73))) ->  | BA73: =IF($C73="","",IF(COUNTIF(P73:R73,"<>")=0,"",SUM(P73:R73))) ->  | BB73: =IF($C73="","",IF(COUNTIF(S73:U73,"<>")=0,"",SUM(S73:U73))) ->  | BC73: =IF($C73="","",IF(COUNTIF(V73:X73,"<>")=0,"",SUM(V73:X73))) ->  | BD73: =IF($C73="","",IF(COUNTIF(Y73:AA73,"<>")=0,"",SUM(Y73:AA73))) -> 
A74: 2 | B74: 21 | C74: =VLOOKUP(B74,INDIRECT("_"&A74&"組"),2,0)&"" ->  | AW74: =IF($C74="","",IF(COUNTIF(D74:F74,"<>")=0,"",SUM(D74:F74))) ->  | BO74: =IF($C74="","", IF(COUNTIF($AW$3:$BK$3,BO$2)=COUNTIFS($AW$3:$BK$3,BO$2,$AW74:$BK74,""),"",SUMIFS($AW74:$BK74,$AW$3:$BK$3,BO$2))) ->  | BP74: =IF($C74="","", IF(COUNTIF(OFFSET($AW$3,0,$BP$1-1,1,$BP$2-$BP$1+1),$BP$3)= COUNTIFS(OFFSET($AW$3,0,$BP$1-1,1,$BP$2-$BP$1+1),$BP$3,OFFSET($AW74,0,$BP$1-1,1,$BP$2-$BP$1+1),""),"", SUMIF(OFFSET($AW$3,0,$BP$1-1,1,$BP$2-$BP$1+1),$BP$3,OFFSET($AW74,0,$BP$1-1,1,$BP$2-$BP$1+1)))) ->  | BR74: =IF(OR(D74="",D$7="",D$7=0),"",IF(D74>=BR$7,"A",IF(D74<BR$8,"C","B"))) ->  | BS74: =IF(OR(E74="",E$7="",E$7=0),"",IF(E74>=BS$7,"A",IF(E74<BS$8,"C","B"))) ->  | BT74: =IF(OR(F74="",F$7="",F$7=0),"",IF(F74>=BT$7,"A",IF(F74<BT$8,"C","B"))) ->  | BU74: =IF(OR(G74="",G$7="",G$7=0),"",IF(G74>=BU$7,"A",IF(G74<BU$8,"C","B"))) ->  | BV74: =IF(OR(H74="",H$7="",H$7=0),"",IF(H74>=BV$7,"A",IF(H74<BV$8,"C","B"))) ->  | BW74: =IF(OR(I74="",I$7="",I$7=0),"",IF(I74>=BW$7,"A",IF(I74<BW$8,"C","B"))) ->  | BX74: =IF(OR(J74="",J$7="",J$7=0),"",IF(J74>=BX$7,"A",IF(J74<BX$8,"C","B"))) ->  | BY74: =IF(OR(K74="",K$7="",K$7=0),"",IF(K74>=BY$7,"A",IF(K74<BY$8,"C","B"))) ->  | BZ74: =IF(OR(L74="",L$7="",L$7=0),"",IF(L74>=BZ$7,"A",IF(L74<BZ$8,"C","B"))) ->  | CA74: =IF(OR(M74="",M$7="",M$7=0),"",IF(M74>=CA$7,"A",IF(M74<CA$8,"C","B"))) ->  | CB74: =IF(OR(N74="",N$7="",N$7=0),"",IF(N74>=CB$7,"A",IF(N74<CB$8,"C","B"))) ->  | CC74: =IF(OR(O74="",O$7="",O$7=0),"",IF(O74>=CC$7,"A",IF(O74<CC$8,"C","B"))) ->  | CD74: =IF(OR(P74="",P$7="",P$7=0),"",IF(P74>=CD$7,"A",IF(P74<CD$8,"C","B"))) ->  | CE74: =IF(OR(Q74="",Q$7="",Q$7=0),"",IF(Q74>=CE$7,"A",IF(Q74<CE$8,"C","B"))) ->  | CF74: =IF(OR(R74="",R$7="",R$7=0),"",IF(R74>=CF$7,"A",IF(R74<CF$8,"C","B"))) ->  | CG74: =IF(OR(S74="",S$7="",S$7=0),"",IF(S74>=CG$7,"A",IF(S74<CG$8,"C","B"))) ->  | CH74: =IF(OR(T74="",T$7="",T$7=0),"",IF(T74>=CH$7,"A",IF(T74<CH$8,"C","B"))) ->  | CI74: =IF(OR(U74="",U$7="",U$7=0),"",IF(U74>=CI$7,"A",IF(U74<CI$8,"C","B"))) ->  | CJ74: =IF(OR(V74="",V$7="",V$7=0),"",IF(V74>=CJ$7,"A",IF(V74<CJ$8,"C","B"))) ->  | CK74: =IF(OR(W74="",W$7="",W$7=0),"",IF(W74>=CK$7,"A",IF(W74<CK$8,"C","B"))) ->  | CL74: =IF(OR(X74="",X$7="",X$7=0),"",IF(X74>=CL$7,"A",IF(X74<CL$8,"C","B"))) ->  | CM74: =IF(OR(Y74="",Y$7="",Y$7=0),"",IF(Y74>=CM$7,"A",IF(Y74<CM$8,"C","B"))) ->  | CN74: =IF(OR(Z74="",Z$7="",Z$7=0),"",IF(Z74>=CN$7,"A",IF(Z74<CN$8,"C","B"))) ->  | CO74: =IF(OR(AA74="",AA$7="",AA$7=0),"",IF(AA74>=CO$7,"A",IF(AA74<CO$8,"C","B"))) ->  | DT74: =IF(OR($C74="",DT$7=""),"",IF(COUNTIFS($D74:$AV74,"<>",$D$6:$AV$6,DT$6)=0,"",SUMIFS($D74:$AV74,$D$6:$AV$6,DT$6))) ->  | DW74: =IF(OR($C74="",DK$7="",DK74=""),"",DK74/DK$7) ->  | DX74: =IF(OR($C74="",DL$7="",DL74=""),"",DL74/DL$7) ->  | DY74: =IF(OR($C74="",DM$7="",DM74=""),"",DM74/DM$7) ->  | DZ74: =IF(OR($C74="",DN$7="",DN74=""),"",DN74/DN$7) ->  | EA74: =IF(OR($C74="",DO$7="",DO74=""),"",DO74/DO$7) ->  | EB74: =IF(OR($C74="",DP$7="",DP74=""),"",DP74/DP$7) ->  | EC74: =IF(OR($C74="",DQ$7="",DQ74=""),"",DQ74/DQ$7) ->  | ED74: =IF(OR($C74="",DR$7="",DR74=""),"",DR74/DR$7) ->  | EE74: =IF(OR($C74="",DS$7="",DS74=""),"",DS74/DS$7) ->  | EF74: =IF(OR($C74="",DT$7="",DT74=""),"",DT74/DT$7) ->  | EG74: =IF(OR($C74="",DU$7="",DU74=""),"",DU74/DU$7) ->  | EH74: =IF(OR($C74="",DV$7="",DV74=""),"",DV74/DV$7) ->  | EI74: =IF(OR($C74="",DW74=""),"",IF(DW74*100>=EI$7,"A",IF(DW74*100<EI$8,"C","B"))) ->  | EJ74: =IF(OR($C74="",DX74=""),"",IF(DX74*100>=EJ$7,"A",IF(DX74*100<EJ$8,"C","B"))) ->  | EK74: =IF(OR($C74="",DY74=""),"",IF(DY74*100>=EK$7,"A",IF(DY74*100<EK$8,"C","B"))) ->  | EL74: =IF(OR($C74="",DZ74=""),"",IF(DZ74*100>=EL$7,"A",IF(DZ74*100<EL$8,"C","B"))) ->  | EM74: =IF(OR($C74="",EA74=""),"",IF(EA74*100>=EM$7,"A",IF(EA74*100<EM$8,"C","B"))) ->  | EN74: =IF(OR($C74="",EB74=""),"",IF(EB74*100>=EN$7,"A",IF(EB74*100<EN$8,"C","B"))) ->  | EO74: =IF(OR($C74="",EC74=""),"",IF(EC74*100>=EO$7,"A",IF(EC74*100<EO$8,"C","B"))) ->  | EP74: =IF(OR($C74="",ED74=""),"",IF(ED74*100>=EP$7,"A",IF(ED74*100<EP$8,"C","B"))) ->  | EQ74: =IF(OR($C74="",EE74=""),"",IF(EE74*100>=EQ$7,"A",IF(EE74*100<EQ$8,"C","B"))) ->  | ER74: =IF(OR($C74="",EF74=""),"",IF(EF74*100>=ER$7,"A",IF(EF74*100<ER$8,"C","B"))) ->  | ES74: =IF(OR($C74="",EG74=""),"",IF(EG74*100>=ES$7,"A",IF(EG74*100<ES$8,"C","B"))) ->  | ET74: =IF(OR($C74="",EH74=""),"",IF(EH74*100>=ET$7,"A",IF(EH74*100<ET$8,"C","B"))) -> 
A75: 2 | B75: 22
A76: 2 | B76: 23
A77: 2 | B77: 24
A78: 2 | B78: 25
A79: 2 | B79: 26
A80: 2 | B80: 27
A81: 2 | B81: 28
A82: 2 | B82: 29
A83: 2 | B83: 30 | DP83: =IF(OR($C83="",DP$7=""),"",IF(COUNTIFS($D83:$AV83,"<>",$D$1:$AV$1,DP$1,$D$6:$AV$6,DP$6)=0,"",SUMIFS($D83:$AV83,$D$1:$AV$1,DP$1,$D$6:$AV$6,DP$6))) -> 
A84: 2 | B84: 31
A85: 2 | B85: 32
A86: 2 | B86: 33
A87: 2 | B87: 34
A88: 2 | B88: 35
A89: 2 | B89: 36 | BL89: =IF($C89="","", IF(COUNTIF($AW$3:$BK$3,BL$3)=COUNTIFS($AW$3:$BK$3,BL$3,$AW89:$BK89,""),"",SUMIFS($AW89:$BK89,$AW$3:$BK$3,BL$3))) -> 
A90: 2 | B90: 37
A91: 2 | B91: 38
A92: 2 | B92: 39
A93: 2 | B93: 40
A94: 2 | B94: 41
A95: 2 | B95: 42
A96: 2 | B96: 43
A97: 2 | B97: 44
A98: 2 | B98: 45
A99: 3 | B99: 1
A100: 3 | B100: 2
A101: 3 | B101: 3
A102: 3 | B102: 4
A103: 3 | B103: 5
A104: 3 | B104: 6
A105: 3 | B105: 7
A106: 3 | B106: 8
A107: 3 | B107: 9
A108: 3 | B108: 10
A109: 3 | B109: 11
A110: 3 | B110: 12
A111: 3 | B111: 13
A112: 3 | B112: 14
A113: 3 | B113: 15
A114: 3 | B114: 16
A115: 3 | B115: 17 | DO115: =IF(OR($C115="",DO$7=""),"",IF(COUNTIFS($D115:$AV115,"<>",$D$1:$AV$1,DO$1,$D$6:$AV$6,DO$6)=0,"",SUMIFS($D115:$AV115,$D$1:$AV$1,DO$1,$D$6:$AV$6,DO$6))) -> 
A116: 3 | B116: 18 | DK116: =IF(OR($C116="",DK$7=""),"",IF(COUNTIFS($D116:$AV116,"<>",$D$1:$AV$1,DK$1,$D$6:$AV$6,DK$6)=0,"",SUMIFS($D116:$AV116,$D$1:$AV$1,DK$1,$D$6:$AV$6,DK$6))) -> 
A117: 3 | B117: 19
A118: 3 | B118: 20
A119: 3 | B119: 21
A120: 3 | B120: 22
A121: 3 | B121: 23
A122: 3 | B122: 24
A123: 3 | B123: 25
A124: 3 | B124: 26
A125: 3 | B125: 27
A126: 3 | B126: 28
A127: 3 | B127: 29
A128: 3 | B128: 30
A129: 3 | B129: 31
A130: 3 | B130: 32
A131: 3 | B131: 33
A132: 3 | B132: 34
A133: 3 | B133: 35
A134: 3 | B134: 36
A135: 3 | B135: 37
A136: 3 | B136: 38
A137: 3 | B137: 39 | AX137: =IF($C137="","",IF(COUNTIF(G137:I137,"<>")=0,"",SUM(G137:I137))) ->  | AY137: =IF($C137="","",IF(COUNTIF(J137:L137,"<>")=0,"",SUM(J137:L137))) ->  | AZ137: =IF($C137="","",IF(COUNTIF(M137:O137,"<>")=0,"",SUM(M137:O137))) ->  | BA137: =IF($C137="","",IF(COUNTIF(P137:R137,"<>")=0,"",SUM(P137:R137))) ->  | BB137: =IF($C137="","",IF(COUNTIF(S137:U137,"<>")=0,"",SUM(S137:U137))) ->  | BC137: =IF($C137="","",IF(COUNTIF(V137:X137,"<>")=0,"",SUM(V137:X137))) ->  | BD137: =IF($C137="","",IF(COUNTIF(Y137:AA137,"<>")=0,"",SUM(Y137:AA137))) -> 
A138: 3 | B138: 40 | C138: =VLOOKUP(B138,INDIRECT("_"&A138&"組"),2,0)&"" ->  | AW138: =IF($C138="","",IF(COUNTIF(D138:F138,"<>")=0,"",SUM(D138:F138))) ->  | BO138: =IF($C138="","", IF(COUNTIF($AW$3:$BK$3,BO$2)=COUNTIFS($AW$3:$BK$3,BO$2,$AW138:$BK138,""),"",SUMIFS($AW138:$BK138,$AW$3:$BK$3,BO$2))) ->  | BP138: =IF($C138="","", IF(COUNTIF(OFFSET($AW$3,0,$BP$1-1,1,$BP$2-$BP$1+1),$BP$3)= COUNTIFS(OFFSET($AW$3,0,$BP$1-1,1,$BP$2-$BP$1+1),$BP$3,OFFSET($AW138,0,$BP$1-1,1,$BP$2-$BP$1+1),""),"", SUMIF(OFFSET($AW$3,0,$BP$1-1,1,$BP$2-$BP$1+1),$BP$3,OFFSET($AW138,0,$BP$1-1,1,$BP$2-$BP$1+1)))) ->  | BR138: =IF(OR(D138="",D$7="",D$7=0),"",IF(D138>=BR$7,"A",IF(D138<BR$8,"C","B"))) ->  | BS138: =IF(OR(E138="",E$7="",E$7=0),"",IF(E138>=BS$7,"A",IF(E138<BS$8,"C","B"))) ->  | BT138: =IF(OR(F138="",F$7="",F$7=0),"",IF(F138>=BT$7,"A",IF(F138<BT$8,"C","B"))) ->  | BU138: =IF(OR(G138="",G$7="",G$7=0),"",IF(G138>=BU$7,"A",IF(G138<BU$8,"C","B"))) ->  | BV138: =IF(OR(H138="",H$7="",H$7=0),"",IF(H138>=BV$7,"A",IF(H138<BV$8,"C","B"))) ->  | BW138: =IF(OR(I138="",I$7="",I$7=0),"",IF(I138>=BW$7,"A",IF(I138<BW$8,"C","B"))) ->  | BX138: =IF(OR(J138="",J$7="",J$7=0),"",IF(J138>=BX$7,"A",IF(J138<BX$8,"C","B"))) ->  | BY138: =IF(OR(K138="",K$7="",K$7=0),"",IF(K138>=BY$7,"A",IF(K138<BY$8,"C","B"))) ->  | BZ138: =IF(OR(L138="",L$7="",L$7=0),"",IF(L138>=BZ$7,"A",IF(L138<BZ$8,"C","B"))) ->  | CA138: =IF(OR(M138="",M$7="",M$7=0),"",IF(M138>=CA$7,"A",IF(M138<CA$8,"C","B"))) ->  | CB138: =IF(OR(N138="",N$7="",N$7=0),"",IF(N138>=CB$7,"A",IF(N138<CB$8,"C","B"))) ->  | CC138: =IF(OR(O138="",O$7="",O$7=0),"",IF(O138>=CC$7,"A",IF(O138<CC$8,"C","B"))) ->  | CD138: =IF(OR(P138="",P$7="",P$7=0),"",IF(P138>=CD$7,"A",IF(P138<CD$8,"C","B"))) ->  | CE138: =IF(OR(Q138="",Q$7="",Q$7=0),"",IF(Q138>=CE$7,"A",IF(Q138<CE$8,"C","B"))) ->  | CF138: =IF(OR(R138="",R$7="",R$7=0),"",IF(R138>=CF$7,"A",IF(R138<CF$8,"C","B"))) ->  | CG138: =IF(OR(S138="",S$7="",S$7=0),"",IF(S138>=CG$7,"A",IF(S138<CG$8,"C","B"))) ->  | CH138: =IF(OR(T138="",T$7="",T$7=0),"",IF(T138>=CH$7,"A",IF(T138<CH$8,"C","B"))) ->  | CI138: =IF(OR(U138="",U$7="",U$7=0),"",IF(U138>=CI$7,"A",IF(U138<CI$8,"C","B"))) ->  | CJ138: =IF(OR(V138="",V$7="",V$7=0),"",IF(V138>=CJ$7,"A",IF(V138<CJ$8,"C","B"))) ->  | CK138: =IF(OR(W138="",W$7="",W$7=0),"",IF(W138>=CK$7,"A",IF(W138<CK$8,"C","B"))) ->  | CL138: =IF(OR(X138="",X$7="",X$7=0),"",IF(X138>=CL$7,"A",IF(X138<CL$8,"C","B"))) ->  | CM138: =IF(OR(Y138="",Y$7="",Y$7=0),"",IF(Y138>=CM$7,"A",IF(Y138<CM$8,"C","B"))) ->  | CN138: =IF(OR(Z138="",Z$7="",Z$7=0),"",IF(Z138>=CN$7,"A",IF(Z138<CN$8,"C","B"))) ->  | CO138: =IF(OR(AA138="",AA$7="",AA$7=0),"",IF(AA138>=CO$7,"A",IF(AA138<CO$8,"C","B"))) ->  | DT138: =IF(OR($C138="",DT$7=""),"",IF(COUNTIFS($D138:$AV138,"<>",$D$6:$AV$6,DT$6)=0,"",SUMIFS($D138:$AV138,$D$6:$AV$6,DT$6))) ->  | DW138: =IF(OR($C138="",DK$7="",DK138=""),"",DK138/DK$7) ->  | DX138: =IF(OR($C138="",DL$7="",DL138=""),"",DL138/DL$7) ->  | DY138: =IF(OR($C138="",DM$7="",DM138=""),"",DM138/DM$7) ->  | DZ138: =IF(OR($C138="",DN$7="",DN138=""),"",DN138/DN$7) ->  | EA138: =IF(OR($C138="",DO$7="",DO138=""),"",DO138/DO$7) ->  | EB138: =IF(OR($C138="",DP$7="",DP138=""),"",DP138/DP$7) ->  | EC138: =IF(OR($C138="",DQ$7="",DQ138=""),"",DQ138/DQ$7) ->  | ED138: =IF(OR($C138="",DR$7="",DR138=""),"",DR138/DR$7) ->  | EE138: =IF(OR($C138="",DS$7="",DS138=""),"",DS138/DS$7) ->  | EF138: =IF(OR($C138="",DT$7="",DT138=""),"",DT138/DT$7) ->  | EG138: =IF(OR($C138="",DU$7="",DU138=""),"",DU138/DU$7) ->  | EH138: =IF(OR($C138="",DV$7="",DV138=""),"",DV138/DV$7) ->  | EI138: =IF(OR($C138="",DW138=""),"",IF(DW138*100>=EI$7,"A",IF(DW138*100<EI$8,"C","B"))) ->  | EJ138: =IF(OR($C138="",DX138=""),"",IF(DX138*100>=EJ$7,"A",IF(DX138*100<EJ$8,"C","B"))) ->  | EK138: =IF(OR($C138="",DY138=""),"",IF(DY138*100>=EK$7,"A",IF(DY138*100<EK$8,"C","B"))) ->  | EL138: =IF(OR($C138="",DZ138=""),"",IF(DZ138*100>=EL$7,"A",IF(DZ138*100<EL$8,"C","B"))) ->  | EM138: =IF(OR($C138="",EA138=""),"",IF(EA138*100>=EM$7,"A",IF(EA138*100<EM$8,"C","B"))) ->  | EN138: =IF(OR($C138="",EB138=""),"",IF(EB138*100>=EN$7,"A",IF(EB138*100<EN$8,"C","B"))) ->  | EO138: =IF(OR($C138="",EC138=""),"",IF(EC138*100>=EO$7,"A",IF(EC138*100<EO$8,"C","B"))) ->  | EP138: =IF(OR($C138="",ED138=""),"",IF(ED138*100>=EP$7,"A",IF(ED138*100<EP$8,"C","B"))) ->  | EQ138: =IF(OR($C138="",EE138=""),"",IF(EE138*100>=EQ$7,"A",IF(EE138*100<EQ$8,"C","B"))) ->  | ER138: =IF(OR($C138="",EF138=""),"",IF(EF138*100>=ER$7,"A",IF(EF138*100<ER$8,"C","B"))) ->  | ES138: =IF(OR($C138="",EG138=""),"",IF(EG138*100>=ES$7,"A",IF(EG138*100<ES$8,"C","B"))) ->  | ET138: =IF(OR($C138="",EH138=""),"",IF(EH138*100>=ET$7,"A",IF(EH138*100<ET$8,"C","B"))) -> 
A139: 3 | B139: 41
A140: 3 | B140: 42
A141: 3 | B141: 43
A142: 3 | B142: 44
A143: 3 | B143: 45
A144: 4 | B144: 1
A145: 4 | B145: 2
A146: 4 | B146: 3
A147: 4 | B147: 4 | DN147: =IF(OR($C147="",DN$7=""),"",IF(COUNTIFS($D147:$AV147,"<>",$D$1:$AV$1,DN$1,$D$6:$AV$6,DN$6)=0,"",SUMIFS($D147:$AV147,$D$1:$AV$1,DN$1,$D$6:$AV$6,DN$6))) -> 
A148: 4 | B148: 5
A149: 4 | B149: 6
A150: 4 | B150: 7
A151: 4 | B151: 8
A152: 4 | B152: 9
A153: 4 | B153: 10 | BL153: =IF($C153="","", IF(COUNTIF($AW$3:$BK$3,BL$3)=COUNTIFS($AW$3:$BK$3,BL$3,$AW153:$BK153,""),"",SUMIFS($AW153:$BK153,$AW$3:$BK$3,BL$3))) -> 
A154: 4 | B154: 11
A155: 4 | B155: 12
A156: 4 | B156: 13
A157: 4 | B157: 14
A158: 4 | B158: 15
A159: 4 | B159: 16
A160: 4 | B160: 17
A161: 4 | B161: 18
A162: 4 | B162: 19
A163: 4 | B163: 20
A164: 4 | B164: 21
A165: 4 | B165: 22
A166: 4 | B166: 23
A167: 4 | B167: 24
A168: 4 | B168: 25
A169: 4 | B169: 26
A170: 4 | B170: 27
A171: 4 | B171: 28
A172: 4 | B172: 29
A173: 4 | B173: 30
A174: 4 | B174: 31
A175: 4 | B175: 32
A176: 4 | B176: 33
A177: 4 | B177: 34
A178: 4 | B178: 35
A179: 4 | B179: 36 | DM179: =IF(OR($C179="",DM$7=""),"",IF(COUNTIFS($D179:$AV179,"<>",$D$1:$AV$1,DM$1,$D$6:$AV$6,DM$6)=0,"",SUMIFS($D179:$AV179,$D$1:$AV$1,DM$1,$D$6:$AV$6,DM$6))) -> 
A180: 4 | B180: 37 | DK180: =IF(OR($C180="",DK$7=""),"",IF(COUNTIFS($D180:$AV180,"<>",$D$1:$AV$1,DK$1,$D$6:$AV$6,DK$6)=0,"",SUMIFS($D180:$AV180,$D$1:$AV$1,DK$1,$D$6:$AV$6,DK$6))) -> 
A181: 4 | B181: 38
A182: 4 | B182: 39
A183: 4 | B183: 40
A184: 4 | B184: 41
A185: 4 | B185: 42
A186: 4 | B186: 43
A187: 4 | B187: 44
A188: 4 | B188: 45
A189: 5 | B189: 1
A190: 5 | B190: 2
A191: 5 | B191: 3
A192: 5 | B192: 4
A193: 5 | B193: 5
A194: 5 | B194: 6
A195: 5 | B195: 7
A196: 5 | B196: 8
A197: 5 | B197: 9
A198: 5 | B198: 10
A199: 5 | B199: 11
A200: 5 | B200: 12
... 168 more rows

Sheet Ｗプリント_得点観点別
A1: Ｗプリント_得点観点別 | E1: =E2 -> 1 | F1: =E2 -> 1 | G1: =G2 -> 1 | H1: =G2 -> 1 | I1: =I2 -> 2 | J1: =I2 -> 2 | K1: =K2 -> 2 | L1: =K2 -> 2 | M1: =M2 -> 2 | N1: =M2 -> 2 | O1: =O2 -> 3 | P1: =O2 -> 3 | Q1: =Q2 -> 3 | R1: =Q2 -> 3 | S1: =S2 -> 3 | T1: =S2 -> 3 | U1: =U2 ->  | V1: =U2 ->  | W1: =W2 ->  | X1: =W2 ->  | Y1: =Y2 ->  | Z1: =Y2 ->  | AA1: =AA2 ->  | AB1: =AA2 ->  | AC1: =AC2 ->  | AD1: =AC2 ->  | AE1: =AE2 ->  | AF1: =AE2 ->  | AG1: =AG2 ->  | AH1: =AG2 ->  | AI1: =AI2 -> 1 | AL1: =AL2 -> 2 | AO1: =AO2 -> 3
A2: FALSE | C2: 学期 | E2: =IF(QUOTIENT(COLUMN()-(COLUMN($E2)-1),2)+1>COUNT(基準設定1!$A$13:$A$102),"",OFFSET(基準設定1!$C$13,((COLUMN()-COLUMN($E2))/2)*3,0)) -> 1 | G2: =IF(QUOTIENT(COLUMN()-(COLUMN($E2)-1),2)+1>COUNT(基準設定1!$A$13:$A$102),"",OFFSET(基準設定1!$C$13,((COLUMN()-COLUMN($E2))/2)*3,0)) -> 1 | I2: =IF(QUOTIENT(COLUMN()-(COLUMN($E2)-1),2)+1>COUNT(基準設定1!$A$13:$A$102),"",OFFSET(基準設定1!$C$13,((COLUMN()-COLUMN($E2))/2)*3,0)) -> 2 | K2: =IF(QUOTIENT(COLUMN()-(COLUMN($E2)-1),2)+1>COUNT(基準設定1!$A$13:$A$102),"",OFFSET(基準設定1!$C$13,((COLUMN()-COLUMN($E2))/2)*3,0)) -> 2 | M2: =IF(QUOTIENT(COLUMN()-(COLUMN($E2)-1),2)+1>COUNT(基準設定1!$A$13:$A$102),"",OFFSET(基準設定1!$C$13,((COLUMN()-COLUMN($E2))/2)*3,0)) -> 2 | O2: =IF(QUOTIENT(COLUMN()-(COLUMN($E2)-1),2)+1>COUNT(基準設定1!$A$13:$A$102),"",OFFSET(基準設定1!$C$13,((COLUMN()-COLUMN($E2))/2)*3,0)) -> 3 | Q2: =IF(QUOTIENT(COLUMN()-(COLUMN($E2)-1),2)+1>COUNT(基準設定1!$A$13:$A$102),"",OFFSET(基準設定1!$C$13,((COLUMN()-COLUMN($E2))/2)*3,0)) -> 3 | S2: =IF(QUOTIENT(COLUMN()-(COLUMN($E2)-1),2)+1>COUNT(基準設定1!$A$13:$A$102),"",OFFSET(基準設定1!$C$13,((COLUMN()-COLUMN($E2))/2)*3,0)) -> 3 | U2: =IF(QUOTIENT(COLUMN()-(COLUMN($E2)-1),2)+1>COUNT(基準設定1!$A$13:$A$102),"",OFFSET(基準設定1!$C$13,((COLUMN()-COLUMN($E2))/2)*3,0)) ->  | W2: =IF(QUOTIENT(COLUMN()-(COLUMN($E2)-1),2)+1>COUNT(基準設定1!$A$13:$A$102),"",OFFSET(基準設定1!$C$13,((COLUMN()-COLUMN($E2))/2)*3,0)) ->  | Y2: =IF(QUOTIENT(COLUMN()-(COLUMN($E2)-1),2)+1>COUNT(基準設定1!$A$13:$A$102),"",OFFSET(基準設定1!$C$13,((COLUMN()-COLUMN($E2))/2)*3,0)) ->  | AA2: =IF(QUOTIENT(COLUMN()-(COLUMN($E2)-1),2)+1>COUNT(基準設定1!$A$13:$A$102),"",OFFSET(基準設定1!$C$13,((COLUMN()-COLUMN($E2))/2)*3,0)) ->  | AC2: =IF(QUOTIENT(COLUMN()-(COLUMN($E2)-1),2)+1>COUNT(基準設定1!$A$13:$A$102),"",OFFSET(基準設定1!$C$13,((COLUMN()-COLUMN($E2))/2)*3,0)) ->  | AE2: =IF(QUOTIENT(COLUMN()-(COLUMN($E2)-1),2)+1>COUNT(基準設定1!$A$13:$A$102),"",OFFSET(基準設定1!$C$13,((COLUMN()-COLUMN($E2))/2)*3,0)) ->  | AG2: =IF(QUOTIENT(COLUMN()-(COLUMN($E2)-1),2)+1>COUNT(基準設定1!$A$13:$A$102),"",OFFSET(基準設定1!$C$13,((COLUMN()-COLUMN($E2))/2)*3,0)) ->  | AI2: 1 | AL2: 2 | AO2: 3 | AR2: 年間
A3: FALSE | C3: 回数 | E3: 1 | G3: 2 | I3: 3 | K3: 4 | M3: 5 | O3: 6 | Q3: 7 | S3: 8 | AI3: 合計 | AL3: 合計 | AO3: 合計 | AR3: 合計
C4: 単元名 | E4: 正の数・負の数 | G4: 文字と式 | I4: 方程式 | K4: 比例と反比例 | M4: 平面図形 | O4: 空間図形 | Q4: データの活用 | S4: 1年生のまとめ
C5: 観点 | E5: 満点 | G5: 満点 | I5: 満点 | K5: 満点 | M5: 満点 | O5: 満点 | Q5: 満点 | S5: 満点 | U5: 満点 | W5: 満点 | Y5: 満点 | AA5: 満点 | AC5: 満点 | AE5: 満点 | AG5: 満点 | AI5: 満点 | AL5: 満点 | AO5: 満点 | AR5: 満点
D6: 知識・技能 | E6: 60 | G6: 60 | I6: 60 | K6: 60 | M6: 60 | O6: 60 | Q6: 60 | S6: 60 | AI6: 120 | AL6: 180 | AO6: 180 | AR6: 480
D7: 思考判断表現 | E7: 40 | G7: 40 | I7: 40 | K7: 40 | M7: 40 | O7: 40 | Q7: 40 | S7: 40 | AI7: 80 | AL7: 120 | AO7: 120 | AR7: 320
D8: 主学態 | E8: 3 | G8: 3 | I8: 3 | K8: 3 | M8: 3 | O8: 3 | Q8: 3 | S8: 3 | AI8: 6 | AL8: 9 | AO8: 9 | AR8: 24
D9: 合計 | E9: 103 | G9: 103 | I9: 103 | K9: 103 | M9: 103 | O9: 103 | Q9: 103 | S9: 103 | AI9: 206 | AL9: 309 | AO9: 309 | AR9: 824
C10: 判定基準 | E10: A/B | F10: B/C | G10: A/B | H10: B/C | I10: A/B | J10: B/C | K10: A/B | L10: B/C | M10: A/B | N10: B/C | O10: A/B | P10: B/C | Q10: A/B | R10: B/C | S10: A/B | T10: B/C | U10: A/B | V10: B/C | W10: A/B | X10: B/C | Y10: A/B | Z10: B/C | AA10: A/B | AB10: B/C | AC10: A/B | AD10: B/C | AE10: A/B | AF10: B/C | AG10: A/B | AH10: B/C | AI10: 判定基準 | AJ10: A/B | AK10: B/C | AL10: 判定基準 | AM10: A/B | AN10: B/C | AO10: 判定基準 | AP10: A/B | AQ10: B/C | AR10: 判定基準 | AS10: A/B | AT10: B/C
D11: 知識・技能 | E11: =IF(E6="","",OFFSET(基準設定1!$H$13,((COLUMN()-COLUMN($E$3))/2)*3,0)) -> 48 | F11: =IF(E6="","",OFFSET(基準設定1!$I$13,((COLUMN()-COLUMN($F$3))/2)*3,0)) -> 30 | G11: =IF(G6="","",OFFSET(基準設定1!$H$13,((COLUMN()-COLUMN($E$3))/2)*3,0)) -> 48 | H11: =IF(G6="","",OFFSET(基準設定1!$I$13,((COLUMN()-COLUMN($F$3))/2)*3,0)) -> 30 | I11: =IF(I6="","",OFFSET(基準設定1!$H$13,((COLUMN()-COLUMN($E$3))/2)*3,0)) -> 48 | J11: =IF(I6="","",OFFSET(基準設定1!$I$13,((COLUMN()-COLUMN($F$3))/2)*3,0)) -> 30 | K11: =IF(K6="","",OFFSET(基準設定1!$H$13,((COLUMN()-COLUMN($E$3))/2)*3,0)) -> 48 | L11: =IF(K6="","",OFFSET(基準設定1!$I$13,((COLUMN()-COLUMN($F$3))/2)*3,0)) -> 30 | M11: =IF(M6="","",OFFSET(基準設定1!$H$13,((COLUMN()-COLUMN($E$3))/2)*3,0)) -> 48 | N11: =IF(M6="","",OFFSET(基準設定1!$I$13,((COLUMN()-COLUMN($F$3))/2)*3,0)) -> 30 | O11: =IF(O6="","",OFFSET(基準設定1!$H$13,((COLUMN()-COLUMN($E$3))/2)*3,0)) -> 48 | P11: =IF(O6="","",OFFSET(基準設定1!$I$13,((COLUMN()-COLUMN($F$3))/2)*3,0)) -> 30 | Q11: =IF(Q6="","",OFFSET(基準設定1!$H$13,((COLUMN()-COLUMN($E$3))/2)*3,0)) -> 48 | R11: =IF(Q6="","",OFFSET(基準設定1!$I$13,((COLUMN()-COLUMN($F$3))/2)*3,0)) -> 30 | S11: =IF(S6="","",OFFSET(基準設定1!$H$13,((COLUMN()-COLUMN($E$3))/2)*3,0)) -> 48 | T11: =IF(S6="","",OFFSET(基準設定1!$I$13,((COLUMN()-COLUMN($F$3))/2)*3,0)) -> 30 | U11: =IF(U6="","",OFFSET(基準設定1!$H$13,((COLUMN()-COLUMN($E$3))/2)*3,0)) ->  | V11: =IF(U6="","",OFFSET(基準設定1!$I$13,((COLUMN()-COLUMN($F$3))/2)*3,0)) ->  | W11: =IF(W6="","",OFFSET(基準設定1!$H$13,((COLUMN()-COLUMN($E$3))/2)*3,0)) ->  | X11: =IF(W6="","",OFFSET(基準設定1!$I$13,((COLUMN()-COLUMN($F$3))/2)*3,0)) ->  | Y11: =IF(Y6="","",OFFSET(基準設定1!$H$13,((COLUMN()-COLUMN($E$3))/2)*3,0)) ->  | Z11: =IF(Y6="","",OFFSET(基準設定1!$I$13,((COLUMN()-COLUMN($F$3))/2)*3,0)) ->  | AA11: =IF(AA6="","",OFFSET(基準設定1!$H$13,((COLUMN()-COLUMN($E$3))/2)*3,0)) ->  | AB11: =IF(AA6="","",OFFSET(基準設定1!$I$13,((COLUMN()-COLUMN($F$3))/2)*3,0)) ->  | AC11: =IF(AC6="","",OFFSET(基準設定1!$H$13,((COLUMN()-COLUMN($E$3))/2)*3,0)) ->  | AD11: =IF(AC6="","",OFFSET(基準設定1!$I$13,((COLUMN()-COLUMN($F$3))/2)*3,0)) ->  | AE11: =IF(AE6="","",OFFSET(基準設定1!$H$13,((COLUMN()-COLUMN($E$3))/2)*3,0)) ->  | AF11: =IF(AE6="","",OFFSET(基準設定1!$I$13,((COLUMN()-COLUMN($F$3))/2)*3,0)) ->  | AG11: =IF(AG6="","",OFFSET(基準設定1!$H$13,((COLUMN()-COLUMN($E$3))/2)*3,0)) ->  | AH11: =IF(AG6="","",OFFSET(基準設定1!$I$13,((COLUMN()-COLUMN($F$3))/2)*3,0)) ->  | AJ11: =OFFSET(基準設定2!$D$1,MATCH(AI$2,基準設定2!$A:$A,0)-1,0) -> 80 | AK11: =OFFSET(基準設定2!$E$1,MATCH(AI$2,基準設定2!$A:$A,0)-1,0) -> 50 | AM11: =OFFSET(基準設定2!$D$1,MATCH(AL$2,基準設定2!$A:$A,0)-1,0) -> 80 | AN11: =OFFSET(基準設定2!$E$1,MATCH(AL$2,基準設定2!$A:$A,0)-1,0) -> 50 | AP11: =OFFSET(基準設定2!$D$1,MATCH(AO$2,基準設定2!$A:$A,0)-1,0) -> 80 | AQ11: =OFFSET(基準設定2!$E$1,MATCH(AO$2,基準設定2!$A:$A,0)-1,0) -> 50 | AS11: =OFFSET(基準設定2!$D$1,MATCH(AR$2,基準設定2!$A:$A,0)-1,0) -> 80 | AT11: =OFFSET(基準設定2!$E$1,MATCH(AR$2,基準設定2!$A:$A,0)-1,0) -> 50
D12: 思考判断表現 | E12: =IF(E7="","",OFFSET(基準設定1!$H$13,((COLUMN()-COLUMN($E$3))/2)*3+1,0)) -> 32 | F12: =IF(E7="","",OFFSET(基準設定1!$I$13,((COLUMN()-COLUMN($F$3))/2)*3+1,0)) -> 20 | G12: =IF(G7="","",OFFSET(基準設定1!$H$13,((COLUMN()-COLUMN($E$3))/2)*3+1,0)) -> 32 | H12: =IF(G7="","",OFFSET(基準設定1!$I$13,((COLUMN()-COLUMN($F$3))/2)*3+1,0)) -> 20 | I12: =IF(I7="","",OFFSET(基準設定1!$H$13,((COLUMN()-COLUMN($E$3))/2)*3+1,0)) -> 32 | J12: =IF(I7="","",OFFSET(基準設定1!$I$13,((COLUMN()-COLUMN($F$3))/2)*3+1,0)) -> 20 | K12: =IF(K7="","",OFFSET(基準設定1!$H$13,((COLUMN()-COLUMN($E$3))/2)*3+1,0)) -> 32 | L12: =IF(K7="","",OFFSET(基準設定1!$I$13,((COLUMN()-COLUMN($F$3))/2)*3+1,0)) -> 20 | M12: =IF(M7="","",OFFSET(基準設定1!$H$13,((COLUMN()-COLUMN($E$3))/2)*3+1,0)) -> 32 | N12: =IF(M7="","",OFFSET(基準設定1!$I$13,((COLUMN()-COLUMN($F$3))/2)*3+1,0)) -> 20 | O12: =IF(O7="","",OFFSET(基準設定1!$H$13,((COLUMN()-COLUMN($E$3))/2)*3+1,0)) -> 32 | P12: =IF(O7="","",OFFSET(基準設定1!$I$13,((COLUMN()-COLUMN($F$3))/2)*3+1,0)) -> 20 | Q12: =IF(Q7="","",OFFSET(基準設定1!$H$13,((COLUMN()-COLUMN($E$3))/2)*3+1,0)) -> 32 | R12: =IF(Q7="","",OFFSET(基準設定1!$I$13,((COLUMN()-COLUMN($F$3))/2)*3+1,0)) -> 20 | S12: =IF(S7="","",OFFSET(基準設定1!$H$13,((COLUMN()-COLUMN($E$3))/2)*3+1,0)) -> 32 | T12: =IF(S7="","",OFFSET(基準設定1!$I$13,((COLUMN()-COLUMN($F$3))/2)*3+1,0)) -> 20 | U12: =IF(U7="","",OFFSET(基準設定1!$H$13,((COLUMN()-COLUMN($E$3))/2)*3+1,0)) ->  | V12: =IF(U7="","",OFFSET(基準設定1!$I$13,((COLUMN()-COLUMN($F$3))/2)*3+1,0)) ->  | W12: =IF(W7="","",OFFSET(基準設定1!$H$13,((COLUMN()-COLUMN($E$3))/2)*3+1,0)) ->  | X12: =IF(W7="","",OFFSET(基準設定1!$I$13,((COLUMN()-COLUMN($F$3))/2)*3+1,0)) ->  | Y12: =IF(Y7="","",OFFSET(基準設定1!$H$13,((COLUMN()-COLUMN($E$3))/2)*3+1,0)) ->  | Z12: =IF(Y7="","",OFFSET(基準設定1!$I$13,((COLUMN()-COLUMN($F$3))/2)*3+1,0)) ->  | AA12: =IF(AA7="","",OFFSET(基準設定1!$H$13,((COLUMN()-COLUMN($E$3))/2)*3+1,0)) ->  | AB12: =IF(AA7="","",OFFSET(基準設定1!$I$13,((COLUMN()-COLUMN($F$3))/2)*3+1,0)) ->  | AC12: =IF(AC7="","",OFFSET(基準設定1!$H$13,((COLUMN()-COLUMN($E$3))/2)*3+1,0)) ->  | AD12: =IF(AC7="","",OFFSET(基準設定1!$I$13,((COLUMN()-COLUMN($F$3))/2)*3+1,0)) ->  | AE12: =IF(AE7="","",OFFSET(基準設定1!$H$13,((COLUMN()-COLUMN($E$3))/2)*3+1,0)) ->  | AF12: =IF(AE7="","",OFFSET(基準設定1!$I$13,((COLUMN()-COLUMN($F$3))/2)*3+1,0)) ->  | AG12: =IF(AG7="","",OFFSET(基準設定1!$H$13,((COLUMN()-COLUMN($E$3))/2)*3+1,0)) ->  | AH12: =IF(AG7="","",OFFSET(基準設定1!$I$13,((COLUMN()-COLUMN($F$3))/2)*3+1,0)) ->  | AJ12: =OFFSET(基準設定2!$D$1,MATCH(AI$2,基準設定2!$A:$A,0)-1+1,0) -> 80 | AK12: =OFFSET(基準設定2!$E$1,MATCH(AI$2,基準設定2!$A:$A,0)-1+1,0) -> 50 | AM12: =OFFSET(基準設定2!$D$1,MATCH(AL$2,基準設定2!$A:$A,0)-1+1,0) -> 80 | AN12: =OFFSET(基準設定2!$E$1,MATCH(AL$2,基準設定2!$A:$A,0)-1+1,0) -> 50 | AP12: =OFFSET(基準設定2!$D$1,MATCH(AO$2,基準設定2!$A:$A,0)-1+1,0) -> 80 | AQ12: =OFFSET(基準設定2!$E$1,MATCH(AO$2,基準設定2!$A:$A,0)-1+1,0) -> 50 | AS12: =OFFSET(基準設定2!$D$1,MATCH(AR$2,基準設定2!$A:$A,0)-1+1,0) -> 80 | AT12: =OFFSET(基準設定2!$E$1,MATCH(AR$2,基準設定2!$A:$A,0)-1+1,0) -> 50
D13: 主学態 | E13: =IF(E8="","",OFFSET(基準設定1!$H$13,((COLUMN()-COLUMN($E$3))/2)*3+2,0)) -> 3 | F13: =IF(E8="","",OFFSET(基準設定1!$I$13,((COLUMN()-COLUMN($F$3))/2)*3+2,0)) -> 2 | G13: =IF(G8="","",OFFSET(基準設定1!$H$13,((COLUMN()-COLUMN($E$3))/2)*3+2,0)) -> 3 | H13: =IF(G8="","",OFFSET(基準設定1!$I$13,((COLUMN()-COLUMN($F$3))/2)*3+2,0)) -> 2 | I13: =IF(I8="","",OFFSET(基準設定1!$H$13,((COLUMN()-COLUMN($E$3))/2)*3+2,0)) -> 3 | J13: =IF(I8="","",OFFSET(基準設定1!$I$13,((COLUMN()-COLUMN($F$3))/2)*3+2,0)) -> 2 | K13: =IF(K8="","",OFFSET(基準設定1!$H$13,((COLUMN()-COLUMN($E$3))/2)*3+2,0)) -> 3 | L13: =IF(K8="","",OFFSET(基準設定1!$I$13,((COLUMN()-COLUMN($F$3))/2)*3+2,0)) -> 2 | M13: =IF(M8="","",OFFSET(基準設定1!$H$13,((COLUMN()-COLUMN($E$3))/2)*3+2,0)) -> 3 | N13: =IF(M8="","",OFFSET(基準設定1!$I$13,((COLUMN()-COLUMN($F$3))/2)*3+2,0)) -> 2 | O13: =IF(O8="","",OFFSET(基準設定1!$H$13,((COLUMN()-COLUMN($E$3))/2)*3+2,0)) -> 3 | P13: =IF(O8="","",OFFSET(基準設定1!$I$13,((COLUMN()-COLUMN($F$3))/2)*3+2,0)) -> 2 | Q13: =IF(Q8="","",OFFSET(基準設定1!$H$13,((COLUMN()-COLUMN($E$3))/2)*3+2,0)) -> 3 | R13: =IF(Q8="","",OFFSET(基準設定1!$I$13,((COLUMN()-COLUMN($F$3))/2)*3+2,0)) -> 2 | S13: =IF(S8="","",OFFSET(基準設定1!$H$13,((COLUMN()-COLUMN($E$3))/2)*3+2,0)) -> 3 | T13: =IF(S8="","",OFFSET(基準設定1!$I$13,((COLUMN()-COLUMN($F$3))/2)*3+2,0)) -> 2 | U13: =IF(U8="","",OFFSET(基準設定1!$H$13,((COLUMN()-COLUMN($E$3))/2)*3+2,0)) ->  | V13: =IF(U8="","",OFFSET(基準設定1!$I$13,((COLUMN()-COLUMN($F$3))/2)*3+2,0)) ->  | W13: =IF(W8="","",OFFSET(基準設定1!$H$13,((COLUMN()-COLUMN($E$3))/2)*3+2,0)) ->  | X13: =IF(W8="","",OFFSET(基準設定1!$I$13,((COLUMN()-COLUMN($F$3))/2)*3+2,0)) ->  | Y13: =IF(Y8="","",OFFSET(基準設定1!$H$13,((COLUMN()-COLUMN($E$3))/2)*3+2,0)) ->  | Z13: =IF(Y8="","",OFFSET(基準設定1!$I$13,((COLUMN()-COLUMN($F$3))/2)*3+2,0)) ->  | AA13: =IF(AA8="","",OFFSET(基準設定1!$H$13,((COLUMN()-COLUMN($E$3))/2)*3+2,0)) ->  | AB13: =IF(AA8="","",OFFSET(基準設定1!$I$13,((COLUMN()-COLUMN($F$3))/2)*3+2,0)) ->  | AC13: =IF(AC8="","",OFFSET(基準設定1!$H$13,((COLUMN()-COLUMN($E$3))/2)*3+2,0)) ->  | AD13: =IF(AC8="","",OFFSET(基準設定1!$I$13,((COLUMN()-COLUMN($F$3))/2)*3+2,0)) ->  | AE13: =IF(AE8="","",OFFSET(基準設定1!$H$13,((COLUMN()-COLUMN($E$3))/2)*3+2,0)) ->  | AF13: =IF(AE8="","",OFFSET(基準設定1!$I$13,((COLUMN()-COLUMN($F$3))/2)*3+2,0)) ->  | AG13: =IF(AG8="","",OFFSET(基準設定1!$H$13,((COLUMN()-COLUMN($E$3))/2)*3+2,0)) ->  | AH13: =IF(AG8="","",OFFSET(基準設定1!$I$13,((COLUMN()-COLUMN($F$3))/2)*3+2,0)) ->  | AJ13: =OFFSET(基準設定2!$D$1,MATCH(AI$2,基準設定2!$A:$A,0)-1+2,0) -> 80 | AK13: =OFFSET(基準設定2!$E$1,MATCH(AI$2,基準設定2!$A:$A,0)-1+2,0) -> 50 | AM13: =OFFSET(基準設定2!$D$1,MATCH(AL$2,基準設定2!$A:$A,0)-1+2,0) -> 80 | AN13: =OFFSET(基準設定2!$E$1,MATCH(AL$2,基準設定2!$A:$A,0)-1+2,0) -> 50 | AP13: =OFFSET(基準設定2!$D$1,MATCH(AO$2,基準設定2!$A:$A,0)-1+2,0) -> 80 | AQ13: =OFFSET(基準設定2!$E$1,MATCH(AO$2,基準設定2!$A:$A,0)-1+2,0) -> 50 | AS13: =OFFSET(基準設定2!$D$1,MATCH(AR$2,基準設定2!$A:$A,0)-1+2,0) -> 80 | AT13: =OFFSET(基準設定2!$E$1,MATCH(AR$2,基準設定2!$A:$A,0)-1+2,0) -> 50
A14: 組 | B14: 番 | C14: 名前 | D14: 観点 | E14: 得点 | F14: 判定 | G14: 得点 | H14: 判定 | I14: 得点 | J14: 判定 | K14: 得点 | L14: 判定 | M14: 得点 | N14: 判定 | O14: 得点 | P14: 判定 | Q14: 得点 | R14: 判定 | S14: 得点 | T14: 判定 | U14: 得点 | V14: 判定 | W14: 得点 | X14: 判定 | Y14: 得点 | Z14: 判定 | AA14: 得点 | AB14: 判定 | AC14: 得点 | AD14: 判定 | AE14: 得点 | AF14: 判定 | AG14: 得点 | AH14: 判定 | AI14: 合計 | AJ14: 率 | AK14: 判定 | AL14: 合計 | AM14: 率 | AN14: 判定 | AO14: 合計 | AP14: 率 | AQ14: 判定 | AR14: 合計 | AS14: 率 | AT14: 判定
A15: 1 | B15: 1 | C15: =VLOOKUP(B15,INDIRECT("_"&A15&"組"),2,0)&"" ->  | D15: 知識・技能 | F15: =IF(OR(E15="",$C15="",E$6="",E$6=0),"",IF(E15>=E$11,"A",IF(E15<F$11,"C","B"))) ->  | H15: =IF(OR(G15="",$C15="",G$6="",G$6=0),"",IF(G15>=G$11,"A",IF(G15<H$11,"C","B"))) ->  | J15: =IF(OR(I15="",$C15="",I$6="",I$6=0),"",IF(I15>=I$11,"A",IF(I15<J$11,"C","B"))) ->  | L15: =IF(OR(K15="",$C15="",K$6="",K$6=0),"",IF(K15>=K$11,"A",IF(K15<L$11,"C","B"))) ->  | N15: =IF(OR(M15="",$C15="",M$6="",M$6=0),"",IF(M15>=M$11,"A",IF(M15<N$11,"C","B"))) ->  | P15: =IF(OR(O15="",$C15="",O$6="",O$6=0),"",IF(O15>=O$11,"A",IF(O15<P$11,"C","B"))) ->  | R15: =IF(OR(Q15="",$C15="",Q$6="",Q$6=0),"",IF(Q15>=Q$11,"A",IF(Q15<R$11,"C","B"))) ->  | T15: =IF(OR(S15="",$C15="",S$6="",S$6=0),"",IF(S15>=S$11,"A",IF(S15<T$11,"C","B"))) ->  | AI15: =IF(OR($C15="",AI$6=""),"",IF(COUNTIFS($E$2:$AH$2,AI$1,$E15:$AH15,"<>")=0,"",SUMIF($E$2:$AH$2,AI$1,$E15:$AH15))) ->  | AJ15: =IF(OR($C15="",AI15=""),"",AI15/AI$6) ->  | AK15: =IF(OR($C15="",AJ15="",AI$6="",AI$6=0),"",IF(AJ15*100>=AJ$11,"A",IF(AJ15*100>=AK$11,"B","C"))) ->  | AL15: =IF(OR($C15="",AL$6=""),"",IF(COUNTIFS($E$2:$AH$2,AL$1,$E15:$AH15,"<>")=0,"",SUMIF($E$2:$AH$2,AL$1,$E15:$AH15))) ->  | AM15: =IF(OR($C15="",AL15=""),"",AL15/AL$6) ->  | AN15: =IF(OR($C15="",AM15="",AL$6="",AL$6=0),"",IF(AM15*100>=AM$11,"A",IF(AM15*100>=AN$11,"B","C"))) ->  | AO15: =IF(OR($C15="",AO$6=""),"",IF(COUNTIFS($E$2:$AH$2,AO$1,$E15:$AH15,"<>")=0,"",SUMIF($E$2:$AH$2,AO$1,$E15:$AH15))) ->  | AP15: =IF(OR($C15="",AO15=""),"",AO15/AO$6) ->  | AQ15: =IF(OR($C15="",AP15="",AO$6="",AO$6=0),"",IF(AP15*100>=AP$11,"A",IF(AP15*100>=AQ$11,"B","C"))) ->  | AR15: =IF(OR($C15="",AR$6=""),"",IF(COUNT(AI15,AL15,AO15)=0,"",SUM(AI15,AL15,AO15))) ->  | AS15: =IF(OR($C15="",AR15=""),"",AR15/AR$6) ->  | AT15: =IF(OR($C15="",AS15="",AR$6="",AR$6=0),"",IF(AS15*100>=AS$11,"A",IF(AS15*100>=AT$11,"B","C"))) -> 
D16: 思考判断表現 | F16: =IF(OR(E16="",$C15="",E$7="",E$7=0),"",IF(E16>=E$12,"A",IF(E16<F$12,"C","B"))) ->  | H16: =IF(OR(G16="",$C15="",G$7="",G$7=0),"",IF(G16>=G$12,"A",IF(G16<H$12,"C","B"))) ->  | J16: =IF(OR(I16="",$C15="",I$7="",I$7=0),"",IF(I16>=I$12,"A",IF(I16<J$12,"C","B"))) ->  | L16: =IF(OR(K16="",$C15="",K$7="",K$7=0),"",IF(K16>=K$12,"A",IF(K16<L$12,"C","B"))) ->  | N16: =IF(OR(M16="",$C15="",M$7="",M$7=0),"",IF(M16>=M$12,"A",IF(M16<N$12,"C","B"))) ->  | P16: =IF(OR(O16="",$C15="",O$7="",O$7=0),"",IF(O16>=O$12,"A",IF(O16<P$12,"C","B"))) ->  | R16: =IF(OR(Q16="",$C15="",Q$7="",Q$7=0),"",IF(Q16>=Q$12,"A",IF(Q16<R$12,"C","B"))) ->  | T16: =IF(OR(S16="",$C15="",S$7="",S$7=0),"",IF(S16>=S$12,"A",IF(S16<T$12,"C","B"))) ->  | AI16: =IF(OR($C15="",AI$7=""),"",IF(COUNTIFS($E$2:$AH$2,AI$1,$E16:$AH16,"<>")=0,"",SUMIF($E$2:$AH$2,AI$1,$E16:$AH16))) ->  | AJ16: =IF(OR($C15="",AI16=""),"",AI16/AI$7) ->  | AK16: =IF(OR($C15="",AJ16="",AI$7="",AI$7=0),"",IF(AJ16*100>=AJ$12,"A",IF(AJ16*100>=AK$12,"B","C"))) ->  | AL16: =IF(OR($C15="",AL$7=""),"",IF(COUNTIFS($E$2:$AH$2,AL$1,$E16:$AH16,"<>")=0,"",SUMIF($E$2:$AH$2,AL$1,$E16:$AH16))) ->  | AM16: =IF(OR($C15="",AL16=""),"",AL16/AL$7) ->  | AN16: =IF(OR($C15="",AM16="",AL$7="",AL$7=0),"",IF(AM16*100>=AM$12,"A",IF(AM16*100>=AN$12,"B","C"))) ->  | AO16: =IF(OR($C15="",AO$7=""),"",IF(COUNTIFS($E$2:$AH$2,AO$1,$E16:$AH16,"<>")=0,"",SUMIF($E$2:$AH$2,AO$1,$E16:$AH16))) ->  | AP16: =IF(OR($C15="",AO16=""),"",AO16/AO$7) ->  | AQ16: =IF(OR($C15="",AP16="",AO$7="",AO$7=0),"",IF(AP16*100>=AP$12,"A",IF(AP16*100>=AQ$12,"B","C"))) ->  | AR16: =IF(OR($C15="",AR$7=""),"",IF(COUNT(AI16,AL16,AO16)=0,"",SUM(AI16,AL16,AO16))) ->  | AS16: =IF(OR($C15="",AR16=""),"",AR16/AR$7) ->  | AT16: =IF(OR($C15="",AS16="",AR$7="",AR$7=0),"",IF(AS16*100>=AS$12,"A",IF(AS16*100>=AT$12,"B","C"))) -> 
D17: 主学態 | F17: =IF(OR(E17="",$C15="",E$8="",E$8=0),"",IF(E17>=E$13,"A",IF(E17<F$13,"C","B"))) ->  | H17: =IF(OR(G17="",$C15="",G$8="",G$8=0),"",IF(G17>=G$13,"A",IF(G17<H$13,"C","B"))) ->  | J17: =IF(OR(I17="",$C15="",I$8="",I$8=0),"",IF(I17>=I$13,"A",IF(I17<J$13,"C","B"))) ->  | L17: =IF(OR(K17="",$C15="",K$8="",K$8=0),"",IF(K17>=K$13,"A",IF(K17<L$13,"C","B"))) ->  | N17: =IF(OR(M17="",$C15="",M$8="",M$8=0),"",IF(M17>=M$13,"A",IF(M17<N$13,"C","B"))) ->  | P17: =IF(OR(O17="",$C15="",O$8="",O$8=0),"",IF(O17>=O$13,"A",IF(O17<P$13,"C","B"))) ->  | R17: =IF(OR(Q17="",$C15="",Q$8="",Q$8=0),"",IF(Q17>=Q$13,"A",IF(Q17<R$13,"C","B"))) ->  | T17: =IF(OR(S17="",$C15="",S$8="",S$8=0),"",IF(S17>=S$13,"A",IF(S17<T$13,"C","B"))) ->  | AI17: =IF(OR($C15="",AI$8=""),"",IF(COUNTIFS($E$2:$AH$2,AI$1,$E17:$AH17,"<>")=0,"",SUMIF($E$2:$AH$2,AI$1,$E17:$AH17))) ->  | AJ17: =IF(OR($C15="",AI17=""),"",AI17/AI$8) ->  | AK17: =IF(OR($C15="",AJ17="",AI$8="",AI$8=0),"",IF(AJ17*100>=AJ$13,"A",IF(AJ17*100>=AK$13,"B","C"))) ->  | AL17: =IF(OR($C15="",AL$8=""),"",IF(COUNTIFS($E$2:$AH$2,AL$1,$E17:$AH17,"<>")=0,"",SUMIF($E$2:$AH$2,AL$1,$E17:$AH17))) ->  | AM17: =IF(OR($C15="",AL17=""),"",AL17/AL$8) ->  | AN17: =IF(OR($C15="",AM17="",AL$8="",AL$8=0),"",IF(AM17*100>=AM$13,"A",IF(AM17*100>=AN$13,"B","C"))) ->  | AO17: =IF(OR($C15="",AO$8=""),"",IF(COUNTIFS($E$2:$AH$2,AO$1,$E17:$AH17,"<>")=0,"",SUMIF($E$2:$AH$2,AO$1,$E17:$AH17))) ->  | AP17: =IF(OR($C15="",AO17=""),"",AO17/AO$8) ->  | AQ17: =IF(OR($C15="",AP17="",AO$8="",AO$8=0),"",IF(AP17*100>=AP$13,"A",IF(AP17*100>=AQ$13,"B","C"))) ->  | AR17: =IF(OR($C15="",AR$8=""),"",IF(COUNT(AI17,AL17,AO17)=0,"",SUM(AI17,AL17,AO17))) ->  | AS17: =IF(OR($C15="",AR17=""),"",AR17/AR$8) ->  | AT17: =IF(OR($C15="",AS17="",AR$8="",AR$8=0),"",IF(AS17*100>=AS$13,"A",IF(AS17*100>=AT$13,"B","C"))) -> 
D18: 合計 | E18: =IF(OR(AND(E15="",E16="",E17=""),$C15=""),"",SUM(E15:E17)) ->  | F18: _ | G18: =IF(OR(AND(G15="",G16="",G17=""),$C15=""),"",SUM(G15:G17)) ->  | H18: _ | I18: =IF(OR(AND(I15="",I16="",I17=""),$C15=""),"",SUM(I15:I17)) ->  | J18: _ | K18: =IF(OR(AND(K15="",K16="",K17=""),$C15=""),"",SUM(K15:K17)) ->  | L18: _ | M18: =IF(OR(AND(M15="",M16="",M17=""),$C15=""),"",SUM(M15:M17)) ->  | N18: _ | O18: =IF(OR(AND(O15="",O16="",O17=""),$C15=""),"",SUM(O15:O17)) ->  | P18: _ | Q18: =IF(OR(AND(Q15="",Q16="",Q17=""),$C15=""),"",SUM(Q15:Q17)) ->  | R18: _ | S18: =IF(OR(AND(S15="",S16="",S17=""),$C15=""),"",SUM(S15:S17)) ->  | T18: _ | AI18: =IF($C15="","",IF(COUNTBLANK(AI15:AI17)=COUNTA(AI15:AI17),"",SUM(AI15:AI17))) ->  | AJ18: =IF(OR($C15="",AI18=""),"",AI18/AI$9) ->  | AL18: =IF($C15="","",IF(COUNTBLANK(AL15:AL17)=COUNTA(AL15:AL17),"",SUM(AL15:AL17))) ->  | AM18: =IF(OR($C15="",AL18=""),"",AL18/AL$9) ->  | AO18: =IF($C15="","",IF(COUNTBLANK(AO15:AO17)=COUNTA(AO15:AO17),"",SUM(AO15:AO17))) ->  | AP18: =IF(OR($C15="",AO18=""),"",AO18/AO$9) ->  | AR18: =IF(OR($C15="",AR$9=""),"",IF(COUNT(AI18,AL18,AO18)=0,"",SUM(AI18,AL18,AO18))) ->  | AS18: =IF(OR($C15="",AR18=""),"",AR18/AR$9) -> 
A19: 1 | B19: 2 | C19: =VLOOKUP(B19,INDIRECT("_"&A19&"組"),2,0)&"" ->  | D19: 知識・技能 | F19: =IF(OR(E19="",$C19="",E$6="",E$6=0),"",IF(E19>=E$11,"A",IF(E19<F$11,"C","B"))) ->  | H19: =IF(OR(G19="",$C19="",G$6="",G$6=0),"",IF(G19>=G$11,"A",IF(G19<H$11,"C","B"))) ->  | J19: =IF(OR(I19="",$C19="",I$6="",I$6=0),"",IF(I19>=I$11,"A",IF(I19<J$11,"C","B"))) ->  | L19: =IF(OR(K19="",$C19="",K$6="",K$6=0),"",IF(K19>=K$11,"A",IF(K19<L$11,"C","B"))) ->  | N19: =IF(OR(M19="",$C19="",M$6="",M$6=0),"",IF(M19>=M$11,"A",IF(M19<N$11,"C","B"))) ->  | P19: =IF(OR(O19="",$C19="",O$6="",O$6=0),"",IF(O19>=O$11,"A",IF(O19<P$11,"C","B"))) ->  | R19: =IF(OR(Q19="",$C19="",Q$6="",Q$6=0),"",IF(Q19>=Q$11,"A",IF(Q19<R$11,"C","B"))) ->  | T19: =IF(OR(S19="",$C19="",S$6="",S$6=0),"",IF(S19>=S$11,"A",IF(S19<T$11,"C","B"))) ->  | AI19: =IF(OR($C19="",AI$6=""),"",IF(COUNTIFS($E$2:$AH$2,AI$1,$E19:$AH19,"<>")=0,"",SUMIF($E$2:$AH$2,AI$1,$E19:$AH19))) ->  | AJ19: =IF(OR($C19="",AI19=""),"",AI19/AI$6) ->  | AK19: =IF(OR($C19="",AJ19="",AI$6="",AI$6=0),"",IF(AJ19*100>=AJ$11,"A",IF(AJ19*100>=AK$11,"B","C"))) ->  | AL19: =IF(OR($C19="",AL$6=""),"",IF(COUNTIFS($E$2:$AH$2,AL$1,$E19:$AH19,"<>")=0,"",SUMIF($E$2:$AH$2,AL$1,$E19:$AH19))) ->  | AM19: =IF(OR($C19="",AL19=""),"",AL19/AL$6) ->  | AN19: =IF(OR($C19="",AM19="",AL$6="",AL$6=0),"",IF(AM19*100>=AM$11,"A",IF(AM19*100>=AN$11,"B","C"))) ->  | AO19: =IF(OR($C19="",AO$6=""),"",IF(COUNTIFS($E$2:$AH$2,AO$1,$E19:$AH19,"<>")=0,"",SUMIF($E$2:$AH$2,AO$1,$E19:$AH19))) ->  | AP19: =IF(OR($C19="",AO19=""),"",AO19/AO$6) ->  | AQ19: =IF(OR($C19="",AP19="",AO$6="",AO$6=0),"",IF(AP19*100>=AP$11,"A",IF(AP19*100>=AQ$11,"B","C"))) ->  | AR19: =IF(OR($C19="",AR$6=""),"",IF(COUNT(AI19,AL19,AO19)=0,"",SUM(AI19,AL19,AO19))) ->  | AS19: =IF(OR($C19="",AR19=""),"",AR19/AR$6) ->  | AT19: =IF(OR($C19="",AS19="",AR$6="",AR$6=0),"",IF(AS19*100>=AS$11,"A",IF(AS19*100>=AT$11,"B","C"))) -> 
D20: 思考判断表現 | F20: =IF(OR(E20="",$C19="",E$7="",E$7=0),"",IF(E20>=E$12,"A",IF(E20<F$12,"C","B"))) ->  | H20: =IF(OR(G20="",$C19="",G$7="",G$7=0),"",IF(G20>=G$12,"A",IF(G20<H$12,"C","B"))) ->  | J20: =IF(OR(I20="",$C19="",I$7="",I$7=0),"",IF(I20>=I$12,"A",IF(I20<J$12,"C","B"))) ->  | L20: =IF(OR(K20="",$C19="",K$7="",K$7=0),"",IF(K20>=K$12,"A",IF(K20<L$12,"C","B"))) ->  | N20: =IF(OR(M20="",$C19="",M$7="",M$7=0),"",IF(M20>=M$12,"A",IF(M20<N$12,"C","B"))) ->  | P20: =IF(OR(O20="",$C19="",O$7="",O$7=0),"",IF(O20>=O$12,"A",IF(O20<P$12,"C","B"))) ->  | R20: =IF(OR(Q20="",$C19="",Q$7="",Q$7=0),"",IF(Q20>=Q$12,"A",IF(Q20<R$12,"C","B"))) ->  | T20: =IF(OR(S20="",$C19="",S$7="",S$7=0),"",IF(S20>=S$12,"A",IF(S20<T$12,"C","B"))) ->  | AI20: =IF(OR($C19="",AI$7=""),"",IF(COUNTIFS($E$2:$AH$2,AI$1,$E20:$AH20,"<>")=0,"",SUMIF($E$2:$AH$2,AI$1,$E20:$AH20))) ->  | AJ20: =IF(OR($C19="",AI20=""),"",AI20/AI$7) ->  | AK20: =IF(OR($C19="",AJ20="",AI$7="",AI$7=0),"",IF(AJ20*100>=AJ$12,"A",IF(AJ20*100>=AK$12,"B","C"))) ->  | AL20: =IF(OR($C19="",AL$7=""),"",IF(COUNTIFS($E$2:$AH$2,AL$1,$E20:$AH20,"<>")=0,"",SUMIF($E$2:$AH$2,AL$1,$E20:$AH20))) ->  | AM20: =IF(OR($C19="",AL20=""),"",AL20/AL$7) ->  | AN20: =IF(OR($C19="",AM20="",AL$7="",AL$7=0),"",IF(AM20*100>=AM$12,"A",IF(AM20*100>=AN$12,"B","C"))) ->  | AO20: =IF(OR($C19="",AO$7=""),"",IF(COUNTIFS($E$2:$AH$2,AO$1,$E20:$AH20,"<>")=0,"",SUMIF($E$2:$AH$2,AO$1,$E20:$AH20))) ->  | AP20: =IF(OR($C19="",AO20=""),"",AO20/AO$7) ->  | AQ20: =IF(OR($C19="",AP20="",AO$7="",AO$7=0),"",IF(AP20*100>=AP$12,"A",IF(AP20*100>=AQ$12,"B","C"))) ->  | AR20: =IF(OR($C19="",AR$7=""),"",IF(COUNT(AI20,AL20,AO20)=0,"",SUM(AI20,AL20,AO20))) ->  | AS20: =IF(OR($C19="",AR20=""),"",AR20/AR$7) ->  | AT20: =IF(OR($C19="",AS20="",AR$7="",AR$7=0),"",IF(AS20*100>=AS$12,"A",IF(AS20*100>=AT$12,"B","C"))) -> 
D21: 主学態 | F21: =IF(OR(E21="",$C19="",E$8="",E$8=0),"",IF(E21>=E$13,"A",IF(E21<F$13,"C","B"))) ->  | H21: =IF(OR(G21="",$C19="",G$8="",G$8=0),"",IF(G21>=G$13,"A",IF(G21<H$13,"C","B"))) ->  | J21: =IF(OR(I21="",$C19="",I$8="",I$8=0),"",IF(I21>=I$13,"A",IF(I21<J$13,"C","B"))) ->  | L21: =IF(OR(K21="",$C19="",K$8="",K$8=0),"",IF(K21>=K$13,"A",IF(K21<L$13,"C","B"))) ->  | N21: =IF(OR(M21="",$C19="",M$8="",M$8=0),"",IF(M21>=M$13,"A",IF(M21<N$13,"C","B"))) ->  | P21: =IF(OR(O21="",$C19="",O$8="",O$8=0),"",IF(O21>=O$13,"A",IF(O21<P$13,"C","B"))) ->  | R21: =IF(OR(Q21="",$C19="",Q$8="",Q$8=0),"",IF(Q21>=Q$13,"A",IF(Q21<R$13,"C","B"))) ->  | T21: =IF(OR(S21="",$C19="",S$8="",S$8=0),"",IF(S21>=S$13,"A",IF(S21<T$13,"C","B"))) ->  | AI21: =IF(OR($C19="",AI$8=""),"",IF(COUNTIFS($E$2:$AH$2,AI$1,$E21:$AH21,"<>")=0,"",SUMIF($E$2:$AH$2,AI$1,$E21:$AH21))) ->  | AJ21: =IF(OR($C19="",AI21=""),"",AI21/AI$8) ->  | AK21: =IF(OR($C19="",AJ21="",AI$8="",AI$8=0),"",IF(AJ21*100>=AJ$13,"A",IF(AJ21*100>=AK$13,"B","C"))) ->  | AL21: =IF(OR($C19="",AL$8=""),"",IF(COUNTIFS($E$2:$AH$2,AL$1,$E21:$AH21,"<>")=0,"",SUMIF($E$2:$AH$2,AL$1,$E21:$AH21))) ->  | AM21: =IF(OR($C19="",AL21=""),"",AL21/AL$8) ->  | AN21: =IF(OR($C19="",AM21="",AL$8="",AL$8=0),"",IF(AM21*100>=AM$13,"A",IF(AM21*100>=AN$13,"B","C"))) ->  | AO21: =IF(OR($C19="",AO$8=""),"",IF(COUNTIFS($E$2:$AH$2,AO$1,$E21:$AH21,"<>")=0,"",SUMIF($E$2:$AH$2,AO$1,$E21:$AH21))) ->  | AP21: =IF(OR($C19="",AO21=""),"",AO21/AO$8) ->  | AQ21: =IF(OR($C19="",AP21="",AO$8="",AO$8=0),"",IF(AP21*100>=AP$13,"A",IF(AP21*100>=AQ$13,"B","C"))) ->  | AR21: =IF(OR($C19="",AR$8=""),"",IF(COUNT(AI21,AL21,AO21)=0,"",SUM(AI21,AL21,AO21))) ->  | AS21: =IF(OR($C19="",AR21=""),"",AR21/AR$8) ->  | AT21: =IF(OR($C19="",AS21="",AR$8="",AR$8=0),"",IF(AS21*100>=AS$13,"A",IF(AS21*100>=AT$13,"B","C"))) -> 
D22: 合計 | E22: =IF(OR(AND(E19="",E20="",E21=""),$C19=""),"",SUM(E19:E21)) ->  | F22: _ | G22: =IF(OR(AND(G19="",G20="",G21=""),$C19=""),"",SUM(G19:G21)) ->  | H22: _ | I22: =IF(OR(AND(I19="",I20="",I21=""),$C19=""),"",SUM(I19:I21)) ->  | J22: _ | K22: =IF(OR(AND(K19="",K20="",K21=""),$C19=""),"",SUM(K19:K21)) ->  | L22: _ | M22: =IF(OR(AND(M19="",M20="",M21=""),$C19=""),"",SUM(M19:M21)) ->  | N22: _ | O22: =IF(OR(AND(O19="",O20="",O21=""),$C19=""),"",SUM(O19:O21)) ->  | P22: _ | Q22: =IF(OR(AND(Q19="",Q20="",Q21=""),$C19=""),"",SUM(Q19:Q21)) ->  | R22: _ | S22: =IF(OR(AND(S19="",S20="",S21=""),$C19=""),"",SUM(S19:S21)) ->  | T22: _ | AI22: =IF($C19="","",IF(COUNTBLANK(AI19:AI21)=COUNTA(AI19:AI21),"",SUM(AI19:AI21))) ->  | AJ22: =IF(OR($C19="",AI22=""),"",AI22/AI$9) ->  | AL22: =IF($C19="","",IF(COUNTBLANK(AL19:AL21)=COUNTA(AL19:AL21),"",SUM(AL19:AL21))) ->  | AM22: =IF(OR($C19="",AL22=""),"",AL22/AL$9) ->  | AO22: =IF($C19="","",IF(COUNTBLANK(AO19:AO21)=COUNTA(AO19:AO21),"",SUM(AO19:AO21))) ->  | AP22: =IF(OR($C19="",AO22=""),"",AO22/AO$9) ->  | AR22: =IF(OR($C19="",AR$9=""),"",IF(COUNT(AI22,AL22,AO22)=0,"",SUM(AI22,AL22,AO22))) ->  | AS22: =IF(OR($C19="",AR22=""),"",AR22/AR$9) -> 
A23: 1 | B23: 3 | C23: =VLOOKUP(B23,INDIRECT("_"&A23&"組"),2,0)&"" ->  | D23: 知識・技能 | F23: =IF(OR(E23="",$C23="",E$6="",E$6=0),"",IF(E23>=E$11,"A",IF(E23<F$11,"C","B"))) ->  | H23: =IF(OR(G23="",$C23="",G$6="",G$6=0),"",IF(G23>=G$11,"A",IF(G23<H$11,"C","B"))) ->  | J23: =IF(OR(I23="",$C23="",I$6="",I$6=0),"",IF(I23>=I$11,"A",IF(I23<J$11,"C","B"))) ->  | L23: =IF(OR(K23="",$C23="",K$6="",K$6=0),"",IF(K23>=K$11,"A",IF(K23<L$11,"C","B"))) ->  | N23: =IF(OR(M23="",$C23="",M$6="",M$6=0),"",IF(M23>=M$11,"A",IF(M23<N$11,"C","B"))) ->  | P23: =IF(OR(O23="",$C23="",O$6="",O$6=0),"",IF(O23>=O$11,"A",IF(O23<P$11,"C","B"))) ->  | R23: =IF(OR(Q23="",$C23="",Q$6="",Q$6=0),"",IF(Q23>=Q$11,"A",IF(Q23<R$11,"C","B"))) ->  | T23: =IF(OR(S23="",$C23="",S$6="",S$6=0),"",IF(S23>=S$11,"A",IF(S23<T$11,"C","B"))) ->  | AI23: =IF(OR($C23="",AI$6=""),"",IF(COUNTIFS($E$2:$AH$2,AI$1,$E23:$AH23,"<>")=0,"",SUMIF($E$2:$AH$2,AI$1,$E23:$AH23))) ->  | AJ23: =IF(OR($C23="",AI23=""),"",AI23/AI$6) ->  | AK23: =IF(OR($C23="",AJ23="",AI$6="",AI$6=0),"",IF(AJ23*100>=AJ$11,"A",IF(AJ23*100>=AK$11,"B","C"))) ->  | AL23: =IF(OR($C23="",AL$6=""),"",IF(COUNTIFS($E$2:$AH$2,AL$1,$E23:$AH23,"<>")=0,"",SUMIF($E$2:$AH$2,AL$1,$E23:$AH23))) ->  | AM23: =IF(OR($C23="",AL23=""),"",AL23/AL$6) ->  | AN23: =IF(OR($C23="",AM23="",AL$6="",AL$6=0),"",IF(AM23*100>=AM$11,"A",IF(AM23*100>=AN$11,"B","C"))) ->  | AO23: =IF(OR($C23="",AO$6=""),"",IF(COUNTIFS($E$2:$AH$2,AO$1,$E23:$AH23,"<>")=0,"",SUMIF($E$2:$AH$2,AO$1,$E23:$AH23))) ->  | AP23: =IF(OR($C23="",AO23=""),"",AO23/AO$6) ->  | AQ23: =IF(OR($C23="",AP23="",AO$6="",AO$6=0),"",IF(AP23*100>=AP$11,"A",IF(AP23*100>=AQ$11,"B","C"))) ->  | AR23: =IF(OR($C23="",AR$6=""),"",IF(COUNT(AI23,AL23,AO23)=0,"",SUM(AI23,AL23,AO23))) ->  | AS23: =IF(OR($C23="",AR23=""),"",AR23/AR$6) ->  | AT23: =IF(OR($C23="",AS23="",AR$6="",AR$6=0),"",IF(AS23*100>=AS$11,"A",IF(AS23*100>=AT$11,"B","C"))) -> 
D24: 思考判断表現 | F24: =IF(OR(E24="",$C23="",E$7="",E$7=0),"",IF(E24>=E$12,"A",IF(E24<F$12,"C","B"))) ->  | H24: =IF(OR(G24="",$C23="",G$7="",G$7=0),"",IF(G24>=G$12,"A",IF(G24<H$12,"C","B"))) ->  | J24: =IF(OR(I24="",$C23="",I$7="",I$7=0),"",IF(I24>=I$12,"A",IF(I24<J$12,"C","B"))) ->  | L24: =IF(OR(K24="",$C23="",K$7="",K$7=0),"",IF(K24>=K$12,"A",IF(K24<L$12,"C","B"))) ->  | N24: =IF(OR(M24="",$C23="",M$7="",M$7=0),"",IF(M24>=M$12,"A",IF(M24<N$12,"C","B"))) ->  | P24: =IF(OR(O24="",$C23="",O$7="",O$7=0),"",IF(O24>=O$12,"A",IF(O24<P$12,"C","B"))) ->  | R24: =IF(OR(Q24="",$C23="",Q$7="",Q$7=0),"",IF(Q24>=Q$12,"A",IF(Q24<R$12,"C","B"))) ->  | T24: =IF(OR(S24="",$C23="",S$7="",S$7=0),"",IF(S24>=S$12,"A",IF(S24<T$12,"C","B"))) ->  | AI24: =IF(OR($C23="",AI$7=""),"",IF(COUNTIFS($E$2:$AH$2,AI$1,$E24:$AH24,"<>")=0,"",SUMIF($E$2:$AH$2,AI$1,$E24:$AH24))) ->  | AJ24: =IF(OR($C23="",AI24=""),"",AI24/AI$7) ->  | AK24: =IF(OR($C23="",AJ24="",AI$7="",AI$7=0),"",IF(AJ24*100>=AJ$12,"A",IF(AJ24*100>=AK$12,"B","C"))) ->  | AL24: =IF(OR($C23="",AL$7=""),"",IF(COUNTIFS($E$2:$AH$2,AL$1,$E24:$AH24,"<>")=0,"",SUMIF($E$2:$AH$2,AL$1,$E24:$AH24))) ->  | AM24: =IF(OR($C23="",AL24=""),"",AL24/AL$7) ->  | AN24: =IF(OR($C23="",AM24="",AL$7="",AL$7=0),"",IF(AM24*100>=AM$12,"A",IF(AM24*100>=AN$12,"B","C"))) ->  | AO24: =IF(OR($C23="",AO$7=""),"",IF(COUNTIFS($E$2:$AH$2,AO$1,$E24:$AH24,"<>")=0,"",SUMIF($E$2:$AH$2,AO$1,$E24:$AH24))) ->  | AP24: =IF(OR($C23="",AO24=""),"",AO24/AO$7) ->  | AQ24: =IF(OR($C23="",AP24="",AO$7="",AO$7=0),"",IF(AP24*100>=AP$12,"A",IF(AP24*100>=AQ$12,"B","C"))) ->  | AR24: =IF(OR($C23="",AR$7=""),"",IF(COUNT(AI24,AL24,AO24)=0,"",SUM(AI24,AL24,AO24))) ->  | AS24: =IF(OR($C23="",AR24=""),"",AR24/AR$7) ->  | AT24: =IF(OR($C23="",AS24="",AR$7="",AR$7=0),"",IF(AS24*100>=AS$12,"A",IF(AS24*100>=AT$12,"B","C"))) -> 
D25: 主学態 | F25: =IF(OR(E25="",$C23="",E$8="",E$8=0),"",IF(E25>=E$13,"A",IF(E25<F$13,"C","B"))) ->  | H25: =IF(OR(G25="",$C23="",G$8="",G$8=0),"",IF(G25>=G$13,"A",IF(G25<H$13,"C","B"))) ->  | J25: =IF(OR(I25="",$C23="",I$8="",I$8=0),"",IF(I25>=I$13,"A",IF(I25<J$13,"C","B"))) ->  | L25: =IF(OR(K25="",$C23="",K$8="",K$8=0),"",IF(K25>=K$13,"A",IF(K25<L$13,"C","B"))) ->  | N25: =IF(OR(M25="",$C23="",M$8="",M$8=0),"",IF(M25>=M$13,"A",IF(M25<N$13,"C","B"))) ->  | P25: =IF(OR(O25="",$C23="",O$8="",O$8=0),"",IF(O25>=O$13,"A",IF(O25<P$13,"C","B"))) ->  | R25: =IF(OR(Q25="",$C23="",Q$8="",Q$8=0),"",IF(Q25>=Q$13,"A",IF(Q25<R$13,"C","B"))) ->  | T25: =IF(OR(S25="",$C23="",S$8="",S$8=0),"",IF(S25>=S$13,"A",IF(S25<T$13,"C","B"))) ->  | AI25: =IF(OR($C23="",AI$8=""),"",IF(COUNTIFS($E$2:$AH$2,AI$1,$E25:$AH25,"<>")=0,"",SUMIF($E$2:$AH$2,AI$1,$E25:$AH25))) ->  | AJ25: =IF(OR($C23="",AI25=""),"",AI25/AI$8) ->  | AK25: =IF(OR($C23="",AJ25="",AI$8="",AI$8=0),"",IF(AJ25*100>=AJ$13,"A",IF(AJ25*100>=AK$13,"B","C"))) ->  | AL25: =IF(OR($C23="",AL$8=""),"",IF(COUNTIFS($E$2:$AH$2,AL$1,$E25:$AH25,"<>")=0,"",SUMIF($E$2:$AH$2,AL$1,$E25:$AH25))) ->  | AM25: =IF(OR($C23="",AL25=""),"",AL25/AL$8) ->  | AN25: =IF(OR($C23="",AM25="",AL$8="",AL$8=0),"",IF(AM25*100>=AM$13,"A",IF(AM25*100>=AN$13,"B","C"))) ->  | AO25: =IF(OR($C23="",AO$8=""),"",IF(COUNTIFS($E$2:$AH$2,AO$1,$E25:$AH25,"<>")=0,"",SUMIF($E$2:$AH$2,AO$1,$E25:$AH25))) ->  | AP25: =IF(OR($C23="",AO25=""),"",AO25/AO$8) ->  | AQ25: =IF(OR($C23="",AP25="",AO$8="",AO$8=0),"",IF(AP25*100>=AP$13,"A",IF(AP25*100>=AQ$13,"B","C"))) ->  | AR25: =IF(OR($C23="",AR$8=""),"",IF(COUNT(AI25,AL25,AO25)=0,"",SUM(AI25,AL25,AO25))) ->  | AS25: =IF(OR($C23="",AR25=""),"",AR25/AR$8) ->  | AT25: =IF(OR($C23="",AS25="",AR$8="",AR$8=0),"",IF(AS25*100>=AS$13,"A",IF(AS25*100>=AT$13,"B","C"))) -> 
D26: 合計 | E26: =IF(OR(AND(E23="",E24="",E25=""),$C23=""),"",SUM(E23:E25)) ->  | F26: _ | G26: =IF(OR(AND(G23="",G24="",G25=""),$C23=""),"",SUM(G23:G25)) ->  | H26: _ | I26: =IF(OR(AND(I23="",I24="",I25=""),$C23=""),"",SUM(I23:I25)) ->  | J26: _ | K26: =IF(OR(AND(K23="",K24="",K25=""),$C23=""),"",SUM(K23:K25)) ->  | L26: _ | M26: =IF(OR(AND(M23="",M24="",M25=""),$C23=""),"",SUM(M23:M25)) ->  | N26: _ | O26: =IF(OR(AND(O23="",O24="",O25=""),$C23=""),"",SUM(O23:O25)) ->  | P26: _ | Q26: =IF(OR(AND(Q23="",Q24="",Q25=""),$C23=""),"",SUM(Q23:Q25)) ->  | R26: _ | S26: =IF(OR(AND(S23="",S24="",S25=""),$C23=""),"",SUM(S23:S25)) ->  | T26: _ | AI26: =IF($C23="","",IF(COUNTBLANK(AI23:AI25)=COUNTA(AI23:AI25),"",SUM(AI23:AI25))) ->  | AJ26: =IF(OR($C23="",AI26=""),"",AI26/AI$9) ->  | AL26: =IF($C23="","",IF(COUNTBLANK(AL23:AL25)=COUNTA(AL23:AL25),"",SUM(AL23:AL25))) ->  | AM26: =IF(OR($C23="",AL26=""),"",AL26/AL$9) ->  | AO26: =IF($C23="","",IF(COUNTBLANK(AO23:AO25)=COUNTA(AO23:AO25),"",SUM(AO23:AO25))) ->  | AP26: =IF(OR($C23="",AO26=""),"",AO26/AO$9) ->  | AR26: =IF(OR($C23="",AR$9=""),"",IF(COUNT(AI26,AL26,AO26)=0,"",SUM(AI26,AL26,AO26))) ->  | AS26: =IF(OR($C23="",AR26=""),"",AR26/AR$9) -> 
A27: 1 | B27: 4 | C27: =VLOOKUP(B27,INDIRECT("_"&A27&"組"),2,0)&"" ->  | D27: 知識・技能 | F27: =IF(OR(E27="",$C27="",E$6="",E$6=0),"",IF(E27>=E$11,"A",IF(E27<F$11,"C","B"))) ->  | H27: =IF(OR(G27="",$C27="",G$6="",G$6=0),"",IF(G27>=G$11,"A",IF(G27<H$11,"C","B"))) ->  | J27: =IF(OR(I27="",$C27="",I$6="",I$6=0),"",IF(I27>=I$11,"A",IF(I27<J$11,"C","B"))) ->  | L27: =IF(OR(K27="",$C27="",K$6="",K$6=0),"",IF(K27>=K$11,"A",IF(K27<L$11,"C","B"))) ->  | N27: =IF(OR(M27="",$C27="",M$6="",M$6=0),"",IF(M27>=M$11,"A",IF(M27<N$11,"C","B"))) ->  | P27: =IF(OR(O27="",$C27="",O$6="",O$6=0),"",IF(O27>=O$11,"A",IF(O27<P$11,"C","B"))) ->  | R27: =IF(OR(Q27="",$C27="",Q$6="",Q$6=0),"",IF(Q27>=Q$11,"A",IF(Q27<R$11,"C","B"))) ->  | T27: =IF(OR(S27="",$C27="",S$6="",S$6=0),"",IF(S27>=S$11,"A",IF(S27<T$11,"C","B"))) ->  | AI27: =IF(OR($C27="",AI$6=""),"",IF(COUNTIFS($E$2:$AH$2,AI$1,$E27:$AH27,"<>")=0,"",SUMIF($E$2:$AH$2,AI$1,$E27:$AH27))) ->  | AJ27: =IF(OR($C27="",AI27=""),"",AI27/AI$6) ->  | AK27: =IF(OR($C27="",AJ27="",AI$6="",AI$6=0),"",IF(AJ27*100>=AJ$11,"A",IF(AJ27*100>=AK$11,"B","C"))) ->  | AL27: =IF(OR($C27="",AL$6=""),"",IF(COUNTIFS($E$2:$AH$2,AL$1,$E27:$AH27,"<>")=0,"",SUMIF($E$2:$AH$2,AL$1,$E27:$AH27))) ->  | AM27: =IF(OR($C27="",AL27=""),"",AL27/AL$6) ->  | AN27: =IF(OR($C27="",AM27="",AL$6="",AL$6=0),"",IF(AM27*100>=AM$11,"A",IF(AM27*100>=AN$11,"B","C"))) ->  | AO27: =IF(OR($C27="",AO$6=""),"",IF(COUNTIFS($E$2:$AH$2,AO$1,$E27:$AH27,"<>")=0,"",SUMIF($E$2:$AH$2,AO$1,$E27:$AH27))) ->  | AP27: =IF(OR($C27="",AO27=""),"",AO27/AO$6) ->  | AQ27: =IF(OR($C27="",AP27="",AO$6="",AO$6=0),"",IF(AP27*100>=AP$11,"A",IF(AP27*100>=AQ$11,"B","C"))) ->  | AR27: =IF(OR($C27="",AR$6=""),"",IF(COUNT(AI27,AL27,AO27)=0,"",SUM(AI27,AL27,AO27))) ->  | AS27: =IF(OR($C27="",AR27=""),"",AR27/AR$6) ->  | AT27: =IF(OR($C27="",AS27="",AR$6="",AR$6=0),"",IF(AS27*100>=AS$11,"A",IF(AS27*100>=AT$11,"B","C"))) -> 
D28: 思考判断表現 | F28: =IF(OR(E28="",$C27="",E$7="",E$7=0),"",IF(E28>=E$12,"A",IF(E28<F$12,"C","B"))) ->  | H28: =IF(OR(G28="",$C27="",G$7="",G$7=0),"",IF(G28>=G$12,"A",IF(G28<H$12,"C","B"))) ->  | J28: =IF(OR(I28="",$C27="",I$7="",I$7=0),"",IF(I28>=I$12,"A",IF(I28<J$12,"C","B"))) ->  | L28: =IF(OR(K28="",$C27="",K$7="",K$7=0),"",IF(K28>=K$12,"A",IF(K28<L$12,"C","B"))) ->  | N28: =IF(OR(M28="",$C27="",M$7="",M$7=0),"",IF(M28>=M$12,"A",IF(M28<N$12,"C","B"))) ->  | P28: =IF(OR(O28="",$C27="",O$7="",O$7=0),"",IF(O28>=O$12,"A",IF(O28<P$12,"C","B"))) ->  | R28: =IF(OR(Q28="",$C27="",Q$7="",Q$7=0),"",IF(Q28>=Q$12,"A",IF(Q28<R$12,"C","B"))) ->  | T28: =IF(OR(S28="",$C27="",S$7="",S$7=0),"",IF(S28>=S$12,"A",IF(S28<T$12,"C","B"))) ->  | AI28: =IF(OR($C27="",AI$7=""),"",IF(COUNTIFS($E$2:$AH$2,AI$1,$E28:$AH28,"<>")=0,"",SUMIF($E$2:$AH$2,AI$1,$E28:$AH28))) ->  | AJ28: =IF(OR($C27="",AI28=""),"",AI28/AI$7) ->  | AK28: =IF(OR($C27="",AJ28="",AI$7="",AI$7=0),"",IF(AJ28*100>=AJ$12,"A",IF(AJ28*100>=AK$12,"B","C"))) ->  | AL28: =IF(OR($C27="",AL$7=""),"",IF(COUNTIFS($E$2:$AH$2,AL$1,$E28:$AH28,"<>")=0,"",SUMIF($E$2:$AH$2,AL$1,$E28:$AH28))) ->  | AM28: =IF(OR($C27="",AL28=""),"",AL28/AL$7) ->  | AN28: =IF(OR($C27="",AM28="",AL$7="",AL$7=0),"",IF(AM28*100>=AM$12,"A",IF(AM28*100>=AN$12,"B","C"))) ->  | AO28: =IF(OR($C27="",AO$7=""),"",IF(COUNTIFS($E$2:$AH$2,AO$1,$E28:$AH28,"<>")=0,"",SUMIF($E$2:$AH$2,AO$1,$E28:$AH28))) ->  | AP28: =IF(OR($C27="",AO28=""),"",AO28/AO$7) ->  | AQ28: =IF(OR($C27="",AP28="",AO$7="",AO$7=0),"",IF(AP28*100>=AP$12,"A",IF(AP28*100>=AQ$12,"B","C"))) ->  | AR28: =IF(OR($C27="",AR$7=""),"",IF(COUNT(AI28,AL28,AO28)=0,"",SUM(AI28,AL28,AO28))) ->  | AS28: =IF(OR($C27="",AR28=""),"",AR28/AR$7) ->  | AT28: =IF(OR($C27="",AS28="",AR$7="",AR$7=0),"",IF(AS28*100>=AS$12,"A",IF(AS28*100>=AT$12,"B","C"))) -> 
D29: 主学態 | F29: =IF(OR(E29="",$C27="",E$8="",E$8=0),"",IF(E29>=E$13,"A",IF(E29<F$13,"C","B"))) ->  | H29: =IF(OR(G29="",$C27="",G$8="",G$8=0),"",IF(G29>=G$13,"A",IF(G29<H$13,"C","B"))) ->  | J29: =IF(OR(I29="",$C27="",I$8="",I$8=0),"",IF(I29>=I$13,"A",IF(I29<J$13,"C","B"))) ->  | L29: =IF(OR(K29="",$C27="",K$8="",K$8=0),"",IF(K29>=K$13,"A",IF(K29<L$13,"C","B"))) ->  | N29: =IF(OR(M29="",$C27="",M$8="",M$8=0),"",IF(M29>=M$13,"A",IF(M29<N$13,"C","B"))) ->  | P29: =IF(OR(O29="",$C27="",O$8="",O$8=0),"",IF(O29>=O$13,"A",IF(O29<P$13,"C","B"))) ->  | R29: =IF(OR(Q29="",$C27="",Q$8="",Q$8=0),"",IF(Q29>=Q$13,"A",IF(Q29<R$13,"C","B"))) ->  | T29: =IF(OR(S29="",$C27="",S$8="",S$8=0),"",IF(S29>=S$13,"A",IF(S29<T$13,"C","B"))) ->  | AI29: =IF(OR($C27="",AI$8=""),"",IF(COUNTIFS($E$2:$AH$2,AI$1,$E29:$AH29,"<>")=0,"",SUMIF($E$2:$AH$2,AI$1,$E29:$AH29))) ->  | AJ29: =IF(OR($C27="",AI29=""),"",AI29/AI$8) ->  | AK29: =IF(OR($C27="",AJ29="",AI$8="",AI$8=0),"",IF(AJ29*100>=AJ$13,"A",IF(AJ29*100>=AK$13,"B","C"))) ->  | AL29: =IF(OR($C27="",AL$8=""),"",IF(COUNTIFS($E$2:$AH$2,AL$1,$E29:$AH29,"<>")=0,"",SUMIF($E$2:$AH$2,AL$1,$E29:$AH29))) ->  | AM29: =IF(OR($C27="",AL29=""),"",AL29/AL$8) ->  | AN29: =IF(OR($C27="",AM29="",AL$8="",AL$8=0),"",IF(AM29*100>=AM$13,"A",IF(AM29*100>=AN$13,"B","C"))) ->  | AO29: =IF(OR($C27="",AO$8=""),"",IF(COUNTIFS($E$2:$AH$2,AO$1,$E29:$AH29,"<>")=0,"",SUMIF($E$2:$AH$2,AO$1,$E29:$AH29))) ->  | AP29: =IF(OR($C27="",AO29=""),"",AO29/AO$8) ->  | AQ29: =IF(OR($C27="",AP29="",AO$8="",AO$8=0),"",IF(AP29*100>=AP$13,"A",IF(AP29*100>=AQ$13,"B","C"))) ->  | AR29: =IF(OR($C27="",AR$8=""),"",IF(COUNT(AI29,AL29,AO29)=0,"",SUM(AI29,AL29,AO29))) ->  | AS29: =IF(OR($C27="",AR29=""),"",AR29/AR$8) ->  | AT29: =IF(OR($C27="",AS29="",AR$8="",AR$8=0),"",IF(AS29*100>=AS$13,"A",IF(AS29*100>=AT$13,"B","C"))) -> 
D30: 合計 | E30: =IF(OR(AND(E27="",E28="",E29=""),$C27=""),"",SUM(E27:E29)) ->  | F30: _ | G30: =IF(OR(AND(G27="",G28="",G29=""),$C27=""),"",SUM(G27:G29)) ->  | H30: _ | I30: =IF(OR(AND(I27="",I28="",I29=""),$C27=""),"",SUM(I27:I29)) ->  | J30: _ | K30: =IF(OR(AND(K27="",K28="",K29=""),$C27=""),"",SUM(K27:K29)) ->  | L30: _ | M30: =IF(OR(AND(M27="",M28="",M29=""),$C27=""),"",SUM(M27:M29)) ->  | N30: _ | O30: =IF(OR(AND(O27="",O28="",O29=""),$C27=""),"",SUM(O27:O29)) ->  | P30: _ | Q30: =IF(OR(AND(Q27="",Q28="",Q29=""),$C27=""),"",SUM(Q27:Q29)) ->  | R30: _ | S30: =IF(OR(AND(S27="",S28="",S29=""),$C27=""),"",SUM(S27:S29)) ->  | T30: _ | AI30: =IF($C27="","",IF(COUNTBLANK(AI27:AI29)=COUNTA(AI27:AI29),"",SUM(AI27:AI29))) ->  | AJ30: =IF(OR($C27="",AI30=""),"",AI30/AI$9) ->  | AL30: =IF($C27="","",IF(COUNTBLANK(AL27:AL29)=COUNTA(AL27:AL29),"",SUM(AL27:AL29))) ->  | AM30: =IF(OR($C27="",AL30=""),"",AL30/AL$9) ->  | AO30: =IF($C27="","",IF(COUNTBLANK(AO27:AO29)=COUNTA(AO27:AO29),"",SUM(AO27:AO29))) ->  | AP30: =IF(OR($C27="",AO30=""),"",AO30/AO$9) ->  | AR30: =IF(OR($C27="",AR$9=""),"",IF(COUNT(AI30,AL30,AO30)=0,"",SUM(AI30,AL30,AO30))) ->  | AS30: =IF(OR($C27="",AR30=""),"",AR30/AR$9) -> 
A31: 1 | B31: 5 | C31: =VLOOKUP(B31,INDIRECT("_"&A31&"組"),2,0)&"" ->  | D31: 知識・技能 | F31: =IF(OR(E31="",$C31="",E$6="",E$6=0),"",IF(E31>=E$11,"A",IF(E31<F$11,"C","B"))) ->  | H31: =IF(OR(G31="",$C31="",G$6="",G$6=0),"",IF(G31>=G$11,"A",IF(G31<H$11,"C","B"))) ->  | J31: =IF(OR(I31="",$C31="",I$6="",I$6=0),"",IF(I31>=I$11,"A",IF(I31<J$11,"C","B"))) ->  | L31: =IF(OR(K31="",$C31="",K$6="",K$6=0),"",IF(K31>=K$11,"A",IF(K31<L$11,"C","B"))) ->  | N31: =IF(OR(M31="",$C31="",M$6="",M$6=0),"",IF(M31>=M$11,"A",IF(M31<N$11,"C","B"))) ->  | P31: =IF(OR(O31="",$C31="",O$6="",O$6=0),"",IF(O31>=O$11,"A",IF(O31<P$11,"C","B"))) ->  | R31: =IF(OR(Q31="",$C31="",Q$6="",Q$6=0),"",IF(Q31>=Q$11,"A",IF(Q31<R$11,"C","B"))) ->  | T31: =IF(OR(S31="",$C31="",S$6="",S$6=0),"",IF(S31>=S$11,"A",IF(S31<T$11,"C","B"))) ->  | AI31: =IF(OR($C31="",AI$6=""),"",IF(COUNTIFS($E$2:$AH$2,AI$1,$E31:$AH31,"<>")=0,"",SUMIF($E$2:$AH$2,AI$1,$E31:$AH31))) ->  | AJ31: =IF(OR($C31="",AI31=""),"",AI31/AI$6) ->  | AK31: =IF(OR($C31="",AJ31="",AI$6="",AI$6=0),"",IF(AJ31*100>=AJ$11,"A",IF(AJ31*100>=AK$11,"B","C"))) ->  | AL31: =IF(OR($C31="",AL$6=""),"",IF(COUNTIFS($E$2:$AH$2,AL$1,$E31:$AH31,"<>")=0,"",SUMIF($E$2:$AH$2,AL$1,$E31:$AH31))) ->  | AM31: =IF(OR($C31="",AL31=""),"",AL31/AL$6) ->  | AN31: =IF(OR($C31="",AM31="",AL$6="",AL$6=0),"",IF(AM31*100>=AM$11,"A",IF(AM31*100>=AN$11,"B","C"))) ->  | AO31: =IF(OR($C31="",AO$6=""),"",IF(COUNTIFS($E$2:$AH$2,AO$1,$E31:$AH31,"<>")=0,"",SUMIF($E$2:$AH$2,AO$1,$E31:$AH31))) ->  | AP31: =IF(OR($C31="",AO31=""),"",AO31/AO$6) ->  | AQ31: =IF(OR($C31="",AP31="",AO$6="",AO$6=0),"",IF(AP31*100>=AP$11,"A",IF(AP31*100>=AQ$11,"B","C"))) ->  | AR31: =IF(OR($C31="",AR$6=""),"",IF(COUNT(AI31,AL31,AO31)=0,"",SUM(AI31,AL31,AO31))) ->  | AS31: =IF(OR($C31="",AR31=""),"",AR31/AR$6) ->  | AT31: =IF(OR($C31="",AS31="",AR$6="",AR$6=0),"",IF(AS31*100>=AS$11,"A",IF(AS31*100>=AT$11,"B","C"))) -> 
D32: 思考判断表現 | F32: =IF(OR(E32="",$C31="",E$7="",E$7=0),"",IF(E32>=E$12,"A",IF(E32<F$12,"C","B"))) ->  | H32: =IF(OR(G32="",$C31="",G$7="",G$7=0),"",IF(G32>=G$12,"A",IF(G32<H$12,"C","B"))) ->  | J32: =IF(OR(I32="",$C31="",I$7="",I$7=0),"",IF(I32>=I$12,"A",IF(I32<J$12,"C","B"))) ->  | L32: =IF(OR(K32="",$C31="",K$7="",K$7=0),"",IF(K32>=K$12,"A",IF(K32<L$12,"C","B"))) ->  | N32: =IF(OR(M32="",$C31="",M$7="",M$7=0),"",IF(M32>=M$12,"A",IF(M32<N$12,"C","B"))) ->  | P32: =IF(OR(O32="",$C31="",O$7="",O$7=0),"",IF(O32>=O$12,"A",IF(O32<P$12,"C","B"))) ->  | R32: =IF(OR(Q32="",$C31="",Q$7="",Q$7=0),"",IF(Q32>=Q$12,"A",IF(Q32<R$12,"C","B"))) ->  | T32: =IF(OR(S32="",$C31="",S$7="",S$7=0),"",IF(S32>=S$12,"A",IF(S32<T$12,"C","B"))) ->  | AI32: =IF(OR($C31="",AI$7=""),"",IF(COUNTIFS($E$2:$AH$2,AI$1,$E32:$AH32,"<>")=0,"",SUMIF($E$2:$AH$2,AI$1,$E32:$AH32))) ->  | AJ32: =IF(OR($C31="",AI32=""),"",AI32/AI$7) ->  | AK32: =IF(OR($C31="",AJ32="",AI$7="",AI$7=0),"",IF(AJ32*100>=AJ$12,"A",IF(AJ32*100>=AK$12,"B","C"))) ->  | AL32: =IF(OR($C31="",AL$7=""),"",IF(COUNTIFS($E$2:$AH$2,AL$1,$E32:$AH32,"<>")=0,"",SUMIF($E$2:$AH$2,AL$1,$E32:$AH32))) ->  | AM32: =IF(OR($C31="",AL32=""),"",AL32/AL$7) ->  | AN32: =IF(OR($C31="",AM32="",AL$7="",AL$7=0),"",IF(AM32*100>=AM$12,"A",IF(AM32*100>=AN$12,"B","C"))) ->  | AO32: =IF(OR($C31="",AO$7=""),"",IF(COUNTIFS($E$2:$AH$2,AO$1,$E32:$AH32,"<>")=0,"",SUMIF($E$2:$AH$2,AO$1,$E32:$AH32))) ->  | AP32: =IF(OR($C31="",AO32=""),"",AO32/AO$7) ->  | AQ32: =IF(OR($C31="",AP32="",AO$7="",AO$7=0),"",IF(AP32*100>=AP$12,"A",IF(AP32*100>=AQ$12,"B","C"))) ->  | AR32: =IF(OR($C31="",AR$7=""),"",IF(COUNT(AI32,AL32,AO32)=0,"",SUM(AI32,AL32,AO32))) ->  | AS32: =IF(OR($C31="",AR32=""),"",AR32/AR$7) ->  | AT32: =IF(OR($C31="",AS32="",AR$7="",AR$7=0),"",IF(AS32*100>=AS$12,"A",IF(AS32*100>=AT$12,"B","C"))) -> 
D33: 主学態 | F33: =IF(OR(E33="",$C31="",E$8="",E$8=0),"",IF(E33>=E$13,"A",IF(E33<F$13,"C","B"))) ->  | H33: =IF(OR(G33="",$C31="",G$8="",G$8=0),"",IF(G33>=G$13,"A",IF(G33<H$13,"C","B"))) ->  | J33: =IF(OR(I33="",$C31="",I$8="",I$8=0),"",IF(I33>=I$13,"A",IF(I33<J$13,"C","B"))) ->  | L33: =IF(OR(K33="",$C31="",K$8="",K$8=0),"",IF(K33>=K$13,"A",IF(K33<L$13,"C","B"))) ->  | N33: =IF(OR(M33="",$C31="",M$8="",M$8=0),"",IF(M33>=M$13,"A",IF(M33<N$13,"C","B"))) ->  | P33: =IF(OR(O33="",$C31="",O$8="",O$8=0),"",IF(O33>=O$13,"A",IF(O33<P$13,"C","B"))) ->  | R33: =IF(OR(Q33="",$C31="",Q$8="",Q$8=0),"",IF(Q33>=Q$13,"A",IF(Q33<R$13,"C","B"))) ->  | T33: =IF(OR(S33="",$C31="",S$8="",S$8=0),"",IF(S33>=S$13,"A",IF(S33<T$13,"C","B"))) ->  | AI33: =IF(OR($C31="",AI$8=""),"",IF(COUNTIFS($E$2:$AH$2,AI$1,$E33:$AH33,"<>")=0,"",SUMIF($E$2:$AH$2,AI$1,$E33:$AH33))) ->  | AJ33: =IF(OR($C31="",AI33=""),"",AI33/AI$8) ->  | AK33: =IF(OR($C31="",AJ33="",AI$8="",AI$8=0),"",IF(AJ33*100>=AJ$13,"A",IF(AJ33*100>=AK$13,"B","C"))) ->  | AL33: =IF(OR($C31="",AL$8=""),"",IF(COUNTIFS($E$2:$AH$2,AL$1,$E33:$AH33,"<>")=0,"",SUMIF($E$2:$AH$2,AL$1,$E33:$AH33))) ->  | AM33: =IF(OR($C31="",AL33=""),"",AL33/AL$8) ->  | AN33: =IF(OR($C31="",AM33="",AL$8="",AL$8=0),"",IF(AM33*100>=AM$13,"A",IF(AM33*100>=AN$13,"B","C"))) ->  | AO33: =IF(OR($C31="",AO$8=""),"",IF(COUNTIFS($E$2:$AH$2,AO$1,$E33:$AH33,"<>")=0,"",SUMIF($E$2:$AH$2,AO$1,$E33:$AH33))) ->  | AP33: =IF(OR($C31="",AO33=""),"",AO33/AO$8) ->  | AQ33: =IF(OR($C31="",AP33="",AO$8="",AO$8=0),"",IF(AP33*100>=AP$13,"A",IF(AP33*100>=AQ$13,"B","C"))) ->  | AR33: =IF(OR($C31="",AR$8=""),"",IF(COUNT(AI33,AL33,AO33)=0,"",SUM(AI33,AL33,AO33))) ->  | AS33: =IF(OR($C31="",AR33=""),"",AR33/AR$8) ->  | AT33: =IF(OR($C31="",AS33="",AR$8="",AR$8=0),"",IF(AS33*100>=AS$13,"A",IF(AS33*100>=AT$13,"B","C"))) -> 
D34: 合計 | E34: =IF(OR(AND(E31="",E32="",E33=""),$C31=""),"",SUM(E31:E33)) ->  | F34: _ | G34: =IF(OR(AND(G31="",G32="",G33=""),$C31=""),"",SUM(G31:G33)) ->  | H34: _ | I34: =IF(OR(AND(I31="",I32="",I33=""),$C31=""),"",SUM(I31:I33)) ->  | J34: _ | K34: =IF(OR(AND(K31="",K32="",K33=""),$C31=""),"",SUM(K31:K33)) ->  | L34: _ | M34: =IF(OR(AND(M31="",M32="",M33=""),$C31=""),"",SUM(M31:M33)) ->  | N34: _ | O34: =IF(OR(AND(O31="",O32="",O33=""),$C31=""),"",SUM(O31:O33)) ->  | P34: _ | Q34: =IF(OR(AND(Q31="",Q32="",Q33=""),$C31=""),"",SUM(Q31:Q33)) ->  | R34: _ | S34: =IF(OR(AND(S31="",S32="",S33=""),$C31=""),"",SUM(S31:S33)) ->  | T34: _ | AI34: =IF($C31="","",IF(COUNTBLANK(AI31:AI33)=COUNTA(AI31:AI33),"",SUM(AI31:AI33))) ->  | AJ34: =IF(OR($C31="",AI34=""),"",AI34/AI$9) ->  | AL34: =IF($C31="","",IF(COUNTBLANK(AL31:AL33)=COUNTA(AL31:AL33),"",SUM(AL31:AL33))) ->  | AM34: =IF(OR($C31="",AL34=""),"",AL34/AL$9) ->  | AO34: =IF($C31="","",IF(COUNTBLANK(AO31:AO33)=COUNTA(AO31:AO33),"",SUM(AO31:AO33))) ->  | AP34: =IF(OR($C31="",AO34=""),"",AO34/AO$9) ->  | AR34: =IF(OR($C31="",AR$9=""),"",IF(COUNT(AI34,AL34,AO34)=0,"",SUM(AI34,AL34,AO34))) ->  | AS34: =IF(OR($C31="",AR34=""),"",AR34/AR$9) -> 
A35: 1 | B35: 6 | C35: =VLOOKUP(B35,INDIRECT("_"&A35&"組"),2,0)&"" ->  | D35: 知識・技能 | F35: =IF(OR(E35="",$C35="",E$6="",E$6=0),"",IF(E35>=E$11,"A",IF(E35<F$11,"C","B"))) ->  | H35: =IF(OR(G35="",$C35="",G$6="",G$6=0),"",IF(G35>=G$11,"A",IF(G35<H$11,"C","B"))) ->  | J35: =IF(OR(I35="",$C35="",I$6="",I$6=0),"",IF(I35>=I$11,"A",IF(I35<J$11,"C","B"))) ->  | L35: =IF(OR(K35="",$C35="",K$6="",K$6=0),"",IF(K35>=K$11,"A",IF(K35<L$11,"C","B"))) ->  | N35: =IF(OR(M35="",$C35="",M$6="",M$6=0),"",IF(M35>=M$11,"A",IF(M35<N$11,"C","B"))) ->  | P35: =IF(OR(O35="",$C35="",O$6="",O$6=0),"",IF(O35>=O$11,"A",IF(O35<P$11,"C","B"))) ->  | R35: =IF(OR(Q35="",$C35="",Q$6="",Q$6=0),"",IF(Q35>=Q$11,"A",IF(Q35<R$11,"C","B"))) ->  | T35: =IF(OR(S35="",$C35="",S$6="",S$6=0),"",IF(S35>=S$11,"A",IF(S35<T$11,"C","B"))) ->  | AI35: =IF(OR($C35="",AI$6=""),"",IF(COUNTIFS($E$2:$AH$2,AI$1,$E35:$AH35,"<>")=0,"",SUMIF($E$2:$AH$2,AI$1,$E35:$AH35))) ->  | AJ35: =IF(OR($C35="",AI35=""),"",AI35/AI$6) ->  | AK35: =IF(OR($C35="",AJ35="",AI$6="",AI$6=0),"",IF(AJ35*100>=AJ$11,"A",IF(AJ35*100>=AK$11,"B","C"))) ->  | AL35: =IF(OR($C35="",AL$6=""),"",IF(COUNTIFS($E$2:$AH$2,AL$1,$E35:$AH35,"<>")=0,"",SUMIF($E$2:$AH$2,AL$1,$E35:$AH35))) ->  | AM35: =IF(OR($C35="",AL35=""),"",AL35/AL$6) ->  | AN35: =IF(OR($C35="",AM35="",AL$6="",AL$6=0),"",IF(AM35*100>=AM$11,"A",IF(AM35*100>=AN$11,"B","C"))) ->  | AO35: =IF(OR($C35="",AO$6=""),"",IF(COUNTIFS($E$2:$AH$2,AO$1,$E35:$AH35,"<>")=0,"",SUMIF($E$2:$AH$2,AO$1,$E35:$AH35))) ->  | AP35: =IF(OR($C35="",AO35=""),"",AO35/AO$6) ->  | AQ35: =IF(OR($C35="",AP35="",AO$6="",AO$6=0),"",IF(AP35*100>=AP$11,"A",IF(AP35*100>=AQ$11,"B","C"))) ->  | AR35: =IF(OR($C35="",AR$6=""),"",IF(COUNT(AI35,AL35,AO35)=0,"",SUM(AI35,AL35,AO35))) ->  | AS35: =IF(OR($C35="",AR35=""),"",AR35/AR$6) ->  | AT35: =IF(OR($C35="",AS35="",AR$6="",AR$6=0),"",IF(AS35*100>=AS$11,"A",IF(AS35*100>=AT$11,"B","C"))) -> 
D36: 思考判断表現 | F36: =IF(OR(E36="",$C35="",E$7="",E$7=0),"",IF(E36>=E$12,"A",IF(E36<F$12,"C","B"))) ->  | H36: =IF(OR(G36="",$C35="",G$7="",G$7=0),"",IF(G36>=G$12,"A",IF(G36<H$12,"C","B"))) ->  | J36: =IF(OR(I36="",$C35="",I$7="",I$7=0),"",IF(I36>=I$12,"A",IF(I36<J$12,"C","B"))) ->  | L36: =IF(OR(K36="",$C35="",K$7="",K$7=0),"",IF(K36>=K$12,"A",IF(K36<L$12,"C","B"))) ->  | N36: =IF(OR(M36="",$C35="",M$7="",M$7=0),"",IF(M36>=M$12,"A",IF(M36<N$12,"C","B"))) ->  | P36: =IF(OR(O36="",$C35="",O$7="",O$7=0),"",IF(O36>=O$12,"A",IF(O36<P$12,"C","B"))) ->  | R36: =IF(OR(Q36="",$C35="",Q$7="",Q$7=0),"",IF(Q36>=Q$12,"A",IF(Q36<R$12,"C","B"))) ->  | T36: =IF(OR(S36="",$C35="",S$7="",S$7=0),"",IF(S36>=S$12,"A",IF(S36<T$12,"C","B"))) ->  | AI36: =IF(OR($C35="",AI$7=""),"",IF(COUNTIFS($E$2:$AH$2,AI$1,$E36:$AH36,"<>")=0,"",SUMIF($E$2:$AH$2,AI$1,$E36:$AH36))) ->  | AJ36: =IF(OR($C35="",AI36=""),"",AI36/AI$7) ->  | AK36: =IF(OR($C35="",AJ36="",AI$7="",AI$7=0),"",IF(AJ36*100>=AJ$12,"A",IF(AJ36*100>=AK$12,"B","C"))) ->  | AL36: =IF(OR($C35="",AL$7=""),"",IF(COUNTIFS($E$2:$AH$2,AL$1,$E36:$AH36,"<>")=0,"",SUMIF($E$2:$AH$2,AL$1,$E36:$AH36))) ->  | AM36: =IF(OR($C35="",AL36=""),"",AL36/AL$7) ->  | AN36: =IF(OR($C35="",AM36="",AL$7="",AL$7=0),"",IF(AM36*100>=AM$12,"A",IF(AM36*100>=AN$12,"B","C"))) ->  | AO36: =IF(OR($C35="",AO$7=""),"",IF(COUNTIFS($E$2:$AH$2,AO$1,$E36:$AH36,"<>")=0,"",SUMIF($E$2:$AH$2,AO$1,$E36:$AH36))) ->  | AP36: =IF(OR($C35="",AO36=""),"",AO36/AO$7) ->  | AQ36: =IF(OR($C35="",AP36="",AO$7="",AO$7=0),"",IF(AP36*100>=AP$12,"A",IF(AP36*100>=AQ$12,"B","C"))) ->  | AR36: =IF(OR($C35="",AR$7=""),"",IF(COUNT(AI36,AL36,AO36)=0,"",SUM(AI36,AL36,AO36))) ->  | AS36: =IF(OR($C35="",AR36=""),"",AR36/AR$7) ->  | AT36: =IF(OR($C35="",AS36="",AR$7="",AR$7=0),"",IF(AS36*100>=AS$12,"A",IF(AS36*100>=AT$12,"B","C"))) -> 
D37: 主学態 | F37: =IF(OR(E37="",$C35="",E$8="",E$8=0),"",IF(E37>=E$13,"A",IF(E37<F$13,"C","B"))) ->  | H37: =IF(OR(G37="",$C35="",G$8="",G$8=0),"",IF(G37>=G$13,"A",IF(G37<H$13,"C","B"))) ->  | J37: =IF(OR(I37="",$C35="",I$8="",I$8=0),"",IF(I37>=I$13,"A",IF(I37<J$13,"C","B"))) ->  | L37: =IF(OR(K37="",$C35="",K$8="",K$8=0),"",IF(K37>=K$13,"A",IF(K37<L$13,"C","B"))) ->  | N37: =IF(OR(M37="",$C35="",M$8="",M$8=0),"",IF(M37>=M$13,"A",IF(M37<N$13,"C","B"))) ->  | P37: =IF(OR(O37="",$C35="",O$8="",O$8=0),"",IF(O37>=O$13,"A",IF(O37<P$13,"C","B"))) ->  | R37: =IF(OR(Q37="",$C35="",Q$8="",Q$8=0),"",IF(Q37>=Q$13,"A",IF(Q37<R$13,"C","B"))) ->  | T37: =IF(OR(S37="",$C35="",S$8="",S$8=0),"",IF(S37>=S$13,"A",IF(S37<T$13,"C","B"))) ->  | AI37: =IF(OR($C35="",AI$8=""),"",IF(COUNTIFS($E$2:$AH$2,AI$1,$E37:$AH37,"<>")=0,"",SUMIF($E$2:$AH$2,AI$1,$E37:$AH37))) ->  | AJ37: =IF(OR($C35="",AI37=""),"",AI37/AI$8) ->  | AK37: =IF(OR($C35="",AJ37="",AI$8="",AI$8=0),"",IF(AJ37*100>=AJ$13,"A",IF(AJ37*100>=AK$13,"B","C"))) ->  | AL37: =IF(OR($C35="",AL$8=""),"",IF(COUNTIFS($E$2:$AH$2,AL$1,$E37:$AH37,"<>")=0,"",SUMIF($E$2:$AH$2,AL$1,$E37:$AH37))) ->  | AM37: =IF(OR($C35="",AL37=""),"",AL37/AL$8) ->  | AN37: =IF(OR($C35="",AM37="",AL$8="",AL$8=0),"",IF(AM37*100>=AM$13,"A",IF(AM37*100>=AN$13,"B","C"))) ->  | AO37: =IF(OR($C35="",AO$8=""),"",IF(COUNTIFS($E$2:$AH$2,AO$1,$E37:$AH37,"<>")=0,"",SUMIF($E$2:$AH$2,AO$1,$E37:$AH37))) ->  | AP37: =IF(OR($C35="",AO37=""),"",AO37/AO$8) ->  | AQ37: =IF(OR($C35="",AP37="",AO$8="",AO$8=0),"",IF(AP37*100>=AP$13,"A",IF(AP37*100>=AQ$13,"B","C"))) ->  | AR37: =IF(OR($C35="",AR$8=""),"",IF(COUNT(AI37,AL37,AO37)=0,"",SUM(AI37,AL37,AO37))) ->  | AS37: =IF(OR($C35="",AR37=""),"",AR37/AR$8) ->  | AT37: =IF(OR($C35="",AS37="",AR$8="",AR$8=0),"",IF(AS37*100>=AS$13,"A",IF(AS37*100>=AT$13,"B","C"))) -> 
D38: 合計 | E38: =IF(OR(AND(E35="",E36="",E37=""),$C35=""),"",SUM(E35:E37)) ->  | F38: _ | G38: =IF(OR(AND(G35="",G36="",G37=""),$C35=""),"",SUM(G35:G37)) ->  | H38: _ | I38: =IF(OR(AND(I35="",I36="",I37=""),$C35=""),"",SUM(I35:I37)) ->  | J38: _ | K38: =IF(OR(AND(K35="",K36="",K37=""),$C35=""),"",SUM(K35:K37)) ->  | L38: _ | M38: =IF(OR(AND(M35="",M36="",M37=""),$C35=""),"",SUM(M35:M37)) ->  | N38: _ | O38: =IF(OR(AND(O35="",O36="",O37=""),$C35=""),"",SUM(O35:O37)) ->  | P38: _ | Q38: =IF(OR(AND(Q35="",Q36="",Q37=""),$C35=""),"",SUM(Q35:Q37)) ->  | R38: _ | S38: =IF(OR(AND(S35="",S36="",S37=""),$C35=""),"",SUM(S35:S37)) ->  | T38: _ | AI38: =IF($C35="","",IF(COUNTBLANK(AI35:AI37)=COUNTA(AI35:AI37),"",SUM(AI35:AI37))) ->  | AJ38: =IF(OR($C35="",AI38=""),"",AI38/AI$9) ->  | AL38: =IF($C35="","",IF(COUNTBLANK(AL35:AL37)=COUNTA(AL35:AL37),"",SUM(AL35:AL37))) ->  | AM38: =IF(OR($C35="",AL38=""),"",AL38/AL$9) ->  | AO38: =IF($C35="","",IF(COUNTBLANK(AO35:AO37)=COUNTA(AO35:AO37),"",SUM(AO35:AO37))) ->  | AP38: =IF(OR($C35="",AO38=""),"",AO38/AO$9) ->  | AR38: =IF(OR($C35="",AR$9=""),"",IF(COUNT(AI38,AL38,AO38)=0,"",SUM(AI38,AL38,AO38))) ->  | AS38: =IF(OR($C35="",AR38=""),"",AR38/AR$9) -> 
A39: 1 | B39: 7 | C39: =VLOOKUP(B39,INDIRECT("_"&A39&"組"),2,0)&"" ->  | D39: 知識・技能 | F39: =IF(OR(E39="",$C39="",E$6="",E$6=0),"",IF(E39>=E$11,"A",IF(E39<F$11,"C","B"))) ->  | H39: =IF(OR(G39="",$C39="",G$6="",G$6=0),"",IF(G39>=G$11,"A",IF(G39<H$11,"C","B"))) ->  | J39: =IF(OR(I39="",$C39="",I$6="",I$6=0),"",IF(I39>=I$11,"A",IF(I39<J$11,"C","B"))) ->  | L39: =IF(OR(K39="",$C39="",K$6="",K$6=0),"",IF(K39>=K$11,"A",IF(K39<L$11,"C","B"))) ->  | N39: =IF(OR(M39="",$C39="",M$6="",M$6=0),"",IF(M39>=M$11,"A",IF(M39<N$11,"C","B"))) ->  | P39: =IF(OR(O39="",$C39="",O$6="",O$6=0),"",IF(O39>=O$11,"A",IF(O39<P$11,"C","B"))) ->  | R39: =IF(OR(Q39="",$C39="",Q$6="",Q$6=0),"",IF(Q39>=Q$11,"A",IF(Q39<R$11,"C","B"))) ->  | T39: =IF(OR(S39="",$C39="",S$6="",S$6=0),"",IF(S39>=S$11,"A",IF(S39<T$11,"C","B"))) ->  | AI39: =IF(OR($C39="",AI$6=""),"",IF(COUNTIFS($E$2:$AH$2,AI$1,$E39:$AH39,"<>")=0,"",SUMIF($E$2:$AH$2,AI$1,$E39:$AH39))) ->  | AJ39: =IF(OR($C39="",AI39=""),"",AI39/AI$6) ->  | AK39: =IF(OR($C39="",AJ39="",AI$6="",AI$6=0),"",IF(AJ39*100>=AJ$11,"A",IF(AJ39*100>=AK$11,"B","C"))) ->  | AL39: =IF(OR($C39="",AL$6=""),"",IF(COUNTIFS($E$2:$AH$2,AL$1,$E39:$AH39,"<>")=0,"",SUMIF($E$2:$AH$2,AL$1,$E39:$AH39))) ->  | AM39: =IF(OR($C39="",AL39=""),"",AL39/AL$6) ->  | AN39: =IF(OR($C39="",AM39="",AL$6="",AL$6=0),"",IF(AM39*100>=AM$11,"A",IF(AM39*100>=AN$11,"B","C"))) ->  | AO39: =IF(OR($C39="",AO$6=""),"",IF(COUNTIFS($E$2:$AH$2,AO$1,$E39:$AH39,"<>")=0,"",SUMIF($E$2:$AH$2,AO$1,$E39:$AH39))) ->  | AP39: =IF(OR($C39="",AO39=""),"",AO39/AO$6) ->  | AQ39: =IF(OR($C39="",AP39="",AO$6="",AO$6=0),"",IF(AP39*100>=AP$11,"A",IF(AP39*100>=AQ$11,"B","C"))) ->  | AR39: =IF(OR($C39="",AR$6=""),"",IF(COUNT(AI39,AL39,AO39)=0,"",SUM(AI39,AL39,AO39))) ->  | AS39: =IF(OR($C39="",AR39=""),"",AR39/AR$6) ->  | AT39: =IF(OR($C39="",AS39="",AR$6="",AR$6=0),"",IF(AS39*100>=AS$11,"A",IF(AS39*100>=AT$11,"B","C"))) -> 
D40: 思考判断表現 | F40: =IF(OR(E40="",$C39="",E$7="",E$7=0),"",IF(E40>=E$12,"A",IF(E40<F$12,"C","B"))) ->  | H40: =IF(OR(G40="",$C39="",G$7="",G$7=0),"",IF(G40>=G$12,"A",IF(G40<H$12,"C","B"))) ->  | J40: =IF(OR(I40="",$C39="",I$7="",I$7=0),"",IF(I40>=I$12,"A",IF(I40<J$12,"C","B"))) ->  | L40: =IF(OR(K40="",$C39="",K$7="",K$7=0),"",IF(K40>=K$12,"A",IF(K40<L$12,"C","B"))) ->  | N40: =IF(OR(M40="",$C39="",M$7="",M$7=0),"",IF(M40>=M$12,"A",IF(M40<N$12,"C","B"))) ->  | P40: =IF(OR(O40="",$C39="",O$7="",O$7=0),"",IF(O40>=O$12,"A",IF(O40<P$12,"C","B"))) ->  | R40: =IF(OR(Q40="",$C39="",Q$7="",Q$7=0),"",IF(Q40>=Q$12,"A",IF(Q40<R$12,"C","B"))) ->  | T40: =IF(OR(S40="",$C39="",S$7="",S$7=0),"",IF(S40>=S$12,"A",IF(S40<T$12,"C","B"))) ->  | AI40: =IF(OR($C39="",AI$7=""),"",IF(COUNTIFS($E$2:$AH$2,AI$1,$E40:$AH40,"<>")=0,"",SUMIF($E$2:$AH$2,AI$1,$E40:$AH40))) ->  | AJ40: =IF(OR($C39="",AI40=""),"",AI40/AI$7) ->  | AK40: =IF(OR($C39="",AJ40="",AI$7="",AI$7=0),"",IF(AJ40*100>=AJ$12,"A",IF(AJ40*100>=AK$12,"B","C"))) ->  | AL40: =IF(OR($C39="",AL$7=""),"",IF(COUNTIFS($E$2:$AH$2,AL$1,$E40:$AH40,"<>")=0,"",SUMIF($E$2:$AH$2,AL$1,$E40:$AH40))) ->  | AM40: =IF(OR($C39="",AL40=""),"",AL40/AL$7) ->  | AN40: =IF(OR($C39="",AM40="",AL$7="",AL$7=0),"",IF(AM40*100>=AM$12,"A",IF(AM40*100>=AN$12,"B","C"))) ->  | AO40: =IF(OR($C39="",AO$7=""),"",IF(COUNTIFS($E$2:$AH$2,AO$1,$E40:$AH40,"<>")=0,"",SUMIF($E$2:$AH$2,AO$1,$E40:$AH40))) ->  | AP40: =IF(OR($C39="",AO40=""),"",AO40/AO$7) ->  | AQ40: =IF(OR($C39="",AP40="",AO$7="",AO$7=0),"",IF(AP40*100>=AP$12,"A",IF(AP40*100>=AQ$12,"B","C"))) ->  | AR40: =IF(OR($C39="",AR$7=""),"",IF(COUNT(AI40,AL40,AO40)=0,"",SUM(AI40,AL40,AO40))) ->  | AS40: =IF(OR($C39="",AR40=""),"",AR40/AR$7) ->  | AT40: =IF(OR($C39="",AS40="",AR$7="",AR$7=0),"",IF(AS40*100>=AS$12,"A",IF(AS40*100>=AT$12,"B","C"))) -> 
D41: 主学態 | F41: =IF(OR(E41="",$C39="",E$8="",E$8=0),"",IF(E41>=E$13,"A",IF(E41<F$13,"C","B"))) ->  | H41: =IF(OR(G41="",$C39="",G$8="",G$8=0),"",IF(G41>=G$13,"A",IF(G41<H$13,"C","B"))) ->  | J41: =IF(OR(I41="",$C39="",I$8="",I$8=0),"",IF(I41>=I$13,"A",IF(I41<J$13,"C","B"))) ->  | L41: =IF(OR(K41="",$C39="",K$8="",K$8=0),"",IF(K41>=K$13,"A",IF(K41<L$13,"C","B"))) ->  | N41: =IF(OR(M41="",$C39="",M$8="",M$8=0),"",IF(M41>=M$13,"A",IF(M41<N$13,"C","B"))) ->  | P41: =IF(OR(O41="",$C39="",O$8="",O$8=0),"",IF(O41>=O$13,"A",IF(O41<P$13,"C","B"))) ->  | R41: =IF(OR(Q41="",$C39="",Q$8="",Q$8=0),"",IF(Q41>=Q$13,"A",IF(Q41<R$13,"C","B"))) ->  | T41: =IF(OR(S41="",$C39="",S$8="",S$8=0),"",IF(S41>=S$13,"A",IF(S41<T$13,"C","B"))) ->  | AI41: =IF(OR($C39="",AI$8=""),"",IF(COUNTIFS($E$2:$AH$2,AI$1,$E41:$AH41,"<>")=0,"",SUMIF($E$2:$AH$2,AI$1,$E41:$AH41))) ->  | AJ41: =IF(OR($C39="",AI41=""),"",AI41/AI$8) ->  | AK41: =IF(OR($C39="",AJ41="",AI$8="",AI$8=0),"",IF(AJ41*100>=AJ$13,"A",IF(AJ41*100>=AK$13,"B","C"))) ->  | AL41: =IF(OR($C39="",AL$8=""),"",IF(COUNTIFS($E$2:$AH$2,AL$1,$E41:$AH41,"<>")=0,"",SUMIF($E$2:$AH$2,AL$1,$E41:$AH41))) ->  | AM41: =IF(OR($C39="",AL41=""),"",AL41/AL$8) ->  | AN41: =IF(OR($C39="",AM41="",AL$8="",AL$8=0),"",IF(AM41*100>=AM$13,"A",IF(AM41*100>=AN$13,"B","C"))) ->  | AO41: =IF(OR($C39="",AO$8=""),"",IF(COUNTIFS($E$2:$AH$2,AO$1,$E41:$AH41,"<>")=0,"",SUMIF($E$2:$AH$2,AO$1,$E41:$AH41))) ->  | AP41: =IF(OR($C39="",AO41=""),"",AO41/AO$8) ->  | AQ41: =IF(OR($C39="",AP41="",AO$8="",AO$8=0),"",IF(AP41*100>=AP$13,"A",IF(AP41*100>=AQ$13,"B","C"))) ->  | AR41: =IF(OR($C39="",AR$8=""),"",IF(COUNT(AI41,AL41,AO41)=0,"",SUM(AI41,AL41,AO41))) ->  | AS41: =IF(OR($C39="",AR41=""),"",AR41/AR$8) ->  | AT41: =IF(OR($C39="",AS41="",AR$8="",AR$8=0),"",IF(AS41*100>=AS$13,"A",IF(AS41*100>=AT$13,"B","C"))) -> 
D42: 合計 | E42: =IF(OR(AND(E39="",E40="",E41=""),$C39=""),"",SUM(E39:E41)) ->  | F42: _ | G42: =IF(OR(AND(G39="",G40="",G41=""),$C39=""),"",SUM(G39:G41)) ->  | H42: _ | I42: =IF(OR(AND(I39="",I40="",I41=""),$C39=""),"",SUM(I39:I41)) ->  | J42: _ | K42: =IF(OR(AND(K39="",K40="",K41=""),$C39=""),"",SUM(K39:K41)) ->  | L42: _ | M42: =IF(OR(AND(M39="",M40="",M41=""),$C39=""),"",SUM(M39:M41)) ->  | N42: _ | O42: =IF(OR(AND(O39="",O40="",O41=""),$C39=""),"",SUM(O39:O41)) ->  | P42: _ | Q42: =IF(OR(AND(Q39="",Q40="",Q41=""),$C39=""),"",SUM(Q39:Q41)) ->  | R42: _ | S42: =IF(OR(AND(S39="",S40="",S41=""),$C39=""),"",SUM(S39:S41)) ->  | T42: _ | AI42: =IF($C39="","",IF(COUNTBLANK(AI39:AI41)=COUNTA(AI39:AI41),"",SUM(AI39:AI41))) ->  | AJ42: =IF(OR($C39="",AI42=""),"",AI42/AI$9) ->  | AL42: =IF($C39="","",IF(COUNTBLANK(AL39:AL41)=COUNTA(AL39:AL41),"",SUM(AL39:AL41))) ->  | AM42: =IF(OR($C39="",AL42=""),"",AL42/AL$9) ->  | AO42: =IF($C39="","",IF(COUNTBLANK(AO39:AO41)=COUNTA(AO39:AO41),"",SUM(AO39:AO41))) ->  | AP42: =IF(OR($C39="",AO42=""),"",AO42/AO$9) ->  | AR42: =IF(OR($C39="",AR$9=""),"",IF(COUNT(AI42,AL42,AO42)=0,"",SUM(AI42,AL42,AO42))) ->  | AS42: =IF(OR($C39="",AR42=""),"",AR42/AR$9) -> 
A43: 1 | B43: 8 | C43: =VLOOKUP(B43,INDIRECT("_"&A43&"組"),2,0)&"" ->  | D43: 知識・技能 | F43: =IF(OR(E43="",$C43="",E$6="",E$6=0),"",IF(E43>=E$11,"A",IF(E43<F$11,"C","B"))) ->  | H43: =IF(OR(G43="",$C43="",G$6="",G$6=0),"",IF(G43>=G$11,"A",IF(G43<H$11,"C","B"))) ->  | J43: =IF(OR(I43="",$C43="",I$6="",I$6=0),"",IF(I43>=I$11,"A",IF(I43<J$11,"C","B"))) ->  | L43: =IF(OR(K43="",$C43="",K$6="",K$6=0),"",IF(K43>=K$11,"A",IF(K43<L$11,"C","B"))) ->  | N43: =IF(OR(M43="",$C43="",M$6="",M$6=0),"",IF(M43>=M$11,"A",IF(M43<N$11,"C","B"))) ->  | P43: =IF(OR(O43="",$C43="",O$6="",O$6=0),"",IF(O43>=O$11,"A",IF(O43<P$11,"C","B"))) ->  | R43: =IF(OR(Q43="",$C43="",Q$6="",Q$6=0),"",IF(Q43>=Q$11,"A",IF(Q43<R$11,"C","B"))) ->  | T43: =IF(OR(S43="",$C43="",S$6="",S$6=0),"",IF(S43>=S$11,"A",IF(S43<T$11,"C","B"))) ->  | AI43: =IF(OR($C43="",AI$6=""),"",IF(COUNTIFS($E$2:$AH$2,AI$1,$E43:$AH43,"<>")=0,"",SUMIF($E$2:$AH$2,AI$1,$E43:$AH43))) ->  | AJ43: =IF(OR($C43="",AI43=""),"",AI43/AI$6) ->  | AK43: =IF(OR($C43="",AJ43="",AI$6="",AI$6=0),"",IF(AJ43*100>=AJ$11,"A",IF(AJ43*100>=AK$11,"B","C"))) ->  | AL43: =IF(OR($C43="",AL$6=""),"",IF(COUNTIFS($E$2:$AH$2,AL$1,$E43:$AH43,"<>")=0,"",SUMIF($E$2:$AH$2,AL$1,$E43:$AH43))) ->  | AM43: =IF(OR($C43="",AL43=""),"",AL43/AL$6) ->  | AN43: =IF(OR($C43="",AM43="",AL$6="",AL$6=0),"",IF(AM43*100>=AM$11,"A",IF(AM43*100>=AN$11,"B","C"))) ->  | AO43: =IF(OR($C43="",AO$6=""),"",IF(COUNTIFS($E$2:$AH$2,AO$1,$E43:$AH43,"<>")=0,"",SUMIF($E$2:$AH$2,AO$1,$E43:$AH43))) ->  | AP43: =IF(OR($C43="",AO43=""),"",AO43/AO$6) ->  | AQ43: =IF(OR($C43="",AP43="",AO$6="",AO$6=0),"",IF(AP43*100>=AP$11,"A",IF(AP43*100>=AQ$11,"B","C"))) ->  | AR43: =IF(OR($C43="",AR$6=""),"",IF(COUNT(AI43,AL43,AO43)=0,"",SUM(AI43,AL43,AO43))) ->  | AS43: =IF(OR($C43="",AR43=""),"",AR43/AR$6) ->  | AT43: =IF(OR($C43="",AS43="",AR$6="",AR$6=0),"",IF(AS43*100>=AS$11,"A",IF(AS43*100>=AT$11,"B","C"))) -> 
D44: 思考判断表現 | F44: =IF(OR(E44="",$C43="",E$7="",E$7=0),"",IF(E44>=E$12,"A",IF(E44<F$12,"C","B"))) ->  | H44: =IF(OR(G44="",$C43="",G$7="",G$7=0),"",IF(G44>=G$12,"A",IF(G44<H$12,"C","B"))) ->  | J44: =IF(OR(I44="",$C43="",I$7="",I$7=0),"",IF(I44>=I$12,"A",IF(I44<J$12,"C","B"))) ->  | L44: =IF(OR(K44="",$C43="",K$7="",K$7=0),"",IF(K44>=K$12,"A",IF(K44<L$12,"C","B"))) ->  | N44: =IF(OR(M44="",$C43="",M$7="",M$7=0),"",IF(M44>=M$12,"A",IF(M44<N$12,"C","B"))) ->  | P44: =IF(OR(O44="",$C43="",O$7="",O$7=0),"",IF(O44>=O$12,"A",IF(O44<P$12,"C","B"))) ->  | R44: =IF(OR(Q44="",$C43="",Q$7="",Q$7=0),"",IF(Q44>=Q$12,"A",IF(Q44<R$12,"C","B"))) ->  | T44: =IF(OR(S44="",$C43="",S$7="",S$7=0),"",IF(S44>=S$12,"A",IF(S44<T$12,"C","B"))) ->  | AI44: =IF(OR($C43="",AI$7=""),"",IF(COUNTIFS($E$2:$AH$2,AI$1,$E44:$AH44,"<>")=0,"",SUMIF($E$2:$AH$2,AI$1,$E44:$AH44))) ->  | AJ44: =IF(OR($C43="",AI44=""),"",AI44/AI$7) ->  | AK44: =IF(OR($C43="",AJ44="",AI$7="",AI$7=0),"",IF(AJ44*100>=AJ$12,"A",IF(AJ44*100>=AK$12,"B","C"))) ->  | AL44: =IF(OR($C43="",AL$7=""),"",IF(COUNTIFS($E$2:$AH$2,AL$1,$E44:$AH44,"<>")=0,"",SUMIF($E$2:$AH$2,AL$1,$E44:$AH44))) ->  | AM44: =IF(OR($C43="",AL44=""),"",AL44/AL$7) ->  | AN44: =IF(OR($C43="",AM44="",AL$7="",AL$7=0),"",IF(AM44*100>=AM$12,"A",IF(AM44*100>=AN$12,"B","C"))) ->  | AO44: =IF(OR($C43="",AO$7=""),"",IF(COUNTIFS($E$2:$AH$2,AO$1,$E44:$AH44,"<>")=0,"",SUMIF($E$2:$AH$2,AO$1,$E44:$AH44))) ->  | AP44: =IF(OR($C43="",AO44=""),"",AO44/AO$7) ->  | AQ44: =IF(OR($C43="",AP44="",AO$7="",AO$7=0),"",IF(AP44*100>=AP$12,"A",IF(AP44*100>=AQ$12,"B","C"))) ->  | AR44: =IF(OR($C43="",AR$7=""),"",IF(COUNT(AI44,AL44,AO44)=0,"",SUM(AI44,AL44,AO44))) ->  | AS44: =IF(OR($C43="",AR44=""),"",AR44/AR$7) ->  | AT44: =IF(OR($C43="",AS44="",AR$7="",AR$7=0),"",IF(AS44*100>=AS$12,"A",IF(AS44*100>=AT$12,"B","C"))) -> 
D45: 主学態 | F45: =IF(OR(E45="",$C43="",E$8="",E$8=0),"",IF(E45>=E$13,"A",IF(E45<F$13,"C","B"))) ->  | H45: =IF(OR(G45="",$C43="",G$8="",G$8=0),"",IF(G45>=G$13,"A",IF(G45<H$13,"C","B"))) ->  | J45: =IF(OR(I45="",$C43="",I$8="",I$8=0),"",IF(I45>=I$13,"A",IF(I45<J$13,"C","B"))) ->  | L45: =IF(OR(K45="",$C43="",K$8="",K$8=0),"",IF(K45>=K$13,"A",IF(K45<L$13,"C","B"))) ->  | N45: =IF(OR(M45="",$C43="",M$8="",M$8=0),"",IF(M45>=M$13,"A",IF(M45<N$13,"C","B"))) ->  | P45: =IF(OR(O45="",$C43="",O$8="",O$8=0),"",IF(O45>=O$13,"A",IF(O45<P$13,"C","B"))) ->  | R45: =IF(OR(Q45="",$C43="",Q$8="",Q$8=0),"",IF(Q45>=Q$13,"A",IF(Q45<R$13,"C","B"))) ->  | T45: =IF(OR(S45="",$C43="",S$8="",S$8=0),"",IF(S45>=S$13,"A",IF(S45<T$13,"C","B"))) ->  | AI45: =IF(OR($C43="",AI$8=""),"",IF(COUNTIFS($E$2:$AH$2,AI$1,$E45:$AH45,"<>")=0,"",SUMIF($E$2:$AH$2,AI$1,$E45:$AH45))) ->  | AJ45: =IF(OR($C43="",AI45=""),"",AI45/AI$8) ->  | AK45: =IF(OR($C43="",AJ45="",AI$8="",AI$8=0),"",IF(AJ45*100>=AJ$13,"A",IF(AJ45*100>=AK$13,"B","C"))) ->  | AL45: =IF(OR($C43="",AL$8=""),"",IF(COUNTIFS($E$2:$AH$2,AL$1,$E45:$AH45,"<>")=0,"",SUMIF($E$2:$AH$2,AL$1,$E45:$AH45))) ->  | AM45: =IF(OR($C43="",AL45=""),"",AL45/AL$8) ->  | AN45: =IF(OR($C43="",AM45="",AL$8="",AL$8=0),"",IF(AM45*100>=AM$13,"A",IF(AM45*100>=AN$13,"B","C"))) ->  | AO45: =IF(OR($C43="",AO$8=""),"",IF(COUNTIFS($E$2:$AH$2,AO$1,$E45:$AH45,"<>")=0,"",SUMIF($E$2:$AH$2,AO$1,$E45:$AH45))) ->  | AP45: =IF(OR($C43="",AO45=""),"",AO45/AO$8) ->  | AQ45: =IF(OR($C43="",AP45="",AO$8="",AO$8=0),"",IF(AP45*100>=AP$13,"A",IF(AP45*100>=AQ$13,"B","C"))) ->  | AR45: =IF(OR($C43="",AR$8=""),"",IF(COUNT(AI45,AL45,AO45)=0,"",SUM(AI45,AL45,AO45))) ->  | AS45: =IF(OR($C43="",AR45=""),"",AR45/AR$8) ->  | AT45: =IF(OR($C43="",AS45="",AR$8="",AR$8=0),"",IF(AS45*100>=AS$13,"A",IF(AS45*100>=AT$13,"B","C"))) -> 
D46: 合計 | E46: =IF(OR(AND(E43="",E44="",E45=""),$C43=""),"",SUM(E43:E45)) ->  | F46: _ | G46: =IF(OR(AND(G43="",G44="",G45=""),$C43=""),"",SUM(G43:G45)) ->  | H46: _ | I46: =IF(OR(AND(I43="",I44="",I45=""),$C43=""),"",SUM(I43:I45)) ->  | J46: _ | K46: =IF(OR(AND(K43="",K44="",K45=""),$C43=""),"",SUM(K43:K45)) ->  | L46: _ | M46: =IF(OR(AND(M43="",M44="",M45=""),$C43=""),"",SUM(M43:M45)) ->  | N46: _ | O46: =IF(OR(AND(O43="",O44="",O45=""),$C43=""),"",SUM(O43:O45)) ->  | P46: _ | Q46: =IF(OR(AND(Q43="",Q44="",Q45=""),$C43=""),"",SUM(Q43:Q45)) ->  | R46: _ | S46: =IF(OR(AND(S43="",S44="",S45=""),$C43=""),"",SUM(S43:S45)) ->  | T46: _ | AI46: =IF($C43="","",IF(COUNTBLANK(AI43:AI45)=COUNTA(AI43:AI45),"",SUM(AI43:AI45))) ->  | AJ46: =IF(OR($C43="",AI46=""),"",AI46/AI$9) ->  | AL46: =IF($C43="","",IF(COUNTBLANK(AL43:AL45)=COUNTA(AL43:AL45),"",SUM(AL43:AL45))) ->  | AM46: =IF(OR($C43="",AL46=""),"",AL46/AL$9) ->  | AO46: =IF($C43="","",IF(COUNTBLANK(AO43:AO45)=COUNTA(AO43:AO45),"",SUM(AO43:AO45))) ->  | AP46: =IF(OR($C43="",AO46=""),"",AO46/AO$9) ->  | AR46: =IF(OR($C43="",AR$9=""),"",IF(COUNT(AI46,AL46,AO46)=0,"",SUM(AI46,AL46,AO46))) ->  | AS46: =IF(OR($C43="",AR46=""),"",AR46/AR$9) -> 
A47: 1 | B47: 9 | C47: =VLOOKUP(B47,INDIRECT("_"&A47&"組"),2,0)&"" ->  | D47: 知識・技能 | F47: =IF(OR(E47="",$C47="",E$6="",E$6=0),"",IF(E47>=E$11,"A",IF(E47<F$11,"C","B"))) ->  | H47: =IF(OR(G47="",$C47="",G$6="",G$6=0),"",IF(G47>=G$11,"A",IF(G47<H$11,"C","B"))) ->  | J47: =IF(OR(I47="",$C47="",I$6="",I$6=0),"",IF(I47>=I$11,"A",IF(I47<J$11,"C","B"))) ->  | L47: =IF(OR(K47="",$C47="",K$6="",K$6=0),"",IF(K47>=K$11,"A",IF(K47<L$11,"C","B"))) ->  | N47: =IF(OR(M47="",$C47="",M$6="",M$6=0),"",IF(M47>=M$11,"A",IF(M47<N$11,"C","B"))) ->  | P47: =IF(OR(O47="",$C47="",O$6="",O$6=0),"",IF(O47>=O$11,"A",IF(O47<P$11,"C","B"))) ->  | R47: =IF(OR(Q47="",$C47="",Q$6="",Q$6=0),"",IF(Q47>=Q$11,"A",IF(Q47<R$11,"C","B"))) ->  | T47: =IF(OR(S47="",$C47="",S$6="",S$6=0),"",IF(S47>=S$11,"A",IF(S47<T$11,"C","B"))) ->  | AI47: =IF(OR($C47="",AI$6=""),"",IF(COUNTIFS($E$2:$AH$2,AI$1,$E47:$AH47,"<>")=0,"",SUMIF($E$2:$AH$2,AI$1,$E47:$AH47))) ->  | AJ47: =IF(OR($C47="",AI47=""),"",AI47/AI$6) ->  | AK47: =IF(OR($C47="",AJ47="",AI$6="",AI$6=0),"",IF(AJ47*100>=AJ$11,"A",IF(AJ47*100>=AK$11,"B","C"))) ->  | AL47: =IF(OR($C47="",AL$6=""),"",IF(COUNTIFS($E$2:$AH$2,AL$1,$E47:$AH47,"<>")=0,"",SUMIF($E$2:$AH$2,AL$1,$E47:$AH47))) ->  | AM47: =IF(OR($C47="",AL47=""),"",AL47/AL$6) ->  | AN47: =IF(OR($C47="",AM47="",AL$6="",AL$6=0),"",IF(AM47*100>=AM$11,"A",IF(AM47*100>=AN$11,"B","C"))) ->  | AO47: =IF(OR($C47="",AO$6=""),"",IF(COUNTIFS($E$2:$AH$2,AO$1,$E47:$AH47,"<>")=0,"",SUMIF($E$2:$AH$2,AO$1,$E47:$AH47))) ->  | AP47: =IF(OR($C47="",AO47=""),"",AO47/AO$6) ->  | AQ47: =IF(OR($C47="",AP47="",AO$6="",AO$6=0),"",IF(AP47*100>=AP$11,"A",IF(AP47*100>=AQ$11,"B","C"))) ->  | AR47: =IF(OR($C47="",AR$6=""),"",IF(COUNT(AI47,AL47,AO47)=0,"",SUM(AI47,AL47,AO47))) ->  | AS47: =IF(OR($C47="",AR47=""),"",AR47/AR$6) ->  | AT47: =IF(OR($C47="",AS47="",AR$6="",AR$6=0),"",IF(AS47*100>=AS$11,"A",IF(AS47*100>=AT$11,"B","C"))) -> 
D48: 思考判断表現 | F48: =IF(OR(E48="",$C47="",E$7="",E$7=0),"",IF(E48>=E$12,"A",IF(E48<F$12,"C","B"))) ->  | H48: =IF(OR(G48="",$C47="",G$7="",G$7=0),"",IF(G48>=G$12,"A",IF(G48<H$12,"C","B"))) ->  | J48: =IF(OR(I48="",$C47="",I$7="",I$7=0),"",IF(I48>=I$12,"A",IF(I48<J$12,"C","B"))) ->  | L48: =IF(OR(K48="",$C47="",K$7="",K$7=0),"",IF(K48>=K$12,"A",IF(K48<L$12,"C","B"))) ->  | N48: =IF(OR(M48="",$C47="",M$7="",M$7=0),"",IF(M48>=M$12,"A",IF(M48<N$12,"C","B"))) ->  | P48: =IF(OR(O48="",$C47="",O$7="",O$7=0),"",IF(O48>=O$12,"A",IF(O48<P$12,"C","B"))) ->  | R48: =IF(OR(Q48="",$C47="",Q$7="",Q$7=0),"",IF(Q48>=Q$12,"A",IF(Q48<R$12,"C","B"))) ->  | T48: =IF(OR(S48="",$C47="",S$7="",S$7=0),"",IF(S48>=S$12,"A",IF(S48<T$12,"C","B"))) ->  | AI48: =IF(OR($C47="",AI$7=""),"",IF(COUNTIFS($E$2:$AH$2,AI$1,$E48:$AH48,"<>")=0,"",SUMIF($E$2:$AH$2,AI$1,$E48:$AH48))) ->  | AJ48: =IF(OR($C47="",AI48=""),"",AI48/AI$7) ->  | AK48: =IF(OR($C47="",AJ48="",AI$7="",AI$7=0),"",IF(AJ48*100>=AJ$12,"A",IF(AJ48*100>=AK$12,"B","C"))) ->  | AL48: =IF(OR($C47="",AL$7=""),"",IF(COUNTIFS($E$2:$AH$2,AL$1,$E48:$AH48,"<>")=0,"",SUMIF($E$2:$AH$2,AL$1,$E48:$AH48))) ->  | AM48: =IF(OR($C47="",AL48=""),"",AL48/AL$7) ->  | AN48: =IF(OR($C47="",AM48="",AL$7="",AL$7=0),"",IF(AM48*100>=AM$12,"A",IF(AM48*100>=AN$12,"B","C"))) ->  | AO48: =IF(OR($C47="",AO$7=""),"",IF(COUNTIFS($E$2:$AH$2,AO$1,$E48:$AH48,"<>")=0,"",SUMIF($E$2:$AH$2,AO$1,$E48:$AH48))) ->  | AP48: =IF(OR($C47="",AO48=""),"",AO48/AO$7) ->  | AQ48: =IF(OR($C47="",AP48="",AO$7="",AO$7=0),"",IF(AP48*100>=AP$12,"A",IF(AP48*100>=AQ$12,"B","C"))) ->  | AR48: =IF(OR($C47="",AR$7=""),"",IF(COUNT(AI48,AL48,AO48)=0,"",SUM(AI48,AL48,AO48))) ->  | AS48: =IF(OR($C47="",AR48=""),"",AR48/AR$7) ->  | AT48: =IF(OR($C47="",AS48="",AR$7="",AR$7=0),"",IF(AS48*100>=AS$12,"A",IF(AS48*100>=AT$12,"B","C"))) -> 
D49: 主学態 | F49: =IF(OR(E49="",$C47="",E$8="",E$8=0),"",IF(E49>=E$13,"A",IF(E49<F$13,"C","B"))) ->  | H49: =IF(OR(G49="",$C47="",G$8="",G$8=0),"",IF(G49>=G$13,"A",IF(G49<H$13,"C","B"))) ->  | J49: =IF(OR(I49="",$C47="",I$8="",I$8=0),"",IF(I49>=I$13,"A",IF(I49<J$13,"C","B"))) ->  | L49: =IF(OR(K49="",$C47="",K$8="",K$8=0),"",IF(K49>=K$13,"A",IF(K49<L$13,"C","B"))) ->  | N49: =IF(OR(M49="",$C47="",M$8="",M$8=0),"",IF(M49>=M$13,"A",IF(M49<N$13,"C","B"))) ->  | P49: =IF(OR(O49="",$C47="",O$8="",O$8=0),"",IF(O49>=O$13,"A",IF(O49<P$13,"C","B"))) ->  | R49: =IF(OR(Q49="",$C47="",Q$8="",Q$8=0),"",IF(Q49>=Q$13,"A",IF(Q49<R$13,"C","B"))) ->  | T49: =IF(OR(S49="",$C47="",S$8="",S$8=0),"",IF(S49>=S$13,"A",IF(S49<T$13,"C","B"))) ->  | AI49: =IF(OR($C47="",AI$8=""),"",IF(COUNTIFS($E$2:$AH$2,AI$1,$E49:$AH49,"<>")=0,"",SUMIF($E$2:$AH$2,AI$1,$E49:$AH49))) ->  | AJ49: =IF(OR($C47="",AI49=""),"",AI49/AI$8) ->  | AK49: =IF(OR($C47="",AJ49="",AI$8="",AI$8=0),"",IF(AJ49*100>=AJ$13,"A",IF(AJ49*100>=AK$13,"B","C"))) ->  | AL49: =IF(OR($C47="",AL$8=""),"",IF(COUNTIFS($E$2:$AH$2,AL$1,$E49:$AH49,"<>")=0,"",SUMIF($E$2:$AH$2,AL$1,$E49:$AH49))) ->  | AM49: =IF(OR($C47="",AL49=""),"",AL49/AL$8) ->  | AN49: =IF(OR($C47="",AM49="",AL$8="",AL$8=0),"",IF(AM49*100>=AM$13,"A",IF(AM49*100>=AN$13,"B","C"))) ->  | AO49: =IF(OR($C47="",AO$8=""),"",IF(COUNTIFS($E$2:$AH$2,AO$1,$E49:$AH49,"<>")=0,"",SUMIF($E$2:$AH$2,AO$1,$E49:$AH49))) ->  | AP49: =IF(OR($C47="",AO49=""),"",AO49/AO$8) ->  | AQ49: =IF(OR($C47="",AP49="",AO$8="",AO$8=0),"",IF(AP49*100>=AP$13,"A",IF(AP49*100>=AQ$13,"B","C"))) ->  | AR49: =IF(OR($C47="",AR$8=""),"",IF(COUNT(AI49,AL49,AO49)=0,"",SUM(AI49,AL49,AO49))) ->  | AS49: =IF(OR($C47="",AR49=""),"",AR49/AR$8) ->  | AT49: =IF(OR($C47="",AS49="",AR$8="",AR$8=0),"",IF(AS49*100>=AS$13,"A",IF(AS49*100>=AT$13,"B","C"))) -> 
D50: 合計 | E50: =IF(OR(AND(E47="",E48="",E49=""),$C47=""),"",SUM(E47:E49)) ->  | F50: _ | G50: =IF(OR(AND(G47="",G48="",G49=""),$C47=""),"",SUM(G47:G49)) ->  | H50: _ | I50: =IF(OR(AND(I47="",I48="",I49=""),$C47=""),"",SUM(I47:I49)) ->  | J50: _ | K50: =IF(OR(AND(K47="",K48="",K49=""),$C47=""),"",SUM(K47:K49)) ->  | L50: _ | M50: =IF(OR(AND(M47="",M48="",M49=""),$C47=""),"",SUM(M47:M49)) ->  | N50: _ | O50: =IF(OR(AND(O47="",O48="",O49=""),$C47=""),"",SUM(O47:O49)) ->  | P50: _ | Q50: =IF(OR(AND(Q47="",Q48="",Q49=""),$C47=""),"",SUM(Q47:Q49)) ->  | R50: _ | S50: =IF(OR(AND(S47="",S48="",S49=""),$C47=""),"",SUM(S47:S49)) ->  | T50: _ | AI50: =IF($C47="","",IF(COUNTBLANK(AI47:AI49)=COUNTA(AI47:AI49),"",SUM(AI47:AI49))) ->  | AJ50: =IF(OR($C47="",AI50=""),"",AI50/AI$9) ->  | AL50: =IF($C47="","",IF(COUNTBLANK(AL47:AL49)=COUNTA(AL47:AL49),"",SUM(AL47:AL49))) ->  | AM50: =IF(OR($C47="",AL50=""),"",AL50/AL$9) ->  | AO50: =IF($C47="","",IF(COUNTBLANK(AO47:AO49)=COUNTA(AO47:AO49),"",SUM(AO47:AO49))) ->  | AP50: =IF(OR($C47="",AO50=""),"",AO50/AO$9) ->  | AR50: =IF(OR($C47="",AR$9=""),"",IF(COUNT(AI50,AL50,AO50)=0,"",SUM(AI50,AL50,AO50))) ->  | AS50: =IF(OR($C47="",AR50=""),"",AR50/AR$9) -> 
A51: 1 | B51: 10 | C51: =VLOOKUP(B51,INDIRECT("_"&A51&"組"),2,0)&"" ->  | D51: 知識・技能 | F51: =IF(OR(E51="",$C51="",E$6="",E$6=0),"",IF(E51>=E$11,"A",IF(E51<F$11,"C","B"))) ->  | H51: =IF(OR(G51="",$C51="",G$6="",G$6=0),"",IF(G51>=G$11,"A",IF(G51<H$11,"C","B"))) ->  | J51: =IF(OR(I51="",$C51="",I$6="",I$6=0),"",IF(I51>=I$11,"A",IF(I51<J$11,"C","B"))) ->  | L51: =IF(OR(K51="",$C51="",K$6="",K$6=0),"",IF(K51>=K$11,"A",IF(K51<L$11,"C","B"))) ->  | N51: =IF(OR(M51="",$C51="",M$6="",M$6=0),"",IF(M51>=M$11,"A",IF(M51<N$11,"C","B"))) ->  | P51: =IF(OR(O51="",$C51="",O$6="",O$6=0),"",IF(O51>=O$11,"A",IF(O51<P$11,"C","B"))) ->  | R51: =IF(OR(Q51="",$C51="",Q$6="",Q$6=0),"",IF(Q51>=Q$11,"A",IF(Q51<R$11,"C","B"))) ->  | T51: =IF(OR(S51="",$C51="",S$6="",S$6=0),"",IF(S51>=S$11,"A",IF(S51<T$11,"C","B"))) ->  | AI51: =IF(OR($C51="",AI$6=""),"",IF(COUNTIFS($E$2:$AH$2,AI$1,$E51:$AH51,"<>")=0,"",SUMIF($E$2:$AH$2,AI$1,$E51:$AH51))) ->  | AJ51: =IF(OR($C51="",AI51=""),"",AI51/AI$6) ->  | AK51: =IF(OR($C51="",AJ51="",AI$6="",AI$6=0),"",IF(AJ51*100>=AJ$11,"A",IF(AJ51*100>=AK$11,"B","C"))) ->  | AL51: =IF(OR($C51="",AL$6=""),"",IF(COUNTIFS($E$2:$AH$2,AL$1,$E51:$AH51,"<>")=0,"",SUMIF($E$2:$AH$2,AL$1,$E51:$AH51))) ->  | AM51: =IF(OR($C51="",AL51=""),"",AL51/AL$6) ->  | AN51: =IF(OR($C51="",AM51="",AL$6="",AL$6=0),"",IF(AM51*100>=AM$11,"A",IF(AM51*100>=AN$11,"B","C"))) ->  | AO51: =IF(OR($C51="",AO$6=""),"",IF(COUNTIFS($E$2:$AH$2,AO$1,$E51:$AH51,"<>")=0,"",SUMIF($E$2:$AH$2,AO$1,$E51:$AH51))) ->  | AP51: =IF(OR($C51="",AO51=""),"",AO51/AO$6) ->  | AQ51: =IF(OR($C51="",AP51="",AO$6="",AO$6=0),"",IF(AP51*100>=AP$11,"A",IF(AP51*100>=AQ$11,"B","C"))) ->  | AR51: =IF(OR($C51="",AR$6=""),"",IF(COUNT(AI51,AL51,AO51)=0,"",SUM(AI51,AL51,AO51))) ->  | AS51: =IF(OR($C51="",AR51=""),"",AR51/AR$6) ->  | AT51: =IF(OR($C51="",AS51="",AR$6="",AR$6=0),"",IF(AS51*100>=AS$11,"A",IF(AS51*100>=AT$11,"B","C"))) -> 
D52: 思考判断表現 | F52: =IF(OR(E52="",$C51="",E$7="",E$7=0),"",IF(E52>=E$12,"A",IF(E52<F$12,"C","B"))) ->  | H52: =IF(OR(G52="",$C51="",G$7="",G$7=0),"",IF(G52>=G$12,"A",IF(G52<H$12,"C","B"))) ->  | J52: =IF(OR(I52="",$C51="",I$7="",I$7=0),"",IF(I52>=I$12,"A",IF(I52<J$12,"C","B"))) ->  | L52: =IF(OR(K52="",$C51="",K$7="",K$7=0),"",IF(K52>=K$12,"A",IF(K52<L$12,"C","B"))) ->  | N52: =IF(OR(M52="",$C51="",M$7="",M$7=0),"",IF(M52>=M$12,"A",IF(M52<N$12,"C","B"))) ->  | P52: =IF(OR(O52="",$C51="",O$7="",O$7=0),"",IF(O52>=O$12,"A",IF(O52<P$12,"C","B"))) ->  | R52: =IF(OR(Q52="",$C51="",Q$7="",Q$7=0),"",IF(Q52>=Q$12,"A",IF(Q52<R$12,"C","B"))) ->  | T52: =IF(OR(S52="",$C51="",S$7="",S$7=0),"",IF(S52>=S$12,"A",IF(S52<T$12,"C","B"))) ->  | AI52: =IF(OR($C51="",AI$7=""),"",IF(COUNTIFS($E$2:$AH$2,AI$1,$E52:$AH52,"<>")=0,"",SUMIF($E$2:$AH$2,AI$1,$E52:$AH52))) ->  | AJ52: =IF(OR($C51="",AI52=""),"",AI52/AI$7) ->  | AK52: =IF(OR($C51="",AJ52="",AI$7="",AI$7=0),"",IF(AJ52*100>=AJ$12,"A",IF(AJ52*100>=AK$12,"B","C"))) ->  | AL52: =IF(OR($C51="",AL$7=""),"",IF(COUNTIFS($E$2:$AH$2,AL$1,$E52:$AH52,"<>")=0,"",SUMIF($E$2:$AH$2,AL$1,$E52:$AH52))) ->  | AM52: =IF(OR($C51="",AL52=""),"",AL52/AL$7) ->  | AN52: =IF(OR($C51="",AM52="",AL$7="",AL$7=0),"",IF(AM52*100>=AM$12,"A",IF(AM52*100>=AN$12,"B","C"))) ->  | AO52: =IF(OR($C51="",AO$7=""),"",IF(COUNTIFS($E$2:$AH$2,AO$1,$E52:$AH52,"<>")=0,"",SUMIF($E$2:$AH$2,AO$1,$E52:$AH52))) ->  | AP52: =IF(OR($C51="",AO52=""),"",AO52/AO$7) ->  | AQ52: =IF(OR($C51="",AP52="",AO$7="",AO$7=0),"",IF(AP52*100>=AP$12,"A",IF(AP52*100>=AQ$12,"B","C"))) ->  | AR52: =IF(OR($C51="",AR$7=""),"",IF(COUNT(AI52,AL52,AO52)=0,"",SUM(AI52,AL52,AO52))) ->  | AS52: =IF(OR($C51="",AR52=""),"",AR52/AR$7) ->  | AT52: =IF(OR($C51="",AS52="",AR$7="",AR$7=0),"",IF(AS52*100>=AS$12,"A",IF(AS52*100>=AT$12,"B","C"))) -> 
D53: 主学態 | F53: =IF(OR(E53="",$C51="",E$8="",E$8=0),"",IF(E53>=E$13,"A",IF(E53<F$13,"C","B"))) ->  | H53: =IF(OR(G53="",$C51="",G$8="",G$8=0),"",IF(G53>=G$13,"A",IF(G53<H$13,"C","B"))) ->  | J53: =IF(OR(I53="",$C51="",I$8="",I$8=0),"",IF(I53>=I$13,"A",IF(I53<J$13,"C","B"))) ->  | L53: =IF(OR(K53="",$C51="",K$8="",K$8=0),"",IF(K53>=K$13,"A",IF(K53<L$13,"C","B"))) ->  | N53: =IF(OR(M53="",$C51="",M$8="",M$8=0),"",IF(M53>=M$13,"A",IF(M53<N$13,"C","B"))) ->  | P53: =IF(OR(O53="",$C51="",O$8="",O$8=0),"",IF(O53>=O$13,"A",IF(O53<P$13,"C","B"))) ->  | R53: =IF(OR(Q53="",$C51="",Q$8="",Q$8=0),"",IF(Q53>=Q$13,"A",IF(Q53<R$13,"C","B"))) ->  | T53: =IF(OR(S53="",$C51="",S$8="",S$8=0),"",IF(S53>=S$13,"A",IF(S53<T$13,"C","B"))) ->  | AI53: =IF(OR($C51="",AI$8=""),"",IF(COUNTIFS($E$2:$AH$2,AI$1,$E53:$AH53,"<>")=0,"",SUMIF($E$2:$AH$2,AI$1,$E53:$AH53))) ->  | AJ53: =IF(OR($C51="",AI53=""),"",AI53/AI$8) ->  | AK53: =IF(OR($C51="",AJ53="",AI$8="",AI$8=0),"",IF(AJ53*100>=AJ$13,"A",IF(AJ53*100>=AK$13,"B","C"))) ->  | AL53: =IF(OR($C51="",AL$8=""),"",IF(COUNTIFS($E$2:$AH$2,AL$1,$E53:$AH53,"<>")=0,"",SUMIF($E$2:$AH$2,AL$1,$E53:$AH53))) ->  | AM53: =IF(OR($C51="",AL53=""),"",AL53/AL$8) ->  | AN53: =IF(OR($C51="",AM53="",AL$8="",AL$8=0),"",IF(AM53*100>=AM$13,"A",IF(AM53*100>=AN$13,"B","C"))) ->  | AO53: =IF(OR($C51="",AO$8=""),"",IF(COUNTIFS($E$2:$AH$2,AO$1,$E53:$AH53,"<>")=0,"",SUMIF($E$2:$AH$2,AO$1,$E53:$AH53))) ->  | AP53: =IF(OR($C51="",AO53=""),"",AO53/AO$8) ->  | AQ53: =IF(OR($C51="",AP53="",AO$8="",AO$8=0),"",IF(AP53*100>=AP$13,"A",IF(AP53*100>=AQ$13,"B","C"))) ->  | AR53: =IF(OR($C51="",AR$8=""),"",IF(COUNT(AI53,AL53,AO53)=0,"",SUM(AI53,AL53,AO53))) ->  | AS53: =IF(OR($C51="",AR53=""),"",AR53/AR$8) ->  | AT53: =IF(OR($C51="",AS53="",AR$8="",AR$8=0),"",IF(AS53*100>=AS$13,"A",IF(AS53*100>=AT$13,"B","C"))) -> 
D54: 合計 | E54: =IF(OR(AND(E51="",E52="",E53=""),$C51=""),"",SUM(E51:E53)) ->  | F54: _ | G54: =IF(OR(AND(G51="",G52="",G53=""),$C51=""),"",SUM(G51:G53)) ->  | H54: _ | I54: =IF(OR(AND(I51="",I52="",I53=""),$C51=""),"",SUM(I51:I53)) ->  | J54: _ | K54: =IF(OR(AND(K51="",K52="",K53=""),$C51=""),"",SUM(K51:K53)) ->  | L54: _ | M54: =IF(OR(AND(M51="",M52="",M53=""),$C51=""),"",SUM(M51:M53)) ->  | N54: _ | O54: =IF(OR(AND(O51="",O52="",O53=""),$C51=""),"",SUM(O51:O53)) ->  | P54: _ | Q54: =IF(OR(AND(Q51="",Q52="",Q53=""),$C51=""),"",SUM(Q51:Q53)) ->  | R54: _ | S54: =IF(OR(AND(S51="",S52="",S53=""),$C51=""),"",SUM(S51:S53)) ->  | T54: _ | AI54: =IF($C51="","",IF(COUNTBLANK(AI51:AI53)=COUNTA(AI51:AI53),"",SUM(AI51:AI53))) ->  | AJ54: =IF(OR($C51="",AI54=""),"",AI54/AI$9) ->  | AL54: =IF($C51="","",IF(COUNTBLANK(AL51:AL53)=COUNTA(AL51:AL53),"",SUM(AL51:AL53))) ->  | AM54: =IF(OR($C51="",AL54=""),"",AL54/AL$9) ->  | AO54: =IF($C51="","",IF(COUNTBLANK(AO51:AO53)=COUNTA(AO51:AO53),"",SUM(AO51:AO53))) ->  | AP54: =IF(OR($C51="",AO54=""),"",AO54/AO$9) ->  | AR54: =IF(OR($C51="",AR$9=""),"",IF(COUNT(AI54,AL54,AO54)=0,"",SUM(AI54,AL54,AO54))) ->  | AS54: =IF(OR($C51="",AR54=""),"",AR54/AR$9) -> 
A55: 1 | B55: 11 | C55: =VLOOKUP(B55,INDIRECT("_"&A55&"組"),2,0)&"" ->  | D55: 知識・技能 | F55: =IF(OR(E55="",$C55="",E$6="",E$6=0),"",IF(E55>=E$11,"A",IF(E55<F$11,"C","B"))) ->  | H55: =IF(OR(G55="",$C55="",G$6="",G$6=0),"",IF(G55>=G$11,"A",IF(G55<H$11,"C","B"))) ->  | J55: =IF(OR(I55="",$C55="",I$6="",I$6=0),"",IF(I55>=I$11,"A",IF(I55<J$11,"C","B"))) ->  | L55: =IF(OR(K55="",$C55="",K$6="",K$6=0),"",IF(K55>=K$11,"A",IF(K55<L$11,"C","B"))) ->  | N55: =IF(OR(M55="",$C55="",M$6="",M$6=0),"",IF(M55>=M$11,"A",IF(M55<N$11,"C","B"))) ->  | P55: =IF(OR(O55="",$C55="",O$6="",O$6=0),"",IF(O55>=O$11,"A",IF(O55<P$11,"C","B"))) ->  | R55: =IF(OR(Q55="",$C55="",Q$6="",Q$6=0),"",IF(Q55>=Q$11,"A",IF(Q55<R$11,"C","B"))) ->  | T55: =IF(OR(S55="",$C55="",S$6="",S$6=0),"",IF(S55>=S$11,"A",IF(S55<T$11,"C","B"))) ->  | AI55: =IF(OR($C55="",AI$6=""),"",IF(COUNTIFS($E$2:$AH$2,AI$1,$E55:$AH55,"<>")=0,"",SUMIF($E$2:$AH$2,AI$1,$E55:$AH55))) ->  | AJ55: =IF(OR($C55="",AI55=""),"",AI55/AI$6) ->  | AK55: =IF(OR($C55="",AJ55="",AI$6="",AI$6=0),"",IF(AJ55*100>=AJ$11,"A",IF(AJ55*100>=AK$11,"B","C"))) ->  | AL55: =IF(OR($C55="",AL$6=""),"",IF(COUNTIFS($E$2:$AH$2,AL$1,$E55:$AH55,"<>")=0,"",SUMIF($E$2:$AH$2,AL$1,$E55:$AH55))) ->  | AM55: =IF(OR($C55="",AL55=""),"",AL55/AL$6) ->  | AN55: =IF(OR($C55="",AM55="",AL$6="",AL$6=0),"",IF(AM55*100>=AM$11,"A",IF(AM55*100>=AN$11,"B","C"))) ->  | AO55: =IF(OR($C55="",AO$6=""),"",IF(COUNTIFS($E$2:$AH$2,AO$1,$E55:$AH55,"<>")=0,"",SUMIF($E$2:$AH$2,AO$1,$E55:$AH55))) ->  | AP55: =IF(OR($C55="",AO55=""),"",AO55/AO$6) ->  | AQ55: =IF(OR($C55="",AP55="",AO$6="",AO$6=0),"",IF(AP55*100>=AP$11,"A",IF(AP55*100>=AQ$11,"B","C"))) ->  | AR55: =IF(OR($C55="",AR$6=""),"",IF(COUNT(AI55,AL55,AO55)=0,"",SUM(AI55,AL55,AO55))) ->  | AS55: =IF(OR($C55="",AR55=""),"",AR55/AR$6) ->  | AT55: =IF(OR($C55="",AS55="",AR$6="",AR$6=0),"",IF(AS55*100>=AS$11,"A",IF(AS55*100>=AT$11,"B","C"))) -> 
D56: 思考判断表現 | F56: =IF(OR(E56="",$C55="",E$7="",E$7=0),"",IF(E56>=E$12,"A",IF(E56<F$12,"C","B"))) ->  | H56: =IF(OR(G56="",$C55="",G$7="",G$7=0),"",IF(G56>=G$12,"A",IF(G56<H$12,"C","B"))) ->  | J56: =IF(OR(I56="",$C55="",I$7="",I$7=0),"",IF(I56>=I$12,"A",IF(I56<J$12,"C","B"))) ->  | L56: =IF(OR(K56="",$C55="",K$7="",K$7=0),"",IF(K56>=K$12,"A",IF(K56<L$12,"C","B"))) ->  | N56: =IF(OR(M56="",$C55="",M$7="",M$7=0),"",IF(M56>=M$12,"A",IF(M56<N$12,"C","B"))) ->  | P56: =IF(OR(O56="",$C55="",O$7="",O$7=0),"",IF(O56>=O$12,"A",IF(O56<P$12,"C","B"))) ->  | R56: =IF(OR(Q56="",$C55="",Q$7="",Q$7=0),"",IF(Q56>=Q$12,"A",IF(Q56<R$12,"C","B"))) ->  | T56: =IF(OR(S56="",$C55="",S$7="",S$7=0),"",IF(S56>=S$12,"A",IF(S56<T$12,"C","B"))) ->  | AI56: =IF(OR($C55="",AI$7=""),"",IF(COUNTIFS($E$2:$AH$2,AI$1,$E56:$AH56,"<>")=0,"",SUMIF($E$2:$AH$2,AI$1,$E56:$AH56))) ->  | AJ56: =IF(OR($C55="",AI56=""),"",AI56/AI$7) ->  | AK56: =IF(OR($C55="",AJ56="",AI$7="",AI$7=0),"",IF(AJ56*100>=AJ$12,"A",IF(AJ56*100>=AK$12,"B","C"))) ->  | AL56: =IF(OR($C55="",AL$7=""),"",IF(COUNTIFS($E$2:$AH$2,AL$1,$E56:$AH56,"<>")=0,"",SUMIF($E$2:$AH$2,AL$1,$E56:$AH56))) ->  | AM56: =IF(OR($C55="",AL56=""),"",AL56/AL$7) ->  | AN56: =IF(OR($C55="",AM56="",AL$7="",AL$7=0),"",IF(AM56*100>=AM$12,"A",IF(AM56*100>=AN$12,"B","C"))) ->  | AO56: =IF(OR($C55="",AO$7=""),"",IF(COUNTIFS($E$2:$AH$2,AO$1,$E56:$AH56,"<>")=0,"",SUMIF($E$2:$AH$2,AO$1,$E56:$AH56))) ->  | AP56: =IF(OR($C55="",AO56=""),"",AO56/AO$7) ->  | AQ56: =IF(OR($C55="",AP56="",AO$7="",AO$7=0),"",IF(AP56*100>=AP$12,"A",IF(AP56*100>=AQ$12,"B","C"))) ->  | AR56: =IF(OR($C55="",AR$7=""),"",IF(COUNT(AI56,AL56,AO56)=0,"",SUM(AI56,AL56,AO56))) ->  | AS56: =IF(OR($C55="",AR56=""),"",AR56/AR$7) ->  | AT56: =IF(OR($C55="",AS56="",AR$7="",AR$7=0),"",IF(AS56*100>=AS$12,"A",IF(AS56*100>=AT$12,"B","C"))) -> 
D57: 主学態 | F57: =IF(OR(E57="",$C55="",E$8="",E$8=0),"",IF(E57>=E$13,"A",IF(E57<F$13,"C","B"))) ->  | H57: =IF(OR(G57="",$C55="",G$8="",G$8=0),"",IF(G57>=G$13,"A",IF(G57<H$13,"C","B"))) ->  | J57: =IF(OR(I57="",$C55="",I$8="",I$8=0),"",IF(I57>=I$13,"A",IF(I57<J$13,"C","B"))) ->  | L57: =IF(OR(K57="",$C55="",K$8="",K$8=0),"",IF(K57>=K$13,"A",IF(K57<L$13,"C","B"))) ->  | N57: =IF(OR(M57="",$C55="",M$8="",M$8=0),"",IF(M57>=M$13,"A",IF(M57<N$13,"C","B"))) ->  | P57: =IF(OR(O57="",$C55="",O$8="",O$8=0),"",IF(O57>=O$13,"A",IF(O57<P$13,"C","B"))) ->  | R57: =IF(OR(Q57="",$C55="",Q$8="",Q$8=0),"",IF(Q57>=Q$13,"A",IF(Q57<R$13,"C","B"))) ->  | T57: =IF(OR(S57="",$C55="",S$8="",S$8=0),"",IF(S57>=S$13,"A",IF(S57<T$13,"C","B"))) ->  | AI57: =IF(OR($C55="",AI$8=""),"",IF(COUNTIFS($E$2:$AH$2,AI$1,$E57:$AH57,"<>")=0,"",SUMIF($E$2:$AH$2,AI$1,$E57:$AH57))) ->  | AJ57: =IF(OR($C55="",AI57=""),"",AI57/AI$8) ->  | AK57: =IF(OR($C55="",AJ57="",AI$8="",AI$8=0),"",IF(AJ57*100>=AJ$13,"A",IF(AJ57*100>=AK$13,"B","C"))) ->  | AL57: =IF(OR($C55="",AL$8=""),"",IF(COUNTIFS($E$2:$AH$2,AL$1,$E57:$AH57,"<>")=0,"",SUMIF($E$2:$AH$2,AL$1,$E57:$AH57))) ->  | AM57: =IF(OR($C55="",AL57=""),"",AL57/AL$8) ->  | AN57: =IF(OR($C55="",AM57="",AL$8="",AL$8=0),"",IF(AM57*100>=AM$13,"A",IF(AM57*100>=AN$13,"B","C"))) ->  | AO57: =IF(OR($C55="",AO$8=""),"",IF(COUNTIFS($E$2:$AH$2,AO$1,$E57:$AH57,"<>")=0,"",SUMIF($E$2:$AH$2,AO$1,$E57:$AH57))) ->  | AP57: =IF(OR($C55="",AO57=""),"",AO57/AO$8) ->  | AQ57: =IF(OR($C55="",AP57="",AO$8="",AO$8=0),"",IF(AP57*100>=AP$13,"A",IF(AP57*100>=AQ$13,"B","C"))) ->  | AR57: =IF(OR($C55="",AR$8=""),"",IF(COUNT(AI57,AL57,AO57)=0,"",SUM(AI57,AL57,AO57))) ->  | AS57: =IF(OR($C55="",AR57=""),"",AR57/AR$8) ->  | AT57: =IF(OR($C55="",AS57="",AR$8="",AR$8=0),"",IF(AS57*100>=AS$13,"A",IF(AS57*100>=AT$13,"B","C"))) -> 
D58: 合計 | E58: =IF(OR(AND(E55="",E56="",E57=""),$C55=""),"",SUM(E55:E57)) ->  | F58: _ | G58: =IF(OR(AND(G55="",G56="",G57=""),$C55=""),"",SUM(G55:G57)) ->  | H58: _ | I58: =IF(OR(AND(I55="",I56="",I57=""),$C55=""),"",SUM(I55:I57)) ->  | J58: _ | K58: =IF(OR(AND(K55="",K56="",K57=""),$C55=""),"",SUM(K55:K57)) ->  | L58: _ | M58: =IF(OR(AND(M55="",M56="",M57=""),$C55=""),"",SUM(M55:M57)) ->  | N58: _ | O58: =IF(OR(AND(O55="",O56="",O57=""),$C55=""),"",SUM(O55:O57)) ->  | P58: _ | Q58: =IF(OR(AND(Q55="",Q56="",Q57=""),$C55=""),"",SUM(Q55:Q57)) ->  | R58: _ | S58: =IF(OR(AND(S55="",S56="",S57=""),$C55=""),"",SUM(S55:S57)) ->  | T58: _ | AI58: =IF($C55="","",IF(COUNTBLANK(AI55:AI57)=COUNTA(AI55:AI57),"",SUM(AI55:AI57))) ->  | AJ58: =IF(OR($C55="",AI58=""),"",AI58/AI$9) ->  | AL58: =IF($C55="","",IF(COUNTBLANK(AL55:AL57)=COUNTA(AL55:AL57),"",SUM(AL55:AL57))) ->  | AM58: =IF(OR($C55="",AL58=""),"",AL58/AL$9) ->  | AO58: =IF($C55="","",IF(COUNTBLANK(AO55:AO57)=COUNTA(AO55:AO57),"",SUM(AO55:AO57))) ->  | AP58: =IF(OR($C55="",AO58=""),"",AO58/AO$9) ->  | AR58: =IF(OR($C55="",AR$9=""),"",IF(COUNT(AI58,AL58,AO58)=0,"",SUM(AI58,AL58,AO58))) ->  | AS58: =IF(OR($C55="",AR58=""),"",AR58/AR$9) -> 
A59: 1 | B59: 12 | C59: =VLOOKUP(B59,INDIRECT("_"&A59&"組"),2,0)&"" ->  | D59: 知識・技能 | F59: =IF(OR(E59="",$C59="",E$6="",E$6=0),"",IF(E59>=E$11,"A",IF(E59<F$11,"C","B"))) ->  | H59: =IF(OR(G59="",$C59="",G$6="",G$6=0),"",IF(G59>=G$11,"A",IF(G59<H$11,"C","B"))) ->  | J59: =IF(OR(I59="",$C59="",I$6="",I$6=0),"",IF(I59>=I$11,"A",IF(I59<J$11,"C","B"))) ->  | L59: =IF(OR(K59="",$C59="",K$6="",K$6=0),"",IF(K59>=K$11,"A",IF(K59<L$11,"C","B"))) ->  | N59: =IF(OR(M59="",$C59="",M$6="",M$6=0),"",IF(M59>=M$11,"A",IF(M59<N$11,"C","B"))) ->  | P59: =IF(OR(O59="",$C59="",O$6="",O$6=0),"",IF(O59>=O$11,"A",IF(O59<P$11,"C","B"))) ->  | R59: =IF(OR(Q59="",$C59="",Q$6="",Q$6=0),"",IF(Q59>=Q$11,"A",IF(Q59<R$11,"C","B"))) ->  | T59: =IF(OR(S59="",$C59="",S$6="",S$6=0),"",IF(S59>=S$11,"A",IF(S59<T$11,"C","B"))) ->  | AI59: =IF(OR($C59="",AI$6=""),"",IF(COUNTIFS($E$2:$AH$2,AI$1,$E59:$AH59,"<>")=0,"",SUMIF($E$2:$AH$2,AI$1,$E59:$AH59))) ->  | AJ59: =IF(OR($C59="",AI59=""),"",AI59/AI$6) ->  | AK59: =IF(OR($C59="",AJ59="",AI$6="",AI$6=0),"",IF(AJ59*100>=AJ$11,"A",IF(AJ59*100>=AK$11,"B","C"))) ->  | AL59: =IF(OR($C59="",AL$6=""),"",IF(COUNTIFS($E$2:$AH$2,AL$1,$E59:$AH59,"<>")=0,"",SUMIF($E$2:$AH$2,AL$1,$E59:$AH59))) ->  | AM59: =IF(OR($C59="",AL59=""),"",AL59/AL$6) ->  | AN59: =IF(OR($C59="",AM59="",AL$6="",AL$6=0),"",IF(AM59*100>=AM$11,"A",IF(AM59*100>=AN$11,"B","C"))) ->  | AO59: =IF(OR($C59="",AO$6=""),"",IF(COUNTIFS($E$2:$AH$2,AO$1,$E59:$AH59,"<>")=0,"",SUMIF($E$2:$AH$2,AO$1,$E59:$AH59))) ->  | AP59: =IF(OR($C59="",AO59=""),"",AO59/AO$6) ->  | AQ59: =IF(OR($C59="",AP59="",AO$6="",AO$6=0),"",IF(AP59*100>=AP$11,"A",IF(AP59*100>=AQ$11,"B","C"))) ->  | AR59: =IF(OR($C59="",AR$6=""),"",IF(COUNT(AI59,AL59,AO59)=0,"",SUM(AI59,AL59,AO59))) ->  | AS59: =IF(OR($C59="",AR59=""),"",AR59/AR$6) ->  | AT59: =IF(OR($C59="",AS59="",AR$6="",AR$6=0),"",IF(AS59*100>=AS$11,"A",IF(AS59*100>=AT$11,"B","C"))) -> 
D60: 思考判断表現 | F60: =IF(OR(E60="",$C59="",E$7="",E$7=0),"",IF(E60>=E$12,"A",IF(E60<F$12,"C","B"))) ->  | H60: =IF(OR(G60="",$C59="",G$7="",G$7=0),"",IF(G60>=G$12,"A",IF(G60<H$12,"C","B"))) ->  | J60: =IF(OR(I60="",$C59="",I$7="",I$7=0),"",IF(I60>=I$12,"A",IF(I60<J$12,"C","B"))) ->  | L60: =IF(OR(K60="",$C59="",K$7="",K$7=0),"",IF(K60>=K$12,"A",IF(K60<L$12,"C","B"))) ->  | N60: =IF(OR(M60="",$C59="",M$7="",M$7=0),"",IF(M60>=M$12,"A",IF(M60<N$12,"C","B"))) ->  | P60: =IF(OR(O60="",$C59="",O$7="",O$7=0),"",IF(O60>=O$12,"A",IF(O60<P$12,"C","B"))) ->  | R60: =IF(OR(Q60="",$C59="",Q$7="",Q$7=0),"",IF(Q60>=Q$12,"A",IF(Q60<R$12,"C","B"))) ->  | T60: =IF(OR(S60="",$C59="",S$7="",S$7=0),"",IF(S60>=S$12,"A",IF(S60<T$12,"C","B"))) ->  | AI60: =IF(OR($C59="",AI$7=""),"",IF(COUNTIFS($E$2:$AH$2,AI$1,$E60:$AH60,"<>")=0,"",SUMIF($E$2:$AH$2,AI$1,$E60:$AH60))) ->  | AJ60: =IF(OR($C59="",AI60=""),"",AI60/AI$7) ->  | AK60: =IF(OR($C59="",AJ60="",AI$7="",AI$7=0),"",IF(AJ60*100>=AJ$12,"A",IF(AJ60*100>=AK$12,"B","C"))) ->  | AL60: =IF(OR($C59="",AL$7=""),"",IF(COUNTIFS($E$2:$AH$2,AL$1,$E60:$AH60,"<>")=0,"",SUMIF($E$2:$AH$2,AL$1,$E60:$AH60))) ->  | AM60: =IF(OR($C59="",AL60=""),"",AL60/AL$7) ->  | AN60: =IF(OR($C59="",AM60="",AL$7="",AL$7=0),"",IF(AM60*100>=AM$12,"A",IF(AM60*100>=AN$12,"B","C"))) ->  | AO60: =IF(OR($C59="",AO$7=""),"",IF(COUNTIFS($E$2:$AH$2,AO$1,$E60:$AH60,"<>")=0,"",SUMIF($E$2:$AH$2,AO$1,$E60:$AH60))) ->  | AP60: =IF(OR($C59="",AO60=""),"",AO60/AO$7) ->  | AQ60: =IF(OR($C59="",AP60="",AO$7="",AO$7=0),"",IF(AP60*100>=AP$12,"A",IF(AP60*100>=AQ$12,"B","C"))) ->  | AR60: =IF(OR($C59="",AR$7=""),"",IF(COUNT(AI60,AL60,AO60)=0,"",SUM(AI60,AL60,AO60))) ->  | AS60: =IF(OR($C59="",AR60=""),"",AR60/AR$7) ->  | AT60: =IF(OR($C59="",AS60="",AR$7="",AR$7=0),"",IF(AS60*100>=AS$12,"A",IF(AS60*100>=AT$12,"B","C"))) -> 
D61: 主学態 | F61: =IF(OR(E61="",$C59="",E$8="",E$8=0),"",IF(E61>=E$13,"A",IF(E61<F$13,"C","B"))) ->  | H61: =IF(OR(G61="",$C59="",G$8="",G$8=0),"",IF(G61>=G$13,"A",IF(G61<H$13,"C","B"))) ->  | J61: =IF(OR(I61="",$C59="",I$8="",I$8=0),"",IF(I61>=I$13,"A",IF(I61<J$13,"C","B"))) ->  | L61: =IF(OR(K61="",$C59="",K$8="",K$8=0),"",IF(K61>=K$13,"A",IF(K61<L$13,"C","B"))) ->  | N61: =IF(OR(M61="",$C59="",M$8="",M$8=0),"",IF(M61>=M$13,"A",IF(M61<N$13,"C","B"))) ->  | P61: =IF(OR(O61="",$C59="",O$8="",O$8=0),"",IF(O61>=O$13,"A",IF(O61<P$13,"C","B"))) ->  | R61: =IF(OR(Q61="",$C59="",Q$8="",Q$8=0),"",IF(Q61>=Q$13,"A",IF(Q61<R$13,"C","B"))) ->  | T61: =IF(OR(S61="",$C59="",S$8="",S$8=0),"",IF(S61>=S$13,"A",IF(S61<T$13,"C","B"))) ->  | AI61: =IF(OR($C59="",AI$8=""),"",IF(COUNTIFS($E$2:$AH$2,AI$1,$E61:$AH61,"<>")=0,"",SUMIF($E$2:$AH$2,AI$1,$E61:$AH61))) ->  | AJ61: =IF(OR($C59="",AI61=""),"",AI61/AI$8) ->  | AK61: =IF(OR($C59="",AJ61="",AI$8="",AI$8=0),"",IF(AJ61*100>=AJ$13,"A",IF(AJ61*100>=AK$13,"B","C"))) ->  | AL61: =IF(OR($C59="",AL$8=""),"",IF(COUNTIFS($E$2:$AH$2,AL$1,$E61:$AH61,"<>")=0,"",SUMIF($E$2:$AH$2,AL$1,$E61:$AH61))) ->  | AM61: =IF(OR($C59="",AL61=""),"",AL61/AL$8) ->  | AN61: =IF(OR($C59="",AM61="",AL$8="",AL$8=0),"",IF(AM61*100>=AM$13,"A",IF(AM61*100>=AN$13,"B","C"))) ->  | AO61: =IF(OR($C59="",AO$8=""),"",IF(COUNTIFS($E$2:$AH$2,AO$1,$E61:$AH61,"<>")=0,"",SUMIF($E$2:$AH$2,AO$1,$E61:$AH61))) ->  | AP61: =IF(OR($C59="",AO61=""),"",AO61/AO$8) ->  | AQ61: =IF(OR($C59="",AP61="",AO$8="",AO$8=0),"",IF(AP61*100>=AP$13,"A",IF(AP61*100>=AQ$13,"B","C"))) ->  | AR61: =IF(OR($C59="",AR$8=""),"",IF(COUNT(AI61,AL61,AO61)=0,"",SUM(AI61,AL61,AO61))) ->  | AS61: =IF(OR($C59="",AR61=""),"",AR61/AR$8) ->  | AT61: =IF(OR($C59="",AS61="",AR$8="",AR$8=0),"",IF(AS61*100>=AS$13,"A",IF(AS61*100>=AT$13,"B","C"))) -> 
D62: 合計 | E62: =IF(OR(AND(E59="",E60="",E61=""),$C59=""),"",SUM(E59:E61)) ->  | F62: _ | G62: =IF(OR(AND(G59="",G60="",G61=""),$C59=""),"",SUM(G59:G61)) ->  | H62: _ | I62: =IF(OR(AND(I59="",I60="",I61=""),$C59=""),"",SUM(I59:I61)) ->  | J62: _ | K62: =IF(OR(AND(K59="",K60="",K61=""),$C59=""),"",SUM(K59:K61)) ->  | L62: _ | M62: =IF(OR(AND(M59="",M60="",M61=""),$C59=""),"",SUM(M59:M61)) ->  | N62: _ | O62: =IF(OR(AND(O59="",O60="",O61=""),$C59=""),"",SUM(O59:O61)) ->  | P62: _ | Q62: =IF(OR(AND(Q59="",Q60="",Q61=""),$C59=""),"",SUM(Q59:Q61)) ->  | R62: _ | S62: =IF(OR(AND(S59="",S60="",S61=""),$C59=""),"",SUM(S59:S61)) ->  | T62: _ | AI62: =IF($C59="","",IF(COUNTBLANK(AI59:AI61)=COUNTA(AI59:AI61),"",SUM(AI59:AI61))) ->  | AJ62: =IF(OR($C59="",AI62=""),"",AI62/AI$9) ->  | AL62: =IF($C59="","",IF(COUNTBLANK(AL59:AL61)=COUNTA(AL59:AL61),"",SUM(AL59:AL61))) ->  | AM62: =IF(OR($C59="",AL62=""),"",AL62/AL$9) ->  | AO62: =IF($C59="","",IF(COUNTBLANK(AO59:AO61)=COUNTA(AO59:AO61),"",SUM(AO59:AO61))) ->  | AP62: =IF(OR($C59="",AO62=""),"",AO62/AO$9) ->  | AR62: =IF(OR($C59="",AR$9=""),"",IF(COUNT(AI62,AL62,AO62)=0,"",SUM(AI62,AL62,AO62))) ->  | AS62: =IF(OR($C59="",AR62=""),"",AR62/AR$9) -> 
A63: 1 | B63: 13 | C63: =VLOOKUP(B63,INDIRECT("_"&A63&"組"),2,0)&"" ->  | D63: 知識・技能 | F63: =IF(OR(E63="",$C63="",E$6="",E$6=0),"",IF(E63>=E$11,"A",IF(E63<F$11,"C","B"))) ->  | H63: =IF(OR(G63="",$C63="",G$6="",G$6=0),"",IF(G63>=G$11,"A",IF(G63<H$11,"C","B"))) ->  | J63: =IF(OR(I63="",$C63="",I$6="",I$6=0),"",IF(I63>=I$11,"A",IF(I63<J$11,"C","B"))) ->  | L63: =IF(OR(K63="",$C63="",K$6="",K$6=0),"",IF(K63>=K$11,"A",IF(K63<L$11,"C","B"))) ->  | N63: =IF(OR(M63="",$C63="",M$6="",M$6=0),"",IF(M63>=M$11,"A",IF(M63<N$11,"C","B"))) ->  | P63: =IF(OR(O63="",$C63="",O$6="",O$6=0),"",IF(O63>=O$11,"A",IF(O63<P$11,"C","B"))) ->  | R63: =IF(OR(Q63="",$C63="",Q$6="",Q$6=0),"",IF(Q63>=Q$11,"A",IF(Q63<R$11,"C","B"))) ->  | T63: =IF(OR(S63="",$C63="",S$6="",S$6=0),"",IF(S63>=S$11,"A",IF(S63<T$11,"C","B"))) ->  | AI63: =IF(OR($C63="",AI$6=""),"",IF(COUNTIFS($E$2:$AH$2,AI$1,$E63:$AH63,"<>")=0,"",SUMIF($E$2:$AH$2,AI$1,$E63:$AH63))) ->  | AJ63: =IF(OR($C63="",AI63=""),"",AI63/AI$6) ->  | AK63: =IF(OR($C63="",AJ63="",AI$6="",AI$6=0),"",IF(AJ63*100>=AJ$11,"A",IF(AJ63*100>=AK$11,"B","C"))) ->  | AL63: =IF(OR($C63="",AL$6=""),"",IF(COUNTIFS($E$2:$AH$2,AL$1,$E63:$AH63,"<>")=0,"",SUMIF($E$2:$AH$2,AL$1,$E63:$AH63))) ->  | AM63: =IF(OR($C63="",AL63=""),"",AL63/AL$6) ->  | AN63: =IF(OR($C63="",AM63="",AL$6="",AL$6=0),"",IF(AM63*100>=AM$11,"A",IF(AM63*100>=AN$11,"B","C"))) ->  | AO63: =IF(OR($C63="",AO$6=""),"",IF(COUNTIFS($E$2:$AH$2,AO$1,$E63:$AH63,"<>")=0,"",SUMIF($E$2:$AH$2,AO$1,$E63:$AH63))) ->  | AP63: =IF(OR($C63="",AO63=""),"",AO63/AO$6) ->  | AQ63: =IF(OR($C63="",AP63="",AO$6="",AO$6=0),"",IF(AP63*100>=AP$11,"A",IF(AP63*100>=AQ$11,"B","C"))) ->  | AR63: =IF(OR($C63="",AR$6=""),"",IF(COUNT(AI63,AL63,AO63)=0,"",SUM(AI63,AL63,AO63))) ->  | AS63: =IF(OR($C63="",AR63=""),"",AR63/AR$6) ->  | AT63: =IF(OR($C63="",AS63="",AR$6="",AR$6=0),"",IF(AS63*100>=AS$11,"A",IF(AS63*100>=AT$11,"B","C"))) -> 
D64: 思考判断表現 | F64: =IF(OR(E64="",$C63="",E$7="",E$7=0),"",IF(E64>=E$12,"A",IF(E64<F$12,"C","B"))) ->  | H64: =IF(OR(G64="",$C63="",G$7="",G$7=0),"",IF(G64>=G$12,"A",IF(G64<H$12,"C","B"))) ->  | J64: =IF(OR(I64="",$C63="",I$7="",I$7=0),"",IF(I64>=I$12,"A",IF(I64<J$12,"C","B"))) ->  | L64: =IF(OR(K64="",$C63="",K$7="",K$7=0),"",IF(K64>=K$12,"A",IF(K64<L$12,"C","B"))) ->  | N64: =IF(OR(M64="",$C63="",M$7="",M$7=0),"",IF(M64>=M$12,"A",IF(M64<N$12,"C","B"))) ->  | P64: =IF(OR(O64="",$C63="",O$7="",O$7=0),"",IF(O64>=O$12,"A",IF(O64<P$12,"C","B"))) ->  | R64: =IF(OR(Q64="",$C63="",Q$7="",Q$7=0),"",IF(Q64>=Q$12,"A",IF(Q64<R$12,"C","B"))) ->  | T64: =IF(OR(S64="",$C63="",S$7="",S$7=0),"",IF(S64>=S$12,"A",IF(S64<T$12,"C","B"))) ->  | AI64: =IF(OR($C63="",AI$7=""),"",IF(COUNTIFS($E$2:$AH$2,AI$1,$E64:$AH64,"<>")=0,"",SUMIF($E$2:$AH$2,AI$1,$E64:$AH64))) ->  | AJ64: =IF(OR($C63="",AI64=""),"",AI64/AI$7) ->  | AK64: =IF(OR($C63="",AJ64="",AI$7="",AI$7=0),"",IF(AJ64*100>=AJ$12,"A",IF(AJ64*100>=AK$12,"B","C"))) ->  | AL64: =IF(OR($C63="",AL$7=""),"",IF(COUNTIFS($E$2:$AH$2,AL$1,$E64:$AH64,"<>")=0,"",SUMIF($E$2:$AH$2,AL$1,$E64:$AH64))) ->  | AM64: =IF(OR($C63="",AL64=""),"",AL64/AL$7) ->  | AN64: =IF(OR($C63="",AM64="",AL$7="",AL$7=0),"",IF(AM64*100>=AM$12,"A",IF(AM64*100>=AN$12,"B","C"))) ->  | AO64: =IF(OR($C63="",AO$7=""),"",IF(COUNTIFS($E$2:$AH$2,AO$1,$E64:$AH64,"<>")=0,"",SUMIF($E$2:$AH$2,AO$1,$E64:$AH64))) ->  | AP64: =IF(OR($C63="",AO64=""),"",AO64/AO$7) ->  | AQ64: =IF(OR($C63="",AP64="",AO$7="",AO$7=0),"",IF(AP64*100>=AP$12,"A",IF(AP64*100>=AQ$12,"B","C"))) ->  | AR64: =IF(OR($C63="",AR$7=""),"",IF(COUNT(AI64,AL64,AO64)=0,"",SUM(AI64,AL64,AO64))) ->  | AS64: =IF(OR($C63="",AR64=""),"",AR64/AR$7) ->  | AT64: =IF(OR($C63="",AS64="",AR$7="",AR$7=0),"",IF(AS64*100>=AS$12,"A",IF(AS64*100>=AT$12,"B","C"))) -> 
D65: 主学態 | F65: =IF(OR(E65="",$C63="",E$8="",E$8=0),"",IF(E65>=E$13,"A",IF(E65<F$13,"C","B"))) ->  | H65: =IF(OR(G65="",$C63="",G$8="",G$8=0),"",IF(G65>=G$13,"A",IF(G65<H$13,"C","B"))) ->  | J65: =IF(OR(I65="",$C63="",I$8="",I$8=0),"",IF(I65>=I$13,"A",IF(I65<J$13,"C","B"))) ->  | L65: =IF(OR(K65="",$C63="",K$8="",K$8=0),"",IF(K65>=K$13,"A",IF(K65<L$13,"C","B"))) ->  | N65: =IF(OR(M65="",$C63="",M$8="",M$8=0),"",IF(M65>=M$13,"A",IF(M65<N$13,"C","B"))) ->  | P65: =IF(OR(O65="",$C63="",O$8="",O$8=0),"",IF(O65>=O$13,"A",IF(O65<P$13,"C","B"))) ->  | R65: =IF(OR(Q65="",$C63="",Q$8="",Q$8=0),"",IF(Q65>=Q$13,"A",IF(Q65<R$13,"C","B"))) ->  | T65: =IF(OR(S65="",$C63="",S$8="",S$8=0),"",IF(S65>=S$13,"A",IF(S65<T$13,"C","B"))) ->  | AI65: =IF(OR($C63="",AI$8=""),"",IF(COUNTIFS($E$2:$AH$2,AI$1,$E65:$AH65,"<>")=0,"",SUMIF($E$2:$AH$2,AI$1,$E65:$AH65))) ->  | AJ65: =IF(OR($C63="",AI65=""),"",AI65/AI$8) ->  | AK65: =IF(OR($C63="",AJ65="",AI$8="",AI$8=0),"",IF(AJ65*100>=AJ$13,"A",IF(AJ65*100>=AK$13,"B","C"))) ->  | AL65: =IF(OR($C63="",AL$8=""),"",IF(COUNTIFS($E$2:$AH$2,AL$1,$E65:$AH65,"<>")=0,"",SUMIF($E$2:$AH$2,AL$1,$E65:$AH65))) ->  | AM65: =IF(OR($C63="",AL65=""),"",AL65/AL$8) ->  | AN65: =IF(OR($C63="",AM65="",AL$8="",AL$8=0),"",IF(AM65*100>=AM$13,"A",IF(AM65*100>=AN$13,"B","C"))) ->  | AO65: =IF(OR($C63="",AO$8=""),"",IF(COUNTIFS($E$2:$AH$2,AO$1,$E65:$AH65,"<>")=0,"",SUMIF($E$2:$AH$2,AO$1,$E65:$AH65))) ->  | AP65: =IF(OR($C63="",AO65=""),"",AO65/AO$8) ->  | AQ65: =IF(OR($C63="",AP65="",AO$8="",AO$8=0),"",IF(AP65*100>=AP$13,"A",IF(AP65*100>=AQ$13,"B","C"))) ->  | AR65: =IF(OR($C63="",AR$8=""),"",IF(COUNT(AI65,AL65,AO65)=0,"",SUM(AI65,AL65,AO65))) ->  | AS65: =IF(OR($C63="",AR65=""),"",AR65/AR$8) ->  | AT65: =IF(OR($C63="",AS65="",AR$8="",AR$8=0),"",IF(AS65*100>=AS$13,"A",IF(AS65*100>=AT$13,"B","C"))) -> 
D66: 合計 | E66: =IF(OR(AND(E63="",E64="",E65=""),$C63=""),"",SUM(E63:E65)) ->  | F66: _ | G66: =IF(OR(AND(G63="",G64="",G65=""),$C63=""),"",SUM(G63:G65)) ->  | H66: _ | I66: =IF(OR(AND(I63="",I64="",I65=""),$C63=""),"",SUM(I63:I65)) ->  | J66: _ | K66: =IF(OR(AND(K63="",K64="",K65=""),$C63=""),"",SUM(K63:K65)) ->  | L66: _ | M66: =IF(OR(AND(M63="",M64="",M65=""),$C63=""),"",SUM(M63:M65)) ->  | N66: _ | O66: =IF(OR(AND(O63="",O64="",O65=""),$C63=""),"",SUM(O63:O65)) ->  | P66: _ | Q66: =IF(OR(AND(Q63="",Q64="",Q65=""),$C63=""),"",SUM(Q63:Q65)) ->  | R66: _ | S66: =IF(OR(AND(S63="",S64="",S65=""),$C63=""),"",SUM(S63:S65)) ->  | T66: _ | AI66: =IF($C63="","",IF(COUNTBLANK(AI63:AI65)=COUNTA(AI63:AI65),"",SUM(AI63:AI65))) ->  | AJ66: =IF(OR($C63="",AI66=""),"",AI66/AI$9) ->  | AL66: =IF($C63="","",IF(COUNTBLANK(AL63:AL65)=COUNTA(AL63:AL65),"",SUM(AL63:AL65))) ->  | AM66: =IF(OR($C63="",AL66=""),"",AL66/AL$9) ->  | AO66: =IF($C63="","",IF(COUNTBLANK(AO63:AO65)=COUNTA(AO63:AO65),"",SUM(AO63:AO65))) ->  | AP66: =IF(OR($C63="",AO66=""),"",AO66/AO$9) ->  | AR66: =IF(OR($C63="",AR$9=""),"",IF(COUNT(AI66,AL66,AO66)=0,"",SUM(AI66,AL66,AO66))) ->  | AS66: =IF(OR($C63="",AR66=""),"",AR66/AR$9) -> 
A67: 1 | B67: 14 | C67: =VLOOKUP(B67,INDIRECT("_"&A67&"組"),2,0)&"" ->  | D67: 知識・技能 | F67: =IF(OR(E67="",$C67="",E$6="",E$6=0),"",IF(E67>=E$11,"A",IF(E67<F$11,"C","B"))) ->  | H67: =IF(OR(G67="",$C67="",G$6="",G$6=0),"",IF(G67>=G$11,"A",IF(G67<H$11,"C","B"))) ->  | J67: =IF(OR(I67="",$C67="",I$6="",I$6=0),"",IF(I67>=I$11,"A",IF(I67<J$11,"C","B"))) ->  | L67: =IF(OR(K67="",$C67="",K$6="",K$6=0),"",IF(K67>=K$11,"A",IF(K67<L$11,"C","B"))) ->  | N67: =IF(OR(M67="",$C67="",M$6="",M$6=0),"",IF(M67>=M$11,"A",IF(M67<N$11,"C","B"))) ->  | P67: =IF(OR(O67="",$C67="",O$6="",O$6=0),"",IF(O67>=O$11,"A",IF(O67<P$11,"C","B"))) ->  | R67: =IF(OR(Q67="",$C67="",Q$6="",Q$6=0),"",IF(Q67>=Q$11,"A",IF(Q67<R$11,"C","B"))) ->  | T67: =IF(OR(S67="",$C67="",S$6="",S$6=0),"",IF(S67>=S$11,"A",IF(S67<T$11,"C","B"))) ->  | AI67: =IF(OR($C67="",AI$6=""),"",IF(COUNTIFS($E$2:$AH$2,AI$1,$E67:$AH67,"<>")=0,"",SUMIF($E$2:$AH$2,AI$1,$E67:$AH67))) ->  | AJ67: =IF(OR($C67="",AI67=""),"",AI67/AI$6) ->  | AK67: =IF(OR($C67="",AJ67="",AI$6="",AI$6=0),"",IF(AJ67*100>=AJ$11,"A",IF(AJ67*100>=AK$11,"B","C"))) ->  | AL67: =IF(OR($C67="",AL$6=""),"",IF(COUNTIFS($E$2:$AH$2,AL$1,$E67:$AH67,"<>")=0,"",SUMIF($E$2:$AH$2,AL$1,$E67:$AH67))) ->  | AM67: =IF(OR($C67="",AL67=""),"",AL67/AL$6) ->  | AN67: =IF(OR($C67="",AM67="",AL$6="",AL$6=0),"",IF(AM67*100>=AM$11,"A",IF(AM67*100>=AN$11,"B","C"))) ->  | AO67: =IF(OR($C67="",AO$6=""),"",IF(COUNTIFS($E$2:$AH$2,AO$1,$E67:$AH67,"<>")=0,"",SUMIF($E$2:$AH$2,AO$1,$E67:$AH67))) ->  | AP67: =IF(OR($C67="",AO67=""),"",AO67/AO$6) ->  | AQ67: =IF(OR($C67="",AP67="",AO$6="",AO$6=0),"",IF(AP67*100>=AP$11,"A",IF(AP67*100>=AQ$11,"B","C"))) ->  | AR67: =IF(OR($C67="",AR$6=""),"",IF(COUNT(AI67,AL67,AO67)=0,"",SUM(AI67,AL67,AO67))) ->  | AS67: =IF(OR($C67="",AR67=""),"",AR67/AR$6) ->  | AT67: =IF(OR($C67="",AS67="",AR$6="",AR$6=0),"",IF(AS67*100>=AS$11,"A",IF(AS67*100>=AT$11,"B","C"))) -> 
D68: 思考判断表現 | F68: =IF(OR(E68="",$C67="",E$7="",E$7=0),"",IF(E68>=E$12,"A",IF(E68<F$12,"C","B"))) ->  | H68: =IF(OR(G68="",$C67="",G$7="",G$7=0),"",IF(G68>=G$12,"A",IF(G68<H$12,"C","B"))) ->  | J68: =IF(OR(I68="",$C67="",I$7="",I$7=0),"",IF(I68>=I$12,"A",IF(I68<J$12,"C","B"))) ->  | L68: =IF(OR(K68="",$C67="",K$7="",K$7=0),"",IF(K68>=K$12,"A",IF(K68<L$12,"C","B"))) ->  | N68: =IF(OR(M68="",$C67="",M$7="",M$7=0),"",IF(M68>=M$12,"A",IF(M68<N$12,"C","B"))) ->  | P68: =IF(OR(O68="",$C67="",O$7="",O$7=0),"",IF(O68>=O$12,"A",IF(O68<P$12,"C","B"))) ->  | R68: =IF(OR(Q68="",$C67="",Q$7="",Q$7=0),"",IF(Q68>=Q$12,"A",IF(Q68<R$12,"C","B"))) ->  | T68: =IF(OR(S68="",$C67="",S$7="",S$7=0),"",IF(S68>=S$12,"A",IF(S68<T$12,"C","B"))) ->  | AI68: =IF(OR($C67="",AI$7=""),"",IF(COUNTIFS($E$2:$AH$2,AI$1,$E68:$AH68,"<>")=0,"",SUMIF($E$2:$AH$2,AI$1,$E68:$AH68))) ->  | AJ68: =IF(OR($C67="",AI68=""),"",AI68/AI$7) ->  | AK68: =IF(OR($C67="",AJ68="",AI$7="",AI$7=0),"",IF(AJ68*100>=AJ$12,"A",IF(AJ68*100>=AK$12,"B","C"))) ->  | AL68: =IF(OR($C67="",AL$7=""),"",IF(COUNTIFS($E$2:$AH$2,AL$1,$E68:$AH68,"<>")=0,"",SUMIF($E$2:$AH$2,AL$1,$E68:$AH68))) ->  | AM68: =IF(OR($C67="",AL68=""),"",AL68/AL$7) ->  | AN68: =IF(OR($C67="",AM68="",AL$7="",AL$7=0),"",IF(AM68*100>=AM$12,"A",IF(AM68*100>=AN$12,"B","C"))) ->  | AO68: =IF(OR($C67="",AO$7=""),"",IF(COUNTIFS($E$2:$AH$2,AO$1,$E68:$AH68,"<>")=0,"",SUMIF($E$2:$AH$2,AO$1,$E68:$AH68))) ->  | AP68: =IF(OR($C67="",AO68=""),"",AO68/AO$7) ->  | AQ68: =IF(OR($C67="",AP68="",AO$7="",AO$7=0),"",IF(AP68*100>=AP$12,"A",IF(AP68*100>=AQ$12,"B","C"))) ->  | AR68: =IF(OR($C67="",AR$7=""),"",IF(COUNT(AI68,AL68,AO68)=0,"",SUM(AI68,AL68,AO68))) ->  | AS68: =IF(OR($C67="",AR68=""),"",AR68/AR$7) ->  | AT68: =IF(OR($C67="",AS68="",AR$7="",AR$7=0),"",IF(AS68*100>=AS$12,"A",IF(AS68*100>=AT$12,"B","C"))) -> 
D69: 主学態 | F69: =IF(OR(E69="",$C67="",E$8="",E$8=0),"",IF(E69>=E$13,"A",IF(E69<F$13,"C","B"))) ->  | H69: =IF(OR(G69="",$C67="",G$8="",G$8=0),"",IF(G69>=G$13,"A",IF(G69<H$13,"C","B"))) ->  | J69: =IF(OR(I69="",$C67="",I$8="",I$8=0),"",IF(I69>=I$13,"A",IF(I69<J$13,"C","B"))) ->  | L69: =IF(OR(K69="",$C67="",K$8="",K$8=0),"",IF(K69>=K$13,"A",IF(K69<L$13,"C","B"))) ->  | N69: =IF(OR(M69="",$C67="",M$8="",M$8=0),"",IF(M69>=M$13,"A",IF(M69<N$13,"C","B"))) ->  | P69: =IF(OR(O69="",$C67="",O$8="",O$8=0),"",IF(O69>=O$13,"A",IF(O69<P$13,"C","B"))) ->  | R69: =IF(OR(Q69="",$C67="",Q$8="",Q$8=0),"",IF(Q69>=Q$13,"A",IF(Q69<R$13,"C","B"))) ->  | T69: =IF(OR(S69="",$C67="",S$8="",S$8=0),"",IF(S69>=S$13,"A",IF(S69<T$13,"C","B"))) ->  | AI69: =IF(OR($C67="",AI$8=""),"",IF(COUNTIFS($E$2:$AH$2,AI$1,$E69:$AH69,"<>")=0,"",SUMIF($E$2:$AH$2,AI$1,$E69:$AH69))) ->  | AJ69: =IF(OR($C67="",AI69=""),"",AI69/AI$8) ->  | AK69: =IF(OR($C67="",AJ69="",AI$8="",AI$8=0),"",IF(AJ69*100>=AJ$13,"A",IF(AJ69*100>=AK$13,"B","C"))) ->  | AL69: =IF(OR($C67="",AL$8=""),"",IF(COUNTIFS($E$2:$AH$2,AL$1,$E69:$AH69,"<>")=0,"",SUMIF($E$2:$AH$2,AL$1,$E69:$AH69))) ->  | AM69: =IF(OR($C67="",AL69=""),"",AL69/AL$8) ->  | AN69: =IF(OR($C67="",AM69="",AL$8="",AL$8=0),"",IF(AM69*100>=AM$13,"A",IF(AM69*100>=AN$13,"B","C"))) ->  | AO69: =IF(OR($C67="",AO$8=""),"",IF(COUNTIFS($E$2:$AH$2,AO$1,$E69:$AH69,"<>")=0,"",SUMIF($E$2:$AH$2,AO$1,$E69:$AH69))) ->  | AP69: =IF(OR($C67="",AO69=""),"",AO69/AO$8) ->  | AQ69: =IF(OR($C67="",AP69="",AO$8="",AO$8=0),"",IF(AP69*100>=AP$13,"A",IF(AP69*100>=AQ$13,"B","C"))) ->  | AR69: =IF(OR($C67="",AR$8=""),"",IF(COUNT(AI69,AL69,AO69)=0,"",SUM(AI69,AL69,AO69))) ->  | AS69: =IF(OR($C67="",AR69=""),"",AR69/AR$8) ->  | AT69: =IF(OR($C67="",AS69="",AR$8="",AR$8=0),"",IF(AS69*100>=AS$13,"A",IF(AS69*100>=AT$13,"B","C"))) -> 
D70: 合計 | E70: =IF(OR(AND(E67="",E68="",E69=""),$C67=""),"",SUM(E67:E69)) ->  | F70: _ | G70: =IF(OR(AND(G67="",G68="",G69=""),$C67=""),"",SUM(G67:G69)) ->  | H70: _ | I70: =IF(OR(AND(I67="",I68="",I69=""),$C67=""),"",SUM(I67:I69)) ->  | J70: _ | K70: =IF(OR(AND(K67="",K68="",K69=""),$C67=""),"",SUM(K67:K69)) ->  | L70: _ | M70: =IF(OR(AND(M67="",M68="",M69=""),$C67=""),"",SUM(M67:M69)) ->  | N70: _ | O70: =IF(OR(AND(O67="",O68="",O69=""),$C67=""),"",SUM(O67:O69)) ->  | P70: _ | Q70: =IF(OR(AND(Q67="",Q68="",Q69=""),$C67=""),"",SUM(Q67:Q69)) ->  | R70: _ | S70: =IF(OR(AND(S67="",S68="",S69=""),$C67=""),"",SUM(S67:S69)) ->  | T70: _ | AI70: =IF($C67="","",IF(COUNTBLANK(AI67:AI69)=COUNTA(AI67:AI69),"",SUM(AI67:AI69))) ->  | AJ70: =IF(OR($C67="",AI70=""),"",AI70/AI$9) ->  | AL70: =IF($C67="","",IF(COUNTBLANK(AL67:AL69)=COUNTA(AL67:AL69),"",SUM(AL67:AL69))) ->  | AM70: =IF(OR($C67="",AL70=""),"",AL70/AL$9) ->  | AO70: =IF($C67="","",IF(COUNTBLANK(AO67:AO69)=COUNTA(AO67:AO69),"",SUM(AO67:AO69))) ->  | AP70: =IF(OR($C67="",AO70=""),"",AO70/AO$9) ->  | AR70: =IF(OR($C67="",AR$9=""),"",IF(COUNT(AI70,AL70,AO70)=0,"",SUM(AI70,AL70,AO70))) ->  | AS70: =IF(OR($C67="",AR70=""),"",AR70/AR$9) -> 
A71: 1 | B71: 15 | C71: =VLOOKUP(B71,INDIRECT("_"&A71&"組"),2,0)&"" ->  | D71: 知識・技能 | F71: =IF(OR(E71="",$C71="",E$6="",E$6=0),"",IF(E71>=E$11,"A",IF(E71<F$11,"C","B"))) ->  | H71: =IF(OR(G71="",$C71="",G$6="",G$6=0),"",IF(G71>=G$11,"A",IF(G71<H$11,"C","B"))) ->  | J71: =IF(OR(I71="",$C71="",I$6="",I$6=0),"",IF(I71>=I$11,"A",IF(I71<J$11,"C","B"))) ->  | L71: =IF(OR(K71="",$C71="",K$6="",K$6=0),"",IF(K71>=K$11,"A",IF(K71<L$11,"C","B"))) ->  | N71: =IF(OR(M71="",$C71="",M$6="",M$6=0),"",IF(M71>=M$11,"A",IF(M71<N$11,"C","B"))) ->  | P71: =IF(OR(O71="",$C71="",O$6="",O$6=0),"",IF(O71>=O$11,"A",IF(O71<P$11,"C","B"))) ->  | R71: =IF(OR(Q71="",$C71="",Q$6="",Q$6=0),"",IF(Q71>=Q$11,"A",IF(Q71<R$11,"C","B"))) ->  | T71: =IF(OR(S71="",$C71="",S$6="",S$6=0),"",IF(S71>=S$11,"A",IF(S71<T$11,"C","B"))) ->  | AI71: =IF(OR($C71="",AI$6=""),"",IF(COUNTIFS($E$2:$AH$2,AI$1,$E71:$AH71,"<>")=0,"",SUMIF($E$2:$AH$2,AI$1,$E71:$AH71))) ->  | AJ71: =IF(OR($C71="",AI71=""),"",AI71/AI$6) ->  | AK71: =IF(OR($C71="",AJ71="",AI$6="",AI$6=0),"",IF(AJ71*100>=AJ$11,"A",IF(AJ71*100>=AK$11,"B","C"))) ->  | AL71: =IF(OR($C71="",AL$6=""),"",IF(COUNTIFS($E$2:$AH$2,AL$1,$E71:$AH71,"<>")=0,"",SUMIF($E$2:$AH$2,AL$1,$E71:$AH71))) ->  | AM71: =IF(OR($C71="",AL71=""),"",AL71/AL$6) ->  | AN71: =IF(OR($C71="",AM71="",AL$6="",AL$6=0),"",IF(AM71*100>=AM$11,"A",IF(AM71*100>=AN$11,"B","C"))) ->  | AO71: =IF(OR($C71="",AO$6=""),"",IF(COUNTIFS($E$2:$AH$2,AO$1,$E71:$AH71,"<>")=0,"",SUMIF($E$2:$AH$2,AO$1,$E71:$AH71))) ->  | AP71: =IF(OR($C71="",AO71=""),"",AO71/AO$6) ->  | AQ71: =IF(OR($C71="",AP71="",AO$6="",AO$6=0),"",IF(AP71*100>=AP$11,"A",IF(AP71*100>=AQ$11,"B","C"))) ->  | AR71: =IF(OR($C71="",AR$6=""),"",IF(COUNT(AI71,AL71,AO71)=0,"",SUM(AI71,AL71,AO71))) ->  | AS71: =IF(OR($C71="",AR71=""),"",AR71/AR$6) ->  | AT71: =IF(OR($C71="",AS71="",AR$6="",AR$6=0),"",IF(AS71*100>=AS$11,"A",IF(AS71*100>=AT$11,"B","C"))) -> 
D72: 思考判断表現 | F72: =IF(OR(E72="",$C71="",E$7="",E$7=0),"",IF(E72>=E$12,"A",IF(E72<F$12,"C","B"))) ->  | H72: =IF(OR(G72="",$C71="",G$7="",G$7=0),"",IF(G72>=G$12,"A",IF(G72<H$12,"C","B"))) ->  | J72: =IF(OR(I72="",$C71="",I$7="",I$7=0),"",IF(I72>=I$12,"A",IF(I72<J$12,"C","B"))) ->  | L72: =IF(OR(K72="",$C71="",K$7="",K$7=0),"",IF(K72>=K$12,"A",IF(K72<L$12,"C","B"))) ->  | N72: =IF(OR(M72="",$C71="",M$7="",M$7=0),"",IF(M72>=M$12,"A",IF(M72<N$12,"C","B"))) ->  | P72: =IF(OR(O72="",$C71="",O$7="",O$7=0),"",IF(O72>=O$12,"A",IF(O72<P$12,"C","B"))) ->  | R72: =IF(OR(Q72="",$C71="",Q$7="",Q$7=0),"",IF(Q72>=Q$12,"A",IF(Q72<R$12,"C","B"))) ->  | T72: =IF(OR(S72="",$C71="",S$7="",S$7=0),"",IF(S72>=S$12,"A",IF(S72<T$12,"C","B"))) ->  | AI72: =IF(OR($C71="",AI$7=""),"",IF(COUNTIFS($E$2:$AH$2,AI$1,$E72:$AH72,"<>")=0,"",SUMIF($E$2:$AH$2,AI$1,$E72:$AH72))) ->  | AJ72: =IF(OR($C71="",AI72=""),"",AI72/AI$7) ->  | AK72: =IF(OR($C71="",AJ72="",AI$7="",AI$7=0),"",IF(AJ72*100>=AJ$12,"A",IF(AJ72*100>=AK$12,"B","C"))) ->  | AL72: =IF(OR($C71="",AL$7=""),"",IF(COUNTIFS($E$2:$AH$2,AL$1,$E72:$AH72,"<>")=0,"",SUMIF($E$2:$AH$2,AL$1,$E72:$AH72))) ->  | AM72: =IF(OR($C71="",AL72=""),"",AL72/AL$7) ->  | AN72: =IF(OR($C71="",AM72="",AL$7="",AL$7=0),"",IF(AM72*100>=AM$12,"A",IF(AM72*100>=AN$12,"B","C"))) ->  | AO72: =IF(OR($C71="",AO$7=""),"",IF(COUNTIFS($E$2:$AH$2,AO$1,$E72:$AH72,"<>")=0,"",SUMIF($E$2:$AH$2,AO$1,$E72:$AH72))) ->  | AP72: =IF(OR($C71="",AO72=""),"",AO72/AO$7) ->  | AQ72: =IF(OR($C71="",AP72="",AO$7="",AO$7=0),"",IF(AP72*100>=AP$12,"A",IF(AP72*100>=AQ$12,"B","C"))) ->  | AR72: =IF(OR($C71="",AR$7=""),"",IF(COUNT(AI72,AL72,AO72)=0,"",SUM(AI72,AL72,AO72))) ->  | AS72: =IF(OR($C71="",AR72=""),"",AR72/AR$7) ->  | AT72: =IF(OR($C71="",AS72="",AR$7="",AR$7=0),"",IF(AS72*100>=AS$12,"A",IF(AS72*100>=AT$12,"B","C"))) -> 
D73: 主学態 | F73: =IF(OR(E73="",$C71="",E$8="",E$8=0),"",IF(E73>=E$13,"A",IF(E73<F$13,"C","B"))) ->  | H73: =IF(OR(G73="",$C71="",G$8="",G$8=0),"",IF(G73>=G$13,"A",IF(G73<H$13,"C","B"))) ->  | J73: =IF(OR(I73="",$C71="",I$8="",I$8=0),"",IF(I73>=I$13,"A",IF(I73<J$13,"C","B"))) ->  | L73: =IF(OR(K73="",$C71="",K$8="",K$8=0),"",IF(K73>=K$13,"A",IF(K73<L$13,"C","B"))) ->  | N73: =IF(OR(M73="",$C71="",M$8="",M$8=0),"",IF(M73>=M$13,"A",IF(M73<N$13,"C","B"))) ->  | P73: =IF(OR(O73="",$C71="",O$8="",O$8=0),"",IF(O73>=O$13,"A",IF(O73<P$13,"C","B"))) ->  | R73: =IF(OR(Q73="",$C71="",Q$8="",Q$8=0),"",IF(Q73>=Q$13,"A",IF(Q73<R$13,"C","B"))) ->  | T73: =IF(OR(S73="",$C71="",S$8="",S$8=0),"",IF(S73>=S$13,"A",IF(S73<T$13,"C","B"))) ->  | AI73: =IF(OR($C71="",AI$8=""),"",IF(COUNTIFS($E$2:$AH$2,AI$1,$E73:$AH73,"<>")=0,"",SUMIF($E$2:$AH$2,AI$1,$E73:$AH73))) ->  | AJ73: =IF(OR($C71="",AI73=""),"",AI73/AI$8) ->  | AK73: =IF(OR($C71="",AJ73="",AI$8="",AI$8=0),"",IF(AJ73*100>=AJ$13,"A",IF(AJ73*100>=AK$13,"B","C"))) ->  | AL73: =IF(OR($C71="",AL$8=""),"",IF(COUNTIFS($E$2:$AH$2,AL$1,$E73:$AH73,"<>")=0,"",SUMIF($E$2:$AH$2,AL$1,$E73:$AH73))) ->  | AM73: =IF(OR($C71="",AL73=""),"",AL73/AL$8) ->  | AN73: =IF(OR($C71="",AM73="",AL$8="",AL$8=0),"",IF(AM73*100>=AM$13,"A",IF(AM73*100>=AN$13,"B","C"))) ->  | AO73: =IF(OR($C71="",AO$8=""),"",IF(COUNTIFS($E$2:$AH$2,AO$1,$E73:$AH73,"<>")=0,"",SUMIF($E$2:$AH$2,AO$1,$E73:$AH73))) ->  | AP73: =IF(OR($C71="",AO73=""),"",AO73/AO$8) ->  | AQ73: =IF(OR($C71="",AP73="",AO$8="",AO$8=0),"",IF(AP73*100>=AP$13,"A",IF(AP73*100>=AQ$13,"B","C"))) ->  | AR73: =IF(OR($C71="",AR$8=""),"",IF(COUNT(AI73,AL73,AO73)=0,"",SUM(AI73,AL73,AO73))) ->  | AS73: =IF(OR($C71="",AR73=""),"",AR73/AR$8) ->  | AT73: =IF(OR($C71="",AS73="",AR$8="",AR$8=0),"",IF(AS73*100>=AS$13,"A",IF(AS73*100>=AT$13,"B","C"))) -> 
D74: 合計 | E74: =IF(OR(AND(E71="",E72="",E73=""),$C71=""),"",SUM(E71:E73)) ->  | F74: _ | G74: =IF(OR(AND(G71="",G72="",G73=""),$C71=""),"",SUM(G71:G73)) ->  | H74: _ | I74: =IF(OR(AND(I71="",I72="",I73=""),$C71=""),"",SUM(I71:I73)) ->  | J74: _ | K74: =IF(OR(AND(K71="",K72="",K73=""),$C71=""),"",SUM(K71:K73)) ->  | L74: _ | M74: =IF(OR(AND(M71="",M72="",M73=""),$C71=""),"",SUM(M71:M73)) ->  | N74: _ | O74: =IF(OR(AND(O71="",O72="",O73=""),$C71=""),"",SUM(O71:O73)) ->  | P74: _ | Q74: =IF(OR(AND(Q71="",Q72="",Q73=""),$C71=""),"",SUM(Q71:Q73)) ->  | R74: _ | S74: =IF(OR(AND(S71="",S72="",S73=""),$C71=""),"",SUM(S71:S73)) ->  | T74: _ | AI74: =IF($C71="","",IF(COUNTBLANK(AI71:AI73)=COUNTA(AI71:AI73),"",SUM(AI71:AI73))) ->  | AJ74: =IF(OR($C71="",AI74=""),"",AI74/AI$9) ->  | AL74: =IF($C71="","",IF(COUNTBLANK(AL71:AL73)=COUNTA(AL71:AL73),"",SUM(AL71:AL73))) ->  | AM74: =IF(OR($C71="",AL74=""),"",AL74/AL$9) ->  | AO74: =IF($C71="","",IF(COUNTBLANK(AO71:AO73)=COUNTA(AO71:AO73),"",SUM(AO71:AO73))) ->  | AP74: =IF(OR($C71="",AO74=""),"",AO74/AO$9) ->  | AR74: =IF(OR($C71="",AR$9=""),"",IF(COUNT(AI74,AL74,AO74)=0,"",SUM(AI74,AL74,AO74))) ->  | AS74: =IF(OR($C71="",AR74=""),"",AR74/AR$9) -> 
A75: 1 | B75: 16 | C75: =VLOOKUP(B75,INDIRECT("_"&A75&"組"),2,0)&"" ->  | D75: 知識・技能 | F75: =IF(OR(E75="",$C75="",E$6="",E$6=0),"",IF(E75>=E$11,"A",IF(E75<F$11,"C","B"))) ->  | H75: =IF(OR(G75="",$C75="",G$6="",G$6=0),"",IF(G75>=G$11,"A",IF(G75<H$11,"C","B"))) ->  | J75: =IF(OR(I75="",$C75="",I$6="",I$6=0),"",IF(I75>=I$11,"A",IF(I75<J$11,"C","B"))) ->  | L75: =IF(OR(K75="",$C75="",K$6="",K$6=0),"",IF(K75>=K$11,"A",IF(K75<L$11,"C","B"))) ->  | N75: =IF(OR(M75="",$C75="",M$6="",M$6=0),"",IF(M75>=M$11,"A",IF(M75<N$11,"C","B"))) ->  | P75: =IF(OR(O75="",$C75="",O$6="",O$6=0),"",IF(O75>=O$11,"A",IF(O75<P$11,"C","B"))) ->  | R75: =IF(OR(Q75="",$C75="",Q$6="",Q$6=0),"",IF(Q75>=Q$11,"A",IF(Q75<R$11,"C","B"))) ->  | T75: =IF(OR(S75="",$C75="",S$6="",S$6=0),"",IF(S75>=S$11,"A",IF(S75<T$11,"C","B"))) ->  | AI75: =IF(OR($C75="",AI$6=""),"",IF(COUNTIFS($E$2:$AH$2,AI$1,$E75:$AH75,"<>")=0,"",SUMIF($E$2:$AH$2,AI$1,$E75:$AH75))) ->  | AJ75: =IF(OR($C75="",AI75=""),"",AI75/AI$6) ->  | AK75: =IF(OR($C75="",AJ75="",AI$6="",AI$6=0),"",IF(AJ75*100>=AJ$11,"A",IF(AJ75*100>=AK$11,"B","C"))) ->  | AL75: =IF(OR($C75="",AL$6=""),"",IF(COUNTIFS($E$2:$AH$2,AL$1,$E75:$AH75,"<>")=0,"",SUMIF($E$2:$AH$2,AL$1,$E75:$AH75))) ->  | AM75: =IF(OR($C75="",AL75=""),"",AL75/AL$6) ->  | AN75: =IF(OR($C75="",AM75="",AL$6="",AL$6=0),"",IF(AM75*100>=AM$11,"A",IF(AM75*100>=AN$11,"B","C"))) ->  | AO75: =IF(OR($C75="",AO$6=""),"",IF(COUNTIFS($E$2:$AH$2,AO$1,$E75:$AH75,"<>")=0,"",SUMIF($E$2:$AH$2,AO$1,$E75:$AH75))) ->  | AP75: =IF(OR($C75="",AO75=""),"",AO75/AO$6) ->  | AQ75: =IF(OR($C75="",AP75="",AO$6="",AO$6=0),"",IF(AP75*100>=AP$11,"A",IF(AP75*100>=AQ$11,"B","C"))) ->  | AR75: =IF(OR($C75="",AR$6=""),"",IF(COUNT(AI75,AL75,AO75)=0,"",SUM(AI75,AL75,AO75))) ->  | AS75: =IF(OR($C75="",AR75=""),"",AR75/AR$6) ->  | AT75: =IF(OR($C75="",AS75="",AR$6="",AR$6=0),"",IF(AS75*100>=AS$11,"A",IF(AS75*100>=AT$11,"B","C"))) -> 
D76: 思考判断表現 | F76: =IF(OR(E76="",$C75="",E$7="",E$7=0),"",IF(E76>=E$12,"A",IF(E76<F$12,"C","B"))) ->  | H76: =IF(OR(G76="",$C75="",G$7="",G$7=0),"",IF(G76>=G$12,"A",IF(G76<H$12,"C","B"))) ->  | J76: =IF(OR(I76="",$C75="",I$7="",I$7=0),"",IF(I76>=I$12,"A",IF(I76<J$12,"C","B"))) ->  | L76: =IF(OR(K76="",$C75="",K$7="",K$7=0),"",IF(K76>=K$12,"A",IF(K76<L$12,"C","B"))) ->  | N76: =IF(OR(M76="",$C75="",M$7="",M$7=0),"",IF(M76>=M$12,"A",IF(M76<N$12,"C","B"))) ->  | P76: =IF(OR(O76="",$C75="",O$7="",O$7=0),"",IF(O76>=O$12,"A",IF(O76<P$12,"C","B"))) ->  | R76: =IF(OR(Q76="",$C75="",Q$7="",Q$7=0),"",IF(Q76>=Q$12,"A",IF(Q76<R$12,"C","B"))) ->  | T76: =IF(OR(S76="",$C75="",S$7="",S$7=0),"",IF(S76>=S$12,"A",IF(S76<T$12,"C","B"))) ->  | AI76: =IF(OR($C75="",AI$7=""),"",IF(COUNTIFS($E$2:$AH$2,AI$1,$E76:$AH76,"<>")=0,"",SUMIF($E$2:$AH$2,AI$1,$E76:$AH76))) ->  | AJ76: =IF(OR($C75="",AI76=""),"",AI76/AI$7) ->  | AK76: =IF(OR($C75="",AJ76="",AI$7="",AI$7=0),"",IF(AJ76*100>=AJ$12,"A",IF(AJ76*100>=AK$12,"B","C"))) ->  | AL76: =IF(OR($C75="",AL$7=""),"",IF(COUNTIFS($E$2:$AH$2,AL$1,$E76:$AH76,"<>")=0,"",SUMIF($E$2:$AH$2,AL$1,$E76:$AH76))) ->  | AM76: =IF(OR($C75="",AL76=""),"",AL76/AL$7) ->  | AN76: =IF(OR($C75="",AM76="",AL$7="",AL$7=0),"",IF(AM76*100>=AM$12,"A",IF(AM76*100>=AN$12,"B","C"))) ->  | AO76: =IF(OR($C75="",AO$7=""),"",IF(COUNTIFS($E$2:$AH$2,AO$1,$E76:$AH76,"<>")=0,"",SUMIF($E$2:$AH$2,AO$1,$E76:$AH76))) ->  | AP76: =IF(OR($C75="",AO76=""),"",AO76/AO$7) ->  | AQ76: =IF(OR($C75="",AP76="",AO$7="",AO$7=0),"",IF(AP76*100>=AP$12,"A",IF(AP76*100>=AQ$12,"B","C"))) ->  | AR76: =IF(OR($C75="",AR$7=""),"",IF(COUNT(AI76,AL76,AO76)=0,"",SUM(AI76,AL76,AO76))) ->  | AS76: =IF(OR($C75="",AR76=""),"",AR76/AR$7) ->  | AT76: =IF(OR($C75="",AS76="",AR$7="",AR$7=0),"",IF(AS76*100>=AS$12,"A",IF(AS76*100>=AT$12,"B","C"))) -> 
D77: 主学態 | F77: =IF(OR(E77="",$C75="",E$8="",E$8=0),"",IF(E77>=E$13,"A",IF(E77<F$13,"C","B"))) ->  | H77: =IF(OR(G77="",$C75="",G$8="",G$8=0),"",IF(G77>=G$13,"A",IF(G77<H$13,"C","B"))) ->  | J77: =IF(OR(I77="",$C75="",I$8="",I$8=0),"",IF(I77>=I$13,"A",IF(I77<J$13,"C","B"))) ->  | L77: =IF(OR(K77="",$C75="",K$8="",K$8=0),"",IF(K77>=K$13,"A",IF(K77<L$13,"C","B"))) ->  | N77: =IF(OR(M77="",$C75="",M$8="",M$8=0),"",IF(M77>=M$13,"A",IF(M77<N$13,"C","B"))) ->  | P77: =IF(OR(O77="",$C75="",O$8="",O$8=0),"",IF(O77>=O$13,"A",IF(O77<P$13,"C","B"))) ->  | R77: =IF(OR(Q77="",$C75="",Q$8="",Q$8=0),"",IF(Q77>=Q$13,"A",IF(Q77<R$13,"C","B"))) ->  | T77: =IF(OR(S77="",$C75="",S$8="",S$8=0),"",IF(S77>=S$13,"A",IF(S77<T$13,"C","B"))) ->  | AI77: =IF(OR($C75="",AI$8=""),"",IF(COUNTIFS($E$2:$AH$2,AI$1,$E77:$AH77,"<>")=0,"",SUMIF($E$2:$AH$2,AI$1,$E77:$AH77))) ->  | AJ77: =IF(OR($C75="",AI77=""),"",AI77/AI$8) ->  | AK77: =IF(OR($C75="",AJ77="",AI$8="",AI$8=0),"",IF(AJ77*100>=AJ$13,"A",IF(AJ77*100>=AK$13,"B","C"))) ->  | AL77: =IF(OR($C75="",AL$8=""),"",IF(COUNTIFS($E$2:$AH$2,AL$1,$E77:$AH77,"<>")=0,"",SUMIF($E$2:$AH$2,AL$1,$E77:$AH77))) ->  | AM77: =IF(OR($C75="",AL77=""),"",AL77/AL$8) ->  | AN77: =IF(OR($C75="",AM77="",AL$8="",AL$8=0),"",IF(AM77*100>=AM$13,"A",IF(AM77*100>=AN$13,"B","C"))) ->  | AO77: =IF(OR($C75="",AO$8=""),"",IF(COUNTIFS($E$2:$AH$2,AO$1,$E77:$AH77,"<>")=0,"",SUMIF($E$2:$AH$2,AO$1,$E77:$AH77))) ->  | AP77: =IF(OR($C75="",AO77=""),"",AO77/AO$8) ->  | AQ77: =IF(OR($C75="",AP77="",AO$8="",AO$8=0),"",IF(AP77*100>=AP$13,"A",IF(AP77*100>=AQ$13,"B","C"))) ->  | AR77: =IF(OR($C75="",AR$8=""),"",IF(COUNT(AI77,AL77,AO77)=0,"",SUM(AI77,AL77,AO77))) ->  | AS77: =IF(OR($C75="",AR77=""),"",AR77/AR$8) ->  | AT77: =IF(OR($C75="",AS77="",AR$8="",AR$8=0),"",IF(AS77*100>=AS$13,"A",IF(AS77*100>=AT$13,"B","C"))) -> 
D78: 合計 | E78: =IF(OR(AND(E75="",E76="",E77=""),$C75=""),"",SUM(E75:E77)) ->  | F78: _ | G78: =IF(OR(AND(G75="",G76="",G77=""),$C75=""),"",SUM(G75:G77)) ->  | H78: _ | I78: =IF(OR(AND(I75="",I76="",I77=""),$C75=""),"",SUM(I75:I77)) ->  | J78: _ | K78: =IF(OR(AND(K75="",K76="",K77=""),$C75=""),"",SUM(K75:K77)) ->  | L78: _ | M78: =IF(OR(AND(M75="",M76="",M77=""),$C75=""),"",SUM(M75:M77)) ->  | N78: _ | O78: =IF(OR(AND(O75="",O76="",O77=""),$C75=""),"",SUM(O75:O77)) ->  | P78: _ | Q78: =IF(OR(AND(Q75="",Q76="",Q77=""),$C75=""),"",SUM(Q75:Q77)) ->  | R78: _ | S78: =IF(OR(AND(S75="",S76="",S77=""),$C75=""),"",SUM(S75:S77)) ->  | T78: _ | AI78: =IF($C75="","",IF(COUNTBLANK(AI75:AI77)=COUNTA(AI75:AI77),"",SUM(AI75:AI77))) ->  | AJ78: =IF(OR($C75="",AI78=""),"",AI78/AI$9) ->  | AL78: =IF($C75="","",IF(COUNTBLANK(AL75:AL77)=COUNTA(AL75:AL77),"",SUM(AL75:AL77))) ->  | AM78: =IF(OR($C75="",AL78=""),"",AL78/AL$9) ->  | AO78: =IF($C75="","",IF(COUNTBLANK(AO75:AO77)=COUNTA(AO75:AO77),"",SUM(AO75:AO77))) ->  | AP78: =IF(OR($C75="",AO78=""),"",AO78/AO$9) ->  | AR78: =IF(OR($C75="",AR$9=""),"",IF(COUNT(AI78,AL78,AO78)=0,"",SUM(AI78,AL78,AO78))) ->  | AS78: =IF(OR($C75="",AR78=""),"",AR78/AR$9) -> 
A79: 1 | B79: 17 | C79: =VLOOKUP(B79,INDIRECT("_"&A79&"組"),2,0)&"" ->  | D79: 知識・技能 | F79: =IF(OR(E79="",$C79="",E$6="",E$6=0),"",IF(E79>=E$11,"A",IF(E79<F$11,"C","B"))) ->  | H79: =IF(OR(G79="",$C79="",G$6="",G$6=0),"",IF(G79>=G$11,"A",IF(G79<H$11,"C","B"))) ->  | J79: =IF(OR(I79="",$C79="",I$6="",I$6=0),"",IF(I79>=I$11,"A",IF(I79<J$11,"C","B"))) ->  | L79: =IF(OR(K79="",$C79="",K$6="",K$6=0),"",IF(K79>=K$11,"A",IF(K79<L$11,"C","B"))) ->  | N79: =IF(OR(M79="",$C79="",M$6="",M$6=0),"",IF(M79>=M$11,"A",IF(M79<N$11,"C","B"))) ->  | P79: =IF(OR(O79="",$C79="",O$6="",O$6=0),"",IF(O79>=O$11,"A",IF(O79<P$11,"C","B"))) ->  | R79: =IF(OR(Q79="",$C79="",Q$6="",Q$6=0),"",IF(Q79>=Q$11,"A",IF(Q79<R$11,"C","B"))) ->  | T79: =IF(OR(S79="",$C79="",S$6="",S$6=0),"",IF(S79>=S$11,"A",IF(S79<T$11,"C","B"))) ->  | AI79: =IF(OR($C79="",AI$6=""),"",IF(COUNTIFS($E$2:$AH$2,AI$1,$E79:$AH79,"<>")=0,"",SUMIF($E$2:$AH$2,AI$1,$E79:$AH79))) ->  | AJ79: =IF(OR($C79="",AI79=""),"",AI79/AI$6) ->  | AK79: =IF(OR($C79="",AJ79="",AI$6="",AI$6=0),"",IF(AJ79*100>=AJ$11,"A",IF(AJ79*100>=AK$11,"B","C"))) ->  | AL79: =IF(OR($C79="",AL$6=""),"",IF(COUNTIFS($E$2:$AH$2,AL$1,$E79:$AH79,"<>")=0,"",SUMIF($E$2:$AH$2,AL$1,$E79:$AH79))) ->  | AM79: =IF(OR($C79="",AL79=""),"",AL79/AL$6) ->  | AN79: =IF(OR($C79="",AM79="",AL$6="",AL$6=0),"",IF(AM79*100>=AM$11,"A",IF(AM79*100>=AN$11,"B","C"))) ->  | AO79: =IF(OR($C79="",AO$6=""),"",IF(COUNTIFS($E$2:$AH$2,AO$1,$E79:$AH79,"<>")=0,"",SUMIF($E$2:$AH$2,AO$1,$E79:$AH79))) ->  | AP79: =IF(OR($C79="",AO79=""),"",AO79/AO$6) ->  | AQ79: =IF(OR($C79="",AP79="",AO$6="",AO$6=0),"",IF(AP79*100>=AP$11,"A",IF(AP79*100>=AQ$11,"B","C"))) ->  | AR79: =IF(OR($C79="",AR$6=""),"",IF(COUNT(AI79,AL79,AO79)=0,"",SUM(AI79,AL79,AO79))) ->  | AS79: =IF(OR($C79="",AR79=""),"",AR79/AR$6) ->  | AT79: =IF(OR($C79="",AS79="",AR$6="",AR$6=0),"",IF(AS79*100>=AS$11,"A",IF(AS79*100>=AT$11,"B","C"))) -> 
D80: 思考判断表現 | F80: =IF(OR(E80="",$C79="",E$7="",E$7=0),"",IF(E80>=E$12,"A",IF(E80<F$12,"C","B"))) ->  | H80: =IF(OR(G80="",$C79="",G$7="",G$7=0),"",IF(G80>=G$12,"A",IF(G80<H$12,"C","B"))) ->  | J80: =IF(OR(I80="",$C79="",I$7="",I$7=0),"",IF(I80>=I$12,"A",IF(I80<J$12,"C","B"))) ->  | L80: =IF(OR(K80="",$C79="",K$7="",K$7=0),"",IF(K80>=K$12,"A",IF(K80<L$12,"C","B"))) ->  | N80: =IF(OR(M80="",$C79="",M$7="",M$7=0),"",IF(M80>=M$12,"A",IF(M80<N$12,"C","B"))) ->  | P80: =IF(OR(O80="",$C79="",O$7="",O$7=0),"",IF(O80>=O$12,"A",IF(O80<P$12,"C","B"))) ->  | R80: =IF(OR(Q80="",$C79="",Q$7="",Q$7=0),"",IF(Q80>=Q$12,"A",IF(Q80<R$12,"C","B"))) ->  | T80: =IF(OR(S80="",$C79="",S$7="",S$7=0),"",IF(S80>=S$12,"A",IF(S80<T$12,"C","B"))) ->  | AI80: =IF(OR($C79="",AI$7=""),"",IF(COUNTIFS($E$2:$AH$2,AI$1,$E80:$AH80,"<>")=0,"",SUMIF($E$2:$AH$2,AI$1,$E80:$AH80))) ->  | AJ80: =IF(OR($C79="",AI80=""),"",AI80/AI$7) ->  | AK80: =IF(OR($C79="",AJ80="",AI$7="",AI$7=0),"",IF(AJ80*100>=AJ$12,"A",IF(AJ80*100>=AK$12,"B","C"))) ->  | AL80: =IF(OR($C79="",AL$7=""),"",IF(COUNTIFS($E$2:$AH$2,AL$1,$E80:$AH80,"<>")=0,"",SUMIF($E$2:$AH$2,AL$1,$E80:$AH80))) ->  | AM80: =IF(OR($C79="",AL80=""),"",AL80/AL$7) ->  | AN80: =IF(OR($C79="",AM80="",AL$7="",AL$7=0),"",IF(AM80*100>=AM$12,"A",IF(AM80*100>=AN$12,"B","C"))) ->  | AO80: =IF(OR($C79="",AO$7=""),"",IF(COUNTIFS($E$2:$AH$2,AO$1,$E80:$AH80,"<>")=0,"",SUMIF($E$2:$AH$2,AO$1,$E80:$AH80))) ->  | AP80: =IF(OR($C79="",AO80=""),"",AO80/AO$7) ->  | AQ80: =IF(OR($C79="",AP80="",AO$7="",AO$7=0),"",IF(AP80*100>=AP$12,"A",IF(AP80*100>=AQ$12,"B","C"))) ->  | AR80: =IF(OR($C79="",AR$7=""),"",IF(COUNT(AI80,AL80,AO80)=0,"",SUM(AI80,AL80,AO80))) ->  | AS80: =IF(OR($C79="",AR80=""),"",AR80/AR$7) ->  | AT80: =IF(OR($C79="",AS80="",AR$7="",AR$7=0),"",IF(AS80*100>=AS$12,"A",IF(AS80*100>=AT$12,"B","C"))) -> 
D81: 主学態 | F81: =IF(OR(E81="",$C79="",E$8="",E$8=0),"",IF(E81>=E$13,"A",IF(E81<F$13,"C","B"))) ->  | H81: =IF(OR(G81="",$C79="",G$8="",G$8=0),"",IF(G81>=G$13,"A",IF(G81<H$13,"C","B"))) ->  | J81: =IF(OR(I81="",$C79="",I$8="",I$8=0),"",IF(I81>=I$13,"A",IF(I81<J$13,"C","B"))) ->  | L81: =IF(OR(K81="",$C79="",K$8="",K$8=0),"",IF(K81>=K$13,"A",IF(K81<L$13,"C","B"))) ->  | N81: =IF(OR(M81="",$C79="",M$8="",M$8=0),"",IF(M81>=M$13,"A",IF(M81<N$13,"C","B"))) ->  | P81: =IF(OR(O81="",$C79="",O$8="",O$8=0),"",IF(O81>=O$13,"A",IF(O81<P$13,"C","B"))) ->  | R81: =IF(OR(Q81="",$C79="",Q$8="",Q$8=0),"",IF(Q81>=Q$13,"A",IF(Q81<R$13,"C","B"))) ->  | T81: =IF(OR(S81="",$C79="",S$8="",S$8=0),"",IF(S81>=S$13,"A",IF(S81<T$13,"C","B"))) ->  | AI81: =IF(OR($C79="",AI$8=""),"",IF(COUNTIFS($E$2:$AH$2,AI$1,$E81:$AH81,"<>")=0,"",SUMIF($E$2:$AH$2,AI$1,$E81:$AH81))) ->  | AJ81: =IF(OR($C79="",AI81=""),"",AI81/AI$8) ->  | AK81: =IF(OR($C79="",AJ81="",AI$8="",AI$8=0),"",IF(AJ81*100>=AJ$13,"A",IF(AJ81*100>=AK$13,"B","C"))) ->  | AL81: =IF(OR($C79="",AL$8=""),"",IF(COUNTIFS($E$2:$AH$2,AL$1,$E81:$AH81,"<>")=0,"",SUMIF($E$2:$AH$2,AL$1,$E81:$AH81))) ->  | AM81: =IF(OR($C79="",AL81=""),"",AL81/AL$8) ->  | AN81: =IF(OR($C79="",AM81="",AL$8="",AL$8=0),"",IF(AM81*100>=AM$13,"A",IF(AM81*100>=AN$13,"B","C"))) ->  | AO81: =IF(OR($C79="",AO$8=""),"",IF(COUNTIFS($E$2:$AH$2,AO$1,$E81:$AH81,"<>")=0,"",SUMIF($E$2:$AH$2,AO$1,$E81:$AH81))) ->  | AP81: =IF(OR($C79="",AO81=""),"",AO81/AO$8) ->  | AQ81: =IF(OR($C79="",AP81="",AO$8="",AO$8=0),"",IF(AP81*100>=AP$13,"A",IF(AP81*100>=AQ$13,"B","C"))) ->  | AR81: =IF(OR($C79="",AR$8=""),"",IF(COUNT(AI81,AL81,AO81)=0,"",SUM(AI81,AL81,AO81))) ->  | AS81: =IF(OR($C79="",AR81=""),"",AR81/AR$8) ->  | AT81: =IF(OR($C79="",AS81="",AR$8="",AR$8=0),"",IF(AS81*100>=AS$13,"A",IF(AS81*100>=AT$13,"B","C"))) -> 
D82: 合計 | E82: =IF(OR(AND(E79="",E80="",E81=""),$C79=""),"",SUM(E79:E81)) ->  | F82: _ | G82: =IF(OR(AND(G79="",G80="",G81=""),$C79=""),"",SUM(G79:G81)) ->  | H82: _ | I82: =IF(OR(AND(I79="",I80="",I81=""),$C79=""),"",SUM(I79:I81)) ->  | J82: _ | K82: =IF(OR(AND(K79="",K80="",K81=""),$C79=""),"",SUM(K79:K81)) ->  | L82: _ | M82: =IF(OR(AND(M79="",M80="",M81=""),$C79=""),"",SUM(M79:M81)) ->  | N82: _ | O82: =IF(OR(AND(O79="",O80="",O81=""),$C79=""),"",SUM(O79:O81)) ->  | P82: _ | Q82: =IF(OR(AND(Q79="",Q80="",Q81=""),$C79=""),"",SUM(Q79:Q81)) ->  | R82: _ | S82: =IF(OR(AND(S79="",S80="",S81=""),$C79=""),"",SUM(S79:S81)) ->  | T82: _ | AI82: =IF($C79="","",IF(COUNTBLANK(AI79:AI81)=COUNTA(AI79:AI81),"",SUM(AI79:AI81))) ->  | AJ82: =IF(OR($C79="",AI82=""),"",AI82/AI$9) ->  | AL82: =IF($C79="","",IF(COUNTBLANK(AL79:AL81)=COUNTA(AL79:AL81),"",SUM(AL79:AL81))) ->  | AM82: =IF(OR($C79="",AL82=""),"",AL82/AL$9) ->  | AO82: =IF($C79="","",IF(COUNTBLANK(AO79:AO81)=COUNTA(AO79:AO81),"",SUM(AO79:AO81))) ->  | AP82: =IF(OR($C79="",AO82=""),"",AO82/AO$9) ->  | AR82: =IF(OR($C79="",AR$9=""),"",IF(COUNT(AI82,AL82,AO82)=0,"",SUM(AI82,AL82,AO82))) ->  | AS82: =IF(OR($C79="",AR82=""),"",AR82/AR$9) -> 
A83: 1 | B83: 18 | C83: =VLOOKUP(B83,INDIRECT("_"&A83&"組"),2,0)&"" ->  | D83: 知識・技能 | F83: =IF(OR(E83="",$C83="",E$6="",E$6=0),"",IF(E83>=E$11,"A",IF(E83<F$11,"C","B"))) ->  | H83: =IF(OR(G83="",$C83="",G$6="",G$6=0),"",IF(G83>=G$11,"A",IF(G83<H$11,"C","B"))) ->  | J83: =IF(OR(I83="",$C83="",I$6="",I$6=0),"",IF(I83>=I$11,"A",IF(I83<J$11,"C","B"))) ->  | L83: =IF(OR(K83="",$C83="",K$6="",K$6=0),"",IF(K83>=K$11,"A",IF(K83<L$11,"C","B"))) ->  | N83: =IF(OR(M83="",$C83="",M$6="",M$6=0),"",IF(M83>=M$11,"A",IF(M83<N$11,"C","B"))) ->  | P83: =IF(OR(O83="",$C83="",O$6="",O$6=0),"",IF(O83>=O$11,"A",IF(O83<P$11,"C","B"))) ->  | R83: =IF(OR(Q83="",$C83="",Q$6="",Q$6=0),"",IF(Q83>=Q$11,"A",IF(Q83<R$11,"C","B"))) ->  | T83: =IF(OR(S83="",$C83="",S$6="",S$6=0),"",IF(S83>=S$11,"A",IF(S83<T$11,"C","B"))) ->  | AI83: =IF(OR($C83="",AI$6=""),"",IF(COUNTIFS($E$2:$AH$2,AI$1,$E83:$AH83,"<>")=0,"",SUMIF($E$2:$AH$2,AI$1,$E83:$AH83))) ->  | AJ83: =IF(OR($C83="",AI83=""),"",AI83/AI$6) ->  | AK83: =IF(OR($C83="",AJ83="",AI$6="",AI$6=0),"",IF(AJ83*100>=AJ$11,"A",IF(AJ83*100>=AK$11,"B","C"))) ->  | AL83: =IF(OR($C83="",AL$6=""),"",IF(COUNTIFS($E$2:$AH$2,AL$1,$E83:$AH83,"<>")=0,"",SUMIF($E$2:$AH$2,AL$1,$E83:$AH83))) ->  | AM83: =IF(OR($C83="",AL83=""),"",AL83/AL$6) ->  | AN83: =IF(OR($C83="",AM83="",AL$6="",AL$6=0),"",IF(AM83*100>=AM$11,"A",IF(AM83*100>=AN$11,"B","C"))) ->  | AO83: =IF(OR($C83="",AO$6=""),"",IF(COUNTIFS($E$2:$AH$2,AO$1,$E83:$AH83,"<>")=0,"",SUMIF($E$2:$AH$2,AO$1,$E83:$AH83))) ->  | AP83: =IF(OR($C83="",AO83=""),"",AO83/AO$6) ->  | AQ83: =IF(OR($C83="",AP83="",AO$6="",AO$6=0),"",IF(AP83*100>=AP$11,"A",IF(AP83*100>=AQ$11,"B","C"))) ->  | AR83: =IF(OR($C83="",AR$6=""),"",IF(COUNT(AI83,AL83,AO83)=0,"",SUM(AI83,AL83,AO83))) ->  | AS83: =IF(OR($C83="",AR83=""),"",AR83/AR$6) ->  | AT83: =IF(OR($C83="",AS83="",AR$6="",AR$6=0),"",IF(AS83*100>=AS$11,"A",IF(AS83*100>=AT$11,"B","C"))) -> 
D84: 思考判断表現 | F84: =IF(OR(E84="",$C83="",E$7="",E$7=0),"",IF(E84>=E$12,"A",IF(E84<F$12,"C","B"))) ->  | H84: =IF(OR(G84="",$C83="",G$7="",G$7=0),"",IF(G84>=G$12,"A",IF(G84<H$12,"C","B"))) ->  | J84: =IF(OR(I84="",$C83="",I$7="",I$7=0),"",IF(I84>=I$12,"A",IF(I84<J$12,"C","B"))) ->  | L84: =IF(OR(K84="",$C83="",K$7="",K$7=0),"",IF(K84>=K$12,"A",IF(K84<L$12,"C","B"))) ->  | N84: =IF(OR(M84="",$C83="",M$7="",M$7=0),"",IF(M84>=M$12,"A",IF(M84<N$12,"C","B"))) ->  | P84: =IF(OR(O84="",$C83="",O$7="",O$7=0),"",IF(O84>=O$12,"A",IF(O84<P$12,"C","B"))) ->  | R84: =IF(OR(Q84="",$C83="",Q$7="",Q$7=0),"",IF(Q84>=Q$12,"A",IF(Q84<R$12,"C","B"))) ->  | T84: =IF(OR(S84="",$C83="",S$7="",S$7=0),"",IF(S84>=S$12,"A",IF(S84<T$12,"C","B"))) ->  | AI84: =IF(OR($C83="",AI$7=""),"",IF(COUNTIFS($E$2:$AH$2,AI$1,$E84:$AH84,"<>")=0,"",SUMIF($E$2:$AH$2,AI$1,$E84:$AH84))) ->  | AJ84: =IF(OR($C83="",AI84=""),"",AI84/AI$7) ->  | AK84: =IF(OR($C83="",AJ84="",AI$7="",AI$7=0),"",IF(AJ84*100>=AJ$12,"A",IF(AJ84*100>=AK$12,"B","C"))) ->  | AL84: =IF(OR($C83="",AL$7=""),"",IF(COUNTIFS($E$2:$AH$2,AL$1,$E84:$AH84,"<>")=0,"",SUMIF($E$2:$AH$2,AL$1,$E84:$AH84))) ->  | AM84: =IF(OR($C83="",AL84=""),"",AL84/AL$7) ->  | AN84: =IF(OR($C83="",AM84="",AL$7="",AL$7=0),"",IF(AM84*100>=AM$12,"A",IF(AM84*100>=AN$12,"B","C"))) ->  | AO84: =IF(OR($C83="",AO$7=""),"",IF(COUNTIFS($E$2:$AH$2,AO$1,$E84:$AH84,"<>")=0,"",SUMIF($E$2:$AH$2,AO$1,$E84:$AH84))) ->  | AP84: =IF(OR($C83="",AO84=""),"",AO84/AO$7) ->  | AQ84: =IF(OR($C83="",AP84="",AO$7="",AO$7=0),"",IF(AP84*100>=AP$12,"A",IF(AP84*100>=AQ$12,"B","C"))) ->  | AR84: =IF(OR($C83="",AR$7=""),"",IF(COUNT(AI84,AL84,AO84)=0,"",SUM(AI84,AL84,AO84))) ->  | AS84: =IF(OR($C83="",AR84=""),"",AR84/AR$7) ->  | AT84: =IF(OR($C83="",AS84="",AR$7="",AR$7=0),"",IF(AS84*100>=AS$12,"A",IF(AS84*100>=AT$12,"B","C"))) -> 
D85: 主学態 | F85: =IF(OR(E85="",$C83="",E$8="",E$8=0),"",IF(E85>=E$13,"A",IF(E85<F$13,"C","B"))) ->  | H85: =IF(OR(G85="",$C83="",G$8="",G$8=0),"",IF(G85>=G$13,"A",IF(G85<H$13,"C","B"))) ->  | J85: =IF(OR(I85="",$C83="",I$8="",I$8=0),"",IF(I85>=I$13,"A",IF(I85<J$13,"C","B"))) ->  | L85: =IF(OR(K85="",$C83="",K$8="",K$8=0),"",IF(K85>=K$13,"A",IF(K85<L$13,"C","B"))) ->  | N85: =IF(OR(M85="",$C83="",M$8="",M$8=0),"",IF(M85>=M$13,"A",IF(M85<N$13,"C","B"))) ->  | P85: =IF(OR(O85="",$C83="",O$8="",O$8=0),"",IF(O85>=O$13,"A",IF(O85<P$13,"C","B"))) ->  | R85: =IF(OR(Q85="",$C83="",Q$8="",Q$8=0),"",IF(Q85>=Q$13,"A",IF(Q85<R$13,"C","B"))) ->  | T85: =IF(OR(S85="",$C83="",S$8="",S$8=0),"",IF(S85>=S$13,"A",IF(S85<T$13,"C","B"))) ->  | AI85: =IF(OR($C83="",AI$8=""),"",IF(COUNTIFS($E$2:$AH$2,AI$1,$E85:$AH85,"<>")=0,"",SUMIF($E$2:$AH$2,AI$1,$E85:$AH85))) ->  | AJ85: =IF(OR($C83="",AI85=""),"",AI85/AI$8) ->  | AK85: =IF(OR($C83="",AJ85="",AI$8="",AI$8=0),"",IF(AJ85*100>=AJ$13,"A",IF(AJ85*100>=AK$13,"B","C"))) ->  | AL85: =IF(OR($C83="",AL$8=""),"",IF(COUNTIFS($E$2:$AH$2,AL$1,$E85:$AH85,"<>")=0,"",SUMIF($E$2:$AH$2,AL$1,$E85:$AH85))) ->  | AM85: =IF(OR($C83="",AL85=""),"",AL85/AL$8) ->  | AN85: =IF(OR($C83="",AM85="",AL$8="",AL$8=0),"",IF(AM85*100>=AM$13,"A",IF(AM85*100>=AN$13,"B","C"))) ->  | AO85: =IF(OR($C83="",AO$8=""),"",IF(COUNTIFS($E$2:$AH$2,AO$1,$E85:$AH85,"<>")=0,"",SUMIF($E$2:$AH$2,AO$1,$E85:$AH85))) ->  | AP85: =IF(OR($C83="",AO85=""),"",AO85/AO$8) ->  | AQ85: =IF(OR($C83="",AP85="",AO$8="",AO$8=0),"",IF(AP85*100>=AP$13,"A",IF(AP85*100>=AQ$13,"B","C"))) ->  | AR85: =IF(OR($C83="",AR$8=""),"",IF(COUNT(AI85,AL85,AO85)=0,"",SUM(AI85,AL85,AO85))) ->  | AS85: =IF(OR($C83="",AR85=""),"",AR85/AR$8) ->  | AT85: =IF(OR($C83="",AS85="",AR$8="",AR$8=0),"",IF(AS85*100>=AS$13,"A",IF(AS85*100>=AT$13,"B","C"))) -> 
D86: 合計 | E86: =IF(OR(AND(E83="",E84="",E85=""),$C83=""),"",SUM(E83:E85)) ->  | F86: _ | G86: =IF(OR(AND(G83="",G84="",G85=""),$C83=""),"",SUM(G83:G85)) ->  | H86: _ | I86: =IF(OR(AND(I83="",I84="",I85=""),$C83=""),"",SUM(I83:I85)) ->  | J86: _ | K86: =IF(OR(AND(K83="",K84="",K85=""),$C83=""),"",SUM(K83:K85)) ->  | L86: _ | M86: =IF(OR(AND(M83="",M84="",M85=""),$C83=""),"",SUM(M83:M85)) ->  | N86: _ | O86: =IF(OR(AND(O83="",O84="",O85=""),$C83=""),"",SUM(O83:O85)) ->  | P86: _ | Q86: =IF(OR(AND(Q83="",Q84="",Q85=""),$C83=""),"",SUM(Q83:Q85)) ->  | R86: _ | S86: =IF(OR(AND(S83="",S84="",S85=""),$C83=""),"",SUM(S83:S85)) ->  | T86: _ | AI86: =IF($C83="","",IF(COUNTBLANK(AI83:AI85)=COUNTA(AI83:AI85),"",SUM(AI83:AI85))) ->  | AJ86: =IF(OR($C83="",AI86=""),"",AI86/AI$9) ->  | AL86: =IF($C83="","",IF(COUNTBLANK(AL83:AL85)=COUNTA(AL83:AL85),"",SUM(AL83:AL85))) ->  | AM86: =IF(OR($C83="",AL86=""),"",AL86/AL$9) ->  | AO86: =IF($C83="","",IF(COUNTBLANK(AO83:AO85)=COUNTA(AO83:AO85),"",SUM(AO83:AO85))) ->  | AP86: =IF(OR($C83="",AO86=""),"",AO86/AO$9) ->  | AR86: =IF(OR($C83="",AR$9=""),"",IF(COUNT(AI86,AL86,AO86)=0,"",SUM(AI86,AL86,AO86))) ->  | AS86: =IF(OR($C83="",AR86=""),"",AR86/AR$9) -> 
A87: 1 | B87: 19 | C87: =VLOOKUP(B87,INDIRECT("_"&A87&"組"),2,0)&"" ->  | D87: 知識・技能 | F87: =IF(OR(E87="",$C87="",E$6="",E$6=0),"",IF(E87>=E$11,"A",IF(E87<F$11,"C","B"))) ->  | H87: =IF(OR(G87="",$C87="",G$6="",G$6=0),"",IF(G87>=G$11,"A",IF(G87<H$11,"C","B"))) ->  | J87: =IF(OR(I87="",$C87="",I$6="",I$6=0),"",IF(I87>=I$11,"A",IF(I87<J$11,"C","B"))) ->  | L87: =IF(OR(K87="",$C87="",K$6="",K$6=0),"",IF(K87>=K$11,"A",IF(K87<L$11,"C","B"))) ->  | N87: =IF(OR(M87="",$C87="",M$6="",M$6=0),"",IF(M87>=M$11,"A",IF(M87<N$11,"C","B"))) ->  | P87: =IF(OR(O87="",$C87="",O$6="",O$6=0),"",IF(O87>=O$11,"A",IF(O87<P$11,"C","B"))) ->  | R87: =IF(OR(Q87="",$C87="",Q$6="",Q$6=0),"",IF(Q87>=Q$11,"A",IF(Q87<R$11,"C","B"))) ->  | T87: =IF(OR(S87="",$C87="",S$6="",S$6=0),"",IF(S87>=S$11,"A",IF(S87<T$11,"C","B"))) ->  | AI87: =IF(OR($C87="",AI$6=""),"",IF(COUNTIFS($E$2:$AH$2,AI$1,$E87:$AH87,"<>")=0,"",SUMIF($E$2:$AH$2,AI$1,$E87:$AH87))) ->  | AJ87: =IF(OR($C87="",AI87=""),"",AI87/AI$6) ->  | AK87: =IF(OR($C87="",AJ87="",AI$6="",AI$6=0),"",IF(AJ87*100>=AJ$11,"A",IF(AJ87*100>=AK$11,"B","C"))) ->  | AL87: =IF(OR($C87="",AL$6=""),"",IF(COUNTIFS($E$2:$AH$2,AL$1,$E87:$AH87,"<>")=0,"",SUMIF($E$2:$AH$2,AL$1,$E87:$AH87))) ->  | AM87: =IF(OR($C87="",AL87=""),"",AL87/AL$6) ->  | AN87: =IF(OR($C87="",AM87="",AL$6="",AL$6=0),"",IF(AM87*100>=AM$11,"A",IF(AM87*100>=AN$11,"B","C"))) ->  | AO87: =IF(OR($C87="",AO$6=""),"",IF(COUNTIFS($E$2:$AH$2,AO$1,$E87:$AH87,"<>")=0,"",SUMIF($E$2:$AH$2,AO$1,$E87:$AH87))) ->  | AP87: =IF(OR($C87="",AO87=""),"",AO87/AO$6) ->  | AQ87: =IF(OR($C87="",AP87="",AO$6="",AO$6=0),"",IF(AP87*100>=AP$11,"A",IF(AP87*100>=AQ$11,"B","C"))) ->  | AR87: =IF(OR($C87="",AR$6=""),"",IF(COUNT(AI87,AL87,AO87)=0,"",SUM(AI87,AL87,AO87))) ->  | AS87: =IF(OR($C87="",AR87=""),"",AR87/AR$6) ->  | AT87: =IF(OR($C87="",AS87="",AR$6="",AR$6=0),"",IF(AS87*100>=AS$11,"A",IF(AS87*100>=AT$11,"B","C"))) -> 
D88: 思考判断表現 | F88: =IF(OR(E88="",$C87="",E$7="",E$7=0),"",IF(E88>=E$12,"A",IF(E88<F$12,"C","B"))) ->  | H88: =IF(OR(G88="",$C87="",G$7="",G$7=0),"",IF(G88>=G$12,"A",IF(G88<H$12,"C","B"))) ->  | J88: =IF(OR(I88="",$C87="",I$7="",I$7=0),"",IF(I88>=I$12,"A",IF(I88<J$12,"C","B"))) ->  | L88: =IF(OR(K88="",$C87="",K$7="",K$7=0),"",IF(K88>=K$12,"A",IF(K88<L$12,"C","B"))) ->  | N88: =IF(OR(M88="",$C87="",M$7="",M$7=0),"",IF(M88>=M$12,"A",IF(M88<N$12,"C","B"))) ->  | P88: =IF(OR(O88="",$C87="",O$7="",O$7=0),"",IF(O88>=O$12,"A",IF(O88<P$12,"C","B"))) ->  | R88: =IF(OR(Q88="",$C87="",Q$7="",Q$7=0),"",IF(Q88>=Q$12,"A",IF(Q88<R$12,"C","B"))) ->  | T88: =IF(OR(S88="",$C87="",S$7="",S$7=0),"",IF(S88>=S$12,"A",IF(S88<T$12,"C","B"))) ->  | AI88: =IF(OR($C87="",AI$7=""),"",IF(COUNTIFS($E$2:$AH$2,AI$1,$E88:$AH88,"<>")=0,"",SUMIF($E$2:$AH$2,AI$1,$E88:$AH88))) ->  | AJ88: =IF(OR($C87="",AI88=""),"",AI88/AI$7) ->  | AK88: =IF(OR($C87="",AJ88="",AI$7="",AI$7=0),"",IF(AJ88*100>=AJ$12,"A",IF(AJ88*100>=AK$12,"B","C"))) ->  | AL88: =IF(OR($C87="",AL$7=""),"",IF(COUNTIFS($E$2:$AH$2,AL$1,$E88:$AH88,"<>")=0,"",SUMIF($E$2:$AH$2,AL$1,$E88:$AH88))) ->  | AM88: =IF(OR($C87="",AL88=""),"",AL88/AL$7) ->  | AN88: =IF(OR($C87="",AM88="",AL$7="",AL$7=0),"",IF(AM88*100>=AM$12,"A",IF(AM88*100>=AN$12,"B","C"))) ->  | AO88: =IF(OR($C87="",AO$7=""),"",IF(COUNTIFS($E$2:$AH$2,AO$1,$E88:$AH88,"<>")=0,"",SUMIF($E$2:$AH$2,AO$1,$E88:$AH88))) ->  | AP88: =IF(OR($C87="",AO88=""),"",AO88/AO$7) ->  | AQ88: =IF(OR($C87="",AP88="",AO$7="",AO$7=0),"",IF(AP88*100>=AP$12,"A",IF(AP88*100>=AQ$12,"B","C"))) ->  | AR88: =IF(OR($C87="",AR$7=""),"",IF(COUNT(AI88,AL88,AO88)=0,"",SUM(AI88,AL88,AO88))) ->  | AS88: =IF(OR($C87="",AR88=""),"",AR88/AR$7) ->  | AT88: =IF(OR($C87="",AS88="",AR$7="",AR$7=0),"",IF(AS88*100>=AS$12,"A",IF(AS88*100>=AT$12,"B","C"))) -> 
D89: 主学態 | F89: =IF(OR(E89="",$C87="",E$8="",E$8=0),"",IF(E89>=E$13,"A",IF(E89<F$13,"C","B"))) ->  | H89: =IF(OR(G89="",$C87="",G$8="",G$8=0),"",IF(G89>=G$13,"A",IF(G89<H$13,"C","B"))) ->  | J89: =IF(OR(I89="",$C87="",I$8="",I$8=0),"",IF(I89>=I$13,"A",IF(I89<J$13,"C","B"))) ->  | L89: =IF(OR(K89="",$C87="",K$8="",K$8=0),"",IF(K89>=K$13,"A",IF(K89<L$13,"C","B"))) ->  | N89: =IF(OR(M89="",$C87="",M$8="",M$8=0),"",IF(M89>=M$13,"A",IF(M89<N$13,"C","B"))) ->  | P89: =IF(OR(O89="",$C87="",O$8="",O$8=0),"",IF(O89>=O$13,"A",IF(O89<P$13,"C","B"))) ->  | R89: =IF(OR(Q89="",$C87="",Q$8="",Q$8=0),"",IF(Q89>=Q$13,"A",IF(Q89<R$13,"C","B"))) ->  | T89: =IF(OR(S89="",$C87="",S$8="",S$8=0),"",IF(S89>=S$13,"A",IF(S89<T$13,"C","B"))) ->  | AI89: =IF(OR($C87="",AI$8=""),"",IF(COUNTIFS($E$2:$AH$2,AI$1,$E89:$AH89,"<>")=0,"",SUMIF($E$2:$AH$2,AI$1,$E89:$AH89))) ->  | AJ89: =IF(OR($C87="",AI89=""),"",AI89/AI$8) ->  | AK89: =IF(OR($C87="",AJ89="",AI$8="",AI$8=0),"",IF(AJ89*100>=AJ$13,"A",IF(AJ89*100>=AK$13,"B","C"))) ->  | AL89: =IF(OR($C87="",AL$8=""),"",IF(COUNTIFS($E$2:$AH$2,AL$1,$E89:$AH89,"<>")=0,"",SUMIF($E$2:$AH$2,AL$1,$E89:$AH89))) ->  | AM89: =IF(OR($C87="",AL89=""),"",AL89/AL$8) ->  | AN89: =IF(OR($C87="",AM89="",AL$8="",AL$8=0),"",IF(AM89*100>=AM$13,"A",IF(AM89*100>=AN$13,"B","C"))) ->  | AO89: =IF(OR($C87="",AO$8=""),"",IF(COUNTIFS($E$2:$AH$2,AO$1,$E89:$AH89,"<>")=0,"",SUMIF($E$2:$AH$2,AO$1,$E89:$AH89))) ->  | AP89: =IF(OR($C87="",AO89=""),"",AO89/AO$8) ->  | AQ89: =IF(OR($C87="",AP89="",AO$8="",AO$8=0),"",IF(AP89*100>=AP$13,"A",IF(AP89*100>=AQ$13,"B","C"))) ->  | AR89: =IF(OR($C87="",AR$8=""),"",IF(COUNT(AI89,AL89,AO89)=0,"",SUM(AI89,AL89,AO89))) ->  | AS89: =IF(OR($C87="",AR89=""),"",AR89/AR$8) ->  | AT89: =IF(OR($C87="",AS89="",AR$8="",AR$8=0),"",IF(AS89*100>=AS$13,"A",IF(AS89*100>=AT$13,"B","C"))) -> 
D90: 合計 | E90: =IF(OR(AND(E87="",E88="",E89=""),$C87=""),"",SUM(E87:E89)) ->  | F90: _ | G90: =IF(OR(AND(G87="",G88="",G89=""),$C87=""),"",SUM(G87:G89)) ->  | H90: _ | I90: =IF(OR(AND(I87="",I88="",I89=""),$C87=""),"",SUM(I87:I89)) ->  | J90: _ | K90: =IF(OR(AND(K87="",K88="",K89=""),$C87=""),"",SUM(K87:K89)) ->  | L90: _ | M90: =IF(OR(AND(M87="",M88="",M89=""),$C87=""),"",SUM(M87:M89)) ->  | N90: _ | O90: =IF(OR(AND(O87="",O88="",O89=""),$C87=""),"",SUM(O87:O89)) ->  | P90: _ | Q90: =IF(OR(AND(Q87="",Q88="",Q89=""),$C87=""),"",SUM(Q87:Q89)) ->  | R90: _ | S90: =IF(OR(AND(S87="",S88="",S89=""),$C87=""),"",SUM(S87:S89)) ->  | T90: _ | AI90: =IF($C87="","",IF(COUNTBLANK(AI87:AI89)=COUNTA(AI87:AI89),"",SUM(AI87:AI89))) ->  | AJ90: =IF(OR($C87="",AI90=""),"",AI90/AI$9) ->  | AL90: =IF($C87="","",IF(COUNTBLANK(AL87:AL89)=COUNTA(AL87:AL89),"",SUM(AL87:AL89))) ->  | AM90: =IF(OR($C87="",AL90=""),"",AL90/AL$9) ->  | AO90: =IF($C87="","",IF(COUNTBLANK(AO87:AO89)=COUNTA(AO87:AO89),"",SUM(AO87:AO89))) ->  | AP90: =IF(OR($C87="",AO90=""),"",AO90/AO$9) ->  | AR90: =IF(OR($C87="",AR$9=""),"",IF(COUNT(AI90,AL90,AO90)=0,"",SUM(AI90,AL90,AO90))) ->  | AS90: =IF(OR($C87="",AR90=""),"",AR90/AR$9) -> 
A91: 1 | B91: 20 | C91: =VLOOKUP(B91,INDIRECT("_"&A91&"組"),2,0)&"" ->  | D91: 知識・技能 | F91: =IF(OR(E91="",$C91="",E$6="",E$6=0),"",IF(E91>=E$11,"A",IF(E91<F$11,"C","B"))) ->  | H91: =IF(OR(G91="",$C91="",G$6="",G$6=0),"",IF(G91>=G$11,"A",IF(G91<H$11,"C","B"))) ->  | J91: =IF(OR(I91="",$C91="",I$6="",I$6=0),"",IF(I91>=I$11,"A",IF(I91<J$11,"C","B"))) ->  | L91: =IF(OR(K91="",$C91="",K$6="",K$6=0),"",IF(K91>=K$11,"A",IF(K91<L$11,"C","B"))) ->  | N91: =IF(OR(M91="",$C91="",M$6="",M$6=0),"",IF(M91>=M$11,"A",IF(M91<N$11,"C","B"))) ->  | P91: =IF(OR(O91="",$C91="",O$6="",O$6=0),"",IF(O91>=O$11,"A",IF(O91<P$11,"C","B"))) ->  | R91: =IF(OR(Q91="",$C91="",Q$6="",Q$6=0),"",IF(Q91>=Q$11,"A",IF(Q91<R$11,"C","B"))) ->  | T91: =IF(OR(S91="",$C91="",S$6="",S$6=0),"",IF(S91>=S$11,"A",IF(S91<T$11,"C","B"))) ->  | AI91: =IF(OR($C91="",AI$6=""),"",IF(COUNTIFS($E$2:$AH$2,AI$1,$E91:$AH91,"<>")=0,"",SUMIF($E$2:$AH$2,AI$1,$E91:$AH91))) ->  | AJ91: =IF(OR($C91="",AI91=""),"",AI91/AI$6) ->  | AK91: =IF(OR($C91="",AJ91="",AI$6="",AI$6=0),"",IF(AJ91*100>=AJ$11,"A",IF(AJ91*100>=AK$11,"B","C"))) ->  | AL91: =IF(OR($C91="",AL$6=""),"",IF(COUNTIFS($E$2:$AH$2,AL$1,$E91:$AH91,"<>")=0,"",SUMIF($E$2:$AH$2,AL$1,$E91:$AH91))) ->  | AM91: =IF(OR($C91="",AL91=""),"",AL91/AL$6) ->  | AN91: =IF(OR($C91="",AM91="",AL$6="",AL$6=0),"",IF(AM91*100>=AM$11,"A",IF(AM91*100>=AN$11,"B","C"))) ->  | AO91: =IF(OR($C91="",AO$6=""),"",IF(COUNTIFS($E$2:$AH$2,AO$1,$E91:$AH91,"<>")=0,"",SUMIF($E$2:$AH$2,AO$1,$E91:$AH91))) ->  | AP91: =IF(OR($C91="",AO91=""),"",AO91/AO$6) ->  | AQ91: =IF(OR($C91="",AP91="",AO$6="",AO$6=0),"",IF(AP91*100>=AP$11,"A",IF(AP91*100>=AQ$11,"B","C"))) ->  | AR91: =IF(OR($C91="",AR$6=""),"",IF(COUNT(AI91,AL91,AO91)=0,"",SUM(AI91,AL91,AO91))) ->  | AS91: =IF(OR($C91="",AR91=""),"",AR91/AR$6) ->  | AT91: =IF(OR($C91="",AS91="",AR$6="",AR$6=0),"",IF(AS91*100>=AS$11,"A",IF(AS91*100>=AT$11,"B","C"))) -> 
D92: 思考判断表現 | F92: =IF(OR(E92="",$C91="",E$7="",E$7=0),"",IF(E92>=E$12,"A",IF(E92<F$12,"C","B"))) ->  | H92: =IF(OR(G92="",$C91="",G$7="",G$7=0),"",IF(G92>=G$12,"A",IF(G92<H$12,"C","B"))) ->  | J92: =IF(OR(I92="",$C91="",I$7="",I$7=0),"",IF(I92>=I$12,"A",IF(I92<J$12,"C","B"))) ->  | L92: =IF(OR(K92="",$C91="",K$7="",K$7=0),"",IF(K92>=K$12,"A",IF(K92<L$12,"C","B"))) ->  | N92: =IF(OR(M92="",$C91="",M$7="",M$7=0),"",IF(M92>=M$12,"A",IF(M92<N$12,"C","B"))) ->  | P92: =IF(OR(O92="",$C91="",O$7="",O$7=0),"",IF(O92>=O$12,"A",IF(O92<P$12,"C","B"))) ->  | R92: =IF(OR(Q92="",$C91="",Q$7="",Q$7=0),"",IF(Q92>=Q$12,"A",IF(Q92<R$12,"C","B"))) ->  | T92: =IF(OR(S92="",$C91="",S$7="",S$7=0),"",IF(S92>=S$12,"A",IF(S92<T$12,"C","B"))) ->  | AI92: =IF(OR($C91="",AI$7=""),"",IF(COUNTIFS($E$2:$AH$2,AI$1,$E92:$AH92,"<>")=0,"",SUMIF($E$2:$AH$2,AI$1,$E92:$AH92))) ->  | AJ92: =IF(OR($C91="",AI92=""),"",AI92/AI$7) ->  | AK92: =IF(OR($C91="",AJ92="",AI$7="",AI$7=0),"",IF(AJ92*100>=AJ$12,"A",IF(AJ92*100>=AK$12,"B","C"))) ->  | AL92: =IF(OR($C91="",AL$7=""),"",IF(COUNTIFS($E$2:$AH$2,AL$1,$E92:$AH92,"<>")=0,"",SUMIF($E$2:$AH$2,AL$1,$E92:$AH92))) ->  | AM92: =IF(OR($C91="",AL92=""),"",AL92/AL$7) ->  | AN92: =IF(OR($C91="",AM92="",AL$7="",AL$7=0),"",IF(AM92*100>=AM$12,"A",IF(AM92*100>=AN$12,"B","C"))) ->  | AO92: =IF(OR($C91="",AO$7=""),"",IF(COUNTIFS($E$2:$AH$2,AO$1,$E92:$AH92,"<>")=0,"",SUMIF($E$2:$AH$2,AO$1,$E92:$AH92))) ->  | AP92: =IF(OR($C91="",AO92=""),"",AO92/AO$7) ->  | AQ92: =IF(OR($C91="",AP92="",AO$7="",AO$7=0),"",IF(AP92*100>=AP$12,"A",IF(AP92*100>=AQ$12,"B","C"))) ->  | AR92: =IF(OR($C91="",AR$7=""),"",IF(COUNT(AI92,AL92,AO92)=0,"",SUM(AI92,AL92,AO92))) ->  | AS92: =IF(OR($C91="",AR92=""),"",AR92/AR$7) ->  | AT92: =IF(OR($C91="",AS92="",AR$7="",AR$7=0),"",IF(AS92*100>=AS$12,"A",IF(AS92*100>=AT$12,"B","C"))) -> 
D93: 主学態 | F93: =IF(OR(E93="",$C91="",E$8="",E$8=0),"",IF(E93>=E$13,"A",IF(E93<F$13,"C","B"))) ->  | H93: =IF(OR(G93="",$C91="",G$8="",G$8=0),"",IF(G93>=G$13,"A",IF(G93<H$13,"C","B"))) ->  | J93: =IF(OR(I93="",$C91="",I$8="",I$8=0),"",IF(I93>=I$13,"A",IF(I93<J$13,"C","B"))) ->  | L93: =IF(OR(K93="",$C91="",K$8="",K$8=0),"",IF(K93>=K$13,"A",IF(K93<L$13,"C","B"))) ->  | N93: =IF(OR(M93="",$C91="",M$8="",M$8=0),"",IF(M93>=M$13,"A",IF(M93<N$13,"C","B"))) ->  | P93: =IF(OR(O93="",$C91="",O$8="",O$8=0),"",IF(O93>=O$13,"A",IF(O93<P$13,"C","B"))) ->  | R93: =IF(OR(Q93="",$C91="",Q$8="",Q$8=0),"",IF(Q93>=Q$13,"A",IF(Q93<R$13,"C","B"))) ->  | T93: =IF(OR(S93="",$C91="",S$8="",S$8=0),"",IF(S93>=S$13,"A",IF(S93<T$13,"C","B"))) ->  | AI93: =IF(OR($C91="",AI$8=""),"",IF(COUNTIFS($E$2:$AH$2,AI$1,$E93:$AH93,"<>")=0,"",SUMIF($E$2:$AH$2,AI$1,$E93:$AH93))) ->  | AJ93: =IF(OR($C91="",AI93=""),"",AI93/AI$8) ->  | AK93: =IF(OR($C91="",AJ93="",AI$8="",AI$8=0),"",IF(AJ93*100>=AJ$13,"A",IF(AJ93*100>=AK$13,"B","C"))) ->  | AL93: =IF(OR($C91="",AL$8=""),"",IF(COUNTIFS($E$2:$AH$2,AL$1,$E93:$AH93,"<>")=0,"",SUMIF($E$2:$AH$2,AL$1,$E93:$AH93))) ->  | AM93: =IF(OR($C91="",AL93=""),"",AL93/AL$8) ->  | AN93: =IF(OR($C91="",AM93="",AL$8="",AL$8=0),"",IF(AM93*100>=AM$13,"A",IF(AM93*100>=AN$13,"B","C"))) ->  | AO93: =IF(OR($C91="",AO$8=""),"",IF(COUNTIFS($E$2:$AH$2,AO$1,$E93:$AH93,"<>")=0,"",SUMIF($E$2:$AH$2,AO$1,$E93:$AH93))) ->  | AP93: =IF(OR($C91="",AO93=""),"",AO93/AO$8) ->  | AQ93: =IF(OR($C91="",AP93="",AO$8="",AO$8=0),"",IF(AP93*100>=AP$13,"A",IF(AP93*100>=AQ$13,"B","C"))) ->  | AR93: =IF(OR($C91="",AR$8=""),"",IF(COUNT(AI93,AL93,AO93)=0,"",SUM(AI93,AL93,AO93))) ->  | AS93: =IF(OR($C91="",AR93=""),"",AR93/AR$8) ->  | AT93: =IF(OR($C91="",AS93="",AR$8="",AR$8=0),"",IF(AS93*100>=AS$13,"A",IF(AS93*100>=AT$13,"B","C"))) -> 
D94: 合計 | E94: =IF(OR(AND(E91="",E92="",E93=""),$C91=""),"",SUM(E91:E93)) ->  | F94: _ | G94: =IF(OR(AND(G91="",G92="",G93=""),$C91=""),"",SUM(G91:G93)) ->  | H94: _ | I94: =IF(OR(AND(I91="",I92="",I93=""),$C91=""),"",SUM(I91:I93)) ->  | J94: _ | K94: =IF(OR(AND(K91="",K92="",K93=""),$C91=""),"",SUM(K91:K93)) ->  | L94: _ | M94: =IF(OR(AND(M91="",M92="",M93=""),$C91=""),"",SUM(M91:M93)) ->  | N94: _ | O94: =IF(OR(AND(O91="",O92="",O93=""),$C91=""),"",SUM(O91:O93)) ->  | P94: _ | Q94: =IF(OR(AND(Q91="",Q92="",Q93=""),$C91=""),"",SUM(Q91:Q93)) ->  | R94: _ | S94: =IF(OR(AND(S91="",S92="",S93=""),$C91=""),"",SUM(S91:S93)) ->  | T94: _ | AI94: =IF($C91="","",IF(COUNTBLANK(AI91:AI93)=COUNTA(AI91:AI93),"",SUM(AI91:AI93))) ->  | AJ94: =IF(OR($C91="",AI94=""),"",AI94/AI$9) ->  | AL94: =IF($C91="","",IF(COUNTBLANK(AL91:AL93)=COUNTA(AL91:AL93),"",SUM(AL91:AL93))) ->  | AM94: =IF(OR($C91="",AL94=""),"",AL94/AL$9) ->  | AO94: =IF($C91="","",IF(COUNTBLANK(AO91:AO93)=COUNTA(AO91:AO93),"",SUM(AO91:AO93))) ->  | AP94: =IF(OR($C91="",AO94=""),"",AO94/AO$9) ->  | AR94: =IF(OR($C91="",AR$9=""),"",IF(COUNT(AI94,AL94,AO94)=0,"",SUM(AI94,AL94,AO94))) ->  | AS94: =IF(OR($C91="",AR94=""),"",AR94/AR$9) -> 
A95: 1 | B95: 21 | C95: =VLOOKUP(B95,INDIRECT("_"&A95&"組"),2,0)&"" ->  | D95: 知識・技能 | F95: =IF(OR(E95="",$C95="",E$6="",E$6=0),"",IF(E95>=E$11,"A",IF(E95<F$11,"C","B"))) ->  | H95: =IF(OR(G95="",$C95="",G$6="",G$6=0),"",IF(G95>=G$11,"A",IF(G95<H$11,"C","B"))) ->  | J95: =IF(OR(I95="",$C95="",I$6="",I$6=0),"",IF(I95>=I$11,"A",IF(I95<J$11,"C","B"))) ->  | L95: =IF(OR(K95="",$C95="",K$6="",K$6=0),"",IF(K95>=K$11,"A",IF(K95<L$11,"C","B"))) ->  | N95: =IF(OR(M95="",$C95="",M$6="",M$6=0),"",IF(M95>=M$11,"A",IF(M95<N$11,"C","B"))) ->  | P95: =IF(OR(O95="",$C95="",O$6="",O$6=0),"",IF(O95>=O$11,"A",IF(O95<P$11,"C","B"))) ->  | R95: =IF(OR(Q95="",$C95="",Q$6="",Q$6=0),"",IF(Q95>=Q$11,"A",IF(Q95<R$11,"C","B"))) ->  | T95: =IF(OR(S95="",$C95="",S$6="",S$6=0),"",IF(S95>=S$11,"A",IF(S95<T$11,"C","B"))) ->  | AI95: =IF(OR($C95="",AI$6=""),"",IF(COUNTIFS($E$2:$AH$2,AI$1,$E95:$AH95,"<>")=0,"",SUMIF($E$2:$AH$2,AI$1,$E95:$AH95))) ->  | AJ95: =IF(OR($C95="",AI95=""),"",AI95/AI$6) ->  | AK95: =IF(OR($C95="",AJ95="",AI$6="",AI$6=0),"",IF(AJ95*100>=AJ$11,"A",IF(AJ95*100>=AK$11,"B","C"))) ->  | AL95: =IF(OR($C95="",AL$6=""),"",IF(COUNTIFS($E$2:$AH$2,AL$1,$E95:$AH95,"<>")=0,"",SUMIF($E$2:$AH$2,AL$1,$E95:$AH95))) ->  | AM95: =IF(OR($C95="",AL95=""),"",AL95/AL$6) ->  | AN95: =IF(OR($C95="",AM95="",AL$6="",AL$6=0),"",IF(AM95*100>=AM$11,"A",IF(AM95*100>=AN$11,"B","C"))) ->  | AO95: =IF(OR($C95="",AO$6=""),"",IF(COUNTIFS($E$2:$AH$2,AO$1,$E95:$AH95,"<>")=0,"",SUMIF($E$2:$AH$2,AO$1,$E95:$AH95))) ->  | AP95: =IF(OR($C95="",AO95=""),"",AO95/AO$6) ->  | AQ95: =IF(OR($C95="",AP95="",AO$6="",AO$6=0),"",IF(AP95*100>=AP$11,"A",IF(AP95*100>=AQ$11,"B","C"))) ->  | AR95: =IF(OR($C95="",AR$6=""),"",IF(COUNT(AI95,AL95,AO95)=0,"",SUM(AI95,AL95,AO95))) ->  | AS95: =IF(OR($C95="",AR95=""),"",AR95/AR$6) ->  | AT95: =IF(OR($C95="",AS95="",AR$6="",AR$6=0),"",IF(AS95*100>=AS$11,"A",IF(AS95*100>=AT$11,"B","C"))) -> 
D96: 思考判断表現 | F96: =IF(OR(E96="",$C95="",E$7="",E$7=0),"",IF(E96>=E$12,"A",IF(E96<F$12,"C","B"))) ->  | H96: =IF(OR(G96="",$C95="",G$7="",G$7=0),"",IF(G96>=G$12,"A",IF(G96<H$12,"C","B"))) ->  | J96: =IF(OR(I96="",$C95="",I$7="",I$7=0),"",IF(I96>=I$12,"A",IF(I96<J$12,"C","B"))) ->  | L96: =IF(OR(K96="",$C95="",K$7="",K$7=0),"",IF(K96>=K$12,"A",IF(K96<L$12,"C","B"))) ->  | N96: =IF(OR(M96="",$C95="",M$7="",M$7=0),"",IF(M96>=M$12,"A",IF(M96<N$12,"C","B"))) ->  | P96: =IF(OR(O96="",$C95="",O$7="",O$7=0),"",IF(O96>=O$12,"A",IF(O96<P$12,"C","B"))) ->  | R96: =IF(OR(Q96="",$C95="",Q$7="",Q$7=0),"",IF(Q96>=Q$12,"A",IF(Q96<R$12,"C","B"))) ->  | T96: =IF(OR(S96="",$C95="",S$7="",S$7=0),"",IF(S96>=S$12,"A",IF(S96<T$12,"C","B"))) ->  | AI96: =IF(OR($C95="",AI$7=""),"",IF(COUNTIFS($E$2:$AH$2,AI$1,$E96:$AH96,"<>")=0,"",SUMIF($E$2:$AH$2,AI$1,$E96:$AH96))) ->  | AJ96: =IF(OR($C95="",AI96=""),"",AI96/AI$7) ->  | AK96: =IF(OR($C95="",AJ96="",AI$7="",AI$7=0),"",IF(AJ96*100>=AJ$12,"A",IF(AJ96*100>=AK$12,"B","C"))) ->  | AL96: =IF(OR($C95="",AL$7=""),"",IF(COUNTIFS($E$2:$AH$2,AL$1,$E96:$AH96,"<>")=0,"",SUMIF($E$2:$AH$2,AL$1,$E96:$AH96))) ->  | AM96: =IF(OR($C95="",AL96=""),"",AL96/AL$7) ->  | AN96: =IF(OR($C95="",AM96="",AL$7="",AL$7=0),"",IF(AM96*100>=AM$12,"A",IF(AM96*100>=AN$12,"B","C"))) ->  | AO96: =IF(OR($C95="",AO$7=""),"",IF(COUNTIFS($E$2:$AH$2,AO$1,$E96:$AH96,"<>")=0,"",SUMIF($E$2:$AH$2,AO$1,$E96:$AH96))) ->  | AP96: =IF(OR($C95="",AO96=""),"",AO96/AO$7) ->  | AQ96: =IF(OR($C95="",AP96="",AO$7="",AO$7=0),"",IF(AP96*100>=AP$12,"A",IF(AP96*100>=AQ$12,"B","C"))) ->  | AR96: =IF(OR($C95="",AR$7=""),"",IF(COUNT(AI96,AL96,AO96)=0,"",SUM(AI96,AL96,AO96))) ->  | AS96: =IF(OR($C95="",AR96=""),"",AR96/AR$7) ->  | AT96: =IF(OR($C95="",AS96="",AR$7="",AR$7=0),"",IF(AS96*100>=AS$12,"A",IF(AS96*100>=AT$12,"B","C"))) -> 
D97: 主学態 | F97: =IF(OR(E97="",$C95="",E$8="",E$8=0),"",IF(E97>=E$13,"A",IF(E97<F$13,"C","B"))) ->  | H97: =IF(OR(G97="",$C95="",G$8="",G$8=0),"",IF(G97>=G$13,"A",IF(G97<H$13,"C","B"))) ->  | J97: =IF(OR(I97="",$C95="",I$8="",I$8=0),"",IF(I97>=I$13,"A",IF(I97<J$13,"C","B"))) ->  | L97: =IF(OR(K97="",$C95="",K$8="",K$8=0),"",IF(K97>=K$13,"A",IF(K97<L$13,"C","B"))) ->  | N97: =IF(OR(M97="",$C95="",M$8="",M$8=0),"",IF(M97>=M$13,"A",IF(M97<N$13,"C","B"))) ->  | P97: =IF(OR(O97="",$C95="",O$8="",O$8=0),"",IF(O97>=O$13,"A",IF(O97<P$13,"C","B"))) ->  | R97: =IF(OR(Q97="",$C95="",Q$8="",Q$8=0),"",IF(Q97>=Q$13,"A",IF(Q97<R$13,"C","B"))) ->  | T97: =IF(OR(S97="",$C95="",S$8="",S$8=0),"",IF(S97>=S$13,"A",IF(S97<T$13,"C","B"))) ->  | AI97: =IF(OR($C95="",AI$8=""),"",IF(COUNTIFS($E$2:$AH$2,AI$1,$E97:$AH97,"<>")=0,"",SUMIF($E$2:$AH$2,AI$1,$E97:$AH97))) ->  | AJ97: =IF(OR($C95="",AI97=""),"",AI97/AI$8) ->  | AK97: =IF(OR($C95="",AJ97="",AI$8="",AI$8=0),"",IF(AJ97*100>=AJ$13,"A",IF(AJ97*100>=AK$13,"B","C"))) ->  | AL97: =IF(OR($C95="",AL$8=""),"",IF(COUNTIFS($E$2:$AH$2,AL$1,$E97:$AH97,"<>")=0,"",SUMIF($E$2:$AH$2,AL$1,$E97:$AH97))) ->  | AM97: =IF(OR($C95="",AL97=""),"",AL97/AL$8) ->  | AN97: =IF(OR($C95="",AM97="",AL$8="",AL$8=0),"",IF(AM97*100>=AM$13,"A",IF(AM97*100>=AN$13,"B","C"))) ->  | AO97: =IF(OR($C95="",AO$8=""),"",IF(COUNTIFS($E$2:$AH$2,AO$1,$E97:$AH97,"<>")=0,"",SUMIF($E$2:$AH$2,AO$1,$E97:$AH97))) ->  | AP97: =IF(OR($C95="",AO97=""),"",AO97/AO$8) ->  | AQ97: =IF(OR($C95="",AP97="",AO$8="",AO$8=0),"",IF(AP97*100>=AP$13,"A",IF(AP97*100>=AQ$13,"B","C"))) ->  | AR97: =IF(OR($C95="",AR$8=""),"",IF(COUNT(AI97,AL97,AO97)=0,"",SUM(AI97,AL97,AO97))) ->  | AS97: =IF(OR($C95="",AR97=""),"",AR97/AR$8) ->  | AT97: =IF(OR($C95="",AS97="",AR$8="",AR$8=0),"",IF(AS97*100>=AS$13,"A",IF(AS97*100>=AT$13,"B","C"))) -> 
D98: 合計 | E98: =IF(OR(AND(E95="",E96="",E97=""),$C95=""),"",SUM(E95:E97)) ->  | F98: _ | G98: =IF(OR(AND(G95="",G96="",G97=""),$C95=""),"",SUM(G95:G97)) ->  | H98: _ | I98: =IF(OR(AND(I95="",I96="",I97=""),$C95=""),"",SUM(I95:I97)) ->  | J98: _ | K98: =IF(OR(AND(K95="",K96="",K97=""),$C95=""),"",SUM(K95:K97)) ->  | L98: _ | M98: =IF(OR(AND(M95="",M96="",M97=""),$C95=""),"",SUM(M95:M97)) ->  | N98: _ | O98: =IF(OR(AND(O95="",O96="",O97=""),$C95=""),"",SUM(O95:O97)) ->  | P98: _ | Q98: =IF(OR(AND(Q95="",Q96="",Q97=""),$C95=""),"",SUM(Q95:Q97)) ->  | R98: _ | S98: =IF(OR(AND(S95="",S96="",S97=""),$C95=""),"",SUM(S95:S97)) ->  | T98: _ | AI98: =IF($C95="","",IF(COUNTBLANK(AI95:AI97)=COUNTA(AI95:AI97),"",SUM(AI95:AI97))) ->  | AJ98: =IF(OR($C95="",AI98=""),"",AI98/AI$9) ->  | AL98: =IF($C95="","",IF(COUNTBLANK(AL95:AL97)=COUNTA(AL95:AL97),"",SUM(AL95:AL97))) ->  | AM98: =IF(OR($C95="",AL98=""),"",AL98/AL$9) ->  | AO98: =IF($C95="","",IF(COUNTBLANK(AO95:AO97)=COUNTA(AO95:AO97),"",SUM(AO95:AO97))) ->  | AP98: =IF(OR($C95="",AO98=""),"",AO98/AO$9) ->  | AR98: =IF(OR($C95="",AR$9=""),"",IF(COUNT(AI98,AL98,AO98)=0,"",SUM(AI98,AL98,AO98))) ->  | AS98: =IF(OR($C95="",AR98=""),"",AR98/AR$9) -> 
A99: 1 | B99: 22 | C99: =VLOOKUP(B99,INDIRECT("_"&A99&"組"),2,0)&"" ->  | D99: 知識・技能 | F99: =IF(OR(E99="",$C99="",E$6="",E$6=0),"",IF(E99>=E$11,"A",IF(E99<F$11,"C","B"))) ->  | H99: =IF(OR(G99="",$C99="",G$6="",G$6=0),"",IF(G99>=G$11,"A",IF(G99<H$11,"C","B"))) ->  | J99: =IF(OR(I99="",$C99="",I$6="",I$6=0),"",IF(I99>=I$11,"A",IF(I99<J$11,"C","B"))) ->  | L99: =IF(OR(K99="",$C99="",K$6="",K$6=0),"",IF(K99>=K$11,"A",IF(K99<L$11,"C","B"))) ->  | N99: =IF(OR(M99="",$C99="",M$6="",M$6=0),"",IF(M99>=M$11,"A",IF(M99<N$11,"C","B"))) ->  | P99: =IF(OR(O99="",$C99="",O$6="",O$6=0),"",IF(O99>=O$11,"A",IF(O99<P$11,"C","B"))) ->  | R99: =IF(OR(Q99="",$C99="",Q$6="",Q$6=0),"",IF(Q99>=Q$11,"A",IF(Q99<R$11,"C","B"))) ->  | T99: =IF(OR(S99="",$C99="",S$6="",S$6=0),"",IF(S99>=S$11,"A",IF(S99<T$11,"C","B"))) ->  | AI99: =IF(OR($C99="",AI$6=""),"",IF(COUNTIFS($E$2:$AH$2,AI$1,$E99:$AH99,"<>")=0,"",SUMIF($E$2:$AH$2,AI$1,$E99:$AH99))) ->  | AJ99: =IF(OR($C99="",AI99=""),"",AI99/AI$6) ->  | AK99: =IF(OR($C99="",AJ99="",AI$6="",AI$6=0),"",IF(AJ99*100>=AJ$11,"A",IF(AJ99*100>=AK$11,"B","C"))) ->  | AL99: =IF(OR($C99="",AL$6=""),"",IF(COUNTIFS($E$2:$AH$2,AL$1,$E99:$AH99,"<>")=0,"",SUMIF($E$2:$AH$2,AL$1,$E99:$AH99))) ->  | AM99: =IF(OR($C99="",AL99=""),"",AL99/AL$6) ->  | AN99: =IF(OR($C99="",AM99="",AL$6="",AL$6=0),"",IF(AM99*100>=AM$11,"A",IF(AM99*100>=AN$11,"B","C"))) ->  | AO99: =IF(OR($C99="",AO$6=""),"",IF(COUNTIFS($E$2:$AH$2,AO$1,$E99:$AH99,"<>")=0,"",SUMIF($E$2:$AH$2,AO$1,$E99:$AH99))) ->  | AP99: =IF(OR($C99="",AO99=""),"",AO99/AO$6) ->  | AQ99: =IF(OR($C99="",AP99="",AO$6="",AO$6=0),"",IF(AP99*100>=AP$11,"A",IF(AP99*100>=AQ$11,"B","C"))) ->  | AR99: =IF(OR($C99="",AR$6=""),"",IF(COUNT(AI99,AL99,AO99)=0,"",SUM(AI99,AL99,AO99))) ->  | AS99: =IF(OR($C99="",AR99=""),"",AR99/AR$6) ->  | AT99: =IF(OR($C99="",AS99="",AR$6="",AR$6=0),"",IF(AS99*100>=AS$11,"A",IF(AS99*100>=AT$11,"B","C"))) -> 
D100: 思考判断表現 | F100: =IF(OR(E100="",$C99="",E$7="",E$7=0),"",IF(E100>=E$12,"A",IF(E100<F$12,"C","B"))) ->  | H100: =IF(OR(G100="",$C99="",G$7="",G$7=0),"",IF(G100>=G$12,"A",IF(G100<H$12,"C","B"))) ->  | J100: =IF(OR(I100="",$C99="",I$7="",I$7=0),"",IF(I100>=I$12,"A",IF(I100<J$12,"C","B"))) ->  | L100: =IF(OR(K100="",$C99="",K$7="",K$7=0),"",IF(K100>=K$12,"A",IF(K100<L$12,"C","B"))) ->  | N100: =IF(OR(M100="",$C99="",M$7="",M$7=0),"",IF(M100>=M$12,"A",IF(M100<N$12,"C","B"))) ->  | P100: =IF(OR(O100="",$C99="",O$7="",O$7=0),"",IF(O100>=O$12,"A",IF(O100<P$12,"C","B"))) ->  | R100: =IF(OR(Q100="",$C99="",Q$7="",Q$7=0),"",IF(Q100>=Q$12,"A",IF(Q100<R$12,"C","B"))) ->  | T100: =IF(OR(S100="",$C99="",S$7="",S$7=0),"",IF(S100>=S$12,"A",IF(S100<T$12,"C","B"))) ->  | AI100: =IF(OR($C99="",AI$7=""),"",IF(COUNTIFS($E$2:$AH$2,AI$1,$E100:$AH100,"<>")=0,"",SUMIF($E$2:$AH$2,AI$1,$E100:$AH100))) ->  | AJ100: =IF(OR($C99="",AI100=""),"",AI100/AI$7) ->  | AK100: =IF(OR($C99="",AJ100="",AI$7="",AI$7=0),"",IF(AJ100*100>=AJ$12,"A",IF(AJ100*100>=AK$12,"B","C"))) ->  | AL100: =IF(OR($C99="",AL$7=""),"",IF(COUNTIFS($E$2:$AH$2,AL$1,$E100:$AH100,"<>")=0,"",SUMIF($E$2:$AH$2,AL$1,$E100:$AH100))) ->  | AM100: =IF(OR($C99="",AL100=""),"",AL100/AL$7) ->  | AN100: =IF(OR($C99="",AM100="",AL$7="",AL$7=0),"",IF(AM100*100>=AM$12,"A",IF(AM100*100>=AN$12,"B","C"))) ->  | AO100: =IF(OR($C99="",AO$7=""),"",IF(COUNTIFS($E$2:$AH$2,AO$1,$E100:$AH100,"<>")=0,"",SUMIF($E$2:$AH$2,AO$1,$E100:$AH100))) ->  | AP100: =IF(OR($C99="",AO100=""),"",AO100/AO$7) ->  | AQ100: =IF(OR($C99="",AP100="",AO$7="",AO$7=0),"",IF(AP100*100>=AP$12,"A",IF(AP100*100>=AQ$12,"B","C"))) ->  | AR100: =IF(OR($C99="",AR$7=""),"",IF(COUNT(AI100,AL100,AO100)=0,"",SUM(AI100,AL100,AO100))) ->  | AS100: =IF(OR($C99="",AR100=""),"",AR100/AR$7) ->  | AT100: =IF(OR($C99="",AS100="",AR$7="",AR$7=0),"",IF(AS100*100>=AS$12,"A",IF(AS100*100>=AT$12,"B","C"))) -> 
D101: 主学態 | F101: =IF(OR(E101="",$C99="",E$8="",E$8=0),"",IF(E101>=E$13,"A",IF(E101<F$13,"C","B"))) ->  | H101: =IF(OR(G101="",$C99="",G$8="",G$8=0),"",IF(G101>=G$13,"A",IF(G101<H$13,"C","B"))) ->  | J101: =IF(OR(I101="",$C99="",I$8="",I$8=0),"",IF(I101>=I$13,"A",IF(I101<J$13,"C","B"))) ->  | L101: =IF(OR(K101="",$C99="",K$8="",K$8=0),"",IF(K101>=K$13,"A",IF(K101<L$13,"C","B"))) ->  | N101: =IF(OR(M101="",$C99="",M$8="",M$8=0),"",IF(M101>=M$13,"A",IF(M101<N$13,"C","B"))) ->  | P101: =IF(OR(O101="",$C99="",O$8="",O$8=0),"",IF(O101>=O$13,"A",IF(O101<P$13,"C","B"))) ->  | R101: =IF(OR(Q101="",$C99="",Q$8="",Q$8=0),"",IF(Q101>=Q$13,"A",IF(Q101<R$13,"C","B"))) ->  | T101: =IF(OR(S101="",$C99="",S$8="",S$8=0),"",IF(S101>=S$13,"A",IF(S101<T$13,"C","B"))) ->  | AI101: =IF(OR($C99="",AI$8=""),"",IF(COUNTIFS($E$2:$AH$2,AI$1,$E101:$AH101,"<>")=0,"",SUMIF($E$2:$AH$2,AI$1,$E101:$AH101))) ->  | AJ101: =IF(OR($C99="",AI101=""),"",AI101/AI$8) ->  | AK101: =IF(OR($C99="",AJ101="",AI$8="",AI$8=0),"",IF(AJ101*100>=AJ$13,"A",IF(AJ101*100>=AK$13,"B","C"))) ->  | AL101: =IF(OR($C99="",AL$8=""),"",IF(COUNTIFS($E$2:$AH$2,AL$1,$E101:$AH101,"<>")=0,"",SUMIF($E$2:$AH$2,AL$1,$E101:$AH101))) ->  | AM101: =IF(OR($C99="",AL101=""),"",AL101/AL$8) ->  | AN101: =IF(OR($C99="",AM101="",AL$8="",AL$8=0),"",IF(AM101*100>=AM$13,"A",IF(AM101*100>=AN$13,"B","C"))) ->  | AO101: =IF(OR($C99="",AO$8=""),"",IF(COUNTIFS($E$2:$AH$2,AO$1,$E101:$AH101,"<>")=0,"",SUMIF($E$2:$AH$2,AO$1,$E101:$AH101))) ->  | AP101: =IF(OR($C99="",AO101=""),"",AO101/AO$8) ->  | AQ101: =IF(OR($C99="",AP101="",AO$8="",AO$8=0),"",IF(AP101*100>=AP$13,"A",IF(AP101*100>=AQ$13,"B","C"))) ->  | AR101: =IF(OR($C99="",AR$8=""),"",IF(COUNT(AI101,AL101,AO101)=0,"",SUM(AI101,AL101,AO101))) ->  | AS101: =IF(OR($C99="",AR101=""),"",AR101/AR$8) ->  | AT101: =IF(OR($C99="",AS101="",AR$8="",AR$8=0),"",IF(AS101*100>=AS$13,"A",IF(AS101*100>=AT$13,"B","C"))) -> 
D102: 合計 | E102: =IF(OR(AND(E99="",E100="",E101=""),$C99=""),"",SUM(E99:E101)) ->  | F102: _ | G102: =IF(OR(AND(G99="",G100="",G101=""),$C99=""),"",SUM(G99:G101)) ->  | H102: _ | I102: =IF(OR(AND(I99="",I100="",I101=""),$C99=""),"",SUM(I99:I101)) ->  | J102: _ | K102: =IF(OR(AND(K99="",K100="",K101=""),$C99=""),"",SUM(K99:K101)) ->  | L102: _ | M102: =IF(OR(AND(M99="",M100="",M101=""),$C99=""),"",SUM(M99:M101)) ->  | N102: _ | O102: =IF(OR(AND(O99="",O100="",O101=""),$C99=""),"",SUM(O99:O101)) ->  | P102: _ | Q102: =IF(OR(AND(Q99="",Q100="",Q101=""),$C99=""),"",SUM(Q99:Q101)) ->  | R102: _ | S102: =IF(OR(AND(S99="",S100="",S101=""),$C99=""),"",SUM(S99:S101)) ->  | T102: _ | AI102: =IF($C99="","",IF(COUNTBLANK(AI99:AI101)=COUNTA(AI99:AI101),"",SUM(AI99:AI101))) ->  | AJ102: =IF(OR($C99="",AI102=""),"",AI102/AI$9) ->  | AL102: =IF($C99="","",IF(COUNTBLANK(AL99:AL101)=COUNTA(AL99:AL101),"",SUM(AL99:AL101))) ->  | AM102: =IF(OR($C99="",AL102=""),"",AL102/AL$9) ->  | AO102: =IF($C99="","",IF(COUNTBLANK(AO99:AO101)=COUNTA(AO99:AO101),"",SUM(AO99:AO101))) ->  | AP102: =IF(OR($C99="",AO102=""),"",AO102/AO$9) ->  | AR102: =IF(OR($C99="",AR$9=""),"",IF(COUNT(AI102,AL102,AO102)=0,"",SUM(AI102,AL102,AO102))) ->  | AS102: =IF(OR($C99="",AR102=""),"",AR102/AR$9) -> 
A103: 1 | B103: 23 | C103: =VLOOKUP(B103,INDIRECT("_"&A103&"組"),2,0)&"" ->  | D103: 知識・技能 | F103: =IF(OR(E103="",$C103="",E$6="",E$6=0),"",IF(E103>=E$11,"A",IF(E103<F$11,"C","B"))) ->  | H103: =IF(OR(G103="",$C103="",G$6="",G$6=0),"",IF(G103>=G$11,"A",IF(G103<H$11,"C","B"))) ->  | J103: =IF(OR(I103="",$C103="",I$6="",I$6=0),"",IF(I103>=I$11,"A",IF(I103<J$11,"C","B"))) ->  | L103: =IF(OR(K103="",$C103="",K$6="",K$6=0),"",IF(K103>=K$11,"A",IF(K103<L$11,"C","B"))) ->  | N103: =IF(OR(M103="",$C103="",M$6="",M$6=0),"",IF(M103>=M$11,"A",IF(M103<N$11,"C","B"))) ->  | P103: =IF(OR(O103="",$C103="",O$6="",O$6=0),"",IF(O103>=O$11,"A",IF(O103<P$11,"C","B"))) ->  | R103: =IF(OR(Q103="",$C103="",Q$6="",Q$6=0),"",IF(Q103>=Q$11,"A",IF(Q103<R$11,"C","B"))) ->  | T103: =IF(OR(S103="",$C103="",S$6="",S$6=0),"",IF(S103>=S$11,"A",IF(S103<T$11,"C","B"))) ->  | AI103: =IF(OR($C103="",AI$6=""),"",IF(COUNTIFS($E$2:$AH$2,AI$1,$E103:$AH103,"<>")=0,"",SUMIF($E$2:$AH$2,AI$1,$E103:$AH103))) ->  | AJ103: =IF(OR($C103="",AI103=""),"",AI103/AI$6) ->  | AK103: =IF(OR($C103="",AJ103="",AI$6="",AI$6=0),"",IF(AJ103*100>=AJ$11,"A",IF(AJ103*100>=AK$11,"B","C"))) ->  | AL103: =IF(OR($C103="",AL$6=""),"",IF(COUNTIFS($E$2:$AH$2,AL$1,$E103:$AH103,"<>")=0,"",SUMIF($E$2:$AH$2,AL$1,$E103:$AH103))) ->  | AM103: =IF(OR($C103="",AL103=""),"",AL103/AL$6) ->  | AN103: =IF(OR($C103="",AM103="",AL$6="",AL$6=0),"",IF(AM103*100>=AM$11,"A",IF(AM103*100>=AN$11,"B","C"))) ->  | AO103: =IF(OR($C103="",AO$6=""),"",IF(COUNTIFS($E$2:$AH$2,AO$1,$E103:$AH103,"<>")=0,"",SUMIF($E$2:$AH$2,AO$1,$E103:$AH103))) ->  | AP103: =IF(OR($C103="",AO103=""),"",AO103/AO$6) ->  | AQ103: =IF(OR($C103="",AP103="",AO$6="",AO$6=0),"",IF(AP103*100>=AP$11,"A",IF(AP103*100>=AQ$11,"B","C"))) ->  | AR103: =IF(OR($C103="",AR$6=""),"",IF(COUNT(AI103,AL103,AO103)=0,"",SUM(AI103,AL103,AO103))) ->  | AS103: =IF(OR($C103="",AR103=""),"",AR103/AR$6) ->  | AT103: =IF(OR($C103="",AS103="",AR$6="",AR$6=0),"",IF(AS103*100>=AS$11,"A",IF(AS103*100>=AT$11,"B","C"))) -> 
D104: 思考判断表現 | F104: =IF(OR(E104="",$C103="",E$7="",E$7=0),"",IF(E104>=E$12,"A",IF(E104<F$12,"C","B"))) ->  | H104: =IF(OR(G104="",$C103="",G$7="",G$7=0),"",IF(G104>=G$12,"A",IF(G104<H$12,"C","B"))) ->  | J104: =IF(OR(I104="",$C103="",I$7="",I$7=0),"",IF(I104>=I$12,"A",IF(I104<J$12,"C","B"))) ->  | L104: =IF(OR(K104="",$C103="",K$7="",K$7=0),"",IF(K104>=K$12,"A",IF(K104<L$12,"C","B"))) ->  | N104: =IF(OR(M104="",$C103="",M$7="",M$7=0),"",IF(M104>=M$12,"A",IF(M104<N$12,"C","B"))) ->  | P104: =IF(OR(O104="",$C103="",O$7="",O$7=0),"",IF(O104>=O$12,"A",IF(O104<P$12,"C","B"))) ->  | R104: =IF(OR(Q104="",$C103="",Q$7="",Q$7=0),"",IF(Q104>=Q$12,"A",IF(Q104<R$12,"C","B"))) ->  | T104: =IF(OR(S104="",$C103="",S$7="",S$7=0),"",IF(S104>=S$12,"A",IF(S104<T$12,"C","B"))) ->  | AI104: =IF(OR($C103="",AI$7=""),"",IF(COUNTIFS($E$2:$AH$2,AI$1,$E104:$AH104,"<>")=0,"",SUMIF($E$2:$AH$2,AI$1,$E104:$AH104))) ->  | AJ104: =IF(OR($C103="",AI104=""),"",AI104/AI$7) ->  | AK104: =IF(OR($C103="",AJ104="",AI$7="",AI$7=0),"",IF(AJ104*100>=AJ$12,"A",IF(AJ104*100>=AK$12,"B","C"))) ->  | AL104: =IF(OR($C103="",AL$7=""),"",IF(COUNTIFS($E$2:$AH$2,AL$1,$E104:$AH104,"<>")=0,"",SUMIF($E$2:$AH$2,AL$1,$E104:$AH104))) ->  | AM104: =IF(OR($C103="",AL104=""),"",AL104/AL$7) ->  | AN104: =IF(OR($C103="",AM104="",AL$7="",AL$7=0),"",IF(AM104*100>=AM$12,"A",IF(AM104*100>=AN$12,"B","C"))) ->  | AO104: =IF(OR($C103="",AO$7=""),"",IF(COUNTIFS($E$2:$AH$2,AO$1,$E104:$AH104,"<>")=0,"",SUMIF($E$2:$AH$2,AO$1,$E104:$AH104))) ->  | AP104: =IF(OR($C103="",AO104=""),"",AO104/AO$7) ->  | AQ104: =IF(OR($C103="",AP104="",AO$7="",AO$7=0),"",IF(AP104*100>=AP$12,"A",IF(AP104*100>=AQ$12,"B","C"))) ->  | AR104: =IF(OR($C103="",AR$7=""),"",IF(COUNT(AI104,AL104,AO104)=0,"",SUM(AI104,AL104,AO104))) ->  | AS104: =IF(OR($C103="",AR104=""),"",AR104/AR$7) ->  | AT104: =IF(OR($C103="",AS104="",AR$7="",AR$7=0),"",IF(AS104*100>=AS$12,"A",IF(AS104*100>=AT$12,"B","C"))) -> 
D105: 主学態 | F105: =IF(OR(E105="",$C103="",E$8="",E$8=0),"",IF(E105>=E$13,"A",IF(E105<F$13,"C","B"))) ->  | H105: =IF(OR(G105="",$C103="",G$8="",G$8=0),"",IF(G105>=G$13,"A",IF(G105<H$13,"C","B"))) ->  | J105: =IF(OR(I105="",$C103="",I$8="",I$8=0),"",IF(I105>=I$13,"A",IF(I105<J$13,"C","B"))) ->  | L105: =IF(OR(K105="",$C103="",K$8="",K$8=0),"",IF(K105>=K$13,"A",IF(K105<L$13,"C","B"))) ->  | N105: =IF(OR(M105="",$C103="",M$8="",M$8=0),"",IF(M105>=M$13,"A",IF(M105<N$13,"C","B"))) ->  | P105: =IF(OR(O105="",$C103="",O$8="",O$8=0),"",IF(O105>=O$13,"A",IF(O105<P$13,"C","B"))) ->  | R105: =IF(OR(Q105="",$C103="",Q$8="",Q$8=0),"",IF(Q105>=Q$13,"A",IF(Q105<R$13,"C","B"))) ->  | T105: =IF(OR(S105="",$C103="",S$8="",S$8=0),"",IF(S105>=S$13,"A",IF(S105<T$13,"C","B"))) ->  | AI105: =IF(OR($C103="",AI$8=""),"",IF(COUNTIFS($E$2:$AH$2,AI$1,$E105:$AH105,"<>")=0,"",SUMIF($E$2:$AH$2,AI$1,$E105:$AH105))) ->  | AJ105: =IF(OR($C103="",AI105=""),"",AI105/AI$8) ->  | AK105: =IF(OR($C103="",AJ105="",AI$8="",AI$8=0),"",IF(AJ105*100>=AJ$13,"A",IF(AJ105*100>=AK$13,"B","C"))) ->  | AL105: =IF(OR($C103="",AL$8=""),"",IF(COUNTIFS($E$2:$AH$2,AL$1,$E105:$AH105,"<>")=0,"",SUMIF($E$2:$AH$2,AL$1,$E105:$AH105))) ->  | AM105: =IF(OR($C103="",AL105=""),"",AL105/AL$8) ->  | AN105: =IF(OR($C103="",AM105="",AL$8="",AL$8=0),"",IF(AM105*100>=AM$13,"A",IF(AM105*100>=AN$13,"B","C"))) ->  | AO105: =IF(OR($C103="",AO$8=""),"",IF(COUNTIFS($E$2:$AH$2,AO$1,$E105:$AH105,"<>")=0,"",SUMIF($E$2:$AH$2,AO$1,$E105:$AH105))) ->  | AP105: =IF(OR($C103="",AO105=""),"",AO105/AO$8) ->  | AQ105: =IF(OR($C103="",AP105="",AO$8="",AO$8=0),"",IF(AP105*100>=AP$13,"A",IF(AP105*100>=AQ$13,"B","C"))) ->  | AR105: =IF(OR($C103="",AR$8=""),"",IF(COUNT(AI105,AL105,AO105)=0,"",SUM(AI105,AL105,AO105))) ->  | AS105: =IF(OR($C103="",AR105=""),"",AR105/AR$8) ->  | AT105: =IF(OR($C103="",AS105="",AR$8="",AR$8=0),"",IF(AS105*100>=AS$13,"A",IF(AS105*100>=AT$13,"B","C"))) -> 
D106: 合計 | E106: =IF(OR(AND(E103="",E104="",E105=""),$C103=""),"",SUM(E103:E105)) ->  | F106: _ | G106: =IF(OR(AND(G103="",G104="",G105=""),$C103=""),"",SUM(G103:G105)) ->  | H106: _ | I106: =IF(OR(AND(I103="",I104="",I105=""),$C103=""),"",SUM(I103:I105)) ->  | J106: _ | K106: =IF(OR(AND(K103="",K104="",K105=""),$C103=""),"",SUM(K103:K105)) ->  | L106: _ | M106: =IF(OR(AND(M103="",M104="",M105=""),$C103=""),"",SUM(M103:M105)) ->  | N106: _ | O106: =IF(OR(AND(O103="",O104="",O105=""),$C103=""),"",SUM(O103:O105)) ->  | P106: _ | Q106: =IF(OR(AND(Q103="",Q104="",Q105=""),$C103=""),"",SUM(Q103:Q105)) ->  | R106: _ | S106: =IF(OR(AND(S103="",S104="",S105=""),$C103=""),"",SUM(S103:S105)) ->  | T106: _ | AI106: =IF($C103="","",IF(COUNTBLANK(AI103:AI105)=COUNTA(AI103:AI105),"",SUM(AI103:AI105))) ->  | AJ106: =IF(OR($C103="",AI106=""),"",AI106/AI$9) ->  | AL106: =IF($C103="","",IF(COUNTBLANK(AL103:AL105)=COUNTA(AL103:AL105),"",SUM(AL103:AL105))) ->  | AM106: =IF(OR($C103="",AL106=""),"",AL106/AL$9) ->  | AO106: =IF($C103="","",IF(COUNTBLANK(AO103:AO105)=COUNTA(AO103:AO105),"",SUM(AO103:AO105))) ->  | AP106: =IF(OR($C103="",AO106=""),"",AO106/AO$9) ->  | AR106: =IF(OR($C103="",AR$9=""),"",IF(COUNT(AI106,AL106,AO106)=0,"",SUM(AI106,AL106,AO106))) ->  | AS106: =IF(OR($C103="",AR106=""),"",AR106/AR$9) -> 
A107: 1 | B107: 24 | C107: =VLOOKUP(B107,INDIRECT("_"&A107&"組"),2,0)&"" ->  | D107: 知識・技能 | F107: =IF(OR(E107="",$C107="",E$6="",E$6=0),"",IF(E107>=E$11,"A",IF(E107<F$11,"C","B"))) ->  | H107: =IF(OR(G107="",$C107="",G$6="",G$6=0),"",IF(G107>=G$11,"A",IF(G107<H$11,"C","B"))) ->  | J107: =IF(OR(I107="",$C107="",I$6="",I$6=0),"",IF(I107>=I$11,"A",IF(I107<J$11,"C","B"))) ->  | L107: =IF(OR(K107="",$C107="",K$6="",K$6=0),"",IF(K107>=K$11,"A",IF(K107<L$11,"C","B"))) ->  | N107: =IF(OR(M107="",$C107="",M$6="",M$6=0),"",IF(M107>=M$11,"A",IF(M107<N$11,"C","B"))) ->  | P107: =IF(OR(O107="",$C107="",O$6="",O$6=0),"",IF(O107>=O$11,"A",IF(O107<P$11,"C","B"))) ->  | R107: =IF(OR(Q107="",$C107="",Q$6="",Q$6=0),"",IF(Q107>=Q$11,"A",IF(Q107<R$11,"C","B"))) ->  | T107: =IF(OR(S107="",$C107="",S$6="",S$6=0),"",IF(S107>=S$11,"A",IF(S107<T$11,"C","B"))) ->  | AI107: =IF(OR($C107="",AI$6=""),"",IF(COUNTIFS($E$2:$AH$2,AI$1,$E107:$AH107,"<>")=0,"",SUMIF($E$2:$AH$2,AI$1,$E107:$AH107))) ->  | AJ107: =IF(OR($C107="",AI107=""),"",AI107/AI$6) ->  | AK107: =IF(OR($C107="",AJ107="",AI$6="",AI$6=0),"",IF(AJ107*100>=AJ$11,"A",IF(AJ107*100>=AK$11,"B","C"))) ->  | AL107: =IF(OR($C107="",AL$6=""),"",IF(COUNTIFS($E$2:$AH$2,AL$1,$E107:$AH107,"<>")=0,"",SUMIF($E$2:$AH$2,AL$1,$E107:$AH107))) ->  | AM107: =IF(OR($C107="",AL107=""),"",AL107/AL$6) ->  | AN107: =IF(OR($C107="",AM107="",AL$6="",AL$6=0),"",IF(AM107*100>=AM$11,"A",IF(AM107*100>=AN$11,"B","C"))) ->  | AO107: =IF(OR($C107="",AO$6=""),"",IF(COUNTIFS($E$2:$AH$2,AO$1,$E107:$AH107,"<>")=0,"",SUMIF($E$2:$AH$2,AO$1,$E107:$AH107))) ->  | AP107: =IF(OR($C107="",AO107=""),"",AO107/AO$6) ->  | AQ107: =IF(OR($C107="",AP107="",AO$6="",AO$6=0),"",IF(AP107*100>=AP$11,"A",IF(AP107*100>=AQ$11,"B","C"))) ->  | AR107: =IF(OR($C107="",AR$6=""),"",IF(COUNT(AI107,AL107,AO107)=0,"",SUM(AI107,AL107,AO107))) ->  | AS107: =IF(OR($C107="",AR107=""),"",AR107/AR$6) ->  | AT107: =IF(OR($C107="",AS107="",AR$6="",AR$6=0),"",IF(AS107*100>=AS$11,"A",IF(AS107*100>=AT$11,"B","C"))) -> 
D108: 思考判断表現 | F108: =IF(OR(E108="",$C107="",E$7="",E$7=0),"",IF(E108>=E$12,"A",IF(E108<F$12,"C","B"))) ->  | H108: =IF(OR(G108="",$C107="",G$7="",G$7=0),"",IF(G108>=G$12,"A",IF(G108<H$12,"C","B"))) ->  | J108: =IF(OR(I108="",$C107="",I$7="",I$7=0),"",IF(I108>=I$12,"A",IF(I108<J$12,"C","B"))) ->  | L108: =IF(OR(K108="",$C107="",K$7="",K$7=0),"",IF(K108>=K$12,"A",IF(K108<L$12,"C","B"))) ->  | N108: =IF(OR(M108="",$C107="",M$7="",M$7=0),"",IF(M108>=M$12,"A",IF(M108<N$12,"C","B"))) ->  | P108: =IF(OR(O108="",$C107="",O$7="",O$7=0),"",IF(O108>=O$12,"A",IF(O108<P$12,"C","B"))) ->  | R108: =IF(OR(Q108="",$C107="",Q$7="",Q$7=0),"",IF(Q108>=Q$12,"A",IF(Q108<R$12,"C","B"))) ->  | T108: =IF(OR(S108="",$C107="",S$7="",S$7=0),"",IF(S108>=S$12,"A",IF(S108<T$12,"C","B"))) ->  | AI108: =IF(OR($C107="",AI$7=""),"",IF(COUNTIFS($E$2:$AH$2,AI$1,$E108:$AH108,"<>")=0,"",SUMIF($E$2:$AH$2,AI$1,$E108:$AH108))) ->  | AJ108: =IF(OR($C107="",AI108=""),"",AI108/AI$7) ->  | AK108: =IF(OR($C107="",AJ108="",AI$7="",AI$7=0),"",IF(AJ108*100>=AJ$12,"A",IF(AJ108*100>=AK$12,"B","C"))) ->  | AL108: =IF(OR($C107="",AL$7=""),"",IF(COUNTIFS($E$2:$AH$2,AL$1,$E108:$AH108,"<>")=0,"",SUMIF($E$2:$AH$2,AL$1,$E108:$AH108))) ->  | AM108: =IF(OR($C107="",AL108=""),"",AL108/AL$7) ->  | AN108: =IF(OR($C107="",AM108="",AL$7="",AL$7=0),"",IF(AM108*100>=AM$12,"A",IF(AM108*100>=AN$12,"B","C"))) ->  | AO108: =IF(OR($C107="",AO$7=""),"",IF(COUNTIFS($E$2:$AH$2,AO$1,$E108:$AH108,"<>")=0,"",SUMIF($E$2:$AH$2,AO$1,$E108:$AH108))) ->  | AP108: =IF(OR($C107="",AO108=""),"",AO108/AO$7) ->  | AQ108: =IF(OR($C107="",AP108="",AO$7="",AO$7=0),"",IF(AP108*100>=AP$12,"A",IF(AP108*100>=AQ$12,"B","C"))) ->  | AR108: =IF(OR($C107="",AR$7=""),"",IF(COUNT(AI108,AL108,AO108)=0,"",SUM(AI108,AL108,AO108))) ->  | AS108: =IF(OR($C107="",AR108=""),"",AR108/AR$7) ->  | AT108: =IF(OR($C107="",AS108="",AR$7="",AR$7=0),"",IF(AS108*100>=AS$12,"A",IF(AS108*100>=AT$12,"B","C"))) -> 
D109: 主学態 | F109: =IF(OR(E109="",$C107="",E$8="",E$8=0),"",IF(E109>=E$13,"A",IF(E109<F$13,"C","B"))) ->  | H109: =IF(OR(G109="",$C107="",G$8="",G$8=0),"",IF(G109>=G$13,"A",IF(G109<H$13,"C","B"))) ->  | J109: =IF(OR(I109="",$C107="",I$8="",I$8=0),"",IF(I109>=I$13,"A",IF(I109<J$13,"C","B"))) ->  | L109: =IF(OR(K109="",$C107="",K$8="",K$8=0),"",IF(K109>=K$13,"A",IF(K109<L$13,"C","B"))) ->  | N109: =IF(OR(M109="",$C107="",M$8="",M$8=0),"",IF(M109>=M$13,"A",IF(M109<N$13,"C","B"))) ->  | P109: =IF(OR(O109="",$C107="",O$8="",O$8=0),"",IF(O109>=O$13,"A",IF(O109<P$13,"C","B"))) ->  | R109: =IF(OR(Q109="",$C107="",Q$8="",Q$8=0),"",IF(Q109>=Q$13,"A",IF(Q109<R$13,"C","B"))) ->  | T109: =IF(OR(S109="",$C107="",S$8="",S$8=0),"",IF(S109>=S$13,"A",IF(S109<T$13,"C","B"))) ->  | AI109: =IF(OR($C107="",AI$8=""),"",IF(COUNTIFS($E$2:$AH$2,AI$1,$E109:$AH109,"<>")=0,"",SUMIF($E$2:$AH$2,AI$1,$E109:$AH109))) ->  | AJ109: =IF(OR($C107="",AI109=""),"",AI109/AI$8) ->  | AK109: =IF(OR($C107="",AJ109="",AI$8="",AI$8=0),"",IF(AJ109*100>=AJ$13,"A",IF(AJ109*100>=AK$13,"B","C"))) ->  | AL109: =IF(OR($C107="",AL$8=""),"",IF(COUNTIFS($E$2:$AH$2,AL$1,$E109:$AH109,"<>")=0,"",SUMIF($E$2:$AH$2,AL$1,$E109:$AH109))) ->  | AM109: =IF(OR($C107="",AL109=""),"",AL109/AL$8) ->  | AN109: =IF(OR($C107="",AM109="",AL$8="",AL$8=0),"",IF(AM109*100>=AM$13,"A",IF(AM109*100>=AN$13,"B","C"))) ->  | AO109: =IF(OR($C107="",AO$8=""),"",IF(COUNTIFS($E$2:$AH$2,AO$1,$E109:$AH109,"<>")=0,"",SUMIF($E$2:$AH$2,AO$1,$E109:$AH109))) ->  | AP109: =IF(OR($C107="",AO109=""),"",AO109/AO$8) ->  | AQ109: =IF(OR($C107="",AP109="",AO$8="",AO$8=0),"",IF(AP109*100>=AP$13,"A",IF(AP109*100>=AQ$13,"B","C"))) ->  | AR109: =IF(OR($C107="",AR$8=""),"",IF(COUNT(AI109,AL109,AO109)=0,"",SUM(AI109,AL109,AO109))) ->  | AS109: =IF(OR($C107="",AR109=""),"",AR109/AR$8) ->  | AT109: =IF(OR($C107="",AS109="",AR$8="",AR$8=0),"",IF(AS109*100>=AS$13,"A",IF(AS109*100>=AT$13,"B","C"))) -> 
